Workbook

Sheet Menu
A4: ='Business Details'!B4 -> SEQ INTERIM REVENUE MONITORING - INFORMATION REQUIREMENT TEMPLATE
L8: Please note that the macro in the intermediate input sheets workbook uses the original filenames for both this templates workbook and itself. Therefore, if you wish to save this workbook under a different filename, please do so ONLY AFTER FILLING OUT THE TEMPLATES AND THE MACRO IN THE INTERMEDIATE INPUT SHEETS HAS BEEN RUN, otherwise the macro will not function properly. Please note that the revenue model should also be open before you save either this templates workbook or the intermediate input sheets under a different name, as the pricing model has links to both these workbooks.
AC29: =Allocation!$K$151 -> 0.8554872922
AC30: =Allocation!$K$151 -> 0.8554872922
AG44: =Allocation!$K$151 -> 0.8554872922
AG45: =Allocation!$K$151 -> 0.8554872922
AG46: =Allocation!$K$151 -> 0.8554872922
AO49: =Allocation!$K$168 -> 0.8387193911
Q59: =Allocation!$K$151 -> 0.8554872922 | R59: =Allocation!$K$151 -> 0.8554872922 | S59: =Allocation!$K$154 -> 0.9086594767 | T59: =Allocation!$K$160 -> 1 | U59: =Allocation!$K$160 -> 1 | V59: =Allocation!$K$163 -> 1
AC70: =Allocation!$K$154 -> 0.9086594767
AC71: =Allocation!$K$154 -> 0.9086594767
AG102: =Allocation!$K$154 -> 0.9086594767
AG103: =Allocation!$K$154 -> 0.9086594767
AG104: =Allocation!$K$154 -> 0.9086594767
AC111: =Allocation!$K$157 -> 1
AC112: =Allocation!$K$157 -> 1
AC152: =Allocation!$K$160 -> 1
AC153: =Allocation!$K$160 -> 1
AO155: =Allocation!$K$171 -> 0.8864484231
AG160: =Allocation!$K$157 -> 1
AG161: =Allocation!$K$157 -> 1
AG162: =Allocation!$K$157 -> 1
AG182: =Allocation!K$151 -> 0.8554872922
AC193: =Allocation!$K$163 -> 1
AC194: =Allocation!$K$163 -> 1
AG218: =Allocation!$K$160 -> 1
AG219: =Allocation!$K$160 -> 1
AG220: =Allocation!$K$160 -> 1
AO260: =Allocation!$K$174 -> 1
AG276: =Allocation!$K$163 -> 1
AG277: =Allocation!$K$163 -> 1
AG278: =Allocation!$K$163 -> 1
AO365: =Allocation!$K$177 -> 1
AO471: =Allocation!$K$180 -> 1
M666: ='5.1.7'!M29 -> 0 | N666: ='5.1.7'!S29 -> 0 | O666: ='5.1.7'!T29 -> 0 | P666: ='5.1.7'!U29 -> 0 | Q666: ='5.1.7'!V29 -> 0 | R666: ='5.1.7'!W29 -> 0 | S666: ='5.1.7'!X29 -> 0 | T666: ='5.1.7'!Y29 -> 0 | U666: ='5.1.7'!Z29 -> 0 | V666: ='5.1.7'!AA29 -> 0 | W666: ='5.1.7'!AB29 -> 0 | X666: ='5.1.7'!#REF! -> 
AG667: =Allocation!K$154 -> 0.9086594767
AG1151: =Allocation!K$157 -> 1
AG1636: =Allocation!K$160 -> 1
AG2121: =Allocation!K$163 -> 1

Sheet Format Guide
B5: ='Business Details'!B4 -> SEQ INTERIM REVENUE MONITORING - INFORMATION REQUIREMENT TEMPLATE
B6: FORMAT GUIDE
B8: PROJECT FILE: | E8: Information Requirement Template
B10: VERSION AND STATUS OF MODEL: | E10: Version 1.0
B12: DATE OF MODEL: | E12: =NOW() -> 2012-09-24T09:02:53.420
B19: SPREADSHEET FORMATTING PROTOCOLS
B21: Column headings | D21: 2010/11
B23: Hard coded cells (assumptions, data inputs, and value-copied cells) | D23: 15246 | F23: List Box
B25: Row formula different to others | D25: 100 | F25: Macro button (navigation)
B27: Calculated Cell | D27: 15246
B29: Sub-total | D29: 300.51 | AC29: =Allocation!$K$151 -> 0.8554872922
AC30: =Allocation!$K$151 -> 0.8554872922
B31: Total (eg maximum revenue requirement) | D31: 250.86
AG44: =Allocation!$K$151 -> 0.8554872922
AG45: =Allocation!$K$151 -> 0.8554872922
AG46: =Allocation!$K$151 -> 0.8554872922
AO49: =Allocation!$K$168 -> 0.8387193911
Q59: =Allocation!$K$151 -> 0.8554872922 | R59: =Allocation!$K$151 -> 0.8554872922 | S59: =Allocation!$K$154 -> 0.9086594767 | T59: =Allocation!$K$160 -> 1 | U59: =Allocation!$K$160 -> 1 | V59: =Allocation!$K$163 -> 1
AC70: =Allocation!$K$154 -> 0.9086594767
AC71: =Allocation!$K$154 -> 0.9086594767
AG102: =Allocation!$K$154 -> 0.9086594767
AG103: =Allocation!$K$154 -> 0.9086594767
AG104: =Allocation!$K$154 -> 0.9086594767
AC111: =Allocation!$K$157 -> 1
AC112: =Allocation!$K$157 -> 1
AC152: =Allocation!$K$160 -> 1
AC153: =Allocation!$K$160 -> 1
AO155: =Allocation!$K$171 -> 0.8864484231
AG160: =Allocation!$K$157 -> 1
AG161: =Allocation!$K$157 -> 1
AG162: =Allocation!$K$157 -> 1
AG182: =Allocation!K$151 -> 0.8554872922
AC193: =Allocation!$K$163 -> 1
AC194: =Allocation!$K$163 -> 1
AG218: =Allocation!$K$160 -> 1
AG219: =Allocation!$K$160 -> 1
AG220: =Allocation!$K$160 -> 1
AO260: =Allocation!$K$174 -> 1
AG276: =Allocation!$K$163 -> 1
AG277: =Allocation!$K$163 -> 1
AG278: =Allocation!$K$163 -> 1
AO365: =Allocation!$K$177 -> 1
AO471: =Allocation!$K$180 -> 1
M666: ='5.1.7'!M29 -> 0 | N666: ='5.1.7'!S29 -> 0 | O666: ='5.1.7'!T29 -> 0 | P666: ='5.1.7'!U29 -> 0 | Q666: ='5.1.7'!V29 -> 0 | R666: ='5.1.7'!W29 -> 0 | S666: ='5.1.7'!X29 -> 0 | T666: ='5.1.7'!Y29 -> 0 | U666: ='5.1.7'!Z29 -> 0 | V666: ='5.1.7'!AA29 -> 0 | W666: ='5.1.7'!AB29 -> 0 | X666: ='5.1.7'!#REF! -> 
AG667: =Allocation!K$154 -> 0.9086594767
AG1151: =Allocation!K$157 -> 1
AG1636: =Allocation!K$160 -> 1
AG2121: =Allocation!K$163 -> 1

Sheet Business Details
B4: SEQ INTERIM REVENUE MONITORING - INFORMATION REQUIREMENT TEMPLATE
B7: Business Details | I7: Supporting Documents
B9: Business name | D9: Queensland Urban Utilities
B11: Geographical areas
C12: 1 | D12: Brisbane
C13: 2 | D13: Ipswich
C14: 3 | D14: Lockyer Valley
C15: 4 | D15: Scenic Rim
C16: 5 | D16: Somerset
B18: Are additional geographic areas used? | G18: If yes, please provide supporting information.
B20: Analysis Years
B22: Period of information requirement | D22: Year ending 30 June:
C23: Start date | D23: 2009
C24: Smoothing Period - Start Year
C25: Smoothing Period - End year Year
C26: Reporting year | D26: 2013
B28: Indexation rates | E28: Year Ending 30 June:
E29: =StartDate -> 2009 | F29: =E29+1 -> 2010 | G29: =F29+1 -> 2011 | H29: =G29+1 -> 2012 | I29: =H29+1 -> 2013 | J29: =CONCATENATE(I29+1," onwards") -> 2014 onwards | K29: Supporting Documents | AC29: =Allocation!$K$151 -> 0.8554872922
B30: Indexation rates | AC30: =Allocation!$K$151 -> 0.8554872922
C31: Annual Indexation rate | D31: % pa | E31: 0.02 | F31: 0.032 | G31: 0.036 | H31: 0.0132 | I31: 0.0248 | J31: 0.0248
B37: Asset Class Details | I37: Supporting Documents
B39: Asset classes
C40: 1 | D40: Reservoirs
C41: 2 | D41: Pump stations
C42: 3 | D42: Treatment
C43: 4 | D43: Associated telemetry and control systems
C44: 5 | D44: Meters | AG44: =Allocation!$K$151 -> 0.8554872922
C45: 6 | D45: Billing systems | AG45: =Allocation!$K$151 -> 0.8554872922
C46: 7 | D46: Corporate systems | AG46: =Allocation!$K$151 -> 0.8554872922
C47: 8 | D47: Sundry property, plant and equipment
C48: 9 | D48: Land
C49: 10 | D49: Building other than infrastructure housing | AO49: =Allocation!$K$168 -> 0.8387193911
C50: 11 | D50: Distribution infrastructure not included in another category
C51: 12 | D51: Support services
C52: 13 | D52: Mains
C53: 14 | D53: Establishment Costs
C54: 15 | D54: Unallocated cash contribution
Q59: =Allocation!$K$151 -> 0.8554872922 | R59: =Allocation!$K$151 -> 0.8554872922 | S59: =Allocation!$K$154 -> 0.9086594767 | T59: =Allocation!$K$160 -> 1 | U59: =Allocation!$K$160 -> 1 | V59: =Allocation!$K$163 -> 1
AC70: =Allocation!$K$154 -> 0.9086594767
AC71: =Allocation!$K$154 -> 0.9086594767
AG102: =Allocation!$K$154 -> 0.9086594767
AG103: =Allocation!$K$154 -> 0.9086594767
AG104: =Allocation!$K$154 -> 0.9086594767
AC111: =Allocation!$K$157 -> 1
AC112: =Allocation!$K$157 -> 1
AC152: =Allocation!$K$160 -> 1
AC153: =Allocation!$K$160 -> 1
AO155: =Allocation!$K$171 -> 0.8864484231
AG160: =Allocation!$K$157 -> 1
AG161: =Allocation!$K$157 -> 1
AG162: =Allocation!$K$157 -> 1
AG182: =Allocation!K$151 -> 0.8554872922
AC193: =Allocation!$K$163 -> 1
AC194: =Allocation!$K$163 -> 1
AG218: =Allocation!$K$160 -> 1
AG219: =Allocation!$K$160 -> 1
AG220: =Allocation!$K$160 -> 1
AO260: =Allocation!$K$174 -> 1
AG276: =Allocation!$K$163 -> 1
AG277: =Allocation!$K$163 -> 1
AG278: =Allocation!$K$163 -> 1
AO365: =Allocation!$K$177 -> 1
AO471: =Allocation!$K$180 -> 1
M666: ='5.1.7'!M29 -> 0 | N666: ='5.1.7'!S29 -> 0 | O666: ='5.1.7'!T29 -> 0 | P666: ='5.1.7'!U29 -> 0 | Q666: ='5.1.7'!V29 -> 0 | R666: ='5.1.7'!W29 -> 0 | S666: ='5.1.7'!X29 -> 0 | T666: ='5.1.7'!Y29 -> 0 | U666: ='5.1.7'!Z29 -> 0 | V666: ='5.1.7'!AA29 -> 0 | W666: ='5.1.7'!AB29 -> 0 | X666: ='5.1.7'!#REF! -> 
AG667: =Allocation!K$154 -> 0.9086594767
AG1151: =Allocation!K$157 -> 1
AG1636: =Allocation!K$160 -> 1
AG2121: =Allocation!K$163 -> 1

Sheet 3.3
B4: ='Business Details'!$B$4 -> SEQ INTERIM REVENUE MONITORING - INFORMATION REQUIREMENT TEMPLATE
B7: =CONCATENATE("Supporting Documents for ",'Business Details'!$D$9) -> Supporting Documents for Queensland Urban Utilities
B8: =CONCATENATE("Reporting year = ",AnalysisYear) -> Reporting year = 2013
F10: 0 | G10: 1 | H10: 2
J11: Supporting
J12: Documents
B14: Basis for preparation of historical information:
B16: [description of how historical data has been prepared]
B27: Basis for preparation of forecast information:
B29: [description of how forecast data has been prepared]
AO49: =Allocation!$K$168 -> 0.8387193911
AO155: =Allocation!$K$171 -> 0.8864484231
AO260: =Allocation!$K$174 -> 1
AO365: =Allocation!$K$177 -> 1
AO471: =Allocation!$K$180 -> 1
M666: ='5.1.7'!M29 -> 0

Sheet 5.1.1
B4: ='Business Details'!$B$4 -> SEQ INTERIM REVENUE MONITORING - INFORMATION REQUIREMENT TEMPLATE
B7: =CONCATENATE("Consolidated Statement for ",'Business Details'!$D$9) -> Consolidated Statement for Queensland Urban Utilities
B8: =CONCATENATE("Reporting year = ",AnalysisYear) -> Reporting year = 2013
F12: For Year Ending 30 June: | N12: =CONCATENATE("For Year Ending 30 June ",AnalysisYear,":") -> For Year Ending 30 June 2013:
C13: Account heading | F13: =StartDate -> 2009 | G13: =F13+1 -> 2010 | H13: 2011 | I13: 2012 | J13: 2013 | K13: 2014 | L13: 2015 | N13: Ledger Code | O13: Relevant Notes | P13: Supporting Documents
B14: all amounts in '$0000 | F14: V5 | G14: V5 | H14: V5 | I14: V5 | J14: V5 | K14: V5 | L14: V5
C15: Revenues | Q15: Dist | R15: Prod | S15: Item1 | T15: Sign | U15: Item2 | V15: sign | W15: Item3 | X15: Sign | Y15: Item4 | Z15: sign | AA15: Item5 | AB15: sign
C16: Revenue from services | E16: $'000 | F16: =(SUMIF(Datastore!$A:$A,$Q16&$R16&"|"&$S16&"|"&F$14&"|"&"FY"&RIGHT(F$13,2),Datastore!$G:$G)*$T16+SUMIF(Datastore!$A:$A,$Q16&$R16&"|"&$U16&"|"&F$14&"|"&"FY"&RIGHT(F$13,2),Datastore!$G:$G)*$V16+SUMIF(Datastore!$A:$A,$Q16&$R16&"|"&$W16&"|"&F$14&"|"&"FY"&RIGHT(F$13,2),Datastore!$G:$G)*$X16+SUMIF(Datastore!$A:$A,$Q16&$R16&"|"&$Y16&"|"&F$14&"|"&"FY"&RIGHT(F$13,2),Datastore!$G:$G)*$Z16+SUMIF(Datastore!$A:$A,$Q16&$R16&"|"&$AA16&"|"&F$14&"|"&"FY"&RIGHT(F$13,2),Datastore!$G:$G)*$AB16)/1000 -> 583247.4029 | G16: =(SUMIF(Datastore!$A:$A,$Q16&$R16&"|"&$S16&"|"&G$14&"|"&"FY"&RIGHT(G$13,2),Datastore!$G:$G)*$T16+SUMIF(Datastore!$A:$A,$Q16&$R16&"|"&$U16&"|"&G$14&"|"&"FY"&RIGHT(G$13,2),Datastore!$G:$G)*$V16+SUMIF(Datastore!$A:$A,$Q16&$R16&"|"&$W16&"|"&G$14&"|"&"FY"&RIGHT(G$13,2),Datastore!$G:$G)*$X16+SUMIF(Datastore!$A:$A,$Q16&$R16&"|"&$Y16&"|"&G$14&"|"&"FY"&RIGHT(G$13,2),Datastore!$G:$G)*$Z16+SUMIF(Datastore!$A:$A,$Q16&$R16&"|"&$AA16&"|"&G$14&"|"&"FY"&RIGHT(G$13,2),Datastore!$G:$G)*$AB16)/1000 -> 659666.5853 | H16: =(SUMIF(Datastore!$A:$A,$Q16&$R16&"|"&$S16&"|"&H$14&"|"&"FY"&RIGHT(H$13,2),Datastore!$G:$G)*$T16+SUMIF(Datastore!$A:$A,$Q16&$R16&"|"&$U16&"|"&H$14&"|"&"FY"&RIGHT(H$13,2),Datastore!$G:$G)*$V16+SUMIF(Datastore!$A:$A,$Q16&$R16&"|"&$W16&"|"&H$14&"|"&"FY"&RIGHT(H$13,2),Datastore!$G:$G)*$X16+SUMIF(Datastore!$A:$A,$Q16&$R16&"|"&$Y16&"|"&H$14&"|"&"FY"&RIGHT(H$13,2),Datastore!$G:$G)*$Z16+SUMIF(Datastore!$A:$A,$Q16&$R16&"|"&$AA16&"|"&H$14&"|"&"FY"&RIGHT(H$13,2),Datastore!$G:$G)*$AB16)/1000 -> 718278.5404 | I16: =(SUMIF(Datastore!$A:$A,$Q16&$R16&"|"&$S16&"|"&I$14&"|"&"FY"&RIGHT(I$13,2),Datastore!$G:$G)*$T16+SUMIF(Datastore!$A:$A,$Q16&$R16&"|"&$U16&"|"&I$14&"|"&"FY"&RIGHT(I$13,2),Datastore!$G:$G)*$V16+SUMIF(Datastore!$A:$A,$Q16&$R16&"|"&$W16&"|"&I$14&"|"&"FY"&RIGHT(I$13,2),Datastore!$G:$G)*$X16+SUMIF(Datastore!$A:$A,$Q16&$R16&"|"&$Y16&"|"&I$14&"|"&"FY"&RIGHT(I$13,2),Datastore!$G:$G)*$Z16+SUMIF(Datastore!$A:$A,$Q16&$R16&"|"&$AA16&"|"&I$14&"|"&"FY"&RIGHT(I$13,2),Datastore!$G:$G)*$AB16)/1000 -> 781377.4526 | J16: =(SUMIF(Datastore!$A:$A,$Q16&$R16&"|"&$S16&"|"&J$14&"|"&"FY"&RIGHT(J$13,2),Datastore!$G:$G)*$T16+SUMIF(Datastore!$A:$A,$Q16&$R16&"|"&$U16&"|"&J$14&"|"&"FY"&RIGHT(J$13,2),Datastore!$G:$G)*$V16+SUMIF(Datastore!$A:$A,$Q16&$R16&"|"&$W16&"|"&J$14&"|"&"FY"&RIGHT(J$13,2),Datastore!$G:$G)*$X16+SUMIF(Datastore!$A:$A,$Q16&$R16&"|"&$Y16&"|"&J$14&"|"&"FY"&RIGHT(J$13,2),Datastore!$G:$G)*$Z16+SUMIF(Datastore!$A:$A,$Q16&$R16&"|"&$AA16&"|"&J$14&"|"&"FY"&RIGHT(J$13,2),Datastore!$G:$G)*$AB16)/1000 -> 835939.7621 | K16: =(SUMIF(Datastore!$A:$A,$Q16&$R16&"|"&$S16&"|"&K$14&"|"&"FY"&RIGHT(K$13,2),Datastore!$G:$G)*$T16+SUMIF(Datastore!$A:$A,$Q16&$R16&"|"&$U16&"|"&K$14&"|"&"FY"&RIGHT(K$13,2),Datastore!$G:$G)*$V16+SUMIF(Datastore!$A:$A,$Q16&$R16&"|"&$W16&"|"&K$14&"|"&"FY"&RIGHT(K$13,2),Datastore!$G:$G)*$X16+SUMIF(Datastore!$A:$A,$Q16&$R16&"|"&$Y16&"|"&K$14&"|"&"FY"&RIGHT(K$13,2),Datastore!$G:$G)*$Z16+SUMIF(Datastore!$A:$A,$Q16&$R16&"|"&$AA16&"|"&K$14&"|"&"FY"&RIGHT(K$13,2),Datastore!$G:$G)*$AB16)/1000 -> 912274.9031 | L16: =(SUMIF(Datastore!$A:$A,$Q16&$R16&"|"&$S16&"|"&L$14&"|"&"FY"&RIGHT(L$13,2),Datastore!$G:$G)*$T16+SUMIF(Datastore!$A:$A,$Q16&$R16&"|"&$U16&"|"&L$14&"|"&"FY"&RIGHT(L$13,2),Datastore!$G:$G)*$V16+SUMIF(Datastore!$A:$A,$Q16&$R16&"|"&$W16&"|"&L$14&"|"&"FY"&RIGHT(L$13,2),Datastore!$G:$G)*$X16+SUMIF(Datastore!$A:$A,$Q16&$R16&"|"&$Y16&"|"&L$14&"|"&"FY"&RIGHT(L$13,2),Datastore!$G:$G)*$Z16+SUMIF(Datastore!$A:$A,$Q16&$R16&"|"&$AA16&"|"&L$14&"|"&"FY"&RIGHT(L$13,2),Datastore!$G:$G)*$AB16)/1000 -> 991038.5688 | Q16: ?? | R16: ? | S16: R* | T16: -1 | U16: RFIN | V16: 1 | W16: RC?? | X16: 1 | Y16: RNOT | Z16: 1 | AA16: x | AB16: 0
C17: Investment income | E17: $'000 | F17: =(SUMIF(Datastore!$A:$A,$Q17&$R17&"|"&$S17&"|"&F$14&"|"&"FY"&RIGHT(F$13,2),Datastore!$G:$G)*$T17+SUMIF(Datastore!$A:$A,$Q17&$R17&"|"&$U17&"|"&F$14&"|"&"FY"&RIGHT(F$13,2),Datastore!$G:$G)*$V17+SUMIF(Datastore!$A:$A,$Q17&$R17&"|"&$W17&"|"&F$14&"|"&"FY"&RIGHT(F$13,2),Datastore!$G:$G)*$X17+SUMIF(Datastore!$A:$A,$Q17&$R17&"|"&$Y17&"|"&F$14&"|"&"FY"&RIGHT(F$13,2),Datastore!$G:$G)*$Z17+SUMIF(Datastore!$A:$A,$Q17&$R17&"|"&$AA17&"|"&F$14&"|"&"FY"&RIGHT(F$13,2),Datastore!$G:$G)*$AB17)/1000 -> 600 | G17: =(SUMIF(Datastore!$A:$A,$Q17&$R17&"|"&$S17&"|"&G$14&"|"&"FY"&RIGHT(G$13,2),Datastore!$G:$G)*$T17+SUMIF(Datastore!$A:$A,$Q17&$R17&"|"&$U17&"|"&G$14&"|"&"FY"&RIGHT(G$13,2),Datastore!$G:$G)*$V17+SUMIF(Datastore!$A:$A,$Q17&$R17&"|"&$W17&"|"&G$14&"|"&"FY"&RIGHT(G$13,2),Datastore!$G:$G)*$X17+SUMIF(Datastore!$A:$A,$Q17&$R17&"|"&$Y17&"|"&G$14&"|"&"FY"&RIGHT(G$13,2),Datastore!$G:$G)*$Z17+SUMIF(Datastore!$A:$A,$Q17&$R17&"|"&$AA17&"|"&G$14&"|"&"FY"&RIGHT(G$13,2),Datastore!$G:$G)*$AB17)/1000 -> 499.88915 | H17: =(SUMIF(Datastore!$A:$A,$Q17&$R17&"|"&$S17&"|"&H$14&"|"&"FY"&RIGHT(H$13,2),Datastore!$G:$G)*$T17+SUMIF(Datastore!$A:$A,$Q17&$R17&"|"&$U17&"|"&H$14&"|"&"FY"&RIGHT(H$13,2),Datastore!$G:$G)*$V17+SUMIF(Datastore!$A:$A,$Q17&$R17&"|"&$W17&"|"&H$14&"|"&"FY"&RIGHT(H$13,2),Datastore!$G:$G)*$X17+SUMIF(Datastore!$A:$A,$Q17&$R17&"|"&$Y17&"|"&H$14&"|"&"FY"&RIGHT(H$13,2),Datastore!$G:$G)*$Z17+SUMIF(Datastore!$A:$A,$Q17&$R17&"|"&$AA17&"|"&H$14&"|"&"FY"&RIGHT(H$13,2),Datastore!$G:$G)*$AB17)/1000 -> 321.07604 | I17: =(SUMIF(Datastore!$A:$A,$Q17&$R17&"|"&$S17&"|"&I$14&"|"&"FY"&RIGHT(I$13,2),Datastore!$G:$G)*$T17+SUMIF(Datastore!$A:$A,$Q17&$R17&"|"&$U17&"|"&I$14&"|"&"FY"&RIGHT(I$13,2),Datastore!$G:$G)*$V17+SUMIF(Datastore!$A:$A,$Q17&$R17&"|"&$W17&"|"&I$14&"|"&"FY"&RIGHT(I$13,2),Datastore!$G:$G)*$X17+SUMIF(Datastore!$A:$A,$Q17&$R17&"|"&$Y17&"|"&I$14&"|"&"FY"&RIGHT(I$13,2),Datastore!$G:$G)*$Z17+SUMIF(Datastore!$A:$A,$Q17&$R17&"|"&$AA17&"|"&I$14&"|"&"FY"&RIGHT(I$13,2),Datastore!$G:$G)*$AB17)/1000 -> 600 | J17: =(SUMIF(Datastore!$A:$A,$Q17&$R17&"|"&$S17&"|"&J$14&"|"&"FY"&RIGHT(J$13,2),Datastore!$G:$G)*$T17+SUMIF(Datastore!$A:$A,$Q17&$R17&"|"&$U17&"|"&J$14&"|"&"FY"&RIGHT(J$13,2),Datastore!$G:$G)*$V17+SUMIF(Datastore!$A:$A,$Q17&$R17&"|"&$W17&"|"&J$14&"|"&"FY"&RIGHT(J$13,2),Datastore!$G:$G)*$X17+SUMIF(Datastore!$A:$A,$Q17&$R17&"|"&$Y17&"|"&J$14&"|"&"FY"&RIGHT(J$13,2),Datastore!$G:$G)*$Z17+SUMIF(Datastore!$A:$A,$Q17&$R17&"|"&$AA17&"|"&J$14&"|"&"FY"&RIGHT(J$13,2),Datastore!$G:$G)*$AB17)/1000 -> 350 | K17: =(SUMIF(Datastore!$A:$A,$Q17&$R17&"|"&$S17&"|"&K$14&"|"&"FY"&RIGHT(K$13,2),Datastore!$G:$G)*$T17+SUMIF(Datastore!$A:$A,$Q17&$R17&"|"&$U17&"|"&K$14&"|"&"FY"&RIGHT(K$13,2),Datastore!$G:$G)*$V17+SUMIF(Datastore!$A:$A,$Q17&$R17&"|"&$W17&"|"&K$14&"|"&"FY"&RIGHT(K$13,2),Datastore!$G:$G)*$X17+SUMIF(Datastore!$A:$A,$Q17&$R17&"|"&$Y17&"|"&K$14&"|"&"FY"&RIGHT(K$13,2),Datastore!$G:$G)*$Z17+SUMIF(Datastore!$A:$A,$Q17&$R17&"|"&$AA17&"|"&K$14&"|"&"FY"&RIGHT(K$13,2),Datastore!$G:$G)*$AB17)/1000 -> 0 | L17: =(SUMIF(Datastore!$A:$A,$Q17&$R17&"|"&$S17&"|"&L$14&"|"&"FY"&RIGHT(L$13,2),Datastore!$G:$G)*$T17+SUMIF(Datastore!$A:$A,$Q17&$R17&"|"&$U17&"|"&L$14&"|"&"FY"&RIGHT(L$13,2),Datastore!$G:$G)*$V17+SUMIF(Datastore!$A:$A,$Q17&$R17&"|"&$W17&"|"&L$14&"|"&"FY"&RIGHT(L$13,2),Datastore!$G:$G)*$X17+SUMIF(Datastore!$A:$A,$Q17&$R17&"|"&$Y17&"|"&L$14&"|"&"FY"&RIGHT(L$13,2),Datastore!$G:$G)*$Z17+SUMIF(Datastore!$A:$A,$Q17&$R17&"|"&$AA17&"|"&L$14&"|"&"FY"&RIGHT(L$13,2),Datastore!$G:$G)*$AB17)/1000 -> 0 | Q17: ?? | R17: ? | S17: RFIN | T17: -1 | U17: x | V17: 0 | W17: x | X17: 0 | Y17: x | Z17: 0 | AA17: x | AB17: 0
C18: Net profit / (loss) from sale of regulatory assets | E18: $'000 | F18: =(SUMIF(Datastore!$A:$A,$Q18&$R18&"|"&$S18&"|"&F$14&"|"&"FY"&RIGHT(F$13,2),Datastore!$G:$G)*$T18+SUMIF(Datastore!$A:$A,$Q18&$R18&"|"&$U18&"|"&F$14&"|"&"FY"&RIGHT(F$13,2),Datastore!$G:$G)*$V18+SUMIF(Datastore!$A:$A,$Q18&$R18&"|"&$W18&"|"&F$14&"|"&"FY"&RIGHT(F$13,2),Datastore!$G:$G)*$X18+SUMIF(Datastore!$A:$A,$Q18&$R18&"|"&$Y18&"|"&F$14&"|"&"FY"&RIGHT(F$13,2),Datastore!$G:$G)*$Z18+SUMIF(Datastore!$A:$A,$Q18&$R18&"|"&$AA18&"|"&F$14&"|"&"FY"&RIGHT(F$13,2),Datastore!$G:$G)*$AB18)/1000 -> -10355.176 | G18: =(SUMIF(Datastore!$A:$A,$Q18&$R18&"|"&$S18&"|"&G$14&"|"&"FY"&RIGHT(G$13,2),Datastore!$G:$G)*$T18+SUMIF(Datastore!$A:$A,$Q18&$R18&"|"&$U18&"|"&G$14&"|"&"FY"&RIGHT(G$13,2),Datastore!$G:$G)*$V18+SUMIF(Datastore!$A:$A,$Q18&$R18&"|"&$W18&"|"&G$14&"|"&"FY"&RIGHT(G$13,2),Datastore!$G:$G)*$X18+SUMIF(Datastore!$A:$A,$Q18&$R18&"|"&$Y18&"|"&G$14&"|"&"FY"&RIGHT(G$13,2),Datastore!$G:$G)*$Z18+SUMIF(Datastore!$A:$A,$Q18&$R18&"|"&$AA18&"|"&G$14&"|"&"FY"&RIGHT(G$13,2),Datastore!$G:$G)*$AB18)/1000 -> -16706.4425 | H18: =24669+(SUMIF(Datastore!$A:$A,$Q18&$R18&"|"&$S18&"|"&H$14&"|"&"FY"&RIGHT(H$13,2),Datastore!$G:$G)*$T18+SUMIF(Datastore!$A:$A,$Q18&$R18&"|"&$U18&"|"&H$14&"|"&"FY"&RIGHT(H$13,2),Datastore!$G:$G)*$V18+SUMIF(Datastore!$A:$A,$Q18&$R18&"|"&$W18&"|"&H$14&"|"&"FY"&RIGHT(H$13,2),Datastore!$G:$G)*$X18+SUMIF(Datastore!$A:$A,$Q18&$R18&"|"&$Y18&"|"&H$14&"|"&"FY"&RIGHT(H$13,2),Datastore!$G:$G)*$Z18+SUMIF(Datastore!$A:$A,$Q18&$R18&"|"&$AA18&"|"&H$14&"|"&"FY"&RIGHT(H$13,2),Datastore!$G:$G)*$AB18)/1000 -> -5456.72693 | I18: =(SUMIF(Datastore!$A:$A,$Q18&$R18&"|"&$S18&"|"&I$14&"|"&"FY"&RIGHT(I$13,2),Datastore!$G:$G)*$T18+SUMIF(Datastore!$A:$A,$Q18&$R18&"|"&$U18&"|"&I$14&"|"&"FY"&RIGHT(I$13,2),Datastore!$G:$G)*$V18+SUMIF(Datastore!$A:$A,$Q18&$R18&"|"&$W18&"|"&I$14&"|"&"FY"&RIGHT(I$13,2),Datastore!$G:$G)*$X18+SUMIF(Datastore!$A:$A,$Q18&$R18&"|"&$Y18&"|"&I$14&"|"&"FY"&RIGHT(I$13,2),Datastore!$G:$G)*$Z18+SUMIF(Datastore!$A:$A,$Q18&$R18&"|"&$AA18&"|"&I$14&"|"&"FY"&RIGHT(I$13,2),Datastore!$G:$G)*$AB18)/1000 -> -8164 | J18: =(SUMIF(Datastore!$A:$A,$Q18&$R18&"|"&$S18&"|"&J$14&"|"&"FY"&RIGHT(J$13,2),Datastore!$G:$G)*$T18+SUMIF(Datastore!$A:$A,$Q18&$R18&"|"&$U18&"|"&J$14&"|"&"FY"&RIGHT(J$13,2),Datastore!$G:$G)*$V18+SUMIF(Datastore!$A:$A,$Q18&$R18&"|"&$W18&"|"&J$14&"|"&"FY"&RIGHT(J$13,2),Datastore!$G:$G)*$X18+SUMIF(Datastore!$A:$A,$Q18&$R18&"|"&$Y18&"|"&J$14&"|"&"FY"&RIGHT(J$13,2),Datastore!$G:$G)*$Z18+SUMIF(Datastore!$A:$A,$Q18&$R18&"|"&$AA18&"|"&J$14&"|"&"FY"&RIGHT(J$13,2),Datastore!$G:$G)*$AB18)/1000 -> -6264 | K18: =(SUMIF(Datastore!$A:$A,$Q18&$R18&"|"&$S18&"|"&K$14&"|"&"FY"&RIGHT(K$13,2),Datastore!$G:$G)*$T18+SUMIF(Datastore!$A:$A,$Q18&$R18&"|"&$U18&"|"&K$14&"|"&"FY"&RIGHT(K$13,2),Datastore!$G:$G)*$V18+SUMIF(Datastore!$A:$A,$Q18&$R18&"|"&$W18&"|"&K$14&"|"&"FY"&RIGHT(K$13,2),Datastore!$G:$G)*$X18+SUMIF(Datastore!$A:$A,$Q18&$R18&"|"&$Y18&"|"&K$14&"|"&"FY"&RIGHT(K$13,2),Datastore!$G:$G)*$Z18+SUMIF(Datastore!$A:$A,$Q18&$R18&"|"&$AA18&"|"&K$14&"|"&"FY"&RIGHT(K$13,2),Datastore!$G:$G)*$AB18)/1000 -> 0 | L18: =(SUMIF(Datastore!$A:$A,$Q18&$R18&"|"&$S18&"|"&L$14&"|"&"FY"&RIGHT(L$13,2),Datastore!$G:$G)*$T18+SUMIF(Datastore!$A:$A,$Q18&$R18&"|"&$U18&"|"&L$14&"|"&"FY"&RIGHT(L$13,2),Datastore!$G:$G)*$V18+SUMIF(Datastore!$A:$A,$Q18&$R18&"|"&$W18&"|"&L$14&"|"&"FY"&RIGHT(L$13,2),Datastore!$G:$G)*$X18+SUMIF(Datastore!$A:$A,$Q18&$R18&"|"&$Y18&"|"&L$14&"|"&"FY"&RIGHT(L$13,2),Datastore!$G:$G)*$Z18+SUMIF(Datastore!$A:$A,$Q18&$R18&"|"&$AA18&"|"&L$14&"|"&"FY"&RIGHT(L$13,2),Datastore!$G:$G)*$AB18)/1000 -> 0 | N18: Non flood loss on disposal | Q18: ?? | R18: ? | S18: ELOD | T18: -1 | U18: x | V18: 0 | W18: x | X18: 0 | Y18: x | Z18: 0 | AA18: x | AB18: 0
C19: Net profit / (loss) from sale of unregulated assets | F19: =(SUMIF(Datastore!$A:$A,$Q19&$R19&"|"&$S19&"|"&F$14&"|"&"FY"&RIGHT(F$13,2),Datastore!$G:$G)*$T19+SUMIF(Datastore!$A:$A,$Q19&$R19&"|"&$U19&"|"&F$14&"|"&"FY"&RIGHT(F$13,2),Datastore!$G:$G)*$V19+SUMIF(Datastore!$A:$A,$Q19&$R19&"|"&$W19&"|"&F$14&"|"&"FY"&RIGHT(F$13,2),Datastore!$G:$G)*$X19+SUMIF(Datastore!$A:$A,$Q19&$R19&"|"&$Y19&"|"&F$14&"|"&"FY"&RIGHT(F$13,2),Datastore!$G:$G)*$Z19+SUMIF(Datastore!$A:$A,$Q19&$R19&"|"&$AA19&"|"&F$14&"|"&"FY"&RIGHT(F$13,2),Datastore!$G:$G)*$AB19)/1000 -> 0 | G19: =(SUMIF(Datastore!$A:$A,$Q19&$R19&"|"&$S19&"|"&G$14&"|"&"FY"&RIGHT(G$13,2),Datastore!$G:$G)*$T19+SUMIF(Datastore!$A:$A,$Q19&$R19&"|"&$U19&"|"&G$14&"|"&"FY"&RIGHT(G$13,2),Datastore!$G:$G)*$V19+SUMIF(Datastore!$A:$A,$Q19&$R19&"|"&$W19&"|"&G$14&"|"&"FY"&RIGHT(G$13,2),Datastore!$G:$G)*$X19+SUMIF(Datastore!$A:$A,$Q19&$R19&"|"&$Y19&"|"&G$14&"|"&"FY"&RIGHT(G$13,2),Datastore!$G:$G)*$Z19+SUMIF(Datastore!$A:$A,$Q19&$R19&"|"&$AA19&"|"&G$14&"|"&"FY"&RIGHT(G$13,2),Datastore!$G:$G)*$AB19)/1000 -> 0 | H19: =(SUMIF(Datastore!$A:$A,$Q19&$R19&"|"&$S19&"|"&H$14&"|"&"FY"&RIGHT(H$13,2),Datastore!$G:$G)*$T19+SUMIF(Datastore!$A:$A,$Q19&$R19&"|"&$U19&"|"&H$14&"|"&"FY"&RIGHT(H$13,2),Datastore!$G:$G)*$V19+SUMIF(Datastore!$A:$A,$Q19&$R19&"|"&$W19&"|"&H$14&"|"&"FY"&RIGHT(H$13,2),Datastore!$G:$G)*$X19+SUMIF(Datastore!$A:$A,$Q19&$R19&"|"&$Y19&"|"&H$14&"|"&"FY"&RIGHT(H$13,2),Datastore!$G:$G)*$Z19+SUMIF(Datastore!$A:$A,$Q19&$R19&"|"&$AA19&"|"&H$14&"|"&"FY"&RIGHT(H$13,2),Datastore!$G:$G)*$AB19)/1000 -> 0 | I19: =(SUMIF(Datastore!$A:$A,$Q19&$R19&"|"&$S19&"|"&I$14&"|"&"FY"&RIGHT(I$13,2),Datastore!$G:$G)*$T19+SUMIF(Datastore!$A:$A,$Q19&$R19&"|"&$U19&"|"&I$14&"|"&"FY"&RIGHT(I$13,2),Datastore!$G:$G)*$V19+SUMIF(Datastore!$A:$A,$Q19&$R19&"|"&$W19&"|"&I$14&"|"&"FY"&RIGHT(I$13,2),Datastore!$G:$G)*$X19+SUMIF(Datastore!$A:$A,$Q19&$R19&"|"&$Y19&"|"&I$14&"|"&"FY"&RIGHT(I$13,2),Datastore!$G:$G)*$Z19+SUMIF(Datastore!$A:$A,$Q19&$R19&"|"&$AA19&"|"&I$14&"|"&"FY"&RIGHT(I$13,2),Datastore!$G:$G)*$AB19)/1000 -> 0 | J19: =(SUMIF(Datastore!$A:$A,$Q19&$R19&"|"&$S19&"|"&J$14&"|"&"FY"&RIGHT(J$13,2),Datastore!$G:$G)*$T19+SUMIF(Datastore!$A:$A,$Q19&$R19&"|"&$U19&"|"&J$14&"|"&"FY"&RIGHT(J$13,2),Datastore!$G:$G)*$V19+SUMIF(Datastore!$A:$A,$Q19&$R19&"|"&$W19&"|"&J$14&"|"&"FY"&RIGHT(J$13,2),Datastore!$G:$G)*$X19+SUMIF(Datastore!$A:$A,$Q19&$R19&"|"&$Y19&"|"&J$14&"|"&"FY"&RIGHT(J$13,2),Datastore!$G:$G)*$Z19+SUMIF(Datastore!$A:$A,$Q19&$R19&"|"&$AA19&"|"&J$14&"|"&"FY"&RIGHT(J$13,2),Datastore!$G:$G)*$AB19)/1000 -> 0 | K19: =(SUMIF(Datastore!$A:$A,$Q19&$R19&"|"&$S19&"|"&K$14&"|"&"FY"&RIGHT(K$13,2),Datastore!$G:$G)*$T19+SUMIF(Datastore!$A:$A,$Q19&$R19&"|"&$U19&"|"&K$14&"|"&"FY"&RIGHT(K$13,2),Datastore!$G:$G)*$V19+SUMIF(Datastore!$A:$A,$Q19&$R19&"|"&$W19&"|"&K$14&"|"&"FY"&RIGHT(K$13,2),Datastore!$G:$G)*$X19+SUMIF(Datastore!$A:$A,$Q19&$R19&"|"&$Y19&"|"&K$14&"|"&"FY"&RIGHT(K$13,2),Datastore!$G:$G)*$Z19+SUMIF(Datastore!$A:$A,$Q19&$R19&"|"&$AA19&"|"&K$14&"|"&"FY"&RIGHT(K$13,2),Datastore!$G:$G)*$AB19)/1000 -> 0 | L19: =(SUMIF(Datastore!$A:$A,$Q19&$R19&"|"&$S19&"|"&L$14&"|"&"FY"&RIGHT(L$13,2),Datastore!$G:$G)*$T19+SUMIF(Datastore!$A:$A,$Q19&$R19&"|"&$U19&"|"&L$14&"|"&"FY"&RIGHT(L$13,2),Datastore!$G:$G)*$V19+SUMIF(Datastore!$A:$A,$Q19&$R19&"|"&$W19&"|"&L$14&"|"&"FY"&RIGHT(L$13,2),Datastore!$G:$G)*$X19+SUMIF(Datastore!$A:$A,$Q19&$R19&"|"&$Y19&"|"&L$14&"|"&"FY"&RIGHT(L$13,2),Datastore!$G:$G)*$Z19+SUMIF(Datastore!$A:$A,$Q19&$R19&"|"&$AA19&"|"&L$14&"|"&"FY"&RIGHT(L$13,2),Datastore!$G:$G)*$AB19)/1000 -> 0 | Q19: ?? | R19: ? | S19: x | T19: 0 | U19: x | V19: 0 | W19: x | X19: 0 | Y19: x | Z19: 0 | AA19: x | AB19: 0
C20: Contributions | E20: $'000 | F20: =(SUMIF(Datastore!$A:$A,$Q20&$R20&"|"&$S20&"|"&F$14&"|"&"FY"&RIGHT(F$13,2),Datastore!$G:$G)*$T20+SUMIF(Datastore!$A:$A,$Q20&$R20&"|"&$U20&"|"&F$14&"|"&"FY"&RIGHT(F$13,2),Datastore!$G:$G)*$V20+SUMIF(Datastore!$A:$A,$Q20&$R20&"|"&$W20&"|"&F$14&"|"&"FY"&RIGHT(F$13,2),Datastore!$G:$G)*$X20+SUMIF(Datastore!$A:$A,$Q20&$R20&"|"&$Y20&"|"&F$14&"|"&"FY"&RIGHT(F$13,2),Datastore!$G:$G)*$Z20+SUMIF(Datastore!$A:$A,$Q20&$R20&"|"&$AA20&"|"&F$14&"|"&"FY"&RIGHT(F$13,2),Datastore!$G:$G)*$AB20)/1000 -> 156359.9257 | G20: =(SUMIF(Datastore!$A:$A,$Q20&$R20&"|"&$S20&"|"&G$14&"|"&"FY"&RIGHT(G$13,2),Datastore!$G:$G)*$T20+SUMIF(Datastore!$A:$A,$Q20&$R20&"|"&$U20&"|"&G$14&"|"&"FY"&RIGHT(G$13,2),Datastore!$G:$G)*$V20+SUMIF(Datastore!$A:$A,$Q20&$R20&"|"&$W20&"|"&G$14&"|"&"FY"&RIGHT(G$13,2),Datastore!$G:$G)*$X20+SUMIF(Datastore!$A:$A,$Q20&$R20&"|"&$Y20&"|"&G$14&"|"&"FY"&RIGHT(G$13,2),Datastore!$G:$G)*$Z20+SUMIF(Datastore!$A:$A,$Q20&$R20&"|"&$AA20&"|"&G$14&"|"&"FY"&RIGHT(G$13,2),Datastore!$G:$G)*$AB20)/1000 -> 187134.2084 | H20: =(SUMIF(Datastore!$A:$A,$Q20&$R20&"|"&$S20&"|"&H$14&"|"&"FY"&RIGHT(H$13,2),Datastore!$G:$G)*$T20+SUMIF(Datastore!$A:$A,$Q20&$R20&"|"&$U20&"|"&H$14&"|"&"FY"&RIGHT(H$13,2),Datastore!$G:$G)*$V20+SUMIF(Datastore!$A:$A,$Q20&$R20&"|"&$W20&"|"&H$14&"|"&"FY"&RIGHT(H$13,2),Datastore!$G:$G)*$X20+SUMIF(Datastore!$A:$A,$Q20&$R20&"|"&$Y20&"|"&H$14&"|"&"FY"&RIGHT(H$13,2),Datastore!$G:$G)*$Z20+SUMIF(Datastore!$A:$A,$Q20&$R20&"|"&$AA20&"|"&H$14&"|"&"FY"&RIGHT(H$13,2),Datastore!$G:$G)*$AB20)/1000 -> 142531.2591 | I20: =(SUMIF(Datastore!$A:$A,$Q20&$R20&"|"&$S20&"|"&I$14&"|"&"FY"&RIGHT(I$13,2),Datastore!$G:$G)*$T20+SUMIF(Datastore!$A:$A,$Q20&$R20&"|"&$U20&"|"&I$14&"|"&"FY"&RIGHT(I$13,2),Datastore!$G:$G)*$V20+SUMIF(Datastore!$A:$A,$Q20&$R20&"|"&$W20&"|"&I$14&"|"&"FY"&RIGHT(I$13,2),Datastore!$G:$G)*$X20+SUMIF(Datastore!$A:$A,$Q20&$R20&"|"&$Y20&"|"&I$14&"|"&"FY"&RIGHT(I$13,2),Datastore!$G:$G)*$Z20+SUMIF(Datastore!$A:$A,$Q20&$R20&"|"&$AA20&"|"&I$14&"|"&"FY"&RIGHT(I$13,2),Datastore!$G:$G)*$AB20)/1000 -> 115910.3665 | J20: =(SUMIF(Datastore!$A:$A,$Q20&$R20&"|"&$S20&"|"&J$14&"|"&"FY"&RIGHT(J$13,2),Datastore!$G:$G)*$T20+SUMIF(Datastore!$A:$A,$Q20&$R20&"|"&$U20&"|"&J$14&"|"&"FY"&RIGHT(J$13,2),Datastore!$G:$G)*$V20+SUMIF(Datastore!$A:$A,$Q20&$R20&"|"&$W20&"|"&J$14&"|"&"FY"&RIGHT(J$13,2),Datastore!$G:$G)*$X20+SUMIF(Datastore!$A:$A,$Q20&$R20&"|"&$Y20&"|"&J$14&"|"&"FY"&RIGHT(J$13,2),Datastore!$G:$G)*$Z20+SUMIF(Datastore!$A:$A,$Q20&$R20&"|"&$AA20&"|"&J$14&"|"&"FY"&RIGHT(J$13,2),Datastore!$G:$G)*$AB20)/1000 -> 137689.0609 | K20: =(SUMIF(Datastore!$A:$A,$Q20&$R20&"|"&$S20&"|"&K$14&"|"&"FY"&RIGHT(K$13,2),Datastore!$G:$G)*$T20+SUMIF(Datastore!$A:$A,$Q20&$R20&"|"&$U20&"|"&K$14&"|"&"FY"&RIGHT(K$13,2),Datastore!$G:$G)*$V20+SUMIF(Datastore!$A:$A,$Q20&$R20&"|"&$W20&"|"&K$14&"|"&"FY"&RIGHT(K$13,2),Datastore!$G:$G)*$X20+SUMIF(Datastore!$A:$A,$Q20&$R20&"|"&$Y20&"|"&K$14&"|"&"FY"&RIGHT(K$13,2),Datastore!$G:$G)*$Z20+SUMIF(Datastore!$A:$A,$Q20&$R20&"|"&$AA20&"|"&K$14&"|"&"FY"&RIGHT(K$13,2),Datastore!$G:$G)*$AB20)/1000 -> 149380.0242 | L20: =(SUMIF(Datastore!$A:$A,$Q20&$R20&"|"&$S20&"|"&L$14&"|"&"FY"&RIGHT(L$13,2),Datastore!$G:$G)*$T20+SUMIF(Datastore!$A:$A,$Q20&$R20&"|"&$U20&"|"&L$14&"|"&"FY"&RIGHT(L$13,2),Datastore!$G:$G)*$V20+SUMIF(Datastore!$A:$A,$Q20&$R20&"|"&$W20&"|"&L$14&"|"&"FY"&RIGHT(L$13,2),Datastore!$G:$G)*$X20+SUMIF(Datastore!$A:$A,$Q20&$R20&"|"&$Y20&"|"&L$14&"|"&"FY"&RIGHT(L$13,2),Datastore!$G:$G)*$Z20+SUMIF(Datastore!$A:$A,$Q20&$R20&"|"&$AA20&"|"&L$14&"|"&"FY"&RIGHT(L$13,2),Datastore!$G:$G)*$AB20)/1000 -> 153311.5568 | Q20: ?? | R20: ? | S20: RC?? | T20: -1 | U20: x | V20: 0 | W20: x | X20: 0 | Y20: x | Z20: 0 | AA20: x | AB20: 0
C21: Non-recurrent | E21: $'000 | F21: =(SUMIF(Datastore!$A:$A,$Q21&$R21&"|"&$S21&"|"&F$14&"|"&"FY"&RIGHT(F$13,2),Datastore!$G:$G)*$T21+SUMIF(Datastore!$A:$A,$Q21&$R21&"|"&$U21&"|"&F$14&"|"&"FY"&RIGHT(F$13,2),Datastore!$G:$G)*$V21+SUMIF(Datastore!$A:$A,$Q21&$R21&"|"&$W21&"|"&F$14&"|"&"FY"&RIGHT(F$13,2),Datastore!$G:$G)*$X21+SUMIF(Datastore!$A:$A,$Q21&$R21&"|"&$Y21&"|"&F$14&"|"&"FY"&RIGHT(F$13,2),Datastore!$G:$G)*$Z21+SUMIF(Datastore!$A:$A,$Q21&$R21&"|"&$AA21&"|"&F$14&"|"&"FY"&RIGHT(F$13,2),Datastore!$G:$G)*$AB21)/1000 -> 0 | G21: =(SUMIF(Datastore!$A:$A,$Q21&$R21&"|"&$S21&"|"&G$14&"|"&"FY"&RIGHT(G$13,2),Datastore!$G:$G)*$T21+SUMIF(Datastore!$A:$A,$Q21&$R21&"|"&$U21&"|"&G$14&"|"&"FY"&RIGHT(G$13,2),Datastore!$G:$G)*$V21+SUMIF(Datastore!$A:$A,$Q21&$R21&"|"&$W21&"|"&G$14&"|"&"FY"&RIGHT(G$13,2),Datastore!$G:$G)*$X21+SUMIF(Datastore!$A:$A,$Q21&$R21&"|"&$Y21&"|"&G$14&"|"&"FY"&RIGHT(G$13,2),Datastore!$G:$G)*$Z21+SUMIF(Datastore!$A:$A,$Q21&$R21&"|"&$AA21&"|"&G$14&"|"&"FY"&RIGHT(G$13,2),Datastore!$G:$G)*$AB21)/1000 -> 0 | H21: =-24669+(SUMIF(Datastore!$A:$A,$Q21&$R21&"|"&$S21&"|"&H$14&"|"&"FY"&RIGHT(H$13,2),Datastore!$G:$G)*$T21+SUMIF(Datastore!$A:$A,$Q21&$R21&"|"&$U21&"|"&H$14&"|"&"FY"&RIGHT(H$13,2),Datastore!$G:$G)*$V21+SUMIF(Datastore!$A:$A,$Q21&$R21&"|"&$W21&"|"&H$14&"|"&"FY"&RIGHT(H$13,2),Datastore!$G:$G)*$X21+SUMIF(Datastore!$A:$A,$Q21&$R21&"|"&$Y21&"|"&H$14&"|"&"FY"&RIGHT(H$13,2),Datastore!$G:$G)*$Z21+SUMIF(Datastore!$A:$A,$Q21&$R21&"|"&$AA21&"|"&H$14&"|"&"FY"&RIGHT(H$13,2),Datastore!$G:$G)*$AB21)/1000 -> -12973.49276 | I21: =(SUMIF(Datastore!$A:$A,$Q21&$R21&"|"&$S21&"|"&I$14&"|"&"FY"&RIGHT(I$13,2),Datastore!$G:$G)*$T21+SUMIF(Datastore!$A:$A,$Q21&$R21&"|"&$U21&"|"&I$14&"|"&"FY"&RIGHT(I$13,2),Datastore!$G:$G)*$V21+SUMIF(Datastore!$A:$A,$Q21&$R21&"|"&$W21&"|"&I$14&"|"&"FY"&RIGHT(I$13,2),Datastore!$G:$G)*$X21+SUMIF(Datastore!$A:$A,$Q21&$R21&"|"&$Y21&"|"&I$14&"|"&"FY"&RIGHT(I$13,2),Datastore!$G:$G)*$Z21+SUMIF(Datastore!$A:$A,$Q21&$R21&"|"&$AA21&"|"&I$14&"|"&"FY"&RIGHT(I$13,2),Datastore!$G:$G)*$AB21)/1000 -> 20 | J21: =(SUMIF(Datastore!$A:$A,$Q21&$R21&"|"&$S21&"|"&J$14&"|"&"FY"&RIGHT(J$13,2),Datastore!$G:$G)*$T21+SUMIF(Datastore!$A:$A,$Q21&$R21&"|"&$U21&"|"&J$14&"|"&"FY"&RIGHT(J$13,2),Datastore!$G:$G)*$V21+SUMIF(Datastore!$A:$A,$Q21&$R21&"|"&$W21&"|"&J$14&"|"&"FY"&RIGHT(J$13,2),Datastore!$G:$G)*$X21+SUMIF(Datastore!$A:$A,$Q21&$R21&"|"&$Y21&"|"&J$14&"|"&"FY"&RIGHT(J$13,2),Datastore!$G:$G)*$Z21+SUMIF(Datastore!$A:$A,$Q21&$R21&"|"&$AA21&"|"&J$14&"|"&"FY"&RIGHT(J$13,2),Datastore!$G:$G)*$AB21)/1000 -> 5500 | K21: =(SUMIF(Datastore!$A:$A,$Q21&$R21&"|"&$S21&"|"&K$14&"|"&"FY"&RIGHT(K$13,2),Datastore!$G:$G)*$T21+SUMIF(Datastore!$A:$A,$Q21&$R21&"|"&$U21&"|"&K$14&"|"&"FY"&RIGHT(K$13,2),Datastore!$G:$G)*$V21+SUMIF(Datastore!$A:$A,$Q21&$R21&"|"&$W21&"|"&K$14&"|"&"FY"&RIGHT(K$13,2),Datastore!$G:$G)*$X21+SUMIF(Datastore!$A:$A,$Q21&$R21&"|"&$Y21&"|"&K$14&"|"&"FY"&RIGHT(K$13,2),Datastore!$G:$G)*$Z21+SUMIF(Datastore!$A:$A,$Q21&$R21&"|"&$AA21&"|"&K$14&"|"&"FY"&RIGHT(K$13,2),Datastore!$G:$G)*$AB21)/1000 -> 0 | L21: =(SUMIF(Datastore!$A:$A,$Q21&$R21&"|"&$S21&"|"&L$14&"|"&"FY"&RIGHT(L$13,2),Datastore!$G:$G)*$T21+SUMIF(Datastore!$A:$A,$Q21&$R21&"|"&$U21&"|"&L$14&"|"&"FY"&RIGHT(L$13,2),Datastore!$G:$G)*$V21+SUMIF(Datastore!$A:$A,$Q21&$R21&"|"&$W21&"|"&L$14&"|"&"FY"&RIGHT(L$13,2),Datastore!$G:$G)*$X21+SUMIF(Datastore!$A:$A,$Q21&$R21&"|"&$Y21&"|"&L$14&"|"&"FY"&RIGHT(L$13,2),Datastore!$G:$G)*$Z21+SUMIF(Datastore!$A:$A,$Q21&$R21&"|"&$AA21&"|"&L$14&"|"&"FY"&RIGHT(L$13,2),Datastore!$G:$G)*$AB21)/1000 -> 0 | N21: Flood loss on disposal & Insurance Revenue | Q21: ?? | R21: ? | S21: RNOT | T21: -1 | U21: x | V21: 0 | W21: x | X21: 0 | Y21: x | Z21: 0 | AA21: x | AB21: 0
C22: Other 2 - [specify] | E22: $'000 | F22: =(SUMIF(Datastore!$A:$A,$Q22&$R22&"|"&$S22&"|"&F$14&"|"&"FY"&RIGHT(F$13,2),Datastore!$G:$G)*$T22+SUMIF(Datastore!$A:$A,$Q22&$R22&"|"&$U22&"|"&F$14&"|"&"FY"&RIGHT(F$13,2),Datastore!$G:$G)*$V22+SUMIF(Datastore!$A:$A,$Q22&$R22&"|"&$W22&"|"&F$14&"|"&"FY"&RIGHT(F$13,2),Datastore!$G:$G)*$X22+SUMIF(Datastore!$A:$A,$Q22&$R22&"|"&$Y22&"|"&F$14&"|"&"FY"&RIGHT(F$13,2),Datastore!$G:$G)*$Z22+SUMIF(Datastore!$A:$A,$Q22&$R22&"|"&$AA22&"|"&F$14&"|"&"FY"&RIGHT(F$13,2),Datastore!$G:$G)*$AB22)/1000 -> 0 | G22: =(SUMIF(Datastore!$A:$A,$Q22&$R22&"|"&$S22&"|"&G$14&"|"&"FY"&RIGHT(G$13,2),Datastore!$G:$G)*$T22+SUMIF(Datastore!$A:$A,$Q22&$R22&"|"&$U22&"|"&G$14&"|"&"FY"&RIGHT(G$13,2),Datastore!$G:$G)*$V22+SUMIF(Datastore!$A:$A,$Q22&$R22&"|"&$W22&"|"&G$14&"|"&"FY"&RIGHT(G$13,2),Datastore!$G:$G)*$X22+SUMIF(Datastore!$A:$A,$Q22&$R22&"|"&$Y22&"|"&G$14&"|"&"FY"&RIGHT(G$13,2),Datastore!$G:$G)*$Z22+SUMIF(Datastore!$A:$A,$Q22&$R22&"|"&$AA22&"|"&G$14&"|"&"FY"&RIGHT(G$13,2),Datastore!$G:$G)*$AB22)/1000 -> 0 | H22: =(SUMIF(Datastore!$A:$A,$Q22&$R22&"|"&$S22&"|"&H$14&"|"&"FY"&RIGHT(H$13,2),Datastore!$G:$G)*$T22+SUMIF(Datastore!$A:$A,$Q22&$R22&"|"&$U22&"|"&H$14&"|"&"FY"&RIGHT(H$13,2),Datastore!$G:$G)*$V22+SUMIF(Datastore!$A:$A,$Q22&$R22&"|"&$W22&"|"&H$14&"|"&"FY"&RIGHT(H$13,2),Datastore!$G:$G)*$X22+SUMIF(Datastore!$A:$A,$Q22&$R22&"|"&$Y22&"|"&H$14&"|"&"FY"&RIGHT(H$13,2),Datastore!$G:$G)*$Z22+SUMIF(Datastore!$A:$A,$Q22&$R22&"|"&$AA22&"|"&H$14&"|"&"FY"&RIGHT(H$13,2),Datastore!$G:$G)*$AB22)/1000 -> 0 | I22: =(SUMIF(Datastore!$A:$A,$Q22&$R22&"|"&$S22&"|"&I$14&"|"&"FY"&RIGHT(I$13,2),Datastore!$G:$G)*$T22+SUMIF(Datastore!$A:$A,$Q22&$R22&"|"&$U22&"|"&I$14&"|"&"FY"&RIGHT(I$13,2),Datastore!$G:$G)*$V22+SUMIF(Datastore!$A:$A,$Q22&$R22&"|"&$W22&"|"&I$14&"|"&"FY"&RIGHT(I$13,2),Datastore!$G:$G)*$X22+SUMIF(Datastore!$A:$A,$Q22&$R22&"|"&$Y22&"|"&I$14&"|"&"FY"&RIGHT(I$13,2),Datastore!$G:$G)*$Z22+SUMIF(Datastore!$A:$A,$Q22&$R22&"|"&$AA22&"|"&I$14&"|"&"FY"&RIGHT(I$13,2),Datastore!$G:$G)*$AB22)/1000 -> 0 | J22: =(SUMIF(Datastore!$A:$A,$Q22&$R22&"|"&$S22&"|"&J$14&"|"&"FY"&RIGHT(J$13,2),Datastore!$G:$G)*$T22+SUMIF(Datastore!$A:$A,$Q22&$R22&"|"&$U22&"|"&J$14&"|"&"FY"&RIGHT(J$13,2),Datastore!$G:$G)*$V22+SUMIF(Datastore!$A:$A,$Q22&$R22&"|"&$W22&"|"&J$14&"|"&"FY"&RIGHT(J$13,2),Datastore!$G:$G)*$X22+SUMIF(Datastore!$A:$A,$Q22&$R22&"|"&$Y22&"|"&J$14&"|"&"FY"&RIGHT(J$13,2),Datastore!$G:$G)*$Z22+SUMIF(Datastore!$A:$A,$Q22&$R22&"|"&$AA22&"|"&J$14&"|"&"FY"&RIGHT(J$13,2),Datastore!$G:$G)*$AB22)/1000 -> 0 | K22: =(SUMIF(Datastore!$A:$A,$Q22&$R22&"|"&$S22&"|"&K$14&"|"&"FY"&RIGHT(K$13,2),Datastore!$G:$G)*$T22+SUMIF(Datastore!$A:$A,$Q22&$R22&"|"&$U22&"|"&K$14&"|"&"FY"&RIGHT(K$13,2),Datastore!$G:$G)*$V22+SUMIF(Datastore!$A:$A,$Q22&$R22&"|"&$W22&"|"&K$14&"|"&"FY"&RIGHT(K$13,2),Datastore!$G:$G)*$X22+SUMIF(Datastore!$A:$A,$Q22&$R22&"|"&$Y22&"|"&K$14&"|"&"FY"&RIGHT(K$13,2),Datastore!$G:$G)*$Z22+SUMIF(Datastore!$A:$A,$Q22&$R22&"|"&$AA22&"|"&K$14&"|"&"FY"&RIGHT(K$13,2),Datastore!$G:$G)*$AB22)/1000 -> 0 | L22: =(SUMIF(Datastore!$A:$A,$Q22&$R22&"|"&$S22&"|"&L$14&"|"&"FY"&RIGHT(L$13,2),Datastore!$G:$G)*$T22+SUMIF(Datastore!$A:$A,$Q22&$R22&"|"&$U22&"|"&L$14&"|"&"FY"&RIGHT(L$13,2),Datastore!$G:$G)*$V22+SUMIF(Datastore!$A:$A,$Q22&$R22&"|"&$W22&"|"&L$14&"|"&"FY"&RIGHT(L$13,2),Datastore!$G:$G)*$X22+SUMIF(Datastore!$A:$A,$Q22&$R22&"|"&$Y22&"|"&L$14&"|"&"FY"&RIGHT(L$13,2),Datastore!$G:$G)*$Z22+SUMIF(Datastore!$A:$A,$Q22&$R22&"|"&$AA22&"|"&L$14&"|"&"FY"&RIGHT(L$13,2),Datastore!$G:$G)*$AB22)/1000 -> 0 | Q22: ?? | R22: ? | S22: x | T22: 0 | U22: x | V22: 0 | W22: x | X22: 0 | Y22: x | Z22: 0 | AA22: x | AB22: 0
C23: Total Revenue | E23: $'000 | F23: =SUM(F16:F22) -> 729852.1526 | G23: 830594.2403 | H23: 842700.6558 | I23: 889743.819 | J23: 973214.823 | K23: 1061654.927 | L23: =SUM(L16:L22) -> 1144350.126
C25: Expenses
C26: Operating expenditure | E26: $'000 | F26: =(SUMIF(Datastore!$A:$A,$Q26&$R26&"|"&$S26&"|"&F$14&"|"&"FY"&RIGHT(F$13,2),Datastore!$G:$G)*$T26+SUMIF(Datastore!$A:$A,$Q26&$R26&"|"&$U26&"|"&F$14&"|"&"FY"&RIGHT(F$13,2),Datastore!$G:$G)*$V26+SUMIF(Datastore!$A:$A,$Q26&$R26&"|"&$W26&"|"&F$14&"|"&"FY"&RIGHT(F$13,2),Datastore!$G:$G)*$X26+SUMIF(Datastore!$A:$A,$Q26&$R26&"|"&$Y26&"|"&F$14&"|"&"FY"&RIGHT(F$13,2),Datastore!$G:$G)*$Z26+SUMIF(Datastore!$A:$A,$Q26&$R26&"|"&$AA26&"|"&F$14&"|"&"FY"&RIGHT(F$13,2),Datastore!$G:$G)*$AB26)/1000 -> 283627.0032 | G26: =(SUMIF(Datastore!$A:$A,$Q26&$R26&"|"&$S26&"|"&G$14&"|"&"FY"&RIGHT(G$13,2),Datastore!$G:$G)*$T26+SUMIF(Datastore!$A:$A,$Q26&$R26&"|"&$U26&"|"&G$14&"|"&"FY"&RIGHT(G$13,2),Datastore!$G:$G)*$V26+SUMIF(Datastore!$A:$A,$Q26&$R26&"|"&$W26&"|"&G$14&"|"&"FY"&RIGHT(G$13,2),Datastore!$G:$G)*$X26+SUMIF(Datastore!$A:$A,$Q26&$R26&"|"&$Y26&"|"&G$14&"|"&"FY"&RIGHT(G$13,2),Datastore!$G:$G)*$Z26+SUMIF(Datastore!$A:$A,$Q26&$R26&"|"&$AA26&"|"&G$14&"|"&"FY"&RIGHT(G$13,2),Datastore!$G:$G)*$AB26)/1000 -> 359889.494 | H26: =(SUMIF(Datastore!$A:$A,$Q26&$R26&"|"&$S26&"|"&H$14&"|"&"FY"&RIGHT(H$13,2),Datastore!$G:$G)*$T26+SUMIF(Datastore!$A:$A,$Q26&$R26&"|"&$U26&"|"&H$14&"|"&"FY"&RIGHT(H$13,2),Datastore!$G:$G)*$V26+SUMIF(Datastore!$A:$A,$Q26&$R26&"|"&$W26&"|"&H$14&"|"&"FY"&RIGHT(H$13,2),Datastore!$G:$G)*$X26+SUMIF(Datastore!$A:$A,$Q26&$R26&"|"&$Y26&"|"&H$14&"|"&"FY"&RIGHT(H$13,2),Datastore!$G:$G)*$Z26+SUMIF(Datastore!$A:$A,$Q26&$R26&"|"&$AA26&"|"&H$14&"|"&"FY"&RIGHT(H$13,2),Datastore!$G:$G)*$AB26)/1000 -> 391228.5531 | I26: =(SUMIF(Datastore!$A:$A,$Q26&$R26&"|"&$S26&"|"&I$14&"|"&"FY"&RIGHT(I$13,2),Datastore!$G:$G)*$T26+SUMIF(Datastore!$A:$A,$Q26&$R26&"|"&$U26&"|"&I$14&"|"&"FY"&RIGHT(I$13,2),Datastore!$G:$G)*$V26+SUMIF(Datastore!$A:$A,$Q26&$R26&"|"&$W26&"|"&I$14&"|"&"FY"&RIGHT(I$13,2),Datastore!$G:$G)*$X26+SUMIF(Datastore!$A:$A,$Q26&$R26&"|"&$Y26&"|"&I$14&"|"&"FY"&RIGHT(I$13,2),Datastore!$G:$G)*$Z26+SUMIF(Datastore!$A:$A,$Q26&$R26&"|"&$AA26&"|"&I$14&"|"&"FY"&RIGHT(I$13,2),Datastore!$G:$G)*$AB26)/1000 -> 459247.698 | J26: =(SUMIF(Datastore!$A:$A,$Q26&$R26&"|"&$S26&"|"&J$14&"|"&"FY"&RIGHT(J$13,2),Datastore!$G:$G)*$T26+SUMIF(Datastore!$A:$A,$Q26&$R26&"|"&$U26&"|"&J$14&"|"&"FY"&RIGHT(J$13,2),Datastore!$G:$G)*$V26+SUMIF(Datastore!$A:$A,$Q26&$R26&"|"&$W26&"|"&J$14&"|"&"FY"&RIGHT(J$13,2),Datastore!$G:$G)*$X26+SUMIF(Datastore!$A:$A,$Q26&$R26&"|"&$Y26&"|"&J$14&"|"&"FY"&RIGHT(J$13,2),Datastore!$G:$G)*$Z26+SUMIF(Datastore!$A:$A,$Q26&$R26&"|"&$AA26&"|"&J$14&"|"&"FY"&RIGHT(J$13,2),Datastore!$G:$G)*$AB26)/1000 -> 534203.3614 | K26: =(SUMIF(Datastore!$A:$A,$Q26&$R26&"|"&$S26&"|"&K$14&"|"&"FY"&RIGHT(K$13,2),Datastore!$G:$G)*$T26+SUMIF(Datastore!$A:$A,$Q26&$R26&"|"&$U26&"|"&K$14&"|"&"FY"&RIGHT(K$13,2),Datastore!$G:$G)*$V26+SUMIF(Datastore!$A:$A,$Q26&$R26&"|"&$W26&"|"&K$14&"|"&"FY"&RIGHT(K$13,2),Datastore!$G:$G)*$X26+SUMIF(Datastore!$A:$A,$Q26&$R26&"|"&$Y26&"|"&K$14&"|"&"FY"&RIGHT(K$13,2),Datastore!$G:$G)*$Z26+SUMIF(Datastore!$A:$A,$Q26&$R26&"|"&$AA26&"|"&K$14&"|"&"FY"&RIGHT(K$13,2),Datastore!$G:$G)*$AB26)/1000 -> 579206.4517 | L26: =(SUMIF(Datastore!$A:$A,$Q26&$R26&"|"&$S26&"|"&L$14&"|"&"FY"&RIGHT(L$13,2),Datastore!$G:$G)*$T26+SUMIF(Datastore!$A:$A,$Q26&$R26&"|"&$U26&"|"&L$14&"|"&"FY"&RIGHT(L$13,2),Datastore!$G:$G)*$V26+SUMIF(Datastore!$A:$A,$Q26&$R26&"|"&$W26&"|"&L$14&"|"&"FY"&RIGHT(L$13,2),Datastore!$G:$G)*$X26+SUMIF(Datastore!$A:$A,$Q26&$R26&"|"&$Y26&"|"&L$14&"|"&"FY"&RIGHT(L$13,2),Datastore!$G:$G)*$Z26+SUMIF(Datastore!$A:$A,$Q26&$R26&"|"&$AA26&"|"&L$14&"|"&"FY"&RIGHT(L$13,2),Datastore!$G:$G)*$AB26)/1000 -> 644978.0257 | Q26: ?? | R26: ? | S26: EO?? | T26: 1 | U26: EZ?? | V26: 1 | W26: EF?? | X26: 1 | Y26: EFDD | Z26: -1 | AA26: EOSN | AB26: -1
C27: Bad debts | E27: $'000 | F27: =(SUMIF(Datastore!$A:$A,$Q27&$R27&"|"&$S27&"|"&F$14&"|"&"FY"&RIGHT(F$13,2),Datastore!$G:$G)*$T27+SUMIF(Datastore!$A:$A,$Q27&$R27&"|"&$U27&"|"&F$14&"|"&"FY"&RIGHT(F$13,2),Datastore!$G:$G)*$V27+SUMIF(Datastore!$A:$A,$Q27&$R27&"|"&$W27&"|"&F$14&"|"&"FY"&RIGHT(F$13,2),Datastore!$G:$G)*$X27+SUMIF(Datastore!$A:$A,$Q27&$R27&"|"&$Y27&"|"&F$14&"|"&"FY"&RIGHT(F$13,2),Datastore!$G:$G)*$Z27+SUMIF(Datastore!$A:$A,$Q27&$R27&"|"&$AA27&"|"&F$14&"|"&"FY"&RIGHT(F$13,2),Datastore!$G:$G)*$AB27)/1000 -> -387.48629 | G27: =(SUMIF(Datastore!$A:$A,$Q27&$R27&"|"&$S27&"|"&G$14&"|"&"FY"&RIGHT(G$13,2),Datastore!$G:$G)*$T27+SUMIF(Datastore!$A:$A,$Q27&$R27&"|"&$U27&"|"&G$14&"|"&"FY"&RIGHT(G$13,2),Datastore!$G:$G)*$V27+SUMIF(Datastore!$A:$A,$Q27&$R27&"|"&$W27&"|"&G$14&"|"&"FY"&RIGHT(G$13,2),Datastore!$G:$G)*$X27+SUMIF(Datastore!$A:$A,$Q27&$R27&"|"&$Y27&"|"&G$14&"|"&"FY"&RIGHT(G$13,2),Datastore!$G:$G)*$Z27+SUMIF(Datastore!$A:$A,$Q27&$R27&"|"&$AA27&"|"&G$14&"|"&"FY"&RIGHT(G$13,2),Datastore!$G:$G)*$AB27)/1000 -> -500.42571 | H27: =(SUMIF(Datastore!$A:$A,$Q27&$R27&"|"&$S27&"|"&H$14&"|"&"FY"&RIGHT(H$13,2),Datastore!$G:$G)*$T27+SUMIF(Datastore!$A:$A,$Q27&$R27&"|"&$U27&"|"&H$14&"|"&"FY"&RIGHT(H$13,2),Datastore!$G:$G)*$V27+SUMIF(Datastore!$A:$A,$Q27&$R27&"|"&$W27&"|"&H$14&"|"&"FY"&RIGHT(H$13,2),Datastore!$G:$G)*$X27+SUMIF(Datastore!$A:$A,$Q27&$R27&"|"&$Y27&"|"&H$14&"|"&"FY"&RIGHT(H$13,2),Datastore!$G:$G)*$Z27+SUMIF(Datastore!$A:$A,$Q27&$R27&"|"&$AA27&"|"&H$14&"|"&"FY"&RIGHT(H$13,2),Datastore!$G:$G)*$AB27)/1000 -> 3515.423 | I27: =(SUMIF(Datastore!$A:$A,$Q27&$R27&"|"&$S27&"|"&I$14&"|"&"FY"&RIGHT(I$13,2),Datastore!$G:$G)*$T27+SUMIF(Datastore!$A:$A,$Q27&$R27&"|"&$U27&"|"&I$14&"|"&"FY"&RIGHT(I$13,2),Datastore!$G:$G)*$V27+SUMIF(Datastore!$A:$A,$Q27&$R27&"|"&$W27&"|"&I$14&"|"&"FY"&RIGHT(I$13,2),Datastore!$G:$G)*$X27+SUMIF(Datastore!$A:$A,$Q27&$R27&"|"&$Y27&"|"&I$14&"|"&"FY"&RIGHT(I$13,2),Datastore!$G:$G)*$Z27+SUMIF(Datastore!$A:$A,$Q27&$R27&"|"&$AA27&"|"&I$14&"|"&"FY"&RIGHT(I$13,2),Datastore!$G:$G)*$AB27)/1000 -> 3816.684 | J27: =(SUMIF(Datastore!$A:$A,$Q27&$R27&"|"&$S27&"|"&J$14&"|"&"FY"&RIGHT(J$13,2),Datastore!$G:$G)*$T27+SUMIF(Datastore!$A:$A,$Q27&$R27&"|"&$U27&"|"&J$14&"|"&"FY"&RIGHT(J$13,2),Datastore!$G:$G)*$V27+SUMIF(Datastore!$A:$A,$Q27&$R27&"|"&$W27&"|"&J$14&"|"&"FY"&RIGHT(J$13,2),Datastore!$G:$G)*$X27+SUMIF(Datastore!$A:$A,$Q27&$R27&"|"&$Y27&"|"&J$14&"|"&"FY"&RIGHT(J$13,2),Datastore!$G:$G)*$Z27+SUMIF(Datastore!$A:$A,$Q27&$R27&"|"&$AA27&"|"&J$14&"|"&"FY"&RIGHT(J$13,2),Datastore!$G:$G)*$AB27)/1000 -> 2086.34128 | K27: =(SUMIF(Datastore!$A:$A,$Q27&$R27&"|"&$S27&"|"&K$14&"|"&"FY"&RIGHT(K$13,2),Datastore!$G:$G)*$T27+SUMIF(Datastore!$A:$A,$Q27&$R27&"|"&$U27&"|"&K$14&"|"&"FY"&RIGHT(K$13,2),Datastore!$G:$G)*$V27+SUMIF(Datastore!$A:$A,$Q27&$R27&"|"&$W27&"|"&K$14&"|"&"FY"&RIGHT(K$13,2),Datastore!$G:$G)*$X27+SUMIF(Datastore!$A:$A,$Q27&$R27&"|"&$Y27&"|"&K$14&"|"&"FY"&RIGHT(K$13,2),Datastore!$G:$G)*$Z27+SUMIF(Datastore!$A:$A,$Q27&$R27&"|"&$AA27&"|"&K$14&"|"&"FY"&RIGHT(K$13,2),Datastore!$G:$G)*$AB27)/1000 -> 2276.911834 | L27: =(SUMIF(Datastore!$A:$A,$Q27&$R27&"|"&$S27&"|"&L$14&"|"&"FY"&RIGHT(L$13,2),Datastore!$G:$G)*$T27+SUMIF(Datastore!$A:$A,$Q27&$R27&"|"&$U27&"|"&L$14&"|"&"FY"&RIGHT(L$13,2),Datastore!$G:$G)*$V27+SUMIF(Datastore!$A:$A,$Q27&$R27&"|"&$W27&"|"&L$14&"|"&"FY"&RIGHT(L$13,2),Datastore!$G:$G)*$X27+SUMIF(Datastore!$A:$A,$Q27&$R27&"|"&$Y27&"|"&L$14&"|"&"FY"&RIGHT(L$13,2),Datastore!$G:$G)*$Z27+SUMIF(Datastore!$A:$A,$Q27&$R27&"|"&$AA27&"|"&L$14&"|"&"FY"&RIGHT(L$13,2),Datastore!$G:$G)*$AB27)/1000 -> 2473.594473 | Q27: ?? | R27: ? | S27: EFDD | T27: 1 | U27: x | V27: 0 | W27: x | X27: 0 | Y27: x | Z27: 0 | AA27: x | AB27: 0
C28: Non-recurrent | E28: $'000 | F28: =(SUMIF(Datastore!$A:$A,$Q28&$R28&"|"&$S28&"|"&F$14&"|"&"FY"&RIGHT(F$13,2),Datastore!$G:$G)*$T28+SUMIF(Datastore!$A:$A,$Q28&$R28&"|"&$U28&"|"&F$14&"|"&"FY"&RIGHT(F$13,2),Datastore!$G:$G)*$V28+SUMIF(Datastore!$A:$A,$Q28&$R28&"|"&$W28&"|"&F$14&"|"&"FY"&RIGHT(F$13,2),Datastore!$G:$G)*$X28+SUMIF(Datastore!$A:$A,$Q28&$R28&"|"&$Y28&"|"&F$14&"|"&"FY"&RIGHT(F$13,2),Datastore!$G:$G)*$Z28+SUMIF(Datastore!$A:$A,$Q28&$R28&"|"&$AA28&"|"&F$14&"|"&"FY"&RIGHT(F$13,2),Datastore!$G:$G)*$AB28)/1000 -> 0 | G28: =(SUMIF(Datastore!$A:$A,$Q28&$R28&"|"&$S28&"|"&G$14&"|"&"FY"&RIGHT(G$13,2),Datastore!$G:$G)*$T28+SUMIF(Datastore!$A:$A,$Q28&$R28&"|"&$U28&"|"&G$14&"|"&"FY"&RIGHT(G$13,2),Datastore!$G:$G)*$V28+SUMIF(Datastore!$A:$A,$Q28&$R28&"|"&$W28&"|"&G$14&"|"&"FY"&RIGHT(G$13,2),Datastore!$G:$G)*$X28+SUMIF(Datastore!$A:$A,$Q28&$R28&"|"&$Y28&"|"&G$14&"|"&"FY"&RIGHT(G$13,2),Datastore!$G:$G)*$Z28+SUMIF(Datastore!$A:$A,$Q28&$R28&"|"&$AA28&"|"&G$14&"|"&"FY"&RIGHT(G$13,2),Datastore!$G:$G)*$AB28)/1000 -> 0 | H28: =(SUMIF(Datastore!$A:$A,$Q28&$R28&"|"&$S28&"|"&H$14&"|"&"FY"&RIGHT(H$13,2),Datastore!$G:$G)*$T28+SUMIF(Datastore!$A:$A,$Q28&$R28&"|"&$U28&"|"&H$14&"|"&"FY"&RIGHT(H$13,2),Datastore!$G:$G)*$V28+SUMIF(Datastore!$A:$A,$Q28&$R28&"|"&$W28&"|"&H$14&"|"&"FY"&RIGHT(H$13,2),Datastore!$G:$G)*$X28+SUMIF(Datastore!$A:$A,$Q28&$R28&"|"&$Y28&"|"&H$14&"|"&"FY"&RIGHT(H$13,2),Datastore!$G:$G)*$Z28+SUMIF(Datastore!$A:$A,$Q28&$R28&"|"&$AA28&"|"&H$14&"|"&"FY"&RIGHT(H$13,2),Datastore!$G:$G)*$AB28)/1000 -> 10773.65822 | I28: =(SUMIF(Datastore!$A:$A,$Q28&$R28&"|"&$S28&"|"&I$14&"|"&"FY"&RIGHT(I$13,2),Datastore!$G:$G)*$T28+SUMIF(Datastore!$A:$A,$Q28&$R28&"|"&$U28&"|"&I$14&"|"&"FY"&RIGHT(I$13,2),Datastore!$G:$G)*$V28+SUMIF(Datastore!$A:$A,$Q28&$R28&"|"&$W28&"|"&I$14&"|"&"FY"&RIGHT(I$13,2),Datastore!$G:$G)*$X28+SUMIF(Datastore!$A:$A,$Q28&$R28&"|"&$Y28&"|"&I$14&"|"&"FY"&RIGHT(I$13,2),Datastore!$G:$G)*$Z28+SUMIF(Datastore!$A:$A,$Q28&$R28&"|"&$AA28&"|"&I$14&"|"&"FY"&RIGHT(I$13,2),Datastore!$G:$G)*$AB28)/1000 -> 3980.659 | J28: =(SUMIF(Datastore!$A:$A,$Q28&$R28&"|"&$S28&"|"&J$14&"|"&"FY"&RIGHT(J$13,2),Datastore!$G:$G)*$T28+SUMIF(Datastore!$A:$A,$Q28&$R28&"|"&$U28&"|"&J$14&"|"&"FY"&RIGHT(J$13,2),Datastore!$G:$G)*$V28+SUMIF(Datastore!$A:$A,$Q28&$R28&"|"&$W28&"|"&J$14&"|"&"FY"&RIGHT(J$13,2),Datastore!$G:$G)*$X28+SUMIF(Datastore!$A:$A,$Q28&$R28&"|"&$Y28&"|"&J$14&"|"&"FY"&RIGHT(J$13,2),Datastore!$G:$G)*$Z28+SUMIF(Datastore!$A:$A,$Q28&$R28&"|"&$AA28&"|"&J$14&"|"&"FY"&RIGHT(J$13,2),Datastore!$G:$G)*$AB28)/1000 -> 0 | K28: =(SUMIF(Datastore!$A:$A,$Q28&$R28&"|"&$S28&"|"&K$14&"|"&"FY"&RIGHT(K$13,2),Datastore!$G:$G)*$T28+SUMIF(Datastore!$A:$A,$Q28&$R28&"|"&$U28&"|"&K$14&"|"&"FY"&RIGHT(K$13,2),Datastore!$G:$G)*$V28+SUMIF(Datastore!$A:$A,$Q28&$R28&"|"&$W28&"|"&K$14&"|"&"FY"&RIGHT(K$13,2),Datastore!$G:$G)*$X28+SUMIF(Datastore!$A:$A,$Q28&$R28&"|"&$Y28&"|"&K$14&"|"&"FY"&RIGHT(K$13,2),Datastore!$G:$G)*$Z28+SUMIF(Datastore!$A:$A,$Q28&$R28&"|"&$AA28&"|"&K$14&"|"&"FY"&RIGHT(K$13,2),Datastore!$G:$G)*$AB28)/1000 -> 0 | L28: =(SUMIF(Datastore!$A:$A,$Q28&$R28&"|"&$S28&"|"&L$14&"|"&"FY"&RIGHT(L$13,2),Datastore!$G:$G)*$T28+SUMIF(Datastore!$A:$A,$Q28&$R28&"|"&$U28&"|"&L$14&"|"&"FY"&RIGHT(L$13,2),Datastore!$G:$G)*$V28+SUMIF(Datastore!$A:$A,$Q28&$R28&"|"&$W28&"|"&L$14&"|"&"FY"&RIGHT(L$13,2),Datastore!$G:$G)*$X28+SUMIF(Datastore!$A:$A,$Q28&$R28&"|"&$Y28&"|"&L$14&"|"&"FY"&RIGHT(L$13,2),Datastore!$G:$G)*$Z28+SUMIF(Datastore!$A:$A,$Q28&$R28&"|"&$AA28&"|"&L$14&"|"&"FY"&RIGHT(L$13,2),Datastore!$G:$G)*$AB28)/1000 -> 0 | N28: Flood | Q28: ?? | R28: ? | S28: EOSN | T28: 1 | U28: x | V28: 0 | W28: x | X28: 0 | Y28: x | Z28: 0 | AA28: x | AB28: 0
C29: Other 2 - [specify] | E29: $'000 | F29: =(SUMIF(Datastore!$A:$A,$Q29&$R29&"|"&$S29&"|"&F$14&"|"&"FY"&RIGHT(F$13,2),Datastore!$G:$G)*$T29+SUMIF(Datastore!$A:$A,$Q29&$R29&"|"&$U29&"|"&F$14&"|"&"FY"&RIGHT(F$13,2),Datastore!$G:$G)*$V29+SUMIF(Datastore!$A:$A,$Q29&$R29&"|"&$W29&"|"&F$14&"|"&"FY"&RIGHT(F$13,2),Datastore!$G:$G)*$X29+SUMIF(Datastore!$A:$A,$Q29&$R29&"|"&$Y29&"|"&F$14&"|"&"FY"&RIGHT(F$13,2),Datastore!$G:$G)*$Z29+SUMIF(Datastore!$A:$A,$Q29&$R29&"|"&$AA29&"|"&F$14&"|"&"FY"&RIGHT(F$13,2),Datastore!$G:$G)*$AB29)/1000 -> 0 | G29: =(SUMIF(Datastore!$A:$A,$Q29&$R29&"|"&$S29&"|"&G$14&"|"&"FY"&RIGHT(G$13,2),Datastore!$G:$G)*$T29+SUMIF(Datastore!$A:$A,$Q29&$R29&"|"&$U29&"|"&G$14&"|"&"FY"&RIGHT(G$13,2),Datastore!$G:$G)*$V29+SUMIF(Datastore!$A:$A,$Q29&$R29&"|"&$W29&"|"&G$14&"|"&"FY"&RIGHT(G$13,2),Datastore!$G:$G)*$X29+SUMIF(Datastore!$A:$A,$Q29&$R29&"|"&$Y29&"|"&G$14&"|"&"FY"&RIGHT(G$13,2),Datastore!$G:$G)*$Z29+SUMIF(Datastore!$A:$A,$Q29&$R29&"|"&$AA29&"|"&G$14&"|"&"FY"&RIGHT(G$13,2),Datastore!$G:$G)*$AB29)/1000 -> 0 | H29: =(SUMIF(Datastore!$A:$A,$Q29&$R29&"|"&$S29&"|"&H$14&"|"&"FY"&RIGHT(H$13,2),Datastore!$G:$G)*$T29+SUMIF(Datastore!$A:$A,$Q29&$R29&"|"&$U29&"|"&H$14&"|"&"FY"&RIGHT(H$13,2),Datastore!$G:$G)*$V29+SUMIF(Datastore!$A:$A,$Q29&$R29&"|"&$W29&"|"&H$14&"|"&"FY"&RIGHT(H$13,2),Datastore!$G:$G)*$X29+SUMIF(Datastore!$A:$A,$Q29&$R29&"|"&$Y29&"|"&H$14&"|"&"FY"&RIGHT(H$13,2),Datastore!$G:$G)*$Z29+SUMIF(Datastore!$A:$A,$Q29&$R29&"|"&$AA29&"|"&H$14&"|"&"FY"&RIGHT(H$13,2),Datastore!$G:$G)*$AB29)/1000 -> 0 | I29: =(SUMIF(Datastore!$A:$A,$Q29&$R29&"|"&$S29&"|"&I$14&"|"&"FY"&RIGHT(I$13,2),Datastore!$G:$G)*$T29+SUMIF(Datastore!$A:$A,$Q29&$R29&"|"&$U29&"|"&I$14&"|"&"FY"&RIGHT(I$13,2),Datastore!$G:$G)*$V29+SUMIF(Datastore!$A:$A,$Q29&$R29&"|"&$W29&"|"&I$14&"|"&"FY"&RIGHT(I$13,2),Datastore!$G:$G)*$X29+SUMIF(Datastore!$A:$A,$Q29&$R29&"|"&$Y29&"|"&I$14&"|"&"FY"&RIGHT(I$13,2),Datastore!$G:$G)*$Z29+SUMIF(Datastore!$A:$A,$Q29&$R29&"|"&$AA29&"|"&I$14&"|"&"FY"&RIGHT(I$13,2),Datastore!$G:$G)*$AB29)/1000 -> 0 | J29: =(SUMIF(Datastore!$A:$A,$Q29&$R29&"|"&$S29&"|"&J$14&"|"&"FY"&RIGHT(J$13,2),Datastore!$G:$G)*$T29+SUMIF(Datastore!$A:$A,$Q29&$R29&"|"&$U29&"|"&J$14&"|"&"FY"&RIGHT(J$13,2),Datastore!$G:$G)*$V29+SUMIF(Datastore!$A:$A,$Q29&$R29&"|"&$W29&"|"&J$14&"|"&"FY"&RIGHT(J$13,2),Datastore!$G:$G)*$X29+SUMIF(Datastore!$A:$A,$Q29&$R29&"|"&$Y29&"|"&J$14&"|"&"FY"&RIGHT(J$13,2),Datastore!$G:$G)*$Z29+SUMIF(Datastore!$A:$A,$Q29&$R29&"|"&$AA29&"|"&J$14&"|"&"FY"&RIGHT(J$13,2),Datastore!$G:$G)*$AB29)/1000 -> 0 | K29: =(SUMIF(Datastore!$A:$A,$Q29&$R29&"|"&$S29&"|"&K$14&"|"&"FY"&RIGHT(K$13,2),Datastore!$G:$G)*$T29+SUMIF(Datastore!$A:$A,$Q29&$R29&"|"&$U29&"|"&K$14&"|"&"FY"&RIGHT(K$13,2),Datastore!$G:$G)*$V29+SUMIF(Datastore!$A:$A,$Q29&$R29&"|"&$W29&"|"&K$14&"|"&"FY"&RIGHT(K$13,2),Datastore!$G:$G)*$X29+SUMIF(Datastore!$A:$A,$Q29&$R29&"|"&$Y29&"|"&K$14&"|"&"FY"&RIGHT(K$13,2),Datastore!$G:$G)*$Z29+SUMIF(Datastore!$A:$A,$Q29&$R29&"|"&$AA29&"|"&K$14&"|"&"FY"&RIGHT(K$13,2),Datastore!$G:$G)*$AB29)/1000 -> 0 | L29: =(SUMIF(Datastore!$A:$A,$Q29&$R29&"|"&$S29&"|"&L$14&"|"&"FY"&RIGHT(L$13,2),Datastore!$G:$G)*$T29+SUMIF(Datastore!$A:$A,$Q29&$R29&"|"&$U29&"|"&L$14&"|"&"FY"&RIGHT(L$13,2),Datastore!$G:$G)*$V29+SUMIF(Datastore!$A:$A,$Q29&$R29&"|"&$W29&"|"&L$14&"|"&"FY"&RIGHT(L$13,2),Datastore!$G:$G)*$X29+SUMIF(Datastore!$A:$A,$Q29&$R29&"|"&$Y29&"|"&L$14&"|"&"FY"&RIGHT(L$13,2),Datastore!$G:$G)*$Z29+SUMIF(Datastore!$A:$A,$Q29&$R29&"|"&$AA29&"|"&L$14&"|"&"FY"&RIGHT(L$13,2),Datastore!$G:$G)*$AB29)/1000 -> 0 | Q29: ?? | R29: ? | S29: x | T29: 0 | U29: x | V29: 0 | W29: x | X29: 0 | Y29: x | Z29: 0 | AA29: x | AB29: 0
C30: Total Expenses | E30: $'000 | F30: =SUM(F26:F29) -> 283239.5169 | G30: 359389.0683 | H30: 405517.6343 | I30: 467045.041 | J30: 536289.7027 | K30: =SUM(K26:K29) -> 581483.3635 | L30: =SUM(L26:L29) -> 647451.6202
C32: Earnings Before Interest, Tax, Depreciation and Amortisation | E32: $'000 | F32: =F23-F30 -> 446612.6357 | G32: 471205.172 | H32: 437183.0214 | I32: 422698.778 | J32: 436925.1204 | K32: 480171.5638 | L32: =L23-L30 -> 496898.5054
C34: Depreciation and amortization | E34: $'000 | F34: =(SUMIF(Datastore!$A:$A,$Q34&$R34&"|"&$S34&"|"&F$14&"|"&"FY"&RIGHT(F$13,2),Datastore!$G:$G)*$T34+SUMIF(Datastore!$A:$A,$Q34&$R34&"|"&$U34&"|"&F$14&"|"&"FY"&RIGHT(F$13,2),Datastore!$G:$G)*$V34+SUMIF(Datastore!$A:$A,$Q34&$R34&"|"&$W34&"|"&F$14&"|"&"FY"&RIGHT(F$13,2),Datastore!$G:$G)*$X34+SUMIF(Datastore!$A:$A,$Q34&$R34&"|"&$Y34&"|"&F$14&"|"&"FY"&RIGHT(F$13,2),Datastore!$G:$G)*$Z34+SUMIF(Datastore!$A:$A,$Q34&$R34&"|"&$AA34&"|"&F$14&"|"&"FY"&RIGHT(F$13,2),Datastore!$G:$G)*$AB34)/1000 -> 141266.8289 | G34: =(SUMIF(Datastore!$A:$A,$Q34&$R34&"|"&$S34&"|"&G$14&"|"&"FY"&RIGHT(G$13,2),Datastore!$G:$G)*$T34+SUMIF(Datastore!$A:$A,$Q34&$R34&"|"&$U34&"|"&G$14&"|"&"FY"&RIGHT(G$13,2),Datastore!$G:$G)*$V34+SUMIF(Datastore!$A:$A,$Q34&$R34&"|"&$W34&"|"&G$14&"|"&"FY"&RIGHT(G$13,2),Datastore!$G:$G)*$X34+SUMIF(Datastore!$A:$A,$Q34&$R34&"|"&$Y34&"|"&G$14&"|"&"FY"&RIGHT(G$13,2),Datastore!$G:$G)*$Z34+SUMIF(Datastore!$A:$A,$Q34&$R34&"|"&$AA34&"|"&G$14&"|"&"FY"&RIGHT(G$13,2),Datastore!$G:$G)*$AB34)/1000 -> 143032.1837 | H34: =(SUMIF(Datastore!$A:$A,$Q34&$R34&"|"&$S34&"|"&H$14&"|"&"FY"&RIGHT(H$13,2),Datastore!$G:$G)*$T34+SUMIF(Datastore!$A:$A,$Q34&$R34&"|"&$U34&"|"&H$14&"|"&"FY"&RIGHT(H$13,2),Datastore!$G:$G)*$V34+SUMIF(Datastore!$A:$A,$Q34&$R34&"|"&$W34&"|"&H$14&"|"&"FY"&RIGHT(H$13,2),Datastore!$G:$G)*$X34+SUMIF(Datastore!$A:$A,$Q34&$R34&"|"&$Y34&"|"&H$14&"|"&"FY"&RIGHT(H$13,2),Datastore!$G:$G)*$Z34+SUMIF(Datastore!$A:$A,$Q34&$R34&"|"&$AA34&"|"&H$14&"|"&"FY"&RIGHT(H$13,2),Datastore!$G:$G)*$AB34)/1000 -> 135395.8244 | I34: =(SUMIF(Datastore!$A:$A,$Q34&$R34&"|"&$S34&"|"&I$14&"|"&"FY"&RIGHT(I$13,2),Datastore!$G:$G)*$T34+SUMIF(Datastore!$A:$A,$Q34&$R34&"|"&$U34&"|"&I$14&"|"&"FY"&RIGHT(I$13,2),Datastore!$G:$G)*$V34+SUMIF(Datastore!$A:$A,$Q34&$R34&"|"&$W34&"|"&I$14&"|"&"FY"&RIGHT(I$13,2),Datastore!$G:$G)*$X34+SUMIF(Datastore!$A:$A,$Q34&$R34&"|"&$Y34&"|"&I$14&"|"&"FY"&RIGHT(I$13,2),Datastore!$G:$G)*$Z34+SUMIF(Datastore!$A:$A,$Q34&$R34&"|"&$AA34&"|"&I$14&"|"&"FY"&RIGHT(I$13,2),Datastore!$G:$G)*$AB34)/1000 -> 141514.8926 | J34: =(SUMIF(Datastore!$A:$A,$Q34&$R34&"|"&$S34&"|"&J$14&"|"&"FY"&RIGHT(J$13,2),Datastore!$G:$G)*$T34+SUMIF(Datastore!$A:$A,$Q34&$R34&"|"&$U34&"|"&J$14&"|"&"FY"&RIGHT(J$13,2),Datastore!$G:$G)*$V34+SUMIF(Datastore!$A:$A,$Q34&$R34&"|"&$W34&"|"&J$14&"|"&"FY"&RIGHT(J$13,2),Datastore!$G:$G)*$X34+SUMIF(Datastore!$A:$A,$Q34&$R34&"|"&$Y34&"|"&J$14&"|"&"FY"&RIGHT(J$13,2),Datastore!$G:$G)*$Z34+SUMIF(Datastore!$A:$A,$Q34&$R34&"|"&$AA34&"|"&J$14&"|"&"FY"&RIGHT(J$13,2),Datastore!$G:$G)*$AB34)/1000 -> 154772.0004 | K34: =(SUMIF(Datastore!$A:$A,$Q34&$R34&"|"&$S34&"|"&K$14&"|"&"FY"&RIGHT(K$13,2),Datastore!$G:$G)*$T34+SUMIF(Datastore!$A:$A,$Q34&$R34&"|"&$U34&"|"&K$14&"|"&"FY"&RIGHT(K$13,2),Datastore!$G:$G)*$V34+SUMIF(Datastore!$A:$A,$Q34&$R34&"|"&$W34&"|"&K$14&"|"&"FY"&RIGHT(K$13,2),Datastore!$G:$G)*$X34+SUMIF(Datastore!$A:$A,$Q34&$R34&"|"&$Y34&"|"&K$14&"|"&"FY"&RIGHT(K$13,2),Datastore!$G:$G)*$Z34+SUMIF(Datastore!$A:$A,$Q34&$R34&"|"&$AA34&"|"&K$14&"|"&"FY"&RIGHT(K$13,2),Datastore!$G:$G)*$AB34)/1000 -> 166329.388 | L34: =(SUMIF(Datastore!$A:$A,$Q34&$R34&"|"&$S34&"|"&L$14&"|"&"FY"&RIGHT(L$13,2),Datastore!$G:$G)*$T34+SUMIF(Datastore!$A:$A,$Q34&$R34&"|"&$U34&"|"&L$14&"|"&"FY"&RIGHT(L$13,2),Datastore!$G:$G)*$V34+SUMIF(Datastore!$A:$A,$Q34&$R34&"|"&$W34&"|"&L$14&"|"&"FY"&RIGHT(L$13,2),Datastore!$G:$G)*$X34+SUMIF(Datastore!$A:$A,$Q34&$R34&"|"&$Y34&"|"&L$14&"|"&"FY"&RIGHT(L$13,2),Datastore!$G:$G)*$Z34+SUMIF(Datastore!$A:$A,$Q34&$R34&"|"&$AA34&"|"&L$14&"|"&"FY"&RIGHT(L$13,2),Datastore!$G:$G)*$AB34)/1000 -> 182761.3143 | Q34: ?? | R34: ? | S34: EDEP | T34: 1 | V34: 0 | X34: 0 | Z34: 0 | AB34: 0
C35: Earnings Before Interest, and Tax | E35: $'000 | F35: =F32-F34 -> 305345.8067 | G35: 328172.9883 | H35: 301787.1971 | I35: 281183.8854 | J35: 282153.12 | K35: 313842.1758 | L35: =L32-L34 -> 314137.1911
C37: Borrowing costs | E37: $'000 | F37: =(SUMIF(Datastore!$A:$A,$Q37&$R37&"|"&$S37&"|"&F$14&"|"&"FY"&RIGHT(F$13,2),Datastore!$G:$G)*$T37+SUMIF(Datastore!$A:$A,$Q37&$R37&"|"&$U37&"|"&F$14&"|"&"FY"&RIGHT(F$13,2),Datastore!$G:$G)*$V37+SUMIF(Datastore!$A:$A,$Q37&$R37&"|"&$W37&"|"&F$14&"|"&"FY"&RIGHT(F$13,2),Datastore!$G:$G)*$X37+SUMIF(Datastore!$A:$A,$Q37&$R37&"|"&$Y37&"|"&F$14&"|"&"FY"&RIGHT(F$13,2),Datastore!$G:$G)*$Z37+SUMIF(Datastore!$A:$A,$Q37&$R37&"|"&$AA37&"|"&F$14&"|"&"FY"&RIGHT(F$13,2),Datastore!$G:$G)*$AB37)/1000 -> 139103.9472 | G37: =(SUMIF(Datastore!$A:$A,$Q37&$R37&"|"&$S37&"|"&G$14&"|"&"FY"&RIGHT(G$13,2),Datastore!$G:$G)*$T37+SUMIF(Datastore!$A:$A,$Q37&$R37&"|"&$U37&"|"&G$14&"|"&"FY"&RIGHT(G$13,2),Datastore!$G:$G)*$V37+SUMIF(Datastore!$A:$A,$Q37&$R37&"|"&$W37&"|"&G$14&"|"&"FY"&RIGHT(G$13,2),Datastore!$G:$G)*$X37+SUMIF(Datastore!$A:$A,$Q37&$R37&"|"&$Y37&"|"&G$14&"|"&"FY"&RIGHT(G$13,2),Datastore!$G:$G)*$Z37+SUMIF(Datastore!$A:$A,$Q37&$R37&"|"&$AA37&"|"&G$14&"|"&"FY"&RIGHT(G$13,2),Datastore!$G:$G)*$AB37)/1000 -> 141085.7422 | H37: =(SUMIF(Datastore!$A:$A,$Q37&$R37&"|"&$S37&"|"&H$14&"|"&"FY"&RIGHT(H$13,2),Datastore!$G:$G)*$T37+SUMIF(Datastore!$A:$A,$Q37&$R37&"|"&$U37&"|"&H$14&"|"&"FY"&RIGHT(H$13,2),Datastore!$G:$G)*$V37+SUMIF(Datastore!$A:$A,$Q37&$R37&"|"&$W37&"|"&H$14&"|"&"FY"&RIGHT(H$13,2),Datastore!$G:$G)*$X37+SUMIF(Datastore!$A:$A,$Q37&$R37&"|"&$Y37&"|"&H$14&"|"&"FY"&RIGHT(H$13,2),Datastore!$G:$G)*$Z37+SUMIF(Datastore!$A:$A,$Q37&$R37&"|"&$AA37&"|"&H$14&"|"&"FY"&RIGHT(H$13,2),Datastore!$G:$G)*$AB37)/1000 -> 111476.1726 | I37: =(SUMIF(Datastore!$A:$A,$Q37&$R37&"|"&$S37&"|"&I$14&"|"&"FY"&RIGHT(I$13,2),Datastore!$G:$G)*$T37+SUMIF(Datastore!$A:$A,$Q37&$R37&"|"&$U37&"|"&I$14&"|"&"FY"&RIGHT(I$13,2),Datastore!$G:$G)*$V37+SUMIF(Datastore!$A:$A,$Q37&$R37&"|"&$W37&"|"&I$14&"|"&"FY"&RIGHT(I$13,2),Datastore!$G:$G)*$X37+SUMIF(Datastore!$A:$A,$Q37&$R37&"|"&$Y37&"|"&I$14&"|"&"FY"&RIGHT(I$13,2),Datastore!$G:$G)*$Z37+SUMIF(Datastore!$A:$A,$Q37&$R37&"|"&$AA37&"|"&I$14&"|"&"FY"&RIGHT(I$13,2),Datastore!$G:$G)*$AB37)/1000 -> 116616.225 | J37: =(SUMIF(Datastore!$A:$A,$Q37&$R37&"|"&$S37&"|"&J$14&"|"&"FY"&RIGHT(J$13,2),Datastore!$G:$G)*$T37+SUMIF(Datastore!$A:$A,$Q37&$R37&"|"&$U37&"|"&J$14&"|"&"FY"&RIGHT(J$13,2),Datastore!$G:$G)*$V37+SUMIF(Datastore!$A:$A,$Q37&$R37&"|"&$W37&"|"&J$14&"|"&"FY"&RIGHT(J$13,2),Datastore!$G:$G)*$X37+SUMIF(Datastore!$A:$A,$Q37&$R37&"|"&$Y37&"|"&J$14&"|"&"FY"&RIGHT(J$13,2),Datastore!$G:$G)*$Z37+SUMIF(Datastore!$A:$A,$Q37&$R37&"|"&$AA37&"|"&J$14&"|"&"FY"&RIGHT(J$13,2),Datastore!$G:$G)*$AB37)/1000 -> 124924.209 | K37: =(SUMIF(Datastore!$A:$A,$Q37&$R37&"|"&$S37&"|"&K$14&"|"&"FY"&RIGHT(K$13,2),Datastore!$G:$G)*$T37+SUMIF(Datastore!$A:$A,$Q37&$R37&"|"&$U37&"|"&K$14&"|"&"FY"&RIGHT(K$13,2),Datastore!$G:$G)*$V37+SUMIF(Datastore!$A:$A,$Q37&$R37&"|"&$W37&"|"&K$14&"|"&"FY"&RIGHT(K$13,2),Datastore!$G:$G)*$X37+SUMIF(Datastore!$A:$A,$Q37&$R37&"|"&$Y37&"|"&K$14&"|"&"FY"&RIGHT(K$13,2),Datastore!$G:$G)*$Z37+SUMIF(Datastore!$A:$A,$Q37&$R37&"|"&$AA37&"|"&K$14&"|"&"FY"&RIGHT(K$13,2),Datastore!$G:$G)*$AB37)/1000 -> 133612.3061 | L37: =(SUMIF(Datastore!$A:$A,$Q37&$R37&"|"&$S37&"|"&L$14&"|"&"FY"&RIGHT(L$13,2),Datastore!$G:$G)*$T37+SUMIF(Datastore!$A:$A,$Q37&$R37&"|"&$U37&"|"&L$14&"|"&"FY"&RIGHT(L$13,2),Datastore!$G:$G)*$V37+SUMIF(Datastore!$A:$A,$Q37&$R37&"|"&$W37&"|"&L$14&"|"&"FY"&RIGHT(L$13,2),Datastore!$G:$G)*$X37+SUMIF(Datastore!$A:$A,$Q37&$R37&"|"&$Y37&"|"&L$14&"|"&"FY"&RIGHT(L$13,2),Datastore!$G:$G)*$Z37+SUMIF(Datastore!$A:$A,$Q37&$R37&"|"&$AA37&"|"&L$14&"|"&"FY"&RIGHT(L$13,2),Datastore!$G:$G)*$AB37)/1000 -> 146229.7232 | Q37: ?? | R37: ? | S37: EI?? | T37: 1 | V37: 0 | X37: 0 | Z37: 0 | AB37: 0
C38: Earnings Before Tax | E38: $'000 | F38: =F35-F37 -> 166241.8595 | G38: 187087.246 | H38: 190311.0244 | I38: 164567.6604 | J38: 157228.911 | K38: 180229.8697 | L38: =L35-L37 -> 167907.4679
C40: Tax Expense | E40: $'000 | F40: =(SUMIF(Datastore!$A:$A,$Q40&$R40&"|"&$S40&"|"&F$14&"|"&"FY"&RIGHT(F$13,2),Datastore!$G:$G)*$T40+SUMIF(Datastore!$A:$A,$Q40&$R40&"|"&$U40&"|"&F$14&"|"&"FY"&RIGHT(F$13,2),Datastore!$G:$G)*$V40+SUMIF(Datastore!$A:$A,$Q40&$R40&"|"&$W40&"|"&F$14&"|"&"FY"&RIGHT(F$13,2),Datastore!$G:$G)*$X40+SUMIF(Datastore!$A:$A,$Q40&$R40&"|"&$Y40&"|"&F$14&"|"&"FY"&RIGHT(F$13,2),Datastore!$G:$G)*$Z40+SUMIF(Datastore!$A:$A,$Q40&$R40&"|"&$AA40&"|"&F$14&"|"&"FY"&RIGHT(F$13,2),Datastore!$G:$G)*$AB40)/1000 -> 40682.518 | G40: =(SUMIF(Datastore!$A:$A,$Q40&$R40&"|"&$S40&"|"&G$14&"|"&"FY"&RIGHT(G$13,2),Datastore!$G:$G)*$T40+SUMIF(Datastore!$A:$A,$Q40&$R40&"|"&$U40&"|"&G$14&"|"&"FY"&RIGHT(G$13,2),Datastore!$G:$G)*$V40+SUMIF(Datastore!$A:$A,$Q40&$R40&"|"&$W40&"|"&G$14&"|"&"FY"&RIGHT(G$13,2),Datastore!$G:$G)*$X40+SUMIF(Datastore!$A:$A,$Q40&$R40&"|"&$Y40&"|"&G$14&"|"&"FY"&RIGHT(G$13,2),Datastore!$G:$G)*$Z40+SUMIF(Datastore!$A:$A,$Q40&$R40&"|"&$AA40&"|"&G$14&"|"&"FY"&RIGHT(G$13,2),Datastore!$G:$G)*$AB40)/1000 -> 63621.71598 | H40: =(SUMIF(Datastore!$A:$A,$Q40&$R40&"|"&$S40&"|"&H$14&"|"&"FY"&RIGHT(H$13,2),Datastore!$G:$G)*$T40+SUMIF(Datastore!$A:$A,$Q40&$R40&"|"&$U40&"|"&H$14&"|"&"FY"&RIGHT(H$13,2),Datastore!$G:$G)*$V40+SUMIF(Datastore!$A:$A,$Q40&$R40&"|"&$W40&"|"&H$14&"|"&"FY"&RIGHT(H$13,2),Datastore!$G:$G)*$X40+SUMIF(Datastore!$A:$A,$Q40&$R40&"|"&$Y40&"|"&H$14&"|"&"FY"&RIGHT(H$13,2),Datastore!$G:$G)*$Z40+SUMIF(Datastore!$A:$A,$Q40&$R40&"|"&$AA40&"|"&H$14&"|"&"FY"&RIGHT(H$13,2),Datastore!$G:$G)*$AB40)/1000 -> 58285.832 | I40: =(SUMIF(Datastore!$A:$A,$Q40&$R40&"|"&$S40&"|"&I$14&"|"&"FY"&RIGHT(I$13,2),Datastore!$G:$G)*$T40+SUMIF(Datastore!$A:$A,$Q40&$R40&"|"&$U40&"|"&I$14&"|"&"FY"&RIGHT(I$13,2),Datastore!$G:$G)*$V40+SUMIF(Datastore!$A:$A,$Q40&$R40&"|"&$W40&"|"&I$14&"|"&"FY"&RIGHT(I$13,2),Datastore!$G:$G)*$X40+SUMIF(Datastore!$A:$A,$Q40&$R40&"|"&$Y40&"|"&I$14&"|"&"FY"&RIGHT(I$13,2),Datastore!$G:$G)*$Z40+SUMIF(Datastore!$A:$A,$Q40&$R40&"|"&$AA40&"|"&I$14&"|"&"FY"&RIGHT(I$13,2),Datastore!$G:$G)*$AB40)/1000 -> 49370.298 | J40: =(SUMIF(Datastore!$A:$A,$Q40&$R40&"|"&$S40&"|"&J$14&"|"&"FY"&RIGHT(J$13,2),Datastore!$G:$G)*$T40+SUMIF(Datastore!$A:$A,$Q40&$R40&"|"&$U40&"|"&J$14&"|"&"FY"&RIGHT(J$13,2),Datastore!$G:$G)*$V40+SUMIF(Datastore!$A:$A,$Q40&$R40&"|"&$W40&"|"&J$14&"|"&"FY"&RIGHT(J$13,2),Datastore!$G:$G)*$X40+SUMIF(Datastore!$A:$A,$Q40&$R40&"|"&$Y40&"|"&J$14&"|"&"FY"&RIGHT(J$13,2),Datastore!$G:$G)*$Z40+SUMIF(Datastore!$A:$A,$Q40&$R40&"|"&$AA40&"|"&J$14&"|"&"FY"&RIGHT(J$13,2),Datastore!$G:$G)*$AB40)/1000 -> 47168.67329 | K40: =(SUMIF(Datastore!$A:$A,$Q40&$R40&"|"&$S40&"|"&K$14&"|"&"FY"&RIGHT(K$13,2),Datastore!$G:$G)*$T40+SUMIF(Datastore!$A:$A,$Q40&$R40&"|"&$U40&"|"&K$14&"|"&"FY"&RIGHT(K$13,2),Datastore!$G:$G)*$V40+SUMIF(Datastore!$A:$A,$Q40&$R40&"|"&$W40&"|"&K$14&"|"&"FY"&RIGHT(K$13,2),Datastore!$G:$G)*$X40+SUMIF(Datastore!$A:$A,$Q40&$R40&"|"&$Y40&"|"&K$14&"|"&"FY"&RIGHT(K$13,2),Datastore!$G:$G)*$Z40+SUMIF(Datastore!$A:$A,$Q40&$R40&"|"&$AA40&"|"&K$14&"|"&"FY"&RIGHT(K$13,2),Datastore!$G:$G)*$AB40)/1000 -> 54068.96138 | L40: =(SUMIF(Datastore!$A:$A,$Q40&$R40&"|"&$S40&"|"&L$14&"|"&"FY"&RIGHT(L$13,2),Datastore!$G:$G)*$T40+SUMIF(Datastore!$A:$A,$Q40&$R40&"|"&$U40&"|"&L$14&"|"&"FY"&RIGHT(L$13,2),Datastore!$G:$G)*$V40+SUMIF(Datastore!$A:$A,$Q40&$R40&"|"&$W40&"|"&L$14&"|"&"FY"&RIGHT(L$13,2),Datastore!$G:$G)*$X40+SUMIF(Datastore!$A:$A,$Q40&$R40&"|"&$Y40&"|"&L$14&"|"&"FY"&RIGHT(L$13,2),Datastore!$G:$G)*$Z40+SUMIF(Datastore!$A:$A,$Q40&$R40&"|"&$AA40&"|"&L$14&"|"&"FY"&RIGHT(L$13,2),Datastore!$G:$G)*$AB40)/1000 -> 50372.24087 | Q40: ?? | R40: ? | S40: ETAX | T40: 1 | V40: 0 | X40: 0 | Z40: 0 | AB40: 0
C42: Earnings After Tax | E42: $'000 | F42: =F38-F40 -> 125559.3415 | G42: 123465.5301 | H42: 132025.1924 | I42: 115197.3624 | J42: 110060.2377 | K42: 126160.9083 | L42: =L38-L40 -> 117535.227
C44: Dividends paid | E44: $'000 | F44: =(SUMIF(Datastore!$A:$A,$Q44&$R44&"|"&$S44&"|"&F$14&"|"&"FY"&RIGHT(F$13,2),Datastore!$G:$G)*$T44+SUMIF(Datastore!$A:$A,$Q44&$R44&"|"&$U44&"|"&F$14&"|"&"FY"&RIGHT(F$13,2),Datastore!$G:$G)*$V44+SUMIF(Datastore!$A:$A,$Q44&$R44&"|"&$W44&"|"&F$14&"|"&"FY"&RIGHT(F$13,2),Datastore!$G:$G)*$X44+SUMIF(Datastore!$A:$A,$Q44&$R44&"|"&$Y44&"|"&F$14&"|"&"FY"&RIGHT(F$13,2),Datastore!$G:$G)*$Z44+SUMIF(Datastore!$A:$A,$Q44&$R44&"|"&$AA44&"|"&F$14&"|"&"FY"&RIGHT(F$13,2),Datastore!$G:$G)*$AB44)/1000 -> 0 | G44: =(SUMIF(Datastore!$A:$A,$Q44&$R44&"|"&$S44&"|"&G$14&"|"&"FY"&RIGHT(G$13,2),Datastore!$G:$G)*$T44+SUMIF(Datastore!$A:$A,$Q44&$R44&"|"&$U44&"|"&G$14&"|"&"FY"&RIGHT(G$13,2),Datastore!$G:$G)*$V44+SUMIF(Datastore!$A:$A,$Q44&$R44&"|"&$W44&"|"&G$14&"|"&"FY"&RIGHT(G$13,2),Datastore!$G:$G)*$X44+SUMIF(Datastore!$A:$A,$Q44&$R44&"|"&$Y44&"|"&G$14&"|"&"FY"&RIGHT(G$13,2),Datastore!$G:$G)*$Z44+SUMIF(Datastore!$A:$A,$Q44&$R44&"|"&$AA44&"|"&G$14&"|"&"FY"&RIGHT(G$13,2),Datastore!$G:$G)*$AB44)/1000 -> 0 | H44: =(SUMIF(Datastore!$A:$A,$Q44&$R44&"|"&$S44&"|"&H$14&"|"&"FY"&RIGHT(H$13,2),Datastore!$G:$G)*$T44+SUMIF(Datastore!$A:$A,$Q44&$R44&"|"&$U44&"|"&H$14&"|"&"FY"&RIGHT(H$13,2),Datastore!$G:$G)*$V44+SUMIF(Datastore!$A:$A,$Q44&$R44&"|"&$W44&"|"&H$14&"|"&"FY"&RIGHT(H$13,2),Datastore!$G:$G)*$X44+SUMIF(Datastore!$A:$A,$Q44&$R44&"|"&$Y44&"|"&H$14&"|"&"FY"&RIGHT(H$13,2),Datastore!$G:$G)*$Z44+SUMIF(Datastore!$A:$A,$Q44&$R44&"|"&$AA44&"|"&H$14&"|"&"FY"&RIGHT(H$13,2),Datastore!$G:$G)*$AB44)/1000 -> 64121.049 | I44: =(SUMIF(Datastore!$A:$A,$Q44&$R44&"|"&$S44&"|"&I$14&"|"&"FY"&RIGHT(I$13,2),Datastore!$G:$G)*$T44+SUMIF(Datastore!$A:$A,$Q44&$R44&"|"&$U44&"|"&I$14&"|"&"FY"&RIGHT(I$13,2),Datastore!$G:$G)*$V44+SUMIF(Datastore!$A:$A,$Q44&$R44&"|"&$W44&"|"&I$14&"|"&"FY"&RIGHT(I$13,2),Datastore!$G:$G)*$X44+SUMIF(Datastore!$A:$A,$Q44&$R44&"|"&$Y44&"|"&I$14&"|"&"FY"&RIGHT(I$13,2),Datastore!$G:$G)*$Z44+SUMIF(Datastore!$A:$A,$Q44&$R44&"|"&$AA44&"|"&I$14&"|"&"FY"&RIGHT(I$13,2),Datastore!$G:$G)*$AB44)/1000 -> 52982.86582 | J44: =(SUMIF(Datastore!$A:$A,$Q44&$R44&"|"&$S44&"|"&J$14&"|"&"FY"&RIGHT(J$13,2),Datastore!$G:$G)*$T44+SUMIF(Datastore!$A:$A,$Q44&$R44&"|"&$U44&"|"&J$14&"|"&"FY"&RIGHT(J$13,2),Datastore!$G:$G)*$V44+SUMIF(Datastore!$A:$A,$Q44&$R44&"|"&$W44&"|"&J$14&"|"&"FY"&RIGHT(J$13,2),Datastore!$G:$G)*$X44+SUMIF(Datastore!$A:$A,$Q44&$R44&"|"&$Y44&"|"&J$14&"|"&"FY"&RIGHT(J$13,2),Datastore!$G:$G)*$Z44+SUMIF(Datastore!$A:$A,$Q44&$R44&"|"&$AA44&"|"&J$14&"|"&"FY"&RIGHT(J$13,2),Datastore!$G:$G)*$AB44)/1000 -> 46287.80203 | K44: =(SUMIF(Datastore!$A:$A,$Q44&$R44&"|"&$S44&"|"&K$14&"|"&"FY"&RIGHT(K$13,2),Datastore!$G:$G)*$T44+SUMIF(Datastore!$A:$A,$Q44&$R44&"|"&$U44&"|"&K$14&"|"&"FY"&RIGHT(K$13,2),Datastore!$G:$G)*$V44+SUMIF(Datastore!$A:$A,$Q44&$R44&"|"&$W44&"|"&K$14&"|"&"FY"&RIGHT(K$13,2),Datastore!$G:$G)*$X44+SUMIF(Datastore!$A:$A,$Q44&$R44&"|"&$Y44&"|"&K$14&"|"&"FY"&RIGHT(K$13,2),Datastore!$G:$G)*$Z44+SUMIF(Datastore!$A:$A,$Q44&$R44&"|"&$AA44&"|"&K$14&"|"&"FY"&RIGHT(K$13,2),Datastore!$G:$G)*$AB44)/1000 -> 55902.89769 | L44: =(SUMIF(Datastore!$A:$A,$Q44&$R44&"|"&$S44&"|"&L$14&"|"&"FY"&RIGHT(L$13,2),Datastore!$G:$G)*$T44+SUMIF(Datastore!$A:$A,$Q44&$R44&"|"&$U44&"|"&L$14&"|"&"FY"&RIGHT(L$13,2),Datastore!$G:$G)*$V44+SUMIF(Datastore!$A:$A,$Q44&$R44&"|"&$W44&"|"&L$14&"|"&"FY"&RIGHT(L$13,2),Datastore!$G:$G)*$X44+SUMIF(Datastore!$A:$A,$Q44&$R44&"|"&$Y44&"|"&L$14&"|"&"FY"&RIGHT(L$13,2),Datastore!$G:$G)*$Z44+SUMIF(Datastore!$A:$A,$Q44&$R44&"|"&$AA44&"|"&L$14&"|"&"FY"&RIGHT(L$13,2),Datastore!$G:$G)*$AB44)/1000 -> 46191.41943 | Q44: ?? | R44: ? | S44: EPRO | T44: 1 | V44: 0 | X44: 0 | Z44: 0 | AB44: 0
C46: Retained earnings for year | E46: $'000 | F46: =F42-F44 -> 125559.3415 | G46: 123465.5301 | H46: 67904.14344 | I46: 62214.49661 | J46: 63772.43565 | K46: 70258.0106 | L46: =L42-L44 -> 71343.80761
C47: Retained earnings brought forward | E47: $'000 | H47: =G49 -> -27236.82 | I47: =H49 -> 40667.32344 | J47: =I49 -> 102881.8201 | K47: =J49 -> 166654.2557 | L47: =K49 -> 236912.2663
C48: Movement in retained earnings | E48: $'000 | H48: =H46 -> 67904.14344 | I48: =I46 -> 62214.49661 | J48: =J46 -> 63772.43565 | K48: =K46 -> 70258.0106 | L48: =L46 -> 71343.80761
C49: Retained earnings carried forward | E49: $'000 | G49: -27236.82 | H49: =H47+H48 -> 40667.32344 | I49: =I47+I48 -> 102881.8201 | J49: =J47+J48 -> 166654.2557 | K49: =K47+K48 -> 236912.2663 | L49: =L47+L48 -> 308256.0739
Q50: ?? | R50: ? | S50: R??? | T50: -1
Q51: ?? | R51: ? | S51: E??? | T51: -1
M621: ='5.1.7'!M29 -> 0 | N621: ='5.1.7'!S29 -> 0 | O621: ='5.1.7'!T29 -> 0 | P621: ='5.1.7'!U29 -> 0 | Q621: ='5.1.7'!V29 -> 0 | R621: ='5.1.7'!W29 -> 0 | S621: ='5.1.7'!X29 -> 0 | T621: ='5.1.7'!Y29 -> 0 | U621: ='5.1.7'!Z29 -> 0 | V621: ='5.1.7'!AA29 -> 0 | W621: ='5.1.7'!AB29 -> 0 | X621: ='5.1.7'!#REF! -> 

Sheet 5.1.2
B4: ='Business Details'!$B$4 -> SEQ INTERIM REVENUE MONITORING - INFORMATION REQUIREMENT TEMPLATE
B7: =CONCATENATE("Consolidated Statement for ",'Business Details'!$D$9) -> Consolidated Statement for Queensland Urban Utilities
B8: =CONCATENATE("Reporting year = ",AnalysisYear) -> Reporting year = 2013
F12: ='5.1.1'!F12 -> For Year Ending 30 June: | N12: ='5.1.1'!N12 -> For Year Ending 30 June 2013:
C13: ='5.1.1'!C13 -> Account heading | F13: ='5.1.1'!F13 -> 2009 | G13: ='5.1.1'!G13 -> 2010 | H13: ='5.1.1'!H13 -> 2011 | I13: ='5.1.1'!I13 -> 2012 | J13: ='5.1.1'!J13 -> 2013 | K13: ='5.1.1'!K13 -> 2014 | L13: ='5.1.1'!L13 -> 2015 | N13: Ledger Code | O13: Relevant Notes | P13: Supporting Documents
C15: Current Assets
C17: Cash | E17: $'000 | G17: 9005.647 | H17: 77532.24603 | I17: 76951.57587 | J17: 65397.6979 | K17: 81860.56744 | L17: 68986.87211
C18: Receivables | E18: $'000 | G18: 13771.94209 | H18: 25101.61792 | I18: 20487.34755 | J18: 21289.23438 | K18: 22368.503 | L18: 24189.77661
C19: Other Current Assets | E19: $'000 | G19: 827.621 | H19: 150809.2614 | I19: 127680.8487 | J19: 143748.4906 | K19: 160359.3579 | L19: 175562.136
C20: Total Current Assets | E20: $'000 | F20: =SUM(F17:F19) -> 0 | G20: 35836.78009 | H20: 253443.1253 | I20: =SUM(I17:I19) -> 225119.7721 | J20: =SUM(J17:J19) -> 230435.4228 | K20: 264588.4283 | L20: 268738.7847
C22: Non-Current Assets
C24: Property, plant and equipment | E24: $'000 | G24: 4246878.929 | H24: 4337505.292 | I24: 4524405.378 | J24: 4825591.076 | K24: 5227912.973 | L24: 5628553.581
C25: Deferred tax assets | E25: $'000 | G25: 11602.871 | H25: 12408.146 | I25: 18747.32224 | J25: 23758.52577 | K25: 29073.95264 | L25: 34727.38045
C26: Other Non Current Assests | E26: $'000 | H26: 1091 | I26: 1091 | J26: 1091 | K26: 1091 | L26: 1091
C27: Total non-current assets | E27: $'000 | F27: =SUM(F24:F26) -> 0 | G27: 4246878.929 | H27: 4351004.438 | I27: =SUM(I24:I26) -> 4544243.701 | J27: =SUM(J24:J26) -> 4850440.601 | K27: 5258077.926 | L27: 5664371.961
C29: TOTAL ASSETS | E29: $'000 | F29: =F27+F20 -> 0 | G29: 4282715.709 | H29: 4604447.563 | I29: =I27+I20 -> 4769363.473 | J29: =J27+J20 -> 5080876.024 | K29: 5522666.354 | L29: 5933110.746
C31: Current Liabilities
C33: Payables | E33: $'000 | G33: 54904.23915 | H33: 118613.0431 | I33: 113100 | J33: 126600 | K33: 150600 | L33: 161400
C34: Interest-bearing liabilities | E34: $'000
C35: Current tax liabilities | E35: $'000 | G35: 0 | H35: 14229.779 | I35: 9962.525159 | J35: 8874.669206 | K35: 10316.63744 | L35: 9266.988499
C36: Provisions | E36: $'000 | G36: 31423.9256 | H36: 77774.20604 | I36: 74379.86582 | J36: 72431.16839 | K36: 80350.99588 | L36: 75162.80581
C37: Other Current Liabilities | E37: $'000 | G37: 2764.82557 | H37: 16543.06766 | I37: 16560.0605 | J37: 16528.74207 | K37: 16528.74207 | L37: 16528.74207
C38: Total current Liabilities | E38: $'000 | F38: =SUM(F33:F37) -> 0 | G38: 88653.947 | H38: 227160.0958 | I38: =SUM(I33:I37) -> 214002.4515 | J38: =SUM(J33:J37) -> 224434.5797 | K38: 257796.3754 | L38: 262358.5364
C40: Non-Current Liabilities
C42: Payables | E42: $'000
C43: Interest-bearing liabilities | E43: $'000 | G43: 1681437.676 | H43: 1774987.802 | I43: 1874987.802 | J43: 1984987.802 | K43: 2184987.802 | L43: 2369987.802
C44: Non current tax liabilities | E44: $'000 | G44: 0 | H44: 20939.316 | I44: 36798.68973 | J44: 53479.88973 | K44: 71597.72822 | L44: 90555.44291
C45: Provisions | E45: $'000
C46: Other Non Current Liabilities | E46: $'000 | G46: 0 | H46: 1900 | I46: 1900 | J46: 1900 | K46: 1900 | L46: 1900
C47: Total Non-Current Liabilities | E47: $'000 | F47: =SUM(F42:F46) -> 0 | G47: 1682505.419 | H47: 1797827.118 | I47: =SUM(I42:I46) -> 1913686.491 | J47: 2040367.691 | K47: 2258485.53 | L47: =SUM(L42:L46) -> 2462443.245
C49: TOTAL LIABILITIES | E49: $'000 | F49: =F47+F38 -> 0 | G49: 1771159.366 | H49: 2024987.214 | I49: =I47+I38 -> 2127688.943 | J49: 2264802.271 | K49: 2516281.905 | L49: =L47+L38 -> 2724801.781
C51: NET ASSETS/(LIABILITIES) | E51: $'000 | F51: =F29-F49 -> 0 | G51: 2511556.343 | H51: 2579460.35 | I51: =I29-I49 -> 2641674.53 | J51: 2816073.753 | K51: 3006384.449 | L51: =L29-L49 -> 3208308.965
C53: Shareholders Equity
C55: Share Capital | E55: $'000 | G55: 2538793.155 | H55: 2538793.155 | I55: 2538793.155 | J55: 2538793.155 | K55: 2538793.155 | L55: 2538793.155
C56: Reserves | E56: $'000 | G56: 0 | H56: 0 | I56: 0 | J56: 110626.7876 | K56: 230679.4711 | L56: 361260.1781
C57: Retained earnings | E57: $'000 | F57: ='5.1.1'!F49 -> 0 | G57: ='5.1.1'!G49 -> -27236.82 | H57: ='5.1.1'!H49 -> 40667.32344 | I57: ='5.1.1'!I49 -> 102881.8201 | J57: ='5.1.1'!J49 -> 166654.2557 | K57: ='5.1.1'!K49 -> 236912.2663 | L57: ='5.1.1'!L49 -> 308256.0739
C59: TOTAL SHAREHOLDERS EQUITY | E59: $'000 | F59: =SUM(F55:F57) -> 0 | G59: 2511556.335 | H59: 2579460.478 | I59: =SUM(I55:I57) -> 2641674.975 | J59: 2816074.198 | K59: 3006384.892 | L59: =SUM(L55:L57) -> 3208309.407
M630: ='5.1.7'!M29 -> 0 | N630: ='5.1.7'!S29 -> 0 | O630: ='5.1.7'!T29 -> 0 | P630: ='5.1.7'!U29 -> 0 | Q630: ='5.1.7'!V29 -> 0 | R630: ='5.1.7'!W29 -> 0 | S630: ='5.1.7'!X29 -> 0

Sheet 5.1.3
B4: ='Business Details'!$B$4 -> SEQ INTERIM REVENUE MONITORING - INFORMATION REQUIREMENT TEMPLATE
B7: =CONCATENATE("Consolidated Statement for ",'Business Details'!$D$9) -> Consolidated Statement for Queensland Urban Utilities
B8: =CONCATENATE("Reporting year = ",AnalysisYear) -> Reporting year = 2013
F11: 0 | G11: 1 | H11: 2 | I11: 3 | J11: 4
F12: ='5.1.2'!F12 -> For Year Ending 30 June: | N12: ='5.1.1'!N12 -> For Year Ending 30 June 2013:
C13: ='5.1.2'!C13 -> Account heading | F13: ='5.1.2'!F13 -> 2009 | G13: ='5.1.2'!G13 -> 2010 | H13: ='5.1.2'!H13 -> 2011 | I13: ='5.1.2'!I13 -> 2012 | J13: ='5.1.2'!J13 -> 2013 | K13: ='5.1.2'!K13 -> 2014 | L13: ='5.1.2'!L13 -> 2015 | N13: ='5.1.2'!O13 -> Relevant Notes | O13: ='5.1.2'!P13 -> Supporting Documents
C15: Cash flows from operating activities
C17: Receipts from customers | E17: $'000 | H17: 637479.7488 | I17: 766314.2389 | J17: 825991.534 | K17: 895068.7227 | L17: 971993.7008
C18: Payments to suppliers and employees | E18: $'000 | H18: -414997.8756 | I18: -488918.1486 | J18: -542676.2116 | K18: -603225.4452 | L18: -665162.0725
C19: Cash flow arising from restructuring | E19: $'000
C20: Cash movement in other assets and liabilites | E20: $'000 | H20: -8663.00067 | I20: 10155 | J20: 0 | K20: 0 | L20: 0
C21: Net cash inflow (outflow) from operating activities | E21: $'000 | F21: =SUM(F17:F20) -> 0 | G21: 0 | H21: =SUM(H17:H20) -> 213818.8725 | I21: 287551.0903 | J21: =SUM(J17:J20) -> 283315.3224 | K21: 291843.2775 | L21: 306831.6282
C23: Cash flow from investing activities
E24: $'000
C25: Payments for property, plant and equipment | E25: $'000 | H25: -120228.6879 | I25: -257379.1246 | J25: -267220.0598 | K25: -334657.812 | L25: -351820.7843
C26: Net movement in loans and advances | E26: $'000
C27: Proceeds from sale of property, plant and equipment | E27: $'000
C28: Interest received | E28: $'000 | H28: 321.07604 | I28: 600 | J28: 350 | K28: 0 | L28: 0
C29: Cash capital revenues | E29: $'000 | H29: 28853 | I29: 91900 | J29: 78577.41908 | K29: 86226.36191 | L29: 89666.39638
C30: Net cash inflow (outflow) from investing activities | E30: $'000 | F30: =SUM(F25:F29) -> 0 | G30: 0 | H30: =SUM(H25:H29) -> -91054.61185 | I30: -164879.1246 | J30: =SUM(J25:J29) -> -188292.6407 | K30: -248431.4501 | L30: -262154.3879
C32: Cash flow from financing activities
C34: Proceeds from borrowings | E34: $'000 | H34: 93550.12541 | I34: 100000 | J34: 110000 | K34: 200000 | L34: 185000
C35: Repayments of borrowings | E35: $'000
C36: Finance costs | E36: $'000 | H36: -102377.775 | I36: -121099.2322 | J36: -128953.5274 | K36: -138041.3061 | L36: -151353.7232
C37: Dividends/TER | E37: $'000 | H37: -45410.012 | I37: -102153.4038 | J37: -87623.03224 | K37: -88907.65172 | L37: -91197.21243
C38: Net cash inflow (outflow) from financing activities | E38: $'000 | F38: =SUM(F34:F37) -> 0 | G38: 0 | H38: =SUM(H34:H37) -> -54237.66164 | I38: -123252.6359 | J38: =SUM(J34:J37) -> -106576.5597 | K38: -26948.95787 | L38: -57550.93564
C40: Net increase (decrease) in cash held | E40: $'000
C42: Cash at beginning of reporting period | E42: $'000 | G42: =F44 -> 0 | H42: 9005.647 | I42: 77532.24603 | J42: =I44 -> 76951.57587 | K42: =J44 -> 65397.6979 | L42: =K44 -> 81860.56744
C44: Cash at end of reporting period | E44: $'000 | F44: =F38+F30+F21+F42 -> 0 | G44: 0 | H44: =H38+H30+H21+H42 -> 77532.24603 | I44: 76951.57587 | J44: =J38+J30+J21+J42 -> 65397.6979 | K44: 81860.56744 | L44: 68986.87211
M633: ='5.1.7'!M29 -> 0 | N633: ='5.1.7'!S29 -> 0 | O633: ='5.1.7'!T29 -> 0 | P633: ='5.1.7'!U29 -> 0

Sheet 5.1.4
B4: ='Business Details'!$B$4 -> SEQ INTERIM REVENUE MONITORING - INFORMATION REQUIREMENT TEMPLATE
B7: =CONCATENATE("Regulatory Adjustment Journals for ",'Business Details'!$D$9) -> Regulatory Adjustment Journals for Queensland Urban Utilities
B8: =CONCATENATE("Reporting year = ",AnalysisYear) -> Reporting year = 2013
F11: ='5.1.1'!N12 -> For Year Ending 30 June 2013: | J11: 2013
B12: Journal Number | C12: Account Debited | F12: Profit and Loss Statement | H12: Balance Sheet | J12: V5
D13: Account Credited | F13: Debit | G13: Credit | H13: Debit | I13: Credit | K13: Dist | L13: Prod | M13: Item1 | N13: Sign | O13: Item2 | P13: sign | Q13: Item3 | R13: Sign | S13: Item4 | T13: sign
B15: 1 | C15: Non-regulated services revenue | E15: $'000 | F15: =J15 -> 1269.05 | J15: =(SUMIF(Datastore!$A:$A,$K15&$L15&"|"&$M15&"|"&J$12&"|"&"FY"&RIGHT(J$11,2),Datastore!$G:$G)*$N15+SUMIF(Datastore!$A:$A,$K15&$L15&"|"&$O15&"|"&J$12&"|"&"FY"&RIGHT(J$11,2),Datastore!$G:$G)*$P15+SUMIF(Datastore!$A:$A,$K15&$L15&"|"&$Q15&"|"&J$12&"|"&"FY"&RIGHT(J$11,2),Datastore!$G:$G)*$R15+SUMIF(Datastore!$A:$A,$K15&$L15&"|"&$S15&"|"&J$12&"|"&"FY"&RIGHT(J$11,2),Datastore!$G:$G)*$T15)/1000 -> 1269.05 | K15: ?? | L15: 4 | M15: R* | N15: -1 | P15: 0 | R15: 0 | T15: 0
B16: 1 | D16: Regulatory adjustments | E16: $'000 | G16: =J15 -> 1269.05
C18: Remove non-regulated revenue from regulatory accounts
B21: 2 | C21: Regulatory adjustments | E21: $'000 | F21: =J21 -> 1106.578561 | J21: =(SUMIF(Datastore!$A:$A,$K21&$L21&"|"&$M21&"|"&J$12&"|"&"FY"&RIGHT(J$11,2),Datastore!$G:$G)*$N21+SUMIF(Datastore!$A:$A,$K21&$L21&"|"&$O21&"|"&J$12&"|"&"FY"&RIGHT(J$11,2),Datastore!$G:$G)*$P21+SUMIF(Datastore!$A:$A,$K21&$L21&"|"&$Q21&"|"&J$12&"|"&"FY"&RIGHT(J$11,2),Datastore!$G:$G)*$R21+SUMIF(Datastore!$A:$A,$K21&$L21&"|"&$S21&"|"&J$12&"|"&"FY"&RIGHT(J$11,2),Datastore!$G:$G)*$T21)/1000 -> 1106.578561 | K21: ?? | L21: 4 | M21: E* | N21: 1 | O21: EDEP | P21: -1 | Q21: EI?? | R21: -1 | S21: ETAX | T21: -1
B22: 2 | D22: Non-regulated services operating costs | E22: $'000 | G22: =J21 -> 1106.578561
B24: 2 | C24: Remove non-regulated operating costs from regulatory accounts
B27: 3 | C27: Regulatory depreciation | E27: $'000 | F27: =SUM(J27:J28) -> 24992.31764 | J27: =(SUMIF(Datastore!$A:$A,$K27&$L27&"|"&$M27&"|"&J$12&"|"&"FY"&RIGHT(J$11,2),Datastore!$G:$G)*$N27+SUMIF(Datastore!$A:$A,$K27&$L27&"|"&$O27&"|"&J$12&"|"&"FY"&RIGHT(J$11,2),Datastore!$G:$G)*$P27+SUMIF(Datastore!$A:$A,$K27&$L27&"|"&$Q27&"|"&J$12&"|"&"FY"&RIGHT(J$11,2),Datastore!$G:$G)*$R27+SUMIF(Datastore!$A:$A,$K27&$L27&"|"&$S27&"|"&J$12&"|"&"FY"&RIGHT(J$11,2),Datastore!$G:$G)*$T27)/1000 -> -154772.0004 | K27: ?? | L27: ? | M27: EDEP | N27: -1 | O27: x | P27: 0 | Q27: x | R27: 0 | S27: x | T27: 0
B28: 3 | D28: Regulatory adjustment | E28: $'000 | G28: =SUM(J27:J28) -> 24992.31764 | J28: =(SUMIF(Datastore!$A:$A,$K28&$L28&"|"&$M28&"|"&J$12&"|"&"FY"&RIGHT(J$11,2),Datastore!$G:$G)*$N28+SUMIF(Datastore!$A:$A,$K28&$L28&"|"&$O28&"|"&J$12&"|"&"FY"&RIGHT(J$11,2),Datastore!$G:$G)*$P28+SUMIF(Datastore!$A:$A,$K28&$L28&"|"&$Q28&"|"&J$12&"|"&"FY"&RIGHT(J$11,2),Datastore!$G:$G)*$R28+SUMIF(Datastore!$A:$A,$K28&$L28&"|"&$S28&"|"&J$12&"|"&"FY"&RIGHT(J$11,2),Datastore!$G:$G)*$T28)/1000 -> 179764.318 | K28: ?? | L28: ? | M28: K?ED | N28: -1 | O28: x | P28: 0 | Q28: x | R28: 0 | S28: x | T28: 0
C30: Reversal of current period accounting depreciation charge with regulatory annual charge
B33: 4 | C33: Accounting loss on disposal | E33: $'000 | F33: =J33 -> 6264 | J33: =(SUMIF(Datastore!$A:$A,$K33&$L33&"|"&$M33&"|"&J$12&"|"&"FY"&RIGHT(J$11,2),Datastore!$G:$G)*$N33+SUMIF(Datastore!$A:$A,$K33&$L33&"|"&$O33&"|"&J$12&"|"&"FY"&RIGHT(J$11,2),Datastore!$G:$G)*$P33+SUMIF(Datastore!$A:$A,$K33&$L33&"|"&$Q33&"|"&J$12&"|"&"FY"&RIGHT(J$11,2),Datastore!$G:$G)*$R33+SUMIF(Datastore!$A:$A,$K33&$L33&"|"&$S33&"|"&J$12&"|"&"FY"&RIGHT(J$11,2),Datastore!$G:$G)*$T33)/1000 -> 6264 | K33: ?? | L33: ? | M33: ELOD | N33: 1 | O33: x | P33: 0 | Q33: x | R33: 0 | S33: x | T33: 0
B34: 4 | D34: Regulatory adjustment | E34: $'000 | G34: =J33 -> 6264
C36: Reversal of accounting disposal
B39: 5 | C39: PPE - Opening Infrastructure Balance | E39: $'000 | H39: 229859.5739
B40: 5 | D40: Retained Earnings | E40: $'000 | I40: 229859.5739
C42: Previous year differences between accounting and regulatory accounts
B45: 6 | C45: PPE - Revaluation | E45: $'000 | H45: =SUM(J45:J46) -> 5347.882215 | J45: =(SUMIF(Datastore!$A:$A,$K45&$L45&"|"&$M45&"|"&J$12&"|"&"FY"&RIGHT(J$11,2),Datastore!$G:$G)*$N45+SUMIF(Datastore!$A:$A,$K45&$L45&"|"&$O45&"|"&J$12&"|"&"FY"&RIGHT(J$11,2),Datastore!$G:$G)*$P45+SUMIF(Datastore!$A:$A,$K45&$L45&"|"&$Q45&"|"&J$12&"|"&"FY"&RIGHT(J$11,2),Datastore!$G:$G)*$R45+SUMIF(Datastore!$A:$A,$K45&$L45&"|"&$S45&"|"&J$12&"|"&"FY"&RIGHT(J$11,2),Datastore!$G:$G)*$T45)/1000 -> -110626.7876 | K45: ?? | L45: ? | M45: B?EI | N45: -1 | O45: x | P45: 0 | Q45: x | R45: 0 | S45: x | T45: 0
B46: 6 | D46: Revaluation Reserve | E46: $'000 | I46: =SUM(J45:J46) -> 5347.882215 | J46: =(SUMIF(Datastore!$A:$A,$K46&$L46&"|"&$M46&"|"&J$12&"|"&"FY"&RIGHT(J$11,2),Datastore!$G:$G)*$N46+SUMIF(Datastore!$A:$A,$K46&$L46&"|"&$O46&"|"&J$12&"|"&"FY"&RIGHT(J$11,2),Datastore!$G:$G)*$P46+SUMIF(Datastore!$A:$A,$K46&$L46&"|"&$Q46&"|"&J$12&"|"&"FY"&RIGHT(J$11,2),Datastore!$G:$G)*$R46+SUMIF(Datastore!$A:$A,$K46&$L46&"|"&$S46&"|"&J$12&"|"&"FY"&RIGHT(J$11,2),Datastore!$G:$G)*$T46)/1000 -> 115974.6698 | K46: ?? | L46: ? | M46: K?EI | N46: 1 | O46: x | P46: 0 | Q46: x | R46: 0 | S46: x | T46: 0
C48: Difference between revaluation in accounting and regulatory accounts
B51: 7 | C51: Retained Earnings | E51: $'000 | H51: =SUM(J51:J52) -> 9365.065051 | J51: =-(SUMIF(Datastore!$A:$A,$K51&$L51&"|"&$M51&"|"&J$12&"|"&"FY"&RIGHT(J$11,2),Datastore!$G:$G)*$N51+SUMIF(Datastore!$A:$A,$K51&$L51&"|"&$O51&"|"&J$12&"|"&"FY"&RIGHT(J$11,2),Datastore!$G:$G)*$P51+SUMIF(Datastore!$A:$A,$K51&$L51&"|"&$Q51&"|"&J$12&"|"&"FY"&RIGHT(J$11,2),Datastore!$G:$G)*$R51+SUMIF(Datastore!$A:$A,$K51&$L51&"|"&$S51&"|"&J$12&"|"&"FY"&RIGHT(J$11,2),Datastore!$G:$G)*$T51)/1000 -> 363605.115 | K51: ?? | L51: ? | M51: B?EA | N51: -1 | O51: ELOD | P51: -1 | Q51: x | R51: 0 | S51: x | T51: 0
B52: 7 | D52: PPE - Additions | E52: $'000 | I52: =SUM(J51:J52) -> 9365.065051 | J52: =(SUMIF(Datastore!$A:$A,$K52&$L52&"|"&$M52&"|"&J$12&"|"&"FY"&RIGHT(J$11,2),Datastore!$G:$G)*$N52+SUMIF(Datastore!$A:$A,$K52&$L52&"|"&$O52&"|"&J$12&"|"&"FY"&RIGHT(J$11,2),Datastore!$G:$G)*$P52+SUMIF(Datastore!$A:$A,$K52&$L52&"|"&$Q52&"|"&J$12&"|"&"FY"&RIGHT(J$11,2),Datastore!$G:$G)*$R52+SUMIF(Datastore!$A:$A,$K52&$L52&"|"&$S52&"|"&J$12&"|"&"FY"&RIGHT(J$11,2),Datastore!$G:$G)*$T52)/1000 -> -354240.0499 | K52: ?? | L52: ? | M52: K?EA | N52: -1 | O52: x | P52: 0 | Q52: x | R52: 0 | S52: x | T52: 0
C54: Difference between additions in accounting and regulatory accounts
B57: 8 | C57: Retained Earnings | E57: $'000 | H57: =SUM(J57:J58) -> 24992.31764 | J57: =(SUMIF(Datastore!$A:$A,$K57&$L57&"|"&$M57&"|"&J$12&"|"&"FY"&RIGHT(J$11,2),Datastore!$G:$G)*$N57+SUMIF(Datastore!$A:$A,$K57&$L57&"|"&$O57&"|"&J$12&"|"&"FY"&RIGHT(J$11,2),Datastore!$G:$G)*$P57+SUMIF(Datastore!$A:$A,$K57&$L57&"|"&$Q57&"|"&J$12&"|"&"FY"&RIGHT(J$11,2),Datastore!$G:$G)*$R57+SUMIF(Datastore!$A:$A,$K57&$L57&"|"&$S57&"|"&J$12&"|"&"FY"&RIGHT(J$11,2),Datastore!$G:$G)*$T57)/1000 -> -154772.0004 | K57: ?? | L57: ? | M57: EDEP | N57: -1 | O57: x | P57: 0 | Q57: x | R57: 0 | S57: x | T57: 0
B58: 8 | D58: PPE - Depreciation | E58: $'000 | I58: =SUM(J57:J58) -> 24992.31764 | J58: =(SUMIF(Datastore!$A:$A,$K58&$L58&"|"&$M58&"|"&J$12&"|"&"FY"&RIGHT(J$11,2),Datastore!$G:$G)*$N58+SUMIF(Datastore!$A:$A,$K58&$L58&"|"&$O58&"|"&J$12&"|"&"FY"&RIGHT(J$11,2),Datastore!$G:$G)*$P58+SUMIF(Datastore!$A:$A,$K58&$L58&"|"&$Q58&"|"&J$12&"|"&"FY"&RIGHT(J$11,2),Datastore!$G:$G)*$R58+SUMIF(Datastore!$A:$A,$K58&$L58&"|"&$S58&"|"&J$12&"|"&"FY"&RIGHT(J$11,2),Datastore!$G:$G)*$T58)/1000 -> 179764.318 | K58: ?? | L58: ? | M58: K?ED | N58: -1 | O58: x | P58: 0 | Q58: x | R58: 0 | S58: x | T58: 0
C60: Difference between depreciation in accounting and regulatory accounts
B63: 9 | C63: PPE - Disposals | E63: $'000 | H63: =SUM(J63:J64) -> 6264 | J63: =(SUMIF(Datastore!$A:$A,$K63&$L63&"|"&$M63&"|"&J$12&"|"&"FY"&RIGHT(J$11,2),Datastore!$G:$G)*$N63+SUMIF(Datastore!$A:$A,$K63&$L63&"|"&$O63&"|"&J$12&"|"&"FY"&RIGHT(J$11,2),Datastore!$G:$G)*$P63+SUMIF(Datastore!$A:$A,$K63&$L63&"|"&$Q63&"|"&J$12&"|"&"FY"&RIGHT(J$11,2),Datastore!$G:$G)*$R63+SUMIF(Datastore!$A:$A,$K63&$L63&"|"&$S63&"|"&J$12&"|"&"FY"&RIGHT(J$11,2),Datastore!$G:$G)*$T63)/1000 -> 6264 | K63: ?? | L63: ? | M63: ELOD | N63: 1 | O63: x | P63: 0 | Q63: x | R63: 0 | S63: x | T63: 0
B64: 9 | D64: Retained Earnings | E64: $'000 | I64: =SUM(J63:J64) -> 6264 | J64: =(SUMIF(Datastore!$A:$A,$K64&$L64&"|"&$M64&"|"&J$12&"|"&"FY"&RIGHT(J$11,2),Datastore!$G:$G)*$N64+SUMIF(Datastore!$A:$A,$K64&$L64&"|"&$O64&"|"&J$12&"|"&"FY"&RIGHT(J$11,2),Datastore!$G:$G)*$P64+SUMIF(Datastore!$A:$A,$K64&$L64&"|"&$Q64&"|"&J$12&"|"&"FY"&RIGHT(J$11,2),Datastore!$G:$G)*$R64+SUMIF(Datastore!$A:$A,$K64&$L64&"|"&$S64&"|"&J$12&"|"&"FY"&RIGHT(J$11,2),Datastore!$G:$G)*$T64)/1000 -> 0 | K64: ?? | L64: ? | M64: K?EX | N64: 1 | O64: x | P64: 0 | Q64: x | R64: 0 | S64: x | T64: 0
C66: Difference between disposals in accounting and regulatory accounts
B69: 10 | C69: PPE - WIP | E69: $'000 | H69: 40590.45663
B70: 10 | D70: Reserve | E70: $'000 | I70: 40590.45663
C72: Difference between accounting and regulatory WIP
J73: =H39+H45-I52-I58+H63+H69 -> 247704.53 | K73: Check
J74: 247704.53
M666: ='5.1.7'!M29 -> 0 | N666: ='5.1.7'!S29 -> 0 | O666: ='5.1.7'!T29 -> 0 | P666: ='5.1.7'!U29 -> 0 | Q666: ='5.1.7'!V29 -> 0 | R666: ='5.1.7'!W29 -> 0 | S666: ='5.1.7'!X29 -> 0 | T666: ='5.1.7'!Y29 -> 0 | U666: ='5.1.7'!Z29 -> 0 | V666: ='5.1.7'!AA29 -> 0

Sheet 5.1.5
B4: ='Business Details'!$B$4 -> SEQ INTERIM REVENUE MONITORING - INFORMATION REQUIREMENT TEMPLATE
B7: =CONCATENATE("Regulatory Adjustments for ",'Business Details'!$D$9) -> Regulatory Adjustments for Queensland Urban Utilities
B8: =CONCATENATE("Reporting year = ",AnalysisYear) -> Reporting year = 2013
F11: =CONCATENATE("For Year Ending 30 June ",AnalysisYear) -> For Year Ending 30 June 2013
C12: Account heading | F12: Consolidated Statement Value | G12: Regulatory Adjustments | H12: Regulatory Value | J12: Journal Reference
C14: Revenues
C15: Revenue from services | E15: $'000 | F15: ='5.1.1'!J16 -> 835939.7621 | G15: ='5.1.4'!F15 -> 1269.05 | H15: =F15-G15 -> 834670.7121 | J15: 1
C16: Investment income | E16: $'000 | F16: ='5.1.1'!J17 -> 350 | H16: =F16-G16 -> 350
C17: Net profit / (loss) from sale of regulatory assets | E17: $'000 | F17: ='5.1.1'!J18 -> -6264 | G17: =-'5.1.4'!F33 -> -6264 | H17: 0 | J17: 4
C18: Net profit / (loss) from sale of unregulated assets | E18: $'000 | F18: ='5.1.1'!J19 -> 0 | H18: 0
C19: Contributions | E19: $'000 | F19: ='5.1.1'!J20 -> 137689.0609 | H19: 137689.0609
C20: ='5.1.1'!C21 -> Non-recurrent | E20: $'000 | F20: ='5.1.1'!J21 -> 5500 | H20: 5500
C21: ='5.1.1'!C22 -> Other 2 - [specify] | E21: $'000 | F21: ='5.1.1'!J22 -> 0 | H21: 0
C22: Total Revenue | E22: $'000 | F22: ='5.1.1'!J23 -> 973214.823 | G22: =SUM(G15:G21) -> -4994.95 | H22: =SUM(H15:H21) -> 978209.773
C24: Expenses
C25: Operating expenditure | E25: $'000 | F25: ='5.1.1'!J26 -> 534203.3614 | G25: ='5.1.4'!G22 -> 1106.578561 | H25: =F25-G25 -> 533096.7828 | J25: 2
C26: Bad debts | E26: $'000 | F26: ='5.1.1'!J27 -> 2086.34128 | H26: =F26-G26 -> 2086.34128
C27: ='5.1.1'!C28 -> Non-recurrent | E27: $'000 | F27: ='5.1.1'!J28 -> 0 | H27: =F27-G27 -> 0
C28: ='5.1.1'!C29 -> Other 2 - [specify] | E28: $'000 | F28: ='5.1.1'!J29 -> 0 | H28: =F28-G28 -> 0
C29: Total Expenses | E29: $'000 | F29: ='5.1.1'!J30 -> 536289.7027 | G29: =SUM(G25:G28) -> 1106.578561 | H29: =SUM(H25:H28) -> 535183.1241
C31: EBITDA | E31: $'000 | F31: ='5.1.1'!J32 -> 436925.1204 | G31: =G22-G29 -> -6101.528561 | H31: =H22-H29 -> 443026.6489
C33: Depreciation | E33: $'000 | F33: ='5.1.1'!J34 -> 154772.0004 | G33: =-'5.1.4'!F27 -> -24992.31764 | H33: =F33-G33 -> 179764.318 | J33: 3
C34: Earnings Before Interest, Tax and Amortisation | E34: $'000 | F34: ='5.1.1'!J35 -> 282153.12 | G34: =G31-G33 -> 18890.78908 | H34: =H31-H33 -> 263262.3309
C36: Borrowing costs | E36: $'000 | F36: ='5.1.1'!J37 -> 124924.209 | H36: =F36-G36 -> 124924.209
C37: Profit/Loss Before Tax | E37: $'000 | F37: ='5.1.1'!J38 -> 157228.911 | G37: =G34-G36 -> 18890.78908 | H37: =H34-H36 -> 138338.1219
C39: Tax Expense | E39: $'000 | F39: ='5.1.1'!J40 -> 47168.67329 | H39: =F39-G39 -> 47168.67329
C41: Profit/Loss After Tax | E41: $'000 | F41: ='5.1.1'!J42 -> 110060.2377 | G41: =G37-G39 -> 18890.78908 | H41: =H37-H39 -> 91169.4486

Sheet 5.1.6
B4: ='Business Details'!$B$4 -> SEQ INTERIM REVENUE MONITORING - INFORMATION REQUIREMENT TEMPLATE
B7: =CONCATENATE("Regulatory Adjustments for ",'Business Details'!$D$9) -> Regulatory Adjustments for Queensland Urban Utilities
B8: =CONCATENATE("Reporting year = ",AnalysisYear) -> Reporting year = 2013
F11: ='5.1.1'!N12 -> For Year Ending 30 June 2013:
C12: ='5.1.7'!C12 -> Account heading | F12: Consolidated Statement Value | G12: Regulatory Adjustments | H12: Regulatory Value | J12: Journal Reference
C14: Current Assets
C16: Cash | E16: $'000 | F16: ='5.1.2'!J17 -> 65397.6979 | H16: =F16-G16 -> 65397.6979
C17: Receivables | E17: $'000 | F17: ='5.1.2'!J18 -> 21289.23438 | H17: =F17-G17 -> 21289.23438
C18: Other | E18: $'000 | F18: ='5.1.2'!J19 -> 143748.4906 | H18: =F18-G18 -> 143748.4906
C19: Total Current Assets | E19: $'000 | F19: ='5.1.2'!J20 -> 230435.4228 | G19: =SUM(G16:G18) -> 0 | H19: =SUM(H16:H18) -> 230435.4228
C21: Non-Current Assets
C23: Property, plant and equipment | E23: $'000 | F23: ='5.1.2'!J24 -> 4825591.076 | G23: =-('5.1.4'!H39+'5.1.4'!H45-'5.1.4'!I52-'5.1.4'!I58+'5.1.4'!H63+'5.1.4'!H69) -> -247704.53 | H23: =F23-G23 -> 5073295.606 | J23: 5, 6, 7, 8, 9, 10
C24: Deferred tax assets | E24: $'000 | F24: ='5.1.2'!J25 -> 23758.52577 | H24: =F24-G24 -> 23758.52577
C25: Other | E25: $'000 | F25: ='5.1.2'!J26 -> 1091 | H25: =F25-G25 -> 1091
C26: Total non-current assets | E26: $'000 | F26: ='5.1.2'!J27 -> 4850440.601 | G26: =SUM(G23:G25) -> -247704.53 | H26: =SUM(H23:H25) -> 5098145.131
C28: TOTAL ASSETS | E28: $'000 | F28: ='5.1.2'!J29 -> 5080876.024 | G28: =G26+G19 -> -247704.53 | H28: =H26+H19 -> 5328580.554
C30: Current Liabilities
C32: Payables | E32: $'000 | F32: ='5.1.2'!J33 -> 126600 | H32: =F32-G32 -> 126600
C33: Interest-bearing liabilities | E33: $'000 | F33: ='5.1.2'!J34 -> 0 | H33: =F33-G33 -> 0
C34: Current tax liabilities | E34: $'000 | F34: ='5.1.2'!J35 -> 8874.669206 | H34: =F34-G34 -> 8874.669206
C35: Provisions | E35: $'000 | F35: ='5.1.2'!J36 -> 72431.16839 | H35: =F35-G35 -> 72431.16839
C36: Other | E36: $'000 | F36: ='5.1.2'!J37 -> 16528.74207 | H36: =F36-G36 -> 16528.74207
C37: Total current Liabilities | E37: $'000 | F37: ='5.1.2'!J38 -> 224434.5797 | G37: =SUM(G32:G36) -> 0 | H37: =SUM(H32:H36) -> 224434.5797
C39: Non-Current Liabilities
C41: Payables | E41: $'000 | F41: ='5.1.2'!J42 -> 0 | H41: =F41-G41 -> 0
C42: Intrest-bearing liabilities | E42: $'000 | F42: ='5.1.2'!J43 -> 1984987.802 | H42: =F42-G42 -> 1984987.802
C43: Current tax liabilities | E43: $'000 | F43: ='5.1.2'!J44 -> 53479.88973 | H43: =F43-G43 -> 53479.88973
C44: Provisions | E44: $'000 | F44: ='5.1.2'!J45 -> 0 | H44: =F44-G44 -> 0
C45: Other | E45: $'000 | F45: ='5.1.2'!J46 -> 1900 | H45: =F45-G45 -> 1900
C46: Total Non-Current Liabilities | E46: $'000 | F46: ='5.1.2'!J47 -> 2040367.691 | G46: =SUM(G41:G45) -> 0 | H46: =SUM(H41:H45) -> 2040367.691
C48: TOTAL LIABILITIES | E48: $'000 | F48: ='5.1.2'!J49 -> 2264802.271 | G48: =G46+G37 -> 0 | H48: =H46+H37 -> 2264802.271
C50: NET ASSETS/(LIABILITIES) | E50: $'000 | F50: ='5.1.2'!J51 -> 2816073.753 | G50: =G28-G48 -> -247704.53 | H50: =H28-H48 -> 3063778.283
C52: Shareholders Equity
C54: Share Capital | E54: $'000 | F54: ='5.1.2'!J55 -> 2538793.155 | H54: =F54-G54 -> 2538793.155
C55: Reserves | E55: $'000 | F55: ='5.1.2'!J56 -> 110626.7876 | G55: =-'5.1.4'!I46 -> -5347.882215 | H55: =F55-G55 -> 115974.6698 | J55: 6
C56: Retained earnings | E56: $'000 | F56: ='5.1.2'!J57 -> 166654.2557 | G56: =-('5.1.4'!I40-'5.1.4'!H51-'5.1.4'!H57+'5.1.4'!I64+'5.1.4'!I70) -> -242356.6478 | H56: =F56-G56 -> 409010.9035 | J56: 5, 7, 8, 9, 10
F57: ='5.1.2'!J58 -> 0
C58: TOTAL SHAREHOLDERS EQUITY | E58: $'000 | F58: ='5.1.2'!J59 -> 2816074.198 | G58: =SUM(G54:G56) -> -247704.53 | H58: =SUM(H54:H56) -> 3063778.728

Sheet 5.1.7
B4: ='Business Details'!$B$4 -> SEQ INTERIM REVENUE MONITORING - INFORMATION REQUIREMENT TEMPLATE
B7: =CONCATENATE("Regulatory Values for ",'Business Details'!$D$9) -> Regulatory Values for Queensland Urban Utilities
B8: =CONCATENATE("Reporting year = ",AnalysisYear) -> Reporting year = 2013
F11: For Year Ending 30 June: | M11: 2009 | N11: 2010 | O11: 2011 | P11: 2012 | R11: 2014 | S11: 2015
C12: Account heading | E12: Numeration | F12: ='5.1.1'!F13 -> 2009 | G12: ='5.1.1'!G13 -> 2010 | H12: ='5.1.1'!H13 -> 2011 | I12: ='5.1.1'!I13 -> 2012 | J12: ='5.1.1'!J13 -> 2013 | K12: ='5.1.1'!K13 -> 2014 | L12: ='5.1.1'!L13 -> 2015 | M12: V5 | N12: V5 | O12: V5 | P12: V5 | R12: V5 | S12: V5 | AE12: =AD12 -> 
T13: Dist | U13: Prod | V13: Item1 | W13: Sign | X13: Item2 | Y13: sign | Z13: Item3 | AA13: Sign | AB13: Item4 | AC13: sign | AD13: Notes:
C14: Revenues
C15: Revenue from services | E15: $'000 | F15: ='5.1.1'!F16-M15 -> 566670.6191 | G15: ='5.1.1'!G16-N15 -> 643851.514 | H15: ='5.1.1'!H16-O15 -> 703256.4267 | I15: ='5.1.1'!I16-P15 -> 780050.0116 | J15: ='5.1.5'!H15 -> 834670.7121 | K15: ='5.1.1'!K16-R15 -> 910764.7336 | L15: ='5.1.1'!L16-S15 -> 989437.7892 | M15: =(SUMIF(Datastore!$A:$A,$T15&$U15&"|"&$V15&"|"&M$12&"|"&"FY"&RIGHT(M$11,2),Datastore!$G:$G)*$W15+SUMIF(Datastore!$A:$A,$T15&$U15&"|"&$X15&"|"&M$12&"|"&"FY"&RIGHT(M$11,2),Datastore!$G:$G)*$Y15+SUMIF(Datastore!$A:$A,$T15&$U15&"|"&$Z15&"|"&M$12&"|"&"FY"&RIGHT(M$11,2),Datastore!$G:$G)*$AA15+SUMIF(Datastore!$A:$A,$T15&$U15&"|"&$AB15&"|"&M$12&"|"&"FY"&RIGHT(M$11,2),Datastore!$G:$G)*$AC15)/1000 -> 16576.78383 | N15: =(SUMIF(Datastore!$A:$A,$T15&$U15&"|"&$V15&"|"&N$12&"|"&"FY"&RIGHT(N$11,2),Datastore!$G:$G)*$W15+SUMIF(Datastore!$A:$A,$T15&$U15&"|"&$X15&"|"&N$12&"|"&"FY"&RIGHT(N$11,2),Datastore!$G:$G)*$Y15+SUMIF(Datastore!$A:$A,$T15&$U15&"|"&$Z15&"|"&N$12&"|"&"FY"&RIGHT(N$11,2),Datastore!$G:$G)*$AA15+SUMIF(Datastore!$A:$A,$T15&$U15&"|"&$AB15&"|"&N$12&"|"&"FY"&RIGHT(N$11,2),Datastore!$G:$G)*$AC15)/1000 -> 15815.07126 | O15: =(SUMIF(Datastore!$A:$A,$T15&$U15&"|"&$V15&"|"&O$12&"|"&"FY"&RIGHT(O$11,2),Datastore!$G:$G)*$W15+SUMIF(Datastore!$A:$A,$T15&$U15&"|"&$X15&"|"&O$12&"|"&"FY"&RIGHT(O$11,2),Datastore!$G:$G)*$Y15+SUMIF(Datastore!$A:$A,$T15&$U15&"|"&$Z15&"|"&O$12&"|"&"FY"&RIGHT(O$11,2),Datastore!$G:$G)*$AA15+SUMIF(Datastore!$A:$A,$T15&$U15&"|"&$AB15&"|"&O$12&"|"&"FY"&RIGHT(O$11,2),Datastore!$G:$G)*$AC15)/1000 -> 15022.11371 | P15: =(SUMIF(Datastore!$A:$A,$T15&$U15&"|"&$V15&"|"&P$12&"|"&"FY"&RIGHT(P$11,2),Datastore!$G:$G)*$W15+SUMIF(Datastore!$A:$A,$T15&$U15&"|"&$X15&"|"&P$12&"|"&"FY"&RIGHT(P$11,2),Datastore!$G:$G)*$Y15+SUMIF(Datastore!$A:$A,$T15&$U15&"|"&$Z15&"|"&P$12&"|"&"FY"&RIGHT(P$11,2),Datastore!$G:$G)*$AA15+SUMIF(Datastore!$A:$A,$T15&$U15&"|"&$AB15&"|"&P$12&"|"&"FY"&RIGHT(P$11,2),Datastore!$G:$G)*$AC15)/1000 -> 1327.441 | Q15: =(SUMIF(Datastore!$A:$A,$T15&$U15&"|"&$V15&"|"&Q$12&"|"&"FY"&RIGHT(Q$11,2),Datastore!$G:$G)*$W15+SUMIF(Datastore!$A:$A,$T15&$U15&"|"&$X15&"|"&Q$12&"|"&"FY"&RIGHT(Q$11,2),Datastore!$G:$G)*$Y15+SUMIF(Datastore!$A:$A,$T15&$U15&"|"&$Z15&"|"&Q$12&"|"&"FY"&RIGHT(Q$11,2),Datastore!$G:$G)*$AA15+SUMIF(Datastore!$A:$A,$T15&$U15&"|"&$AB15&"|"&Q$12&"|"&"FY"&RIGHT(Q$11,2),Datastore!$G:$G)*$AC15)/1000 -> 0 | R15: =(SUMIF(Datastore!$A:$A,$T15&$U15&"|"&$V15&"|"&R$12&"|"&"FY"&RIGHT(R$11,2),Datastore!$G:$G)*$W15+SUMIF(Datastore!$A:$A,$T15&$U15&"|"&$X15&"|"&R$12&"|"&"FY"&RIGHT(R$11,2),Datastore!$G:$G)*$Y15+SUMIF(Datastore!$A:$A,$T15&$U15&"|"&$Z15&"|"&R$12&"|"&"FY"&RIGHT(R$11,2),Datastore!$G:$G)*$AA15+SUMIF(Datastore!$A:$A,$T15&$U15&"|"&$AB15&"|"&R$12&"|"&"FY"&RIGHT(R$11,2),Datastore!$G:$G)*$AC15)/1000 -> 1510.1695 | S15: =(SUMIF(Datastore!$A:$A,$T15&$U15&"|"&$V15&"|"&S$12&"|"&"FY"&RIGHT(S$11,2),Datastore!$G:$G)*$W15+SUMIF(Datastore!$A:$A,$T15&$U15&"|"&$X15&"|"&S$12&"|"&"FY"&RIGHT(S$11,2),Datastore!$G:$G)*$Y15+SUMIF(Datastore!$A:$A,$T15&$U15&"|"&$Z15&"|"&S$12&"|"&"FY"&RIGHT(S$11,2),Datastore!$G:$G)*$AA15+SUMIF(Datastore!$A:$A,$T15&$U15&"|"&$AB15&"|"&S$12&"|"&"FY"&RIGHT(S$11,2),Datastore!$G:$G)*$AC15)/1000 -> 1600.77967 | T15: ?? | U15: 4 | V15: R* | W15: -1 | Y15: 0 | AA15: 0 | AC15: 0 | AD15: Removes non-regulated services
C16: Investment income | E16: $'000 | F16: ='5.1.1'!F17-M16 -> 600 | G16: ='5.1.1'!G17-N16 -> 499.88915 | H16: ='5.1.1'!H17-O16 -> 321.07604 | I16: ='5.1.1'!I17-P16 -> 600 | J16: ='5.1.5'!H16 -> 350 | K16: ='5.1.1'!K17-R16 -> 0 | L16: ='5.1.1'!L17-S16 -> 0
C17: Net profit / (loss) from sale of regulatory assets | E17: $'000 | F17: ='5.1.1'!F18-M17 -> -10355.176 | G17: ='5.1.1'!G18-N17 -> -16706.4425 | H17: ='5.1.1'!H18-O17 -> 0 | I17: ='5.1.1'!I18-P17 -> 0 | J17: ='5.1.5'!H17 -> 0 | K17: ='5.1.1'!K18-R17 -> 0 | L17: ='5.1.1'!L18-S17 -> 0 | O17: =24669+(SUMIF(Datastore!$A:$A,$T17&$U17&"|"&$V17&"|"&O$12&"|"&"FY"&RIGHT(O$11,2),Datastore!$G:$G)*$W17+SUMIF(Datastore!$A:$A,$T17&$U17&"|"&$X17&"|"&O$12&"|"&"FY"&RIGHT(O$11,2),Datastore!$G:$G)*$Y17+SUMIF(Datastore!$A:$A,$T17&$U17&"|"&$Z17&"|"&O$12&"|"&"FY"&RIGHT(O$11,2),Datastore!$G:$G)*$AA17+SUMIF(Datastore!$A:$A,$T17&$U17&"|"&$AB17&"|"&O$12&"|"&"FY"&RIGHT(O$11,2),Datastore!$G:$G)*$AC17)/1000 -> -5456.72693 | P17: =(SUMIF(Datastore!$A:$A,$T17&$U17&"|"&$V17&"|"&P$12&"|"&"FY"&RIGHT(P$11,2),Datastore!$G:$G)*$W17+SUMIF(Datastore!$A:$A,$T17&$U17&"|"&$X17&"|"&P$12&"|"&"FY"&RIGHT(P$11,2),Datastore!$G:$G)*$Y17+SUMIF(Datastore!$A:$A,$T17&$U17&"|"&$Z17&"|"&P$12&"|"&"FY"&RIGHT(P$11,2),Datastore!$G:$G)*$AA17+SUMIF(Datastore!$A:$A,$T17&$U17&"|"&$AB17&"|"&P$12&"|"&"FY"&RIGHT(P$11,2),Datastore!$G:$G)*$AC17)/1000 -> -8164 | Q17: =(SUMIF(Datastore!$A:$A,$T17&$U17&"|"&$V17&"|"&Q$12&"|"&"FY"&RIGHT(Q$11,2),Datastore!$G:$G)*$W17+SUMIF(Datastore!$A:$A,$T17&$U17&"|"&$X17&"|"&Q$12&"|"&"FY"&RIGHT(Q$11,2),Datastore!$G:$G)*$Y17+SUMIF(Datastore!$A:$A,$T17&$U17&"|"&$Z17&"|"&Q$12&"|"&"FY"&RIGHT(Q$11,2),Datastore!$G:$G)*$AA17+SUMIF(Datastore!$A:$A,$T17&$U17&"|"&$AB17&"|"&Q$12&"|"&"FY"&RIGHT(Q$11,2),Datastore!$G:$G)*$AC17)/1000 -> 0 | R17: =(SUMIF(Datastore!$A:$A,$T17&$U17&"|"&$V17&"|"&R$12&"|"&"FY"&RIGHT(R$11,2),Datastore!$G:$G)*$W17+SUMIF(Datastore!$A:$A,$T17&$U17&"|"&$X17&"|"&R$12&"|"&"FY"&RIGHT(R$11,2),Datastore!$G:$G)*$Y17+SUMIF(Datastore!$A:$A,$T17&$U17&"|"&$Z17&"|"&R$12&"|"&"FY"&RIGHT(R$11,2),Datastore!$G:$G)*$AA17+SUMIF(Datastore!$A:$A,$T17&$U17&"|"&$AB17&"|"&R$12&"|"&"FY"&RIGHT(R$11,2),Datastore!$G:$G)*$AC17)/1000 -> 0 | S17: =(SUMIF(Datastore!$A:$A,$T17&$U17&"|"&$V17&"|"&S$12&"|"&"FY"&RIGHT(S$11,2),Datastore!$G:$G)*$W17+SUMIF(Datastore!$A:$A,$T17&$U17&"|"&$X17&"|"&S$12&"|"&"FY"&RIGHT(S$11,2),Datastore!$G:$G)*$Y17+SUMIF(Datastore!$A:$A,$T17&$U17&"|"&$Z17&"|"&S$12&"|"&"FY"&RIGHT(S$11,2),Datastore!$G:$G)*$AA17+SUMIF(Datastore!$A:$A,$T17&$U17&"|"&$AB17&"|"&S$12&"|"&"FY"&RIGHT(S$11,2),Datastore!$G:$G)*$AC17)/1000 -> 0 | T17: ?? | U17: ? | V17: ELOD | W17: -1 | X17: x | Y17: 0 | Z17: x | AA17: 0 | AB17: x | AC17: 0 | AD17: Removes non-flood related loss on disposals
C19: Contributions | E19: $'000 | F19: ='5.1.1'!F20-M19 -> 156359.9257 | G19: ='5.1.1'!G20-N19 -> 187134.2084 | H19: ='5.1.1'!H20-O19 -> 142531.2591 | I19: ='5.1.1'!I20-P19 -> 115910.3665 | J19: ='5.1.5'!H19 -> 137689.0609 | K19: ='5.1.1'!K20-R19 -> 149380.0242 | L19: ='5.1.1'!L20-S19 -> 153311.5568
C20: ='5.1.1'!C21 -> Non-recurrent | E20: $'000 | F20: ='5.1.1'!F21-M20 -> 0 | G20: ='5.1.1'!G21-N20 -> 0 | H20: ='5.1.1'!H21-O20 -> -13875.49276 | I20: ='5.1.1'!I21-P20 -> 20 | J20: ='5.1.5'!H20 -> 5500 | K20: ='5.1.1'!K21-R20 -> 0 | L20: ='5.1.1'!L21-S20 -> 0 | O20: =25571-24669 -> 902
C21: ='5.1.1'!C22 -> Other 2 - [specify] | E21: $'000 | F21: ='5.1.1'!F22-M21 -> 0 | G21: ='5.1.1'!G22-N21 -> 0 | H21: ='5.1.1'!H22-O21 -> 0 | I21: ='5.1.1'!I22-P21 -> 0 | J21: ='5.1.5'!H21 -> 0 | K21: ='5.1.1'!K22-R21 -> 0 | L21: ='5.1.1'!L22-S21 -> 0
C22: Total Revenue | E22: $'000 | F22: =SUM(F15:F21) -> 713275.3688 | G22: 814779.1691 | H22: 832233.269 | I22: =SUM(I15:I21) -> 896580.378 | J22: =SUM(J15:J21) -> 978209.773 | K22: 1060144.758 | L22: 1142749.346
C24: Expenses
C25: Operating expenditure | E25: $'000 | F25: ='5.1.1'!F26-M25 -> 269844.5798 | G25: ='5.1.1'!G26-N25 -> 345858.3563 | H25: ='5.1.1'!H26-O25 -> 379362.1964 | I25: ='5.1.1'!I26-P25 -> 458140.0957 | J25: ='5.1.5'!H25 -> 533096.7828 | K25: ='5.1.1'!K26-R25 -> 578057.6927 | L25: ='5.1.1'!L26-S25 -> 643788.7007 | M25: =(SUMIF(Datastore!$A:$A,$T25&$U25&"|"&$V25&"|"&M$12&"|"&"FY"&RIGHT(M$11,2),Datastore!$G:$G)*$W25+SUMIF(Datastore!$A:$A,$T25&$U25&"|"&$X25&"|"&M$12&"|"&"FY"&RIGHT(M$11,2),Datastore!$G:$G)*$Y25+SUMIF(Datastore!$A:$A,$T25&$U25&"|"&$Z25&"|"&M$12&"|"&"FY"&RIGHT(M$11,2),Datastore!$G:$G)*$AA25+SUMIF(Datastore!$A:$A,$T25&$U25&"|"&$AB25&"|"&M$12&"|"&"FY"&RIGHT(M$11,2),Datastore!$G:$G)*$AC25)/1000 -> 13782.4234 | N25: =(SUMIF(Datastore!$A:$A,$T25&$U25&"|"&$V25&"|"&N$12&"|"&"FY"&RIGHT(N$11,2),Datastore!$G:$G)*$W25+SUMIF(Datastore!$A:$A,$T25&$U25&"|"&$X25&"|"&N$12&"|"&"FY"&RIGHT(N$11,2),Datastore!$G:$G)*$Y25+SUMIF(Datastore!$A:$A,$T25&$U25&"|"&$Z25&"|"&N$12&"|"&"FY"&RIGHT(N$11,2),Datastore!$G:$G)*$AA25+SUMIF(Datastore!$A:$A,$T25&$U25&"|"&$AB25&"|"&N$12&"|"&"FY"&RIGHT(N$11,2),Datastore!$G:$G)*$AC25)/1000 -> 14031.13772 | O25: =(SUMIF(Datastore!$A:$A,$T25&$U25&"|"&$V25&"|"&O$12&"|"&"FY"&RIGHT(O$11,2),Datastore!$G:$G)*$W25+SUMIF(Datastore!$A:$A,$T25&$U25&"|"&$X25&"|"&O$12&"|"&"FY"&RIGHT(O$11,2),Datastore!$G:$G)*$Y25+SUMIF(Datastore!$A:$A,$T25&$U25&"|"&$Z25&"|"&O$12&"|"&"FY"&RIGHT(O$11,2),Datastore!$G:$G)*$AA25+SUMIF(Datastore!$A:$A,$T25&$U25&"|"&$AB25&"|"&O$12&"|"&"FY"&RIGHT(O$11,2),Datastore!$G:$G)*$AC25)/1000 -> 11866.3567 | P25: =(SUMIF(Datastore!$A:$A,$T25&$U25&"|"&$V25&"|"&P$12&"|"&"FY"&RIGHT(P$11,2),Datastore!$G:$G)*$W25+SUMIF(Datastore!$A:$A,$T25&$U25&"|"&$X25&"|"&P$12&"|"&"FY"&RIGHT(P$11,2),Datastore!$G:$G)*$Y25+SUMIF(Datastore!$A:$A,$T25&$U25&"|"&$Z25&"|"&P$12&"|"&"FY"&RIGHT(P$11,2),Datastore!$G:$G)*$AA25+SUMIF(Datastore!$A:$A,$T25&$U25&"|"&$AB25&"|"&P$12&"|"&"FY"&RIGHT(P$11,2),Datastore!$G:$G)*$AC25)/1000 -> 1107.602359 | Q25: =(SUMIF(Datastore!$A:$A,$T25&$U25&"|"&$V25&"|"&Q$12&"|"&"FY"&RIGHT(Q$11,2),Datastore!$G:$G)*$W25+SUMIF(Datastore!$A:$A,$T25&$U25&"|"&$X25&"|"&Q$12&"|"&"FY"&RIGHT(Q$11,2),Datastore!$G:$G)*$Y25+SUMIF(Datastore!$A:$A,$T25&$U25&"|"&$Z25&"|"&Q$12&"|"&"FY"&RIGHT(Q$11,2),Datastore!$G:$G)*$AA25+SUMIF(Datastore!$A:$A,$T25&$U25&"|"&$AB25&"|"&Q$12&"|"&"FY"&RIGHT(Q$11,2),Datastore!$G:$G)*$AC25)/1000 -> 0 | R25: =(SUMIF(Datastore!$A:$A,$T25&$U25&"|"&$V25&"|"&R$12&"|"&"FY"&RIGHT(R$11,2),Datastore!$G:$G)*$W25+SUMIF(Datastore!$A:$A,$T25&$U25&"|"&$X25&"|"&R$12&"|"&"FY"&RIGHT(R$11,2),Datastore!$G:$G)*$Y25+SUMIF(Datastore!$A:$A,$T25&$U25&"|"&$Z25&"|"&R$12&"|"&"FY"&RIGHT(R$11,2),Datastore!$G:$G)*$AA25+SUMIF(Datastore!$A:$A,$T25&$U25&"|"&$AB25&"|"&R$12&"|"&"FY"&RIGHT(R$11,2),Datastore!$G:$G)*$AC25)/1000 -> 1148.759 | S25: =(SUMIF(Datastore!$A:$A,$T25&$U25&"|"&$V25&"|"&S$12&"|"&"FY"&RIGHT(S$11,2),Datastore!$G:$G)*$W25+SUMIF(Datastore!$A:$A,$T25&$U25&"|"&$X25&"|"&S$12&"|"&"FY"&RIGHT(S$11,2),Datastore!$G:$G)*$Y25+SUMIF(Datastore!$A:$A,$T25&$U25&"|"&$Z25&"|"&S$12&"|"&"FY"&RIGHT(S$11,2),Datastore!$G:$G)*$AA25+SUMIF(Datastore!$A:$A,$T25&$U25&"|"&$AB25&"|"&S$12&"|"&"FY"&RIGHT(S$11,2),Datastore!$G:$G)*$AC25)/1000 -> 1189.325 | T25: ?? | U25: 4 | V25: E* | W25: 1 | X25: EDEP | Y25: -1 | Z25: EI?? | AA25: -1 | AB25: ETAX | AC25: -1 | AD25: Removes items added below
C26: Bad debts | E26: $'000 | F26: ='5.1.1'!F27-M26 -> -387.48629 | G26: ='5.1.1'!G27-N26 -> -500.42571 | H26: ='5.1.1'!H27-O26 -> 3515.423 | I26: ='5.1.1'!I27-P26 -> 3816.684 | J26: ='5.1.5'!H26 -> 2086.34128 | K26: ='5.1.1'!K27-R26 -> 2276.911834 | L26: ='5.1.1'!L27-S26 -> 2473.594473
C27: ='5.1.1'!C28 -> Non-recurrent | E27: $'000 | F27: ='5.1.1'!F28-M27 -> 0 | G27: ='5.1.1'!G28-N27 -> 0 | H27: ='5.1.1'!H28-O27 -> 10773.65822 | I27: ='5.1.1'!I28-P27 -> 3980.659 | J27: ='5.1.5'!H27 -> 0 | K27: ='5.1.1'!K28-R27 -> 0 | L27: ='5.1.1'!L28-S27 -> 0
C28: ='5.1.1'!C29 -> Other 2 - [specify] | E28: $'000 | F28: ='5.1.1'!F29-M28 -> 0 | G28: ='5.1.1'!G29-N28 -> 0 | H28: ='5.1.1'!H29-O28 -> 0 | I28: ='5.1.1'!I29-P28 -> 0 | J28: ='5.1.5'!H28 -> 0 | K28: ='5.1.1'!K29-R28 -> 0 | L28: ='5.1.1'!L29-S28 -> 0
C29: Total Expenses | E29: $'000 | F29: =SUM(F25:F28) -> 269457.0935 | G29: 345357.9306 | H29: 393651.2776 | I29: =SUM(I25:I28) -> 465937.4387 | J29: =SUM(J25:J28) -> 535183.1241 | K29: 580334.6045 | L29: 646262.2952 | AC29: =Allocation!$K$151 -> 0.8554872922
AC30: =Allocation!$K$151 -> 0.8554872922
C31: EBITDA | E31: $'000 | F31: =F22-F29 -> 443818.2752 | G31: 469421.2384 | H31: 438581.9914 | I31: =I22-I29 -> 430642.9394 | J31: =J22-J29 -> 443026.6489 | K31: 479810.1533 | L31: 496487.0508
C33: Depreciation | E33: $'000 | F33: ='5.1.1'!F34-M33 -> 137546.4979 | G33: ='5.1.1'!G34-N33 -> 142676.6807 | H33: ='5.1.1'!H34-O33 -> 160327.9876 | I33: ='5.1.1'!I34-P33 -> 167547.6295 | J33: ='5.1.5'!H33 -> 179764.318 | K33: ='5.1.1'!K34-R33 -> 196849.0424 | L33: ='5.1.1'!L34-S33 -> 216144.3484 | M33: =(SUMIF(Datastore!$A:$A,$T33&$U33&"|"&$V33&"|"&M$12&"|"&"FY"&RIGHT(M$11,2),Datastore!$G:$G)*$W33+SUMIF(Datastore!$A:$A,$T33&$U33&"|"&$X33&"|"&M$12&"|"&"FY"&RIGHT(M$11,2),Datastore!$G:$G)*$Y33+SUMIF(Datastore!$A:$A,$T33&$U33&"|"&$Z33&"|"&M$12&"|"&"FY"&RIGHT(M$11,2),Datastore!$G:$G)*$AA33+SUMIF(Datastore!$A:$A,$T33&$U33&"|"&$AB33&"|"&M$12&"|"&"FY"&RIGHT(M$11,2),Datastore!$G:$G)*$AC33)/1000 -> 3720.331087 | N33: =(SUMIF(Datastore!$A:$A,$T33&$U33&"|"&$V33&"|"&N$12&"|"&"FY"&RIGHT(N$11,2),Datastore!$G:$G)*$W33+SUMIF(Datastore!$A:$A,$T33&$U33&"|"&$X33&"|"&N$12&"|"&"FY"&RIGHT(N$11,2),Datastore!$G:$G)*$Y33+SUMIF(Datastore!$A:$A,$T33&$U33&"|"&$Z33&"|"&N$12&"|"&"FY"&RIGHT(N$11,2),Datastore!$G:$G)*$AA33+SUMIF(Datastore!$A:$A,$T33&$U33&"|"&$AB33&"|"&N$12&"|"&"FY"&RIGHT(N$11,2),Datastore!$G:$G)*$AC33)/1000 -> 355.5030204 | O33: =(SUMIF(Datastore!$A:$A,$T33&$U33&"|"&$V33&"|"&O$12&"|"&"FY"&RIGHT(O$11,2),Datastore!$G:$G)*$W33+SUMIF(Datastore!$A:$A,$T33&$U33&"|"&$X33&"|"&O$12&"|"&"FY"&RIGHT(O$11,2),Datastore!$G:$G)*$Y33+SUMIF(Datastore!$A:$A,$T33&$U33&"|"&$Z33&"|"&O$12&"|"&"FY"&RIGHT(O$11,2),Datastore!$G:$G)*$AA33+SUMIF(Datastore!$A:$A,$T33&$U33&"|"&$AB33&"|"&O$12&"|"&"FY"&RIGHT(O$11,2),Datastore!$G:$G)*$AC33)/1000 -> -24932.16325 | P33: =(SUMIF(Datastore!$A:$A,$T33&$U33&"|"&$V33&"|"&P$12&"|"&"FY"&RIGHT(P$11,2),Datastore!$G:$G)*$W33+SUMIF(Datastore!$A:$A,$T33&$U33&"|"&$X33&"|"&P$12&"|"&"FY"&RIGHT(P$11,2),Datastore!$G:$G)*$Y33+SUMIF(Datastore!$A:$A,$T33&$U33&"|"&$Z33&"|"&P$12&"|"&"FY"&RIGHT(P$11,2),Datastore!$G:$G)*$AA33+SUMIF(Datastore!$A:$A,$T33&$U33&"|"&$AB33&"|"&P$12&"|"&"FY"&RIGHT(P$11,2),Datastore!$G:$G)*$AC33)/1000 -> -26032.73694 | Q33: =(SUMIF(Datastore!$A:$A,$T33&$U33&"|"&$V33&"|"&Q$12&"|"&"FY"&RIGHT(Q$11,2),Datastore!$G:$G)*$W33+SUMIF(Datastore!$A:$A,$T33&$U33&"|"&$X33&"|"&Q$12&"|"&"FY"&RIGHT(Q$11,2),Datastore!$G:$G)*$Y33+SUMIF(Datastore!$A:$A,$T33&$U33&"|"&$Z33&"|"&Q$12&"|"&"FY"&RIGHT(Q$11,2),Datastore!$G:$G)*$AA33+SUMIF(Datastore!$A:$A,$T33&$U33&"|"&$AB33&"|"&Q$12&"|"&"FY"&RIGHT(Q$11,2),Datastore!$G:$G)*$AC33)/1000 -> 0 | R33: =(SUMIF(Datastore!$A:$A,$T33&$U33&"|"&$V33&"|"&R$12&"|"&"FY"&RIGHT(R$11,2),Datastore!$G:$G)*$W33+SUMIF(Datastore!$A:$A,$T33&$U33&"|"&$X33&"|"&R$12&"|"&"FY"&RIGHT(R$11,2),Datastore!$G:$G)*$Y33+SUMIF(Datastore!$A:$A,$T33&$U33&"|"&$Z33&"|"&R$12&"|"&"FY"&RIGHT(R$11,2),Datastore!$G:$G)*$AA33+SUMIF(Datastore!$A:$A,$T33&$U33&"|"&$AB33&"|"&R$12&"|"&"FY"&RIGHT(R$11,2),Datastore!$G:$G)*$AC33)/1000 -> -30519.65438 | S33: =(SUMIF(Datastore!$A:$A,$T33&$U33&"|"&$V33&"|"&S$12&"|"&"FY"&RIGHT(S$11,2),Datastore!$G:$G)*$W33+SUMIF(Datastore!$A:$A,$T33&$U33&"|"&$X33&"|"&S$12&"|"&"FY"&RIGHT(S$11,2),Datastore!$G:$G)*$Y33+SUMIF(Datastore!$A:$A,$T33&$U33&"|"&$Z33&"|"&S$12&"|"&"FY"&RIGHT(S$11,2),Datastore!$G:$G)*$AA33+SUMIF(Datastore!$A:$A,$T33&$U33&"|"&$AB33&"|"&S$12&"|"&"FY"&RIGHT(S$11,2),Datastore!$G:$G)*$AC33)/1000 -> -33383.03411 | T33: ?? | U33: ? | V33: K?ED | W33: 1 | X33: EDEP | Y33: 1 | Z33: x | AA33: 0 | AB33: x | AC33: 0 | AD33: Difference between accounting and regulatory depreciation
C34: Earnings Before Interest, Tax and Amortisation | E34: $'000 | F34: =F31-F33 -> 306271.7774 | G34: 326744.5578 | H34: 278254.0037 | I34: =I31-I33 -> 263095.3098 | J34: =J31-J33 -> 263262.3309 | K34: 282961.1109 | L34: 280342.7023
C36: Borrowing costs | E36: $'000 | F36: ='5.1.1'!F37-M36 -> 139103.9472 | G36: ='5.1.1'!G37-N36 -> 141085.7422 | H36: ='5.1.1'!H37-O36 -> 111476.1726 | I36: ='5.1.1'!I37-P36 -> 116616.225 | J36: ='5.1.5'!H36 -> 124924.209 | K36: ='5.1.1'!K37-R36 -> 133612.3061 | L36: ='5.1.1'!L37-S36 -> 146229.7232
C37: Profit/Loss Before Tax | E37: $'000 | F37: =F34-F36 -> 167167.8301 | G37: 185658.8155 | H37: 166777.8311 | I37: =I34-I36 -> 146479.0848 | J37: =J34-J36 -> 138338.1219 | K37: 149348.8048 | L37: 134112.9791
C39: Tax Expense | E39: $'000 | F39: ='5.1.1'!F40-M39 -> 40682.518 | G39: ='5.1.1'!G40-N39 -> 63621.71598 | H39: ='5.1.1'!H40-O39 -> 58285.832 | I39: ='5.1.1'!I40-P39 -> 49370.298 | J39: ='5.1.5'!H39 -> 47168.67329 | K39: ='5.1.1'!K40-R39 -> 54068.96138 | L39: ='5.1.1'!L40-S39 -> 50372.24087
C41: Profit/Loss After Tax | E41: $'000 | F41: =F37-F39 -> 126485.3121 | G41: 122037.0995 | H41: =H37-H39 -> 108491.9991 | I41: =I37-I39 -> 97108.78685 | J41: =J37-J39 -> 91169.4486 | K41: =K37-K39 -> 95279.84341 | L41: 83740.73826
C43: Dividend paid | E43: $'000 | F43: ='5.1.1'!F44-M43 -> 0 | G43: ='5.1.1'!G44-N43 -> 0 | H43: ='5.1.1'!H44-O43 -> 64121.049 | I43: ='5.1.1'!I44-P43 -> 52982.86582 | J43: ='5.1.1'!H44 -> 64121.049 | K43: ='5.1.1'!K44-R43 -> 55902.89769 | L43: ='5.1.1'!L44-S43 -> 46191.41943
C45: Retained earnings for the year | E45: $'000 | F45: =F41-F43 -> 126485.3121 | G45: 122037.0995 | H45: =H41-H43 -> 44370.95012 | I45: =I41-I43 -> 44125.92103 | J45: =J41-J43 -> 27048.3996 | K45: =K41-K43 -> 39376.94571 | L45: 37549.31883
AG102: =Allocation!$K$154 -> 0.9086594767
AG103: =Allocation!$K$154 -> 0.9086594767
AG104: =Allocation!$K$154 -> 0.9086594767
AC111: =Allocation!$K$157 -> 1
AC112: =Allocation!$K$157 -> 1
AC152: =Allocation!$K$160 -> 1
AC153: =Allocation!$K$160 -> 1
AO155: =Allocation!$K$171 -> 0.8864484231
AG160: =Allocation!$K$157 -> 1
AG161: =Allocation!$K$157 -> 1
AG162: =Allocation!$K$157 -> 1
AG182: =Allocation!K$151 -> 0.8554872922
AC193: =Allocation!$K$163 -> 1
AC194: =Allocation!$K$163 -> 1
AG218: =Allocation!$K$160 -> 1
AG219: =Allocation!$K$160 -> 1
AG220: =Allocation!$K$160 -> 1
AE245: =AD245 -> 
AO260: =Allocation!$K$174 -> 1
AG276: =Allocation!$K$163 -> 1
AG277: =Allocation!$K$163 -> 1
AG278: =Allocation!$K$163 -> 1
AO365: =Allocation!$K$177 -> 1
AO471: =Allocation!$K$180 -> 1
M666: ='5.1.7'!M29 -> 0 | N666: ='5.1.7'!S29 -> 0 | O666: ='5.1.7'!T29 -> 0 | P666: ='5.1.7'!U29 -> 0 | Q666: ='5.1.7'!V29 -> 0 | R666: ='5.1.7'!W29 -> 0 | S666: ='5.1.7'!X29 -> 0 | T666: ='5.1.7'!Y29 -> 0 | U666: ='5.1.7'!Z29 -> 0 | V666: ='5.1.7'!AA29 -> 0 | W666: ='5.1.7'!AB29 -> 0 | X666: ='5.1.7'!#REF! -> 
AG667: =Allocation!K$154 -> 0.9086594767
AG1151: =Allocation!K$157 -> 1
AG1636: =Allocation!K$160 -> 1
AG2121: =Allocation!K$163 -> 1

Sheet 5.1.8
B4: ='Business Details'!$B$4 -> SEQ INTERIM REVENUE MONITORING - INFORMATION REQUIREMENT TEMPLATE
B7: =CONCATENATE("Regulatory Values for ",'Business Details'!$D$9) -> Regulatory Values for Queensland Urban Utilities
B8: =CONCATENATE("Reporting year = ",AnalysisYear) -> Reporting year = 2013
F11: ='5.1.7'!F11 -> For Year Ending 30 June:
C12: ='5.1.7'!C12 -> Account heading | E12: ='5.1.7'!E12 -> Numeration | F12: ='5.1.7'!F12 -> 2009 | G12: ='5.1.7'!G12 -> 2010 | H12: ='5.1.7'!H12 -> 2011 | I12: ='5.1.7'!I12 -> 2012 | J12: ='5.1.7'!J12 -> 2013 | K12: ='5.1.7'!K12 -> 2014 | L12: ='5.1.7'!L12 -> 2015
C14: Current Assets
C16: Cash | E16: $'000 | G16: ='5.1.2'!G17 -> 9005.647 | H16: ='5.1.2'!H17 -> 77532.24603 | I16: ='5.1.2'!I17 -> 76951.57587 | J16: ='5.1.6'!H16 -> 65397.6979 | K16: ='5.1.2'!K17 -> 81860.56744 | L16: ='5.1.2'!L17 -> 68986.87211
C17: Receivables | E17: $'000 | G17: ='5.1.2'!G18 -> 13771.94209 | H17: ='5.1.2'!H18 -> 25101.61792 | I17: ='5.1.2'!I18 -> 20487.34755 | J17: ='5.1.6'!H17 -> 21289.23438 | K17: ='5.1.2'!K18 -> 22368.503 | L17: ='5.1.2'!L18 -> 24189.77661
C18: Other | E18: $'000 | G18: ='5.1.2'!G19 -> 827.621 | H18: ='5.1.2'!H19 -> 150809.2614 | I18: ='5.1.2'!I19 -> 127680.8487 | J18: ='5.1.6'!H18 -> 143748.4906 | K18: ='5.1.2'!K19 -> 160359.3579 | L18: ='5.1.2'!L19 -> 175562.136
C19: Total Current Assets | E19: $'000 | F19: =SUM(F16:F18) -> 0 | G19: =SUM(G16:G18) -> 23605.21009 | H19: =SUM(H16:H18) -> 253443.1253 | I19: =SUM(I16:I18) -> 225119.7721 | J19: =SUM(H16:H18) -> 253443.1253 | K19: 264588.4283 | L19: =SUM(L16:L18) -> 268738.7847
C21: Non-Current Assets
C23: Property, plant and equipment | E23: $'000 | G23: 4278931.951 | H23: 4525922.971 | I23: 4766281.662 | J23: ='5.1.6'!H23 -> 5073295.606 | K23: 5467563.065 | L23: 5854701.673
C24: Deferred tax assets | E24: $'000 | G24: ='5.1.2'!G25 -> 11602.871 | H24: ='5.1.2'!H25 -> 12408.146 | I24: ='5.1.2'!I25 -> 18747.32224 | J24: ='5.1.6'!H24 -> 23758.52577 | K24: ='5.1.2'!K25 -> 29073.95264 | L24: ='5.1.2'!L25 -> 34727.38045
C25: Other | E25: $'000 | G25: ='5.1.2'!G26 -> 0 | H25: ='5.1.2'!H26 -> 1091 | I25: ='5.1.2'!I26 -> 1091 | J25: ='5.1.6'!H25 -> 1091 | K25: ='5.1.2'!K26 -> 1091 | L25: ='5.1.2'!L26 -> 1091
C26: Total non-current assets | E26: $'000 | F26: =SUM(F23:F25) -> 0 | G26: =SUM(G23:G25) -> 4290534.822 | H26: =SUM(H23:H25) -> 4539422.117 | I26: =SUM(I23:I25) -> 4786119.985 | J26: =SUM(H23:H25) -> 4539422.117 | K26: 5497728.018 | L26: =SUM(L23:L25) -> 5890520.054
C28: TOTAL ASSETS | E28: $'000 | F28: =F26+F19 -> 0 | G28: 4314140.032 | H28: 4792865.242 | I28: =I26+I19 -> 5011239.757 | J28: =H26+H19 -> 4792865.242 | K28: 5762316.446 | L28: =L26+L19 -> 6159258.838
C30: Current Liabilities
C32: Payables | E32: $'000 | G32: ='5.1.2'!G33 -> 54904.23915 | H32: ='5.1.2'!H33 -> 118613.0431 | I32: ='5.1.2'!I33 -> 113100 | J32: ='5.1.6'!H32 -> 126600 | K32: ='5.1.2'!K33 -> 150600 | L32: ='5.1.2'!L33 -> 161400
C33: Interest-bearing liabilities | E33: $'000 | G33: ='5.1.2'!G34 -> 0 | H33: ='5.1.2'!H34 -> 0 | I33: ='5.1.2'!I34 -> 0 | J33: ='5.1.6'!H33 -> 0 | K33: ='5.1.2'!K34 -> 0 | L33: ='5.1.2'!L34 -> 0
C34: Current tax liabilities | E34: $'000 | G34: ='5.1.2'!G35 -> 0 | H34: ='5.1.2'!H35 -> 14229.779 | I34: ='5.1.2'!I35 -> 9962.525159 | J34: ='5.1.6'!H34 -> 8874.669206 | K34: ='5.1.2'!K35 -> 10316.63744 | L34: ='5.1.2'!L35 -> 9266.988499
C35: Provisions | E35: $'000 | G35: ='5.1.2'!G36 -> 31423.9256 | H35: ='5.1.2'!H36 -> 77774.20604 | I35: ='5.1.2'!I36 -> 74379.86582 | J35: ='5.1.6'!H35 -> 72431.16839 | K35: ='5.1.2'!K36 -> 80350.99588 | L35: ='5.1.2'!L36 -> 75162.80581
C36: Other | E36: $'000 | G36: ='5.1.2'!G37 -> 2764.82557 | H36: ='5.1.2'!H37 -> 16543.06766 | I36: ='5.1.2'!I37 -> 16560.0605 | J36: ='5.1.6'!H36 -> 16528.74207 | K36: ='5.1.2'!K37 -> 16528.74207 | L36: ='5.1.2'!L37 -> 16528.74207
C37: Total current Liabilities | E37: $'000 | F37: =SUM(F32:F36) -> 0 | G37: =SUM(G32:G36) -> 89092.99032 | H37: 227160.0958 | I37: 214002.4515 | J37: =SUM(H32:H36) -> 227160.0958 | K37: =SUM(K32:K36) -> 257796.3754 | L37: 262358.5364
C39: Non-Current Liabilities
C41: Payables | E41: $'000 | G41: ='5.1.2'!G42 -> 0 | H41: ='5.1.2'!H42 -> 0 | I41: ='5.1.2'!I42 -> 0 | J41: ='5.1.6'!H41 -> 0 | K41: ='5.1.2'!K42 -> 0 | L41: ='5.1.2'!L42 -> 0
C42: Intrest-bearing liabilities | E42: $'000 | G42: ='5.1.2'!G43 -> 1681437.676 | H42: ='5.1.2'!H43 -> 1774987.802 | I42: ='5.1.2'!I43 -> 1874987.802 | J42: ='5.1.6'!H42 -> 1984987.802 | K42: ='5.1.2'!K43 -> 2184987.802 | L42: ='5.1.2'!L43 -> 2369987.802
C43: Current tax liabilities | E43: $'000 | G43: ='5.1.2'!G44 -> 0 | H43: ='5.1.2'!H44 -> 20939.316 | I43: ='5.1.2'!I44 -> 36798.68973 | J43: ='5.1.6'!H43 -> 53479.88973 | K43: ='5.1.2'!K44 -> 71597.72822 | L43: ='5.1.2'!L44 -> 90555.44291
C44: Provisions | E44: $'000 | G44: ='5.1.2'!G45 -> 0 | H44: ='5.1.2'!H45 -> 0 | I44: ='5.1.2'!I45 -> 0 | J44: ='5.1.6'!H44 -> 0 | K44: ='5.1.2'!K45 -> 0 | L44: ='5.1.2'!L45 -> 0
C45: Other | E45: $'000 | G45: ='5.1.2'!G46 -> 0 | H45: ='5.1.2'!H46 -> 1900 | I45: ='5.1.2'!I46 -> 1900 | J45: ='5.1.6'!H45 -> 1900 | K45: ='5.1.2'!K46 -> 1900 | L45: ='5.1.2'!L46 -> 1900
C46: Total Non-Current Liabilities | E46: $'000 | F46: =SUM(F41:F45) -> 0 | G46: =SUM(G41:G45) -> 1681437.676 | H46: 1797827.118 | I46: =SUM(I41:I45) -> 1913686.491 | J46: =SUM(H41:H45) -> 1797827.118 | K46: 2258485.53 | L46: =SUM(L41:L45) -> 2462443.245
C48: TOTAL LIABILITIES | E48: $'000 | F48: =F46+F37 -> 0 | G48: 1770530.667 | H48: 2024987.214 | I48: =I46+I37 -> 2127688.943 | J48: =H46+H37 -> 2024987.214 | K48: 2516281.905 | L48: =L46+L37 -> 2724801.781
C50: NET ASSETS/(LIABILITIES) | E50: $'000 | F50: =F28-F48 -> 0 | G50: 2543609.365 | H50: 2767878.028 | I50: =I28-I48 -> 2883550.814 | J50: =H28-H48 -> 2767878.028 | K50: 3246034.541 | L50: =L28-L48 -> 3434457.057
C52: Shareholders Equity
C54: Share Capital | E54: $'000 | G54: ='5.1.2'!G55 -> 2538793.155 | H54: ='5.1.2'!H55 -> 2538793.155 | I54: ='5.1.2'!I55 -> 2538793.155 | J54: ='5.1.6'!H54 -> 2538793.155 | K54: ='5.1.2'!K55 -> 2538793.155 | L54: ='5.1.2'!L55 -> 2538793.155
C55: Reserves | E55: $'000 | G55: 0 | H55: 155975.6825 | I55: 59391.05757 | J55: 115974.6698 | K55: 235815.1863 | L55: 366090.5492
C56: Retained earnings | E56: $'000 | G56: 4816.208674 | H56: 73108.87328 | I56: 285366.6001 | J56: ='5.1.6'!H56 -> 409010.9035 | K56: 471426.1986 | L56: 529573.3521
C58: TOTAL SHAREHOLDERS EQUITY | E58: $'000 | F58: =SUM(F54:F56) -> 0 | G58: =SUM(G54:G56) -> 2543609.364 | H58: 2767877.711 | I58: =SUM(I54:I56) -> 2883550.813 | J58: =SUM(H54:H56) -> 2767877.711 | K58: 3246034.54 | L58: =SUM(L54:L56) -> 3434457.056
M666: ='5.1.7'!M29 -> 0 | N666: ='5.1.7'!S29 -> 0

Sheet 5.2.1
AA1: ="If revenues are smoothed beyond "&J12&", additional data is to be provided for the corresponding period. Additional years can be accessed by clicking on the '+' sign above" -> If revenues are smoothed beyond 2013, additional data is to be provided for the corresponding period. Additional years can be accessed by clicking on the '+' sign above
B4: ='Business Details'!$B$4 -> SEQ INTERIM REVENUE MONITORING - INFORMATION REQUIREMENT TEMPLATE
B7: =CONCATENATE("Revenue Details for ",'Business Details'!$D$9) -> Revenue Details for Queensland Urban Utilities
B8: =CONCATENATE("Reporting year = ",AnalysisYear) -> Reporting year = 2013
F10: 0 | G10: 1 | H10: 2 | I10: 3 | J10: 4
F11: ='5.1.7'!F11 -> For Year Ending 30 June: | AA11: =CONCATENATE("For Year Ending 30 June ",AnalysisYear) -> For Year Ending 30 June 2013
F12: ='5.1.7'!F12 -> 2009 | G12: ='5.1.7'!G12 -> 2010 | H12: ='5.1.7'!H12 -> 2011 | I12: ='5.1.7'!I12 -> 2012 | J12: ='5.1.7'!J12 -> 2013 | K12: =J12+1 -> 2014 | L12: =K12+1 -> 2015 | M12: 2016 | N12: 2017 | O12: 2018 | P12: 2019 | Q12: 2020 | R12: 2021 | S12: 2022 | T12: 2023 | U12: 2024 | V12: 2025 | W12: 2026 | X12: 2027 | Y12: 2028 | AA12: Supporting Documents | AT12: =AS12 -> 
F13: V5 | G13: V5 | H13: V5 | I13: V5 | J13: V5
B14: ="Geographical Area 1 - "&'Business Details'!$D$12 -> Geographical Area 1 - Brisbane
B16: REVENUE FROM SERVICES | AC16: Dist | AD16: Prod1 | AE16: Prod2 | AF16: Item1 | AG16: Item2 | AH16: Item3 | AI16: Item4 | AJ16: Item5 | AK16: Item6 | AL16: Sign1 | AM16: Sign2
C17: Revenue from water services:
C18: Drinking water | E18: $'000 | F18: =(SUMIF(Datastore!$A:$A,$AC18&$AD18&$AF18&"|"&F$13&"|"&"FY"&RIGHT(F$12,2),Datastore!$G:$G)*$AL18+SUMIF(Datastore!$A:$A,$AC18&$AD18&$AG18&"|"&F$13&"|"&"FY"&RIGHT(F$12,2),Datastore!$G:$G)*$AL18+SUMIF(Datastore!$A:$A,$AC18&$AD18&$AH18&"|"&F$13&"|"&"FY"&RIGHT(F$12,2),Datastore!$G:$G)*$AL18+SUMIF(Datastore!$A:$A,$AC18&$AD18&$AI18&"|"&F$13&"|"&"FY"&RIGHT(F$12,2),Datastore!$G:$G)*$AL18+SUMIF(Datastore!$A:$A,$AC18&$AD18&$AJ18&"|"&F$13&"|"&"FY"&RIGHT(F$12,2),Datastore!$G:$G)*$AM18+SUMIF(Datastore!$A:$A,$AC18&$AD18&$AK18&"|"&F$13&"|"&"FY"&RIGHT(F$12,2),Datastore!$G:$G)*$AM18)/1000 -> 220601.1017 | G18: =(SUMIF(Datastore!$A:$A,$AC18&$AD18&$AF18&"|"&G$13&"|"&"FY"&RIGHT(G$12,2),Datastore!$G:$G)*$AL18+SUMIF(Datastore!$A:$A,$AC18&$AD18&$AG18&"|"&G$13&"|"&"FY"&RIGHT(G$12,2),Datastore!$G:$G)*$AL18+SUMIF(Datastore!$A:$A,$AC18&$AD18&$AH18&"|"&G$13&"|"&"FY"&RIGHT(G$12,2),Datastore!$G:$G)*$AL18+SUMIF(Datastore!$A:$A,$AC18&$AD18&$AI18&"|"&G$13&"|"&"FY"&RIGHT(G$12,2),Datastore!$G:$G)*$AL18+SUMIF(Datastore!$A:$A,$AC18&$AD18&$AJ18&"|"&G$13&"|"&"FY"&RIGHT(G$12,2),Datastore!$G:$G)*$AM18+SUMIF(Datastore!$A:$A,$AC18&$AD18&$AK18&"|"&G$13&"|"&"FY"&RIGHT(G$12,2),Datastore!$G:$G)*$AM18)/1000 -> 258243.1647 | H18: =(SUMIF(Datastore!$A:$A,$AC18&$AD18&$AF18&"|"&H$13&"|"&"FY"&RIGHT(H$12,2),Datastore!$G:$G)*$AL18+SUMIF(Datastore!$A:$A,$AC18&$AD18&$AG18&"|"&H$13&"|"&"FY"&RIGHT(H$12,2),Datastore!$G:$G)*$AL18+SUMIF(Datastore!$A:$A,$AC18&$AD18&$AH18&"|"&H$13&"|"&"FY"&RIGHT(H$12,2),Datastore!$G:$G)*$AL18+SUMIF(Datastore!$A:$A,$AC18&$AD18&$AI18&"|"&H$13&"|"&"FY"&RIGHT(H$12,2),Datastore!$G:$G)*$AL18+SUMIF(Datastore!$A:$A,$AC18&$AD18&$AJ18&"|"&H$13&"|"&"FY"&RIGHT(H$12,2),Datastore!$G:$G)*$AM18+SUMIF(Datastore!$A:$A,$AC18&$AD18&$AK18&"|"&H$13&"|"&"FY"&RIGHT(H$12,2),Datastore!$G:$G)*$AM18)/1000 -> 278643.3761 | I18: =(SUMIF(Datastore!$A:$A,$AC18&$AD18&$AF18&"|"&I$13&"|"&"FY"&RIGHT(I$12,2),Datastore!$G:$G)*$AL18+SUMIF(Datastore!$A:$A,$AC18&$AD18&$AG18&"|"&I$13&"|"&"FY"&RIGHT(I$12,2),Datastore!$G:$G)*$AL18+SUMIF(Datastore!$A:$A,$AC18&$AD18&$AH18&"|"&I$13&"|"&"FY"&RIGHT(I$12,2),Datastore!$G:$G)*$AL18+SUMIF(Datastore!$A:$A,$AC18&$AD18&$AI18&"|"&I$13&"|"&"FY"&RIGHT(I$12,2),Datastore!$G:$G)*$AL18+SUMIF(Datastore!$A:$A,$AC18&$AD18&$AJ18&"|"&I$13&"|"&"FY"&RIGHT(I$12,2),Datastore!$G:$G)*$AM18+SUMIF(Datastore!$A:$A,$AC18&$AD18&$AK18&"|"&I$13&"|"&"FY"&RIGHT(I$12,2),Datastore!$G:$G)*$AM18)/1000 -> 328367.5311 | J18: =(SUMIF(Datastore!$A:$A,$AC18&$AD18&$AF18&"|"&J$13&"|"&"FY"&RIGHT(J$12,2),Datastore!$G:$G)*$AL18+SUMIF(Datastore!$A:$A,$AC18&$AD18&$AG18&"|"&J$13&"|"&"FY"&RIGHT(J$12,2),Datastore!$G:$G)*$AL18+SUMIF(Datastore!$A:$A,$AC18&$AD18&$AH18&"|"&J$13&"|"&"FY"&RIGHT(J$12,2),Datastore!$G:$G)*$AL18+SUMIF(Datastore!$A:$A,$AC18&$AD18&$AI18&"|"&J$13&"|"&"FY"&RIGHT(J$12,2),Datastore!$G:$G)*$AL18+SUMIF(Datastore!$A:$A,$AC18&$AD18&$AJ18&"|"&J$13&"|"&"FY"&RIGHT(J$12,2),Datastore!$G:$G)*$AM18+SUMIF(Datastore!$A:$A,$AC18&$AD18&$AK18&"|"&J$13&"|"&"FY"&RIGHT(J$12,2),Datastore!$G:$G)*$AM18)/1000 -> 364995.6131 | AC18: 40 | AD18: 1 | AF18: |RU?? | AG18: |RR?? | AH18: |ROOI | AI18: |x | AJ18: |x | AK18: |x | AL18: -1 | AM18: 1
C19: Other core water services | E19: $'000
C21: Revenue from wastewater services:
C22: Wastewater via sewer | E22: $'000 | F22: =(SUMIF(Datastore!$A:$A,$AC22&$AD22&$AF22&"|"&F$13&"|"&"FY"&RIGHT(F$12,2),Datastore!$G:$G)*$AL22+SUMIF(Datastore!$A:$A,$AC22&$AD22&$AG22&"|"&F$13&"|"&"FY"&RIGHT(F$12,2),Datastore!$G:$G)*$AL22+SUMIF(Datastore!$A:$A,$AC22&$AD22&$AH22&"|"&F$13&"|"&"FY"&RIGHT(F$12,2),Datastore!$G:$G)*$AL22+SUMIF(Datastore!$A:$A,$AC22&$AD22&$AI22&"|"&F$13&"|"&"FY"&RIGHT(F$12,2),Datastore!$G:$G)*$AL22+SUMIF(Datastore!$A:$A,$AC22&$AD22&$AJ22&"|"&F$13&"|"&"FY"&RIGHT(F$12,2),Datastore!$G:$G)*$AM22+SUMIF(Datastore!$A:$A,$AC22&$AD22&$AK22&"|"&F$13&"|"&"FY"&RIGHT(F$12,2),Datastore!$G:$G)*$AM22)/1000 -> 228125.1387 | G22: =(SUMIF(Datastore!$A:$A,$AC22&$AD22&$AF22&"|"&G$13&"|"&"FY"&RIGHT(G$12,2),Datastore!$G:$G)*$AL22+SUMIF(Datastore!$A:$A,$AC22&$AD22&$AG22&"|"&G$13&"|"&"FY"&RIGHT(G$12,2),Datastore!$G:$G)*$AL22+SUMIF(Datastore!$A:$A,$AC22&$AD22&$AH22&"|"&G$13&"|"&"FY"&RIGHT(G$12,2),Datastore!$G:$G)*$AL22+SUMIF(Datastore!$A:$A,$AC22&$AD22&$AI22&"|"&G$13&"|"&"FY"&RIGHT(G$12,2),Datastore!$G:$G)*$AL22+SUMIF(Datastore!$A:$A,$AC22&$AD22&$AJ22&"|"&G$13&"|"&"FY"&RIGHT(G$12,2),Datastore!$G:$G)*$AM22+SUMIF(Datastore!$A:$A,$AC22&$AD22&$AK22&"|"&G$13&"|"&"FY"&RIGHT(G$12,2),Datastore!$G:$G)*$AM22)/1000 -> 249954.7863 | H22: =(SUMIF(Datastore!$A:$A,$AC22&$AD22&$AF22&"|"&H$13&"|"&"FY"&RIGHT(H$12,2),Datastore!$G:$G)*$AL22+SUMIF(Datastore!$A:$A,$AC22&$AD22&$AG22&"|"&H$13&"|"&"FY"&RIGHT(H$12,2),Datastore!$G:$G)*$AL22+SUMIF(Datastore!$A:$A,$AC22&$AD22&$AH22&"|"&H$13&"|"&"FY"&RIGHT(H$12,2),Datastore!$G:$G)*$AL22+SUMIF(Datastore!$A:$A,$AC22&$AD22&$AI22&"|"&H$13&"|"&"FY"&RIGHT(H$12,2),Datastore!$G:$G)*$AL22+SUMIF(Datastore!$A:$A,$AC22&$AD22&$AJ22&"|"&H$13&"|"&"FY"&RIGHT(H$12,2),Datastore!$G:$G)*$AM22+SUMIF(Datastore!$A:$A,$AC22&$AD22&$AK22&"|"&H$13&"|"&"FY"&RIGHT(H$12,2),Datastore!$G:$G)*$AM22)/1000 -> 274364.8536 | I22: =(SUMIF(Datastore!$A:$A,$AC22&$AD22&$AF22&"|"&I$13&"|"&"FY"&RIGHT(I$12,2),Datastore!$G:$G)*$AL22+SUMIF(Datastore!$A:$A,$AC22&$AD22&$AG22&"|"&I$13&"|"&"FY"&RIGHT(I$12,2),Datastore!$G:$G)*$AL22+SUMIF(Datastore!$A:$A,$AC22&$AD22&$AH22&"|"&I$13&"|"&"FY"&RIGHT(I$12,2),Datastore!$G:$G)*$AL22+SUMIF(Datastore!$A:$A,$AC22&$AD22&$AI22&"|"&I$13&"|"&"FY"&RIGHT(I$12,2),Datastore!$G:$G)*$AL22+SUMIF(Datastore!$A:$A,$AC22&$AD22&$AJ22&"|"&I$13&"|"&"FY"&RIGHT(I$12,2),Datastore!$G:$G)*$AM22+SUMIF(Datastore!$A:$A,$AC22&$AD22&$AK22&"|"&I$13&"|"&"FY"&RIGHT(I$12,2),Datastore!$G:$G)*$AM22)/1000 -> 288391.0812 | J22: =(SUMIF(Datastore!$A:$A,$AC22&$AD22&$AF22&"|"&J$13&"|"&"FY"&RIGHT(J$12,2),Datastore!$G:$G)*$AL22+SUMIF(Datastore!$A:$A,$AC22&$AD22&$AG22&"|"&J$13&"|"&"FY"&RIGHT(J$12,2),Datastore!$G:$G)*$AL22+SUMIF(Datastore!$A:$A,$AC22&$AD22&$AH22&"|"&J$13&"|"&"FY"&RIGHT(J$12,2),Datastore!$G:$G)*$AL22+SUMIF(Datastore!$A:$A,$AC22&$AD22&$AI22&"|"&J$13&"|"&"FY"&RIGHT(J$12,2),Datastore!$G:$G)*$AL22+SUMIF(Datastore!$A:$A,$AC22&$AD22&$AJ22&"|"&J$13&"|"&"FY"&RIGHT(J$12,2),Datastore!$G:$G)*$AM22+SUMIF(Datastore!$A:$A,$AC22&$AD22&$AK22&"|"&J$13&"|"&"FY"&RIGHT(J$12,2),Datastore!$G:$G)*$AM22)/1000 -> 294547.3746 | AC22: 40 | AD22: 2 | AF22: |RU?? | AG22: |RR?? | AH22: |ROOI | AI22: |x | AJ22: |RUTW | AK22: |RURW | AL22: -1 | AM22: 1
C23: Trade waste | E23: $'000 | F23: =(SUMIF(Datastore!$A:$A,$AC23&$AD23&$AF23&"|"&F$13&"|"&"FY"&RIGHT(F$12,2),Datastore!$G:$G)*$AL23+SUMIF(Datastore!$A:$A,$AC23&$AD23&$AG23&"|"&F$13&"|"&"FY"&RIGHT(F$12,2),Datastore!$G:$G)*$AL23+SUMIF(Datastore!$A:$A,$AC23&$AD23&$AH23&"|"&F$13&"|"&"FY"&RIGHT(F$12,2),Datastore!$G:$G)*$AL23+SUMIF(Datastore!$A:$A,$AC23&$AD23&$AI23&"|"&F$13&"|"&"FY"&RIGHT(F$12,2),Datastore!$G:$G)*$AL23+SUMIF(Datastore!$A:$A,$AC23&$AD23&$AJ23&"|"&F$13&"|"&"FY"&RIGHT(F$12,2),Datastore!$G:$G)*$AM23+SUMIF(Datastore!$A:$A,$AC23&$AD23&$AK23&"|"&F$13&"|"&"FY"&RIGHT(F$12,2),Datastore!$G:$G)*$AM23)/1000 -> 16517.65082 | G23: =(SUMIF(Datastore!$A:$A,$AC23&$AD23&$AF23&"|"&G$13&"|"&"FY"&RIGHT(G$12,2),Datastore!$G:$G)*$AL23+SUMIF(Datastore!$A:$A,$AC23&$AD23&$AG23&"|"&G$13&"|"&"FY"&RIGHT(G$12,2),Datastore!$G:$G)*$AL23+SUMIF(Datastore!$A:$A,$AC23&$AD23&$AH23&"|"&G$13&"|"&"FY"&RIGHT(G$12,2),Datastore!$G:$G)*$AL23+SUMIF(Datastore!$A:$A,$AC23&$AD23&$AI23&"|"&G$13&"|"&"FY"&RIGHT(G$12,2),Datastore!$G:$G)*$AL23+SUMIF(Datastore!$A:$A,$AC23&$AD23&$AJ23&"|"&G$13&"|"&"FY"&RIGHT(G$12,2),Datastore!$G:$G)*$AM23+SUMIF(Datastore!$A:$A,$AC23&$AD23&$AK23&"|"&G$13&"|"&"FY"&RIGHT(G$12,2),Datastore!$G:$G)*$AM23)/1000 -> 17667.70381 | H23: =(SUMIF(Datastore!$A:$A,$AC23&$AD23&$AF23&"|"&H$13&"|"&"FY"&RIGHT(H$12,2),Datastore!$G:$G)*$AL23+SUMIF(Datastore!$A:$A,$AC23&$AD23&$AG23&"|"&H$13&"|"&"FY"&RIGHT(H$12,2),Datastore!$G:$G)*$AL23+SUMIF(Datastore!$A:$A,$AC23&$AD23&$AH23&"|"&H$13&"|"&"FY"&RIGHT(H$12,2),Datastore!$G:$G)*$AL23+SUMIF(Datastore!$A:$A,$AC23&$AD23&$AI23&"|"&H$13&"|"&"FY"&RIGHT(H$12,2),Datastore!$G:$G)*$AL23+SUMIF(Datastore!$A:$A,$AC23&$AD23&$AJ23&"|"&H$13&"|"&"FY"&RIGHT(H$12,2),Datastore!$G:$G)*$AM23+SUMIF(Datastore!$A:$A,$AC23&$AD23&$AK23&"|"&H$13&"|"&"FY"&RIGHT(H$12,2),Datastore!$G:$G)*$AM23)/1000 -> 17476.69328 | I23: =(SUMIF(Datastore!$A:$A,$AC23&$AD23&$AF23&"|"&I$13&"|"&"FY"&RIGHT(I$12,2),Datastore!$G:$G)*$AL23+SUMIF(Datastore!$A:$A,$AC23&$AD23&$AG23&"|"&I$13&"|"&"FY"&RIGHT(I$12,2),Datastore!$G:$G)*$AL23+SUMIF(Datastore!$A:$A,$AC23&$AD23&$AH23&"|"&I$13&"|"&"FY"&RIGHT(I$12,2),Datastore!$G:$G)*$AL23+SUMIF(Datastore!$A:$A,$AC23&$AD23&$AI23&"|"&I$13&"|"&"FY"&RIGHT(I$12,2),Datastore!$G:$G)*$AL23+SUMIF(Datastore!$A:$A,$AC23&$AD23&$AJ23&"|"&I$13&"|"&"FY"&RIGHT(I$12,2),Datastore!$G:$G)*$AM23+SUMIF(Datastore!$A:$A,$AC23&$AD23&$AK23&"|"&I$13&"|"&"FY"&RIGHT(I$12,2),Datastore!$G:$G)*$AM23)/1000 -> 19375.0981 | J23: =(SUMIF(Datastore!$A:$A,$AC23&$AD23&$AF23&"|"&J$13&"|"&"FY"&RIGHT(J$12,2),Datastore!$G:$G)*$AL23+SUMIF(Datastore!$A:$A,$AC23&$AD23&$AG23&"|"&J$13&"|"&"FY"&RIGHT(J$12,2),Datastore!$G:$G)*$AL23+SUMIF(Datastore!$A:$A,$AC23&$AD23&$AH23&"|"&J$13&"|"&"FY"&RIGHT(J$12,2),Datastore!$G:$G)*$AL23+SUMIF(Datastore!$A:$A,$AC23&$AD23&$AI23&"|"&J$13&"|"&"FY"&RIGHT(J$12,2),Datastore!$G:$G)*$AL23+SUMIF(Datastore!$A:$A,$AC23&$AD23&$AJ23&"|"&J$13&"|"&"FY"&RIGHT(J$12,2),Datastore!$G:$G)*$AM23+SUMIF(Datastore!$A:$A,$AC23&$AD23&$AK23&"|"&J$13&"|"&"FY"&RIGHT(J$12,2),Datastore!$G:$G)*$AM23)/1000 -> 20242.20165 | AC23: 40 | AD23: 2 | AF23: |RUTW | AG23: |x | AH23: |x | AI23: |x | AJ23: |x | AK23: |x | AL23: -1 | AM23: 1
C24: Other core wastewater services | E24: $'000 | F24: =(SUMIF(Datastore!$A:$A,$AC24&$AD24&$AF24&"|"&F$13&"|"&"FY"&RIGHT(F$12,2),Datastore!$G:$G)*$AL24+SUMIF(Datastore!$A:$A,$AC24&$AD24&$AG24&"|"&F$13&"|"&"FY"&RIGHT(F$12,2),Datastore!$G:$G)*$AL24+SUMIF(Datastore!$A:$A,$AC24&$AD24&$AH24&"|"&F$13&"|"&"FY"&RIGHT(F$12,2),Datastore!$G:$G)*$AL24+SUMIF(Datastore!$A:$A,$AC24&$AD24&$AI24&"|"&F$13&"|"&"FY"&RIGHT(F$12,2),Datastore!$G:$G)*$AL24+SUMIF(Datastore!$A:$A,$AC24&$AD24&$AJ24&"|"&F$13&"|"&"FY"&RIGHT(F$12,2),Datastore!$G:$G)*$AM24+SUMIF(Datastore!$A:$A,$AC24&$AD24&$AK24&"|"&F$13&"|"&"FY"&RIGHT(F$12,2),Datastore!$G:$G)*$AM24)/1000 -> 359.15549 | G24: =(SUMIF(Datastore!$A:$A,$AC24&$AD24&$AF24&"|"&G$13&"|"&"FY"&RIGHT(G$12,2),Datastore!$G:$G)*$AL24+SUMIF(Datastore!$A:$A,$AC24&$AD24&$AG24&"|"&G$13&"|"&"FY"&RIGHT(G$12,2),Datastore!$G:$G)*$AL24+SUMIF(Datastore!$A:$A,$AC24&$AD24&$AH24&"|"&G$13&"|"&"FY"&RIGHT(G$12,2),Datastore!$G:$G)*$AL24+SUMIF(Datastore!$A:$A,$AC24&$AD24&$AI24&"|"&G$13&"|"&"FY"&RIGHT(G$12,2),Datastore!$G:$G)*$AL24+SUMIF(Datastore!$A:$A,$AC24&$AD24&$AJ24&"|"&G$13&"|"&"FY"&RIGHT(G$12,2),Datastore!$G:$G)*$AM24+SUMIF(Datastore!$A:$A,$AC24&$AD24&$AK24&"|"&G$13&"|"&"FY"&RIGHT(G$12,2),Datastore!$G:$G)*$AM24)/1000 -> 0 | H24: =(SUMIF(Datastore!$A:$A,$AC24&$AD24&$AF24&"|"&H$13&"|"&"FY"&RIGHT(H$12,2),Datastore!$G:$G)*$AL24+SUMIF(Datastore!$A:$A,$AC24&$AD24&$AG24&"|"&H$13&"|"&"FY"&RIGHT(H$12,2),Datastore!$G:$G)*$AL24+SUMIF(Datastore!$A:$A,$AC24&$AD24&$AH24&"|"&H$13&"|"&"FY"&RIGHT(H$12,2),Datastore!$G:$G)*$AL24+SUMIF(Datastore!$A:$A,$AC24&$AD24&$AI24&"|"&H$13&"|"&"FY"&RIGHT(H$12,2),Datastore!$G:$G)*$AL24+SUMIF(Datastore!$A:$A,$AC24&$AD24&$AJ24&"|"&H$13&"|"&"FY"&RIGHT(H$12,2),Datastore!$G:$G)*$AM24+SUMIF(Datastore!$A:$A,$AC24&$AD24&$AK24&"|"&H$13&"|"&"FY"&RIGHT(H$12,2),Datastore!$G:$G)*$AM24)/1000 -> 8506.11437 | I24: =(SUMIF(Datastore!$A:$A,$AC24&$AD24&$AF24&"|"&I$13&"|"&"FY"&RIGHT(I$12,2),Datastore!$G:$G)*$AL24+SUMIF(Datastore!$A:$A,$AC24&$AD24&$AG24&"|"&I$13&"|"&"FY"&RIGHT(I$12,2),Datastore!$G:$G)*$AL24+SUMIF(Datastore!$A:$A,$AC24&$AD24&$AH24&"|"&I$13&"|"&"FY"&RIGHT(I$12,2),Datastore!$G:$G)*$AL24+SUMIF(Datastore!$A:$A,$AC24&$AD24&$AI24&"|"&I$13&"|"&"FY"&RIGHT(I$12,2),Datastore!$G:$G)*$AL24+SUMIF(Datastore!$A:$A,$AC24&$AD24&$AJ24&"|"&I$13&"|"&"FY"&RIGHT(I$12,2),Datastore!$G:$G)*$AM24+SUMIF(Datastore!$A:$A,$AC24&$AD24&$AK24&"|"&I$13&"|"&"FY"&RIGHT(I$12,2),Datastore!$G:$G)*$AM24)/1000 -> 8668.8328 | J24: =(SUMIF(Datastore!$A:$A,$AC24&$AD24&$AF24&"|"&J$13&"|"&"FY"&RIGHT(J$12,2),Datastore!$G:$G)*$AL24+SUMIF(Datastore!$A:$A,$AC24&$AD24&$AG24&"|"&J$13&"|"&"FY"&RIGHT(J$12,2),Datastore!$G:$G)*$AL24+SUMIF(Datastore!$A:$A,$AC24&$AD24&$AH24&"|"&J$13&"|"&"FY"&RIGHT(J$12,2),Datastore!$G:$G)*$AL24+SUMIF(Datastore!$A:$A,$AC24&$AD24&$AI24&"|"&J$13&"|"&"FY"&RIGHT(J$12,2),Datastore!$G:$G)*$AL24+SUMIF(Datastore!$A:$A,$AC24&$AD24&$AJ24&"|"&J$13&"|"&"FY"&RIGHT(J$12,2),Datastore!$G:$G)*$AM24+SUMIF(Datastore!$A:$A,$AC24&$AD24&$AK24&"|"&J$13&"|"&"FY"&RIGHT(J$12,2),Datastore!$G:$G)*$AM24)/1000 -> 9499.828733 | AC24: 40 | AD24: 2 | AF24: |RURW | AG24: |x | AH24: |x | AI24: |x | AJ24: |x | AK24: |x | AL24: -1 | AM24: 1
C26: Non-regulated:
C27: Aggregate non-regulated services | E27: $'000 | F27: =(SUMIF(Datastore!$A:$A,$AC27&$AD27&$AF27&"|"&F$13&"|"&"FY"&RIGHT(F$12,2),Datastore!$G:$G)*$AL27+SUMIF(Datastore!$A:$A,$AC27&$AD27&$AG27&"|"&F$13&"|"&"FY"&RIGHT(F$12,2),Datastore!$G:$G)*$AL27+SUMIF(Datastore!$A:$A,$AC27&$AD27&$AH27&"|"&F$13&"|"&"FY"&RIGHT(F$12,2),Datastore!$G:$G)*$AL27+SUMIF(Datastore!$A:$A,$AC27&$AD27&$AI27&"|"&F$13&"|"&"FY"&RIGHT(F$12,2),Datastore!$G:$G)*$AL27+SUMIF(Datastore!$A:$A,$AC27&$AD27&$AJ27&"|"&F$13&"|"&"FY"&RIGHT(F$12,2),Datastore!$G:$G)*$AM27+SUMIF(Datastore!$A:$A,$AC27&$AD27&$AK27&"|"&F$13&"|"&"FY"&RIGHT(F$12,2),Datastore!$G:$G)*$AM27)/1000 -> 15725.81483 | G27: =(SUMIF(Datastore!$A:$A,$AC27&$AD27&$AF27&"|"&G$13&"|"&"FY"&RIGHT(G$12,2),Datastore!$G:$G)*$AL27+SUMIF(Datastore!$A:$A,$AC27&$AD27&$AG27&"|"&G$13&"|"&"FY"&RIGHT(G$12,2),Datastore!$G:$G)*$AL27+SUMIF(Datastore!$A:$A,$AC27&$AD27&$AH27&"|"&G$13&"|"&"FY"&RIGHT(G$12,2),Datastore!$G:$G)*$AL27+SUMIF(Datastore!$A:$A,$AC27&$AD27&$AI27&"|"&G$13&"|"&"FY"&RIGHT(G$12,2),Datastore!$G:$G)*$AL27+SUMIF(Datastore!$A:$A,$AC27&$AD27&$AJ27&"|"&G$13&"|"&"FY"&RIGHT(G$12,2),Datastore!$G:$G)*$AM27+SUMIF(Datastore!$A:$A,$AC27&$AD27&$AK27&"|"&G$13&"|"&"FY"&RIGHT(G$12,2),Datastore!$G:$G)*$AM27)/1000 -> 14558.07126 | H27: =(SUMIF(Datastore!$A:$A,$AC27&$AD27&$AF27&"|"&H$13&"|"&"FY"&RIGHT(H$12,2),Datastore!$G:$G)*$AL27+SUMIF(Datastore!$A:$A,$AC27&$AD27&$AG27&"|"&H$13&"|"&"FY"&RIGHT(H$12,2),Datastore!$G:$G)*$AL27+SUMIF(Datastore!$A:$A,$AC27&$AD27&$AH27&"|"&H$13&"|"&"FY"&RIGHT(H$12,2),Datastore!$G:$G)*$AL27+SUMIF(Datastore!$A:$A,$AC27&$AD27&$AI27&"|"&H$13&"|"&"FY"&RIGHT(H$12,2),Datastore!$G:$G)*$AL27+SUMIF(Datastore!$A:$A,$AC27&$AD27&$AJ27&"|"&H$13&"|"&"FY"&RIGHT(H$12,2),Datastore!$G:$G)*$AM27+SUMIF(Datastore!$A:$A,$AC27&$AD27&$AK27&"|"&H$13&"|"&"FY"&RIGHT(H$12,2),Datastore!$G:$G)*$AM27)/1000 -> 12610.72448 | I27: =(SUMIF(Datastore!$A:$A,$AC27&$AD27&$AF27&"|"&I$13&"|"&"FY"&RIGHT(I$12,2),Datastore!$G:$G)*$AL27+SUMIF(Datastore!$A:$A,$AC27&$AD27&$AG27&"|"&I$13&"|"&"FY"&RIGHT(I$12,2),Datastore!$G:$G)*$AL27+SUMIF(Datastore!$A:$A,$AC27&$AD27&$AH27&"|"&I$13&"|"&"FY"&RIGHT(I$12,2),Datastore!$G:$G)*$AL27+SUMIF(Datastore!$A:$A,$AC27&$AD27&$AI27&"|"&I$13&"|"&"FY"&RIGHT(I$12,2),Datastore!$G:$G)*$AL27+SUMIF(Datastore!$A:$A,$AC27&$AD27&$AJ27&"|"&I$13&"|"&"FY"&RIGHT(I$12,2),Datastore!$G:$G)*$AM27+SUMIF(Datastore!$A:$A,$AC27&$AD27&$AK27&"|"&I$13&"|"&"FY"&RIGHT(I$12,2),Datastore!$G:$G)*$AM27)/1000 -> 1155.799 | J27: =(SUMIF(Datastore!$A:$A,$AC27&$AD27&$AF27&"|"&J$13&"|"&"FY"&RIGHT(J$12,2),Datastore!$G:$G)*$AL27+SUMIF(Datastore!$A:$A,$AC27&$AD27&$AG27&"|"&J$13&"|"&"FY"&RIGHT(J$12,2),Datastore!$G:$G)*$AL27+SUMIF(Datastore!$A:$A,$AC27&$AD27&$AH27&"|"&J$13&"|"&"FY"&RIGHT(J$12,2),Datastore!$G:$G)*$AL27+SUMIF(Datastore!$A:$A,$AC27&$AD27&$AI27&"|"&J$13&"|"&"FY"&RIGHT(J$12,2),Datastore!$G:$G)*$AL27+SUMIF(Datastore!$A:$A,$AC27&$AD27&$AJ27&"|"&J$13&"|"&"FY"&RIGHT(J$12,2),Datastore!$G:$G)*$AM27+SUMIF(Datastore!$A:$A,$AC27&$AD27&$AK27&"|"&J$13&"|"&"FY"&RIGHT(J$12,2),Datastore!$G:$G)*$AM27)/1000 -> 1119.05 | AC27: 40 | AD27: 4 | AF27: |R??? | AG27: |x | AH27: |x | AI27: |x | AJ27: |x | AK27: |x | AL27: -1 | AM27: 1
C29: Subtotal Revenue from Services | E29: $'000 | F29: =SUM(F18:F19)+SUM(F22:F24)+F27 -> 481328.8616 | G29: =SUM(G18:G19)+SUM(G22:G24)+G27 -> 540423.726 | H29: 591601.7618 | I29: 645958.3422 | J29: 690404.0681 | K29: =SUM(K18:K19)+SUM(K22:K24)+K27 -> 0 | L29: 0 | M29: 0 | N29: 0 | O29: 0 | P29: 0 | Q29: 0 | R29: 0 | S29: 0 | T29: 0 | U29: 0 | V29: 0 | W29: 0 | X29: 0 | Y29: 0
B31: OTHER REVENUE
C32: Other Revenue Offset Against Revenue Requirements:
C33: Investment Income | E33: $'000 | F33: =(SUMIF(Datastore!$A:$A,$AC33&$AD33&$AF33&"|"&F$13&"|"&"FY"&RIGHT(F$12,2),Datastore!$G:$G)+SUMIF(Datastore!$A:$A,$AC33&$AE33&$AF33&"|"&F$13&"|"&"FY"&RIGHT(F$12,2),Datastore!$G:$G))*$AL33/1000 -> 600 | G33: =(SUMIF(Datastore!$A:$A,$AC33&$AD33&$AF33&"|"&G$13&"|"&"FY"&RIGHT(G$12,2),Datastore!$G:$G)+SUMIF(Datastore!$A:$A,$AC33&$AE33&$AF33&"|"&G$13&"|"&"FY"&RIGHT(G$12,2),Datastore!$G:$G))*$AL33/1000 -> 499.88915 | H33: =(SUMIF(Datastore!$A:$A,$AC33&$AD33&$AF33&"|"&H$13&"|"&"FY"&RIGHT(H$12,2),Datastore!$G:$G)+SUMIF(Datastore!$A:$A,$AC33&$AE33&$AF33&"|"&H$13&"|"&"FY"&RIGHT(H$12,2),Datastore!$G:$G))*$AL33/1000 -> 321.07604 | I33: =(SUMIF(Datastore!$A:$A,$AC33&$AD33&$AF33&"|"&I$13&"|"&"FY"&RIGHT(I$12,2),Datastore!$G:$G)+SUMIF(Datastore!$A:$A,$AC33&$AE33&$AF33&"|"&I$13&"|"&"FY"&RIGHT(I$12,2),Datastore!$G:$G))*$AL33/1000 -> 600 | J33: =(SUMIF(Datastore!$A:$A,$AC33&$AD33&$AF33&"|"&J$13&"|"&"FY"&RIGHT(J$12,2),Datastore!$G:$G)+SUMIF(Datastore!$A:$A,$AC33&$AE33&$AF33&"|"&J$13&"|"&"FY"&RIGHT(J$12,2),Datastore!$G:$G))*$AL33/1000 -> 350 | AC33: 40 | AD33: 1 | AE33: 2 | AF33: |RFIN | AL33: -1
C34: Net profit from Sale of Assets | E34: $'000 | F34: =(SUMIF(Datastore!$A:$A,$AC34&$AD34&$AF34&"|"&F$13&"|"&"FY"&RIGHT(F$12,2),Datastore!$G:$G)+SUMIF(Datastore!$A:$A,$AC34&$AE34&$AF34&"|"&F$13&"|"&"FY"&RIGHT(F$12,2),Datastore!$G:$G))*$AL34/1000 -> -10591.817 | G34: =(SUMIF(Datastore!$A:$A,$AC34&$AD34&$AF34&"|"&G$13&"|"&"FY"&RIGHT(G$12,2),Datastore!$G:$G)+SUMIF(Datastore!$A:$A,$AC34&$AE34&$AF34&"|"&G$13&"|"&"FY"&RIGHT(G$12,2),Datastore!$G:$G))*$AL34/1000 -> -16603.97171 | AA34: Not forecast for regulatory purposes | AC34: 40 | AD34: 1 | AE34: 2 | AF34: |ELOD | AL34: -1
C35: Contributions | E35: $'000 | F35: =(SUMIF(Datastore!$A:$A,$AC35&$AD35&$AF35&"|"&F$13&"|"&"FY"&RIGHT(F$12,2),Datastore!$G:$G)+SUMIF(Datastore!$A:$A,$AC35&$AE35&$AF35&"|"&F$13&"|"&"FY"&RIGHT(F$12,2),Datastore!$G:$G))*$AL35/1000 -> 107123.5165 | G35: =(SUMIF(Datastore!$A:$A,$AC35&$AD35&$AF35&"|"&G$13&"|"&"FY"&RIGHT(G$12,2),Datastore!$G:$G)+SUMIF(Datastore!$A:$A,$AC35&$AE35&$AF35&"|"&G$13&"|"&"FY"&RIGHT(G$12,2),Datastore!$G:$G))*$AL35/1000 -> 149220.7903 | H35: =(SUMIF(Datastore!$A:$A,$AC35&$AD35&$AF35&"|"&H$13&"|"&"FY"&RIGHT(H$12,2),Datastore!$G:$G)+SUMIF(Datastore!$A:$A,$AC35&$AE35&$AF35&"|"&H$13&"|"&"FY"&RIGHT(H$12,2),Datastore!$G:$G))*$AL35/1000 -> 115314.9557 | I35: =(SUMIF(Datastore!$A:$A,$AC35&$AD35&$AF35&"|"&I$13&"|"&"FY"&RIGHT(I$12,2),Datastore!$G:$G)+SUMIF(Datastore!$A:$A,$AC35&$AE35&$AF35&"|"&I$13&"|"&"FY"&RIGHT(I$12,2),Datastore!$G:$G))*$AL35/1000 -> 83975.67921 | J35: =(SUMIF(Datastore!$A:$A,$AC35&$AD35&$AF35&"|"&J$13&"|"&"FY"&RIGHT(J$12,2),Datastore!$G:$G)+SUMIF(Datastore!$A:$A,$AC35&$AE35&$AF35&"|"&J$13&"|"&"FY"&RIGHT(J$12,2),Datastore!$G:$G))*$AL35/1000 -> 105271.463 | AC35: 40 | AD35: 1 | AE35: 2 | AF35: |RC?? | AL35: -1
C37: Other Revenue Not Offset Against Revenue Requirements:
C38: Non-recurrent Income | E38: $'000 | F38: =(SUMIF(Datastore!$A:$A,$AC38&$AD38&$AF38&"|"&F$13&"|"&"FY"&RIGHT(F$12,2),Datastore!$G:$G)+SUMIF(Datastore!$A:$A,$AC38&$AE38&$AF38&"|"&F$13&"|"&"FY"&RIGHT(F$12,2),Datastore!$G:$G))*$AL38/1000 -> 0 | G38: =(SUMIF(Datastore!$A:$A,$AC38&$AD38&$AF38&"|"&G$13&"|"&"FY"&RIGHT(G$12,2),Datastore!$G:$G)+SUMIF(Datastore!$A:$A,$AC38&$AE38&$AF38&"|"&G$13&"|"&"FY"&RIGHT(G$12,2),Datastore!$G:$G))*$AL38/1000 -> 0 | H38: =(SUMIF(Datastore!$A:$A,$AC38&$AD38&$AF38&"|"&H$13&"|"&"FY"&RIGHT(H$12,2),Datastore!$G:$G)+SUMIF(Datastore!$A:$A,$AC38&$AE38&$AF38&"|"&H$13&"|"&"FY"&RIGHT(H$12,2),Datastore!$G:$G))*$AL38/1000 -> 11442.33274 | I38: =(SUMIF(Datastore!$A:$A,$AC38&$AD38&$AF38&"|"&I$13&"|"&"FY"&RIGHT(I$12,2),Datastore!$G:$G)+SUMIF(Datastore!$A:$A,$AC38&$AE38&$AF38&"|"&I$13&"|"&"FY"&RIGHT(I$12,2),Datastore!$G:$G))*$AL38/1000 -> 20 | J38: =(SUMIF(Datastore!$A:$A,$AC38&$AD38&$AF38&"|"&J$13&"|"&"FY"&RIGHT(J$12,2),Datastore!$G:$G)+SUMIF(Datastore!$A:$A,$AC38&$AE38&$AF38&"|"&J$13&"|"&"FY"&RIGHT(J$12,2),Datastore!$G:$G))*$AL38/1000 -> 5500 | AC38: 40 | AD38: 1 | AE38: 2 | AF38: |RNOT | AG38: |x | AH38: |x | AI38: |x | AJ38: |x | AK38: |x | AL38: -1 | AM38: 1
C39: Net profit from Sale of Assets | E39: $'000 | H39: =-'5.5.2'!H19 -> -11425.008 | AA39: Non-recurrent - flood loss on disposal
C40: Contributions | E40: $'000
C42: Subtotal Other Revenue | E42: $'000 | F42: =SUM(F33:F35)+SUM(F38:F40) -> 97131.69947 | G42: 133116.7077 | H42: 115653.3565 | I42: 84595.67921 | J42: 111121.463 | K42: =SUM(K33:K35)+SUM(K38:K40) -> 0 | L42: 0 | M42: 0 | N42: 0 | O42: 0 | P42: 0 | Q42: 0 | R42: 0 | S42: 0 | T42: 0 | U42: 0 | V42: 0 | W42: 0 | X42: 0 | Y42: 0
B44: TOTAL REVENUE | E44: $'000 | F44: =F42+F29 -> 578460.561 | G44: =G42+G29 -> 673540.4337 | H44: 707255.1182 | I44: 730554.0214 | J44: 801525.5311 | K44: =K42+K29 -> 0 | L44: 0 | M44: 0 | N44: 0 | O44: 0 | P44: 0 | Q44: 0 | R44: 0 | S44: 0 | T44: 0 | U44: 0 | V44: 0 | W44: 0 | X44: 0 | Y44: 0
F47: =F11 -> For Year Ending 30 June: | AA47: =AA11 -> For Year Ending 30 June 2013
F48: =F12 -> 2009 | G48: =G12 -> 2010 | H48: =H12 -> 2011 | I48: =I12 -> 2012 | J48: =J12 -> 2013 | K48: =K12 -> 2014 | L48: 2015 | M48: 2016 | N48: 2017 | O48: 2018 | P48: 2019 | Q48: 2020 | R48: 2021 | S48: 2022 | T48: 2023 | U48: 2024 | V48: 2025 | W48: 2026 | X48: 2027 | Y48: 2028 | AA48: =AA12 -> Supporting Documents | AT48: =AS48 -> 
B50: ="Geographical Area 2 - "&'Business Details'!$D$13 -> Geographical Area 2 - Ipswich
B52: =B16 -> REVENUE FROM SERVICES
C53: =C17 -> Revenue from water services:
C54: =C18 -> Drinking water | E54: $'000 | F54: =(SUMIF(Datastore!$A:$A,$AC54&$AD54&$AF54&"|"&F$13&"|"&"FY"&RIGHT(F$12,2),Datastore!$G:$G)*$AL54+SUMIF(Datastore!$A:$A,$AC54&$AD54&$AG54&"|"&F$13&"|"&"FY"&RIGHT(F$12,2),Datastore!$G:$G)*$AL54+SUMIF(Datastore!$A:$A,$AC54&$AD54&$AH54&"|"&F$13&"|"&"FY"&RIGHT(F$12,2),Datastore!$G:$G)*$AL54+SUMIF(Datastore!$A:$A,$AC54&$AD54&$AI54&"|"&F$13&"|"&"FY"&RIGHT(F$12,2),Datastore!$G:$G)*$AL54+SUMIF(Datastore!$A:$A,$AC54&$AD54&$AJ54&"|"&F$13&"|"&"FY"&RIGHT(F$12,2),Datastore!$G:$G)*$AM54+SUMIF(Datastore!$A:$A,$AC54&$AD54&$AK54&"|"&F$13&"|"&"FY"&RIGHT(F$12,2),Datastore!$G:$G)*$AM54)/1000 -> 43576.479 | G54: =(SUMIF(Datastore!$A:$A,$AC54&$AD54&$AF54&"|"&G$13&"|"&"FY"&RIGHT(G$12,2),Datastore!$G:$G)*$AL54+SUMIF(Datastore!$A:$A,$AC54&$AD54&$AG54&"|"&G$13&"|"&"FY"&RIGHT(G$12,2),Datastore!$G:$G)*$AL54+SUMIF(Datastore!$A:$A,$AC54&$AD54&$AH54&"|"&G$13&"|"&"FY"&RIGHT(G$12,2),Datastore!$G:$G)*$AL54+SUMIF(Datastore!$A:$A,$AC54&$AD54&$AI54&"|"&G$13&"|"&"FY"&RIGHT(G$12,2),Datastore!$G:$G)*$AL54+SUMIF(Datastore!$A:$A,$AC54&$AD54&$AJ54&"|"&G$13&"|"&"FY"&RIGHT(G$12,2),Datastore!$G:$G)*$AM54+SUMIF(Datastore!$A:$A,$AC54&$AD54&$AK54&"|"&G$13&"|"&"FY"&RIGHT(G$12,2),Datastore!$G:$G)*$AM54)/1000 -> 53244 | H54: =(SUMIF(Datastore!$A:$A,$AC54&$AD54&$AF54&"|"&H$13&"|"&"FY"&RIGHT(H$12,2),Datastore!$G:$G)*$AL54+SUMIF(Datastore!$A:$A,$AC54&$AD54&$AG54&"|"&H$13&"|"&"FY"&RIGHT(H$12,2),Datastore!$G:$G)*$AL54+SUMIF(Datastore!$A:$A,$AC54&$AD54&$AH54&"|"&H$13&"|"&"FY"&RIGHT(H$12,2),Datastore!$G:$G)*$AL54+SUMIF(Datastore!$A:$A,$AC54&$AD54&$AI54&"|"&H$13&"|"&"FY"&RIGHT(H$12,2),Datastore!$G:$G)*$AL54+SUMIF(Datastore!$A:$A,$AC54&$AD54&$AJ54&"|"&H$13&"|"&"FY"&RIGHT(H$12,2),Datastore!$G:$G)*$AM54+SUMIF(Datastore!$A:$A,$AC54&$AD54&$AK54&"|"&H$13&"|"&"FY"&RIGHT(H$12,2),Datastore!$G:$G)*$AM54)/1000 -> 57575.47217 | I54: =(SUMIF(Datastore!$A:$A,$AC54&$AD54&$AF54&"|"&I$13&"|"&"FY"&RIGHT(I$12,2),Datastore!$G:$G)*$AL54+SUMIF(Datastore!$A:$A,$AC54&$AD54&$AG54&"|"&I$13&"|"&"FY"&RIGHT(I$12,2),Datastore!$G:$G)*$AL54+SUMIF(Datastore!$A:$A,$AC54&$AD54&$AH54&"|"&I$13&"|"&"FY"&RIGHT(I$12,2),Datastore!$G:$G)*$AL54+SUMIF(Datastore!$A:$A,$AC54&$AD54&$AI54&"|"&I$13&"|"&"FY"&RIGHT(I$12,2),Datastore!$G:$G)*$AL54+SUMIF(Datastore!$A:$A,$AC54&$AD54&$AJ54&"|"&I$13&"|"&"FY"&RIGHT(I$12,2),Datastore!$G:$G)*$AM54+SUMIF(Datastore!$A:$A,$AC54&$AD54&$AK54&"|"&I$13&"|"&"FY"&RIGHT(I$12,2),Datastore!$G:$G)*$AM54)/1000 -> 63122.4493 | J54: =(SUMIF(Datastore!$A:$A,$AC54&$AD54&$AF54&"|"&J$13&"|"&"FY"&RIGHT(J$12,2),Datastore!$G:$G)*$AL54+SUMIF(Datastore!$A:$A,$AC54&$AD54&$AG54&"|"&J$13&"|"&"FY"&RIGHT(J$12,2),Datastore!$G:$G)*$AL54+SUMIF(Datastore!$A:$A,$AC54&$AD54&$AH54&"|"&J$13&"|"&"FY"&RIGHT(J$12,2),Datastore!$G:$G)*$AL54+SUMIF(Datastore!$A:$A,$AC54&$AD54&$AI54&"|"&J$13&"|"&"FY"&RIGHT(J$12,2),Datastore!$G:$G)*$AL54+SUMIF(Datastore!$A:$A,$AC54&$AD54&$AJ54&"|"&J$13&"|"&"FY"&RIGHT(J$12,2),Datastore!$G:$G)*$AM54+SUMIF(Datastore!$A:$A,$AC54&$AD54&$AK54&"|"&J$13&"|"&"FY"&RIGHT(J$12,2),Datastore!$G:$G)*$AM54)/1000 -> 70015.72786 | AC54: 85 | AD54: 1 | AF54: |RU?? | AG54: |RR?? | AH54: |ROOI | AI54: |x | AJ54: |x | AK54: |x | AL54: -1 | AM54: 1
C55: =C19 -> Other core water services | E55: $'000
C57: =C21 -> Revenue from wastewater services:
C58: =C22 -> Wastewater via sewer | E58: $'000 | F58: =(SUMIF(Datastore!$A:$A,$AC58&$AD58&$AF58&"|"&F$13&"|"&"FY"&RIGHT(F$12,2),Datastore!$G:$G)*$AL58+SUMIF(Datastore!$A:$A,$AC58&$AD58&$AG58&"|"&F$13&"|"&"FY"&RIGHT(F$12,2),Datastore!$G:$G)*$AL58+SUMIF(Datastore!$A:$A,$AC58&$AD58&$AH58&"|"&F$13&"|"&"FY"&RIGHT(F$12,2),Datastore!$G:$G)*$AL58+SUMIF(Datastore!$A:$A,$AC58&$AD58&$AI58&"|"&F$13&"|"&"FY"&RIGHT(F$12,2),Datastore!$G:$G)*$AL58+SUMIF(Datastore!$A:$A,$AC58&$AD58&$AJ58&"|"&F$13&"|"&"FY"&RIGHT(F$12,2),Datastore!$G:$G)*$AM58+SUMIF(Datastore!$A:$A,$AC58&$AD58&$AK58&"|"&F$13&"|"&"FY"&RIGHT(F$12,2),Datastore!$G:$G)*$AM58)/1000 -> 33094.038 | G58: =(SUMIF(Datastore!$A:$A,$AC58&$AD58&$AF58&"|"&G$13&"|"&"FY"&RIGHT(G$12,2),Datastore!$G:$G)*$AL58+SUMIF(Datastore!$A:$A,$AC58&$AD58&$AG58&"|"&G$13&"|"&"FY"&RIGHT(G$12,2),Datastore!$G:$G)*$AL58+SUMIF(Datastore!$A:$A,$AC58&$AD58&$AH58&"|"&G$13&"|"&"FY"&RIGHT(G$12,2),Datastore!$G:$G)*$AL58+SUMIF(Datastore!$A:$A,$AC58&$AD58&$AI58&"|"&G$13&"|"&"FY"&RIGHT(G$12,2),Datastore!$G:$G)*$AL58+SUMIF(Datastore!$A:$A,$AC58&$AD58&$AJ58&"|"&G$13&"|"&"FY"&RIGHT(G$12,2),Datastore!$G:$G)*$AM58+SUMIF(Datastore!$A:$A,$AC58&$AD58&$AK58&"|"&G$13&"|"&"FY"&RIGHT(G$12,2),Datastore!$G:$G)*$AM58)/1000 -> 35713 | H58: =(SUMIF(Datastore!$A:$A,$AC58&$AD58&$AF58&"|"&H$13&"|"&"FY"&RIGHT(H$12,2),Datastore!$G:$G)*$AL58+SUMIF(Datastore!$A:$A,$AC58&$AD58&$AG58&"|"&H$13&"|"&"FY"&RIGHT(H$12,2),Datastore!$G:$G)*$AL58+SUMIF(Datastore!$A:$A,$AC58&$AD58&$AH58&"|"&H$13&"|"&"FY"&RIGHT(H$12,2),Datastore!$G:$G)*$AL58+SUMIF(Datastore!$A:$A,$AC58&$AD58&$AI58&"|"&H$13&"|"&"FY"&RIGHT(H$12,2),Datastore!$G:$G)*$AL58+SUMIF(Datastore!$A:$A,$AC58&$AD58&$AJ58&"|"&H$13&"|"&"FY"&RIGHT(H$12,2),Datastore!$G:$G)*$AM58+SUMIF(Datastore!$A:$A,$AC58&$AD58&$AK58&"|"&H$13&"|"&"FY"&RIGHT(H$12,2),Datastore!$G:$G)*$AM58)/1000 -> 39601.52667 | I58: =(SUMIF(Datastore!$A:$A,$AC58&$AD58&$AF58&"|"&I$13&"|"&"FY"&RIGHT(I$12,2),Datastore!$G:$G)*$AL58+SUMIF(Datastore!$A:$A,$AC58&$AD58&$AG58&"|"&I$13&"|"&"FY"&RIGHT(I$12,2),Datastore!$G:$G)*$AL58+SUMIF(Datastore!$A:$A,$AC58&$AD58&$AH58&"|"&I$13&"|"&"FY"&RIGHT(I$12,2),Datastore!$G:$G)*$AL58+SUMIF(Datastore!$A:$A,$AC58&$AD58&$AI58&"|"&I$13&"|"&"FY"&RIGHT(I$12,2),Datastore!$G:$G)*$AL58+SUMIF(Datastore!$A:$A,$AC58&$AD58&$AJ58&"|"&I$13&"|"&"FY"&RIGHT(I$12,2),Datastore!$G:$G)*$AM58+SUMIF(Datastore!$A:$A,$AC58&$AD58&$AK58&"|"&I$13&"|"&"FY"&RIGHT(I$12,2),Datastore!$G:$G)*$AM58)/1000 -> 41425.75591 | J58: =(SUMIF(Datastore!$A:$A,$AC58&$AD58&$AF58&"|"&J$13&"|"&"FY"&RIGHT(J$12,2),Datastore!$G:$G)*$AL58+SUMIF(Datastore!$A:$A,$AC58&$AD58&$AG58&"|"&J$13&"|"&"FY"&RIGHT(J$12,2),Datastore!$G:$G)*$AL58+SUMIF(Datastore!$A:$A,$AC58&$AD58&$AH58&"|"&J$13&"|"&"FY"&RIGHT(J$12,2),Datastore!$G:$G)*$AL58+SUMIF(Datastore!$A:$A,$AC58&$AD58&$AI58&"|"&J$13&"|"&"FY"&RIGHT(J$12,2),Datastore!$G:$G)*$AL58+SUMIF(Datastore!$A:$A,$AC58&$AD58&$AJ58&"|"&J$13&"|"&"FY"&RIGHT(J$12,2),Datastore!$G:$G)*$AM58+SUMIF(Datastore!$A:$A,$AC58&$AD58&$AK58&"|"&J$13&"|"&"FY"&RIGHT(J$12,2),Datastore!$G:$G)*$AM58)/1000 -> 43582.7891 | AC58: 85 | AD58: 2 | AF58: |RU?? | AG58: |RR?? | AH58: |ROOI | AI58: |x | AJ58: |RUTW | AK58: |RURW | AL58: -1 | AM58: 1
C59: =C23 -> Trade waste | E59: $'000 | F59: =(SUMIF(Datastore!$A:$A,$AC59&$AD59&$AF59&"|"&F$13&"|"&"FY"&RIGHT(F$12,2),Datastore!$G:$G)*$AL59+SUMIF(Datastore!$A:$A,$AC59&$AD59&$AG59&"|"&F$13&"|"&"FY"&RIGHT(F$12,2),Datastore!$G:$G)*$AL59+SUMIF(Datastore!$A:$A,$AC59&$AD59&$AH59&"|"&F$13&"|"&"FY"&RIGHT(F$12,2),Datastore!$G:$G)*$AL59+SUMIF(Datastore!$A:$A,$AC59&$AD59&$AI59&"|"&F$13&"|"&"FY"&RIGHT(F$12,2),Datastore!$G:$G)*$AL59+SUMIF(Datastore!$A:$A,$AC59&$AD59&$AJ59&"|"&F$13&"|"&"FY"&RIGHT(F$12,2),Datastore!$G:$G)*$AM59+SUMIF(Datastore!$A:$A,$AC59&$AD59&$AK59&"|"&F$13&"|"&"FY"&RIGHT(F$12,2),Datastore!$G:$G)*$AM59)/1000 -> 2749.834 | G59: =(SUMIF(Datastore!$A:$A,$AC59&$AD59&$AF59&"|"&G$13&"|"&"FY"&RIGHT(G$12,2),Datastore!$G:$G)*$AL59+SUMIF(Datastore!$A:$A,$AC59&$AD59&$AG59&"|"&G$13&"|"&"FY"&RIGHT(G$12,2),Datastore!$G:$G)*$AL59+SUMIF(Datastore!$A:$A,$AC59&$AD59&$AH59&"|"&G$13&"|"&"FY"&RIGHT(G$12,2),Datastore!$G:$G)*$AL59+SUMIF(Datastore!$A:$A,$AC59&$AD59&$AI59&"|"&G$13&"|"&"FY"&RIGHT(G$12,2),Datastore!$G:$G)*$AL59+SUMIF(Datastore!$A:$A,$AC59&$AD59&$AJ59&"|"&G$13&"|"&"FY"&RIGHT(G$12,2),Datastore!$G:$G)*$AM59+SUMIF(Datastore!$A:$A,$AC59&$AD59&$AK59&"|"&G$13&"|"&"FY"&RIGHT(G$12,2),Datastore!$G:$G)*$AM59)/1000 -> 2872 | H59: =(SUMIF(Datastore!$A:$A,$AC59&$AD59&$AF59&"|"&H$13&"|"&"FY"&RIGHT(H$12,2),Datastore!$G:$G)*$AL59+SUMIF(Datastore!$A:$A,$AC59&$AD59&$AG59&"|"&H$13&"|"&"FY"&RIGHT(H$12,2),Datastore!$G:$G)*$AL59+SUMIF(Datastore!$A:$A,$AC59&$AD59&$AH59&"|"&H$13&"|"&"FY"&RIGHT(H$12,2),Datastore!$G:$G)*$AL59+SUMIF(Datastore!$A:$A,$AC59&$AD59&$AI59&"|"&H$13&"|"&"FY"&RIGHT(H$12,2),Datastore!$G:$G)*$AL59+SUMIF(Datastore!$A:$A,$AC59&$AD59&$AJ59&"|"&H$13&"|"&"FY"&RIGHT(H$12,2),Datastore!$G:$G)*$AM59+SUMIF(Datastore!$A:$A,$AC59&$AD59&$AK59&"|"&H$13&"|"&"FY"&RIGHT(H$12,2),Datastore!$G:$G)*$AM59)/1000 -> 3193.88557 | I59: =(SUMIF(Datastore!$A:$A,$AC59&$AD59&$AF59&"|"&I$13&"|"&"FY"&RIGHT(I$12,2),Datastore!$G:$G)*$AL59+SUMIF(Datastore!$A:$A,$AC59&$AD59&$AG59&"|"&I$13&"|"&"FY"&RIGHT(I$12,2),Datastore!$G:$G)*$AL59+SUMIF(Datastore!$A:$A,$AC59&$AD59&$AH59&"|"&I$13&"|"&"FY"&RIGHT(I$12,2),Datastore!$G:$G)*$AL59+SUMIF(Datastore!$A:$A,$AC59&$AD59&$AI59&"|"&I$13&"|"&"FY"&RIGHT(I$12,2),Datastore!$G:$G)*$AL59+SUMIF(Datastore!$A:$A,$AC59&$AD59&$AJ59&"|"&I$13&"|"&"FY"&RIGHT(I$12,2),Datastore!$G:$G)*$AM59+SUMIF(Datastore!$A:$A,$AC59&$AD59&$AK59&"|"&I$13&"|"&"FY"&RIGHT(I$12,2),Datastore!$G:$G)*$AM59)/1000 -> 3013.332749 | J59: =(SUMIF(Datastore!$A:$A,$AC59&$AD59&$AF59&"|"&J$13&"|"&"FY"&RIGHT(J$12,2),Datastore!$G:$G)*$AL59+SUMIF(Datastore!$A:$A,$AC59&$AD59&$AG59&"|"&J$13&"|"&"FY"&RIGHT(J$12,2),Datastore!$G:$G)*$AL59+SUMIF(Datastore!$A:$A,$AC59&$AD59&$AH59&"|"&J$13&"|"&"FY"&RIGHT(J$12,2),Datastore!$G:$G)*$AL59+SUMIF(Datastore!$A:$A,$AC59&$AD59&$AI59&"|"&J$13&"|"&"FY"&RIGHT(J$12,2),Datastore!$G:$G)*$AL59+SUMIF(Datastore!$A:$A,$AC59&$AD59&$AJ59&"|"&J$13&"|"&"FY"&RIGHT(J$12,2),Datastore!$G:$G)*$AM59+SUMIF(Datastore!$A:$A,$AC59&$AD59&$AK59&"|"&J$13&"|"&"FY"&RIGHT(J$12,2),Datastore!$G:$G)*$AM59)/1000 -> 2945.517004 | AC59: 85 | AD59: 2 | AF59: |RUTW | AG59: |x | AH59: |x | AI59: |x | AJ59: |x | AK59: |x | AL59: -1 | AM59: 1
C60: =C24 -> Other core wastewater services | E60: $'000 | F60: =(SUMIF(Datastore!$A:$A,$AC60&$AD60&$AF60&"|"&F$13&"|"&"FY"&RIGHT(F$12,2),Datastore!$G:$G)*$AL60+SUMIF(Datastore!$A:$A,$AC60&$AD60&$AG60&"|"&F$13&"|"&"FY"&RIGHT(F$12,2),Datastore!$G:$G)*$AL60+SUMIF(Datastore!$A:$A,$AC60&$AD60&$AH60&"|"&F$13&"|"&"FY"&RIGHT(F$12,2),Datastore!$G:$G)*$AL60+SUMIF(Datastore!$A:$A,$AC60&$AD60&$AI60&"|"&F$13&"|"&"FY"&RIGHT(F$12,2),Datastore!$G:$G)*$AL60+SUMIF(Datastore!$A:$A,$AC60&$AD60&$AJ60&"|"&F$13&"|"&"FY"&RIGHT(F$12,2),Datastore!$G:$G)*$AM60+SUMIF(Datastore!$A:$A,$AC60&$AD60&$AK60&"|"&F$13&"|"&"FY"&RIGHT(F$12,2),Datastore!$G:$G)*$AM60)/1000 -> 0 | G60: =(SUMIF(Datastore!$A:$A,$AC60&$AD60&$AF60&"|"&G$13&"|"&"FY"&RIGHT(G$12,2),Datastore!$G:$G)*$AL60+SUMIF(Datastore!$A:$A,$AC60&$AD60&$AG60&"|"&G$13&"|"&"FY"&RIGHT(G$12,2),Datastore!$G:$G)*$AL60+SUMIF(Datastore!$A:$A,$AC60&$AD60&$AH60&"|"&G$13&"|"&"FY"&RIGHT(G$12,2),Datastore!$G:$G)*$AL60+SUMIF(Datastore!$A:$A,$AC60&$AD60&$AI60&"|"&G$13&"|"&"FY"&RIGHT(G$12,2),Datastore!$G:$G)*$AL60+SUMIF(Datastore!$A:$A,$AC60&$AD60&$AJ60&"|"&G$13&"|"&"FY"&RIGHT(G$12,2),Datastore!$G:$G)*$AM60+SUMIF(Datastore!$A:$A,$AC60&$AD60&$AK60&"|"&G$13&"|"&"FY"&RIGHT(G$12,2),Datastore!$G:$G)*$AM60)/1000 -> 0 | H60: =(SUMIF(Datastore!$A:$A,$AC60&$AD60&$AF60&"|"&H$13&"|"&"FY"&RIGHT(H$12,2),Datastore!$G:$G)*$AL60+SUMIF(Datastore!$A:$A,$AC60&$AD60&$AG60&"|"&H$13&"|"&"FY"&RIGHT(H$12,2),Datastore!$G:$G)*$AL60+SUMIF(Datastore!$A:$A,$AC60&$AD60&$AH60&"|"&H$13&"|"&"FY"&RIGHT(H$12,2),Datastore!$G:$G)*$AL60+SUMIF(Datastore!$A:$A,$AC60&$AD60&$AI60&"|"&H$13&"|"&"FY"&RIGHT(H$12,2),Datastore!$G:$G)*$AL60+SUMIF(Datastore!$A:$A,$AC60&$AD60&$AJ60&"|"&H$13&"|"&"FY"&RIGHT(H$12,2),Datastore!$G:$G)*$AM60+SUMIF(Datastore!$A:$A,$AC60&$AD60&$AK60&"|"&H$13&"|"&"FY"&RIGHT(H$12,2),Datastore!$G:$G)*$AM60)/1000 -> 0 | I60: =(SUMIF(Datastore!$A:$A,$AC60&$AD60&$AF60&"|"&I$13&"|"&"FY"&RIGHT(I$12,2),Datastore!$G:$G)*$AL60+SUMIF(Datastore!$A:$A,$AC60&$AD60&$AG60&"|"&I$13&"|"&"FY"&RIGHT(I$12,2),Datastore!$G:$G)*$AL60+SUMIF(Datastore!$A:$A,$AC60&$AD60&$AH60&"|"&I$13&"|"&"FY"&RIGHT(I$12,2),Datastore!$G:$G)*$AL60+SUMIF(Datastore!$A:$A,$AC60&$AD60&$AI60&"|"&I$13&"|"&"FY"&RIGHT(I$12,2),Datastore!$G:$G)*$AL60+SUMIF(Datastore!$A:$A,$AC60&$AD60&$AJ60&"|"&I$13&"|"&"FY"&RIGHT(I$12,2),Datastore!$G:$G)*$AM60+SUMIF(Datastore!$A:$A,$AC60&$AD60&$AK60&"|"&I$13&"|"&"FY"&RIGHT(I$12,2),Datastore!$G:$G)*$AM60)/1000 -> 118.51488 | J60: =(SUMIF(Datastore!$A:$A,$AC60&$AD60&$AF60&"|"&J$13&"|"&"FY"&RIGHT(J$12,2),Datastore!$G:$G)*$AL60+SUMIF(Datastore!$A:$A,$AC60&$AD60&$AG60&"|"&J$13&"|"&"FY"&RIGHT(J$12,2),Datastore!$G:$G)*$AL60+SUMIF(Datastore!$A:$A,$AC60&$AD60&$AH60&"|"&J$13&"|"&"FY"&RIGHT(J$12,2),Datastore!$G:$G)*$AL60+SUMIF(Datastore!$A:$A,$AC60&$AD60&$AI60&"|"&J$13&"|"&"FY"&RIGHT(J$12,2),Datastore!$G:$G)*$AL60+SUMIF(Datastore!$A:$A,$AC60&$AD60&$AJ60&"|"&J$13&"|"&"FY"&RIGHT(J$12,2),Datastore!$G:$G)*$AM60+SUMIF(Datastore!$A:$A,$AC60&$AD60&$AK60&"|"&J$13&"|"&"FY"&RIGHT(J$12,2),Datastore!$G:$G)*$AM60)/1000 -> 120.0557 | AC60: 85 | AD60: 2 | AF60: |RURW | AG60: |x | AH60: |x | AI60: |x | AJ60: |x | AK60: |x | AL60: -1 | AM60: 1
C62: =C26 -> Non-regulated:
C63: =C27 -> Aggregate non-regulated services | E63: $'000 | F63: =(SUMIF(Datastore!$A:$A,$AC63&$AD63&$AF63&"|"&F$13&"|"&"FY"&RIGHT(F$12,2),Datastore!$G:$G)*$AL63+SUMIF(Datastore!$A:$A,$AC63&$AD63&$AG63&"|"&F$13&"|"&"FY"&RIGHT(F$12,2),Datastore!$G:$G)*$AL63+SUMIF(Datastore!$A:$A,$AC63&$AD63&$AH63&"|"&F$13&"|"&"FY"&RIGHT(F$12,2),Datastore!$G:$G)*$AL63+SUMIF(Datastore!$A:$A,$AC63&$AD63&$AI63&"|"&F$13&"|"&"FY"&RIGHT(F$12,2),Datastore!$G:$G)*$AL63+SUMIF(Datastore!$A:$A,$AC63&$AD63&$AJ63&"|"&F$13&"|"&"FY"&RIGHT(F$12,2),Datastore!$G:$G)*$AM63+SUMIF(Datastore!$A:$A,$AC63&$AD63&$AK63&"|"&F$13&"|"&"FY"&RIGHT(F$12,2),Datastore!$G:$G)*$AM63)/1000 -> 850.969 | G63: =(SUMIF(Datastore!$A:$A,$AC63&$AD63&$AF63&"|"&G$13&"|"&"FY"&RIGHT(G$12,2),Datastore!$G:$G)*$AL63+SUMIF(Datastore!$A:$A,$AC63&$AD63&$AG63&"|"&G$13&"|"&"FY"&RIGHT(G$12,2),Datastore!$G:$G)*$AL63+SUMIF(Datastore!$A:$A,$AC63&$AD63&$AH63&"|"&G$13&"|"&"FY"&RIGHT(G$12,2),Datastore!$G:$G)*$AL63+SUMIF(Datastore!$A:$A,$AC63&$AD63&$AI63&"|"&G$13&"|"&"FY"&RIGHT(G$12,2),Datastore!$G:$G)*$AL63+SUMIF(Datastore!$A:$A,$AC63&$AD63&$AJ63&"|"&G$13&"|"&"FY"&RIGHT(G$12,2),Datastore!$G:$G)*$AM63+SUMIF(Datastore!$A:$A,$AC63&$AD63&$AK63&"|"&G$13&"|"&"FY"&RIGHT(G$12,2),Datastore!$G:$G)*$AM63)/1000 -> 1257 | H63: =(SUMIF(Datastore!$A:$A,$AC63&$AD63&$AF63&"|"&H$13&"|"&"FY"&RIGHT(H$12,2),Datastore!$G:$G)*$AL63+SUMIF(Datastore!$A:$A,$AC63&$AD63&$AG63&"|"&H$13&"|"&"FY"&RIGHT(H$12,2),Datastore!$G:$G)*$AL63+SUMIF(Datastore!$A:$A,$AC63&$AD63&$AH63&"|"&H$13&"|"&"FY"&RIGHT(H$12,2),Datastore!$G:$G)*$AL63+SUMIF(Datastore!$A:$A,$AC63&$AD63&$AI63&"|"&H$13&"|"&"FY"&RIGHT(H$12,2),Datastore!$G:$G)*$AL63+SUMIF(Datastore!$A:$A,$AC63&$AD63&$AJ63&"|"&H$13&"|"&"FY"&RIGHT(H$12,2),Datastore!$G:$G)*$AM63+SUMIF(Datastore!$A:$A,$AC63&$AD63&$AK63&"|"&H$13&"|"&"FY"&RIGHT(H$12,2),Datastore!$G:$G)*$AM63)/1000 -> 1739.13477 | I63: =(SUMIF(Datastore!$A:$A,$AC63&$AD63&$AF63&"|"&I$13&"|"&"FY"&RIGHT(I$12,2),Datastore!$G:$G)*$AL63+SUMIF(Datastore!$A:$A,$AC63&$AD63&$AG63&"|"&I$13&"|"&"FY"&RIGHT(I$12,2),Datastore!$G:$G)*$AL63+SUMIF(Datastore!$A:$A,$AC63&$AD63&$AH63&"|"&I$13&"|"&"FY"&RIGHT(I$12,2),Datastore!$G:$G)*$AL63+SUMIF(Datastore!$A:$A,$AC63&$AD63&$AI63&"|"&I$13&"|"&"FY"&RIGHT(I$12,2),Datastore!$G:$G)*$AL63+SUMIF(Datastore!$A:$A,$AC63&$AD63&$AJ63&"|"&I$13&"|"&"FY"&RIGHT(I$12,2),Datastore!$G:$G)*$AM63+SUMIF(Datastore!$A:$A,$AC63&$AD63&$AK63&"|"&I$13&"|"&"FY"&RIGHT(I$12,2),Datastore!$G:$G)*$AM63)/1000 -> 171.642 | J63: =(SUMIF(Datastore!$A:$A,$AC63&$AD63&$AF63&"|"&J$13&"|"&"FY"&RIGHT(J$12,2),Datastore!$G:$G)*$AL63+SUMIF(Datastore!$A:$A,$AC63&$AD63&$AG63&"|"&J$13&"|"&"FY"&RIGHT(J$12,2),Datastore!$G:$G)*$AL63+SUMIF(Datastore!$A:$A,$AC63&$AD63&$AH63&"|"&J$13&"|"&"FY"&RIGHT(J$12,2),Datastore!$G:$G)*$AL63+SUMIF(Datastore!$A:$A,$AC63&$AD63&$AI63&"|"&J$13&"|"&"FY"&RIGHT(J$12,2),Datastore!$G:$G)*$AL63+SUMIF(Datastore!$A:$A,$AC63&$AD63&$AJ63&"|"&J$13&"|"&"FY"&RIGHT(J$12,2),Datastore!$G:$G)*$AM63+SUMIF(Datastore!$A:$A,$AC63&$AD63&$AK63&"|"&J$13&"|"&"FY"&RIGHT(J$12,2),Datastore!$G:$G)*$AM63)/1000 -> 150 | AC63: 85 | AD63: 4 | AF63: |R??? | AG63: |x | AH63: |x | AI63: |x | AJ63: |x | AK63: |x | AL63: -1 | AM63: 1
C65: =C29 -> Subtotal Revenue from Services | E65: $'000 | F65: =SUM(F54:F55)+SUM(F58:F60)+F63 -> 80271.32 | G65: =SUM(G54:G55)+SUM(G58:G60)+G63 -> 93086 | H65: 102110.0192 | I65: 107851.6948 | J65: 116814.0897 | K65: =SUM(K54:K55)+SUM(K58:K60)+K63 -> 0 | L65: 0 | M65: 0 | N65: 0 | O65: 0 | P65: 0 | Q65: 0 | R65: 0 | S65: 0 | T65: 0 | U65: 0 | V65: 0 | W65: 0 | X65: 0 | Y65: 0
B67: =B31 -> OTHER REVENUE
C68: =C32 -> Other Revenue Offset Against Revenue Requirements:
C69: =C33 -> Investment Income | E69: $'000 | F69: =(SUMIF(Datastore!$A:$A,$AC69&$AD69&$AF69&"|"&F$13&"|"&"FY"&RIGHT(F$12,2),Datastore!$G:$G)+SUMIF(Datastore!$A:$A,$AC69&$AE69&$AF69&"|"&F$13&"|"&"FY"&RIGHT(F$12,2),Datastore!$G:$G))*$AL69/1000 -> 0 | G69: =(SUMIF(Datastore!$A:$A,$AC69&$AD69&$AF69&"|"&G$13&"|"&"FY"&RIGHT(G$12,2),Datastore!$G:$G)+SUMIF(Datastore!$A:$A,$AC69&$AE69&$AF69&"|"&G$13&"|"&"FY"&RIGHT(G$12,2),Datastore!$G:$G))*$AL69/1000 -> 0 | H69: =(SUMIF(Datastore!$A:$A,$AC69&$AD69&$AF69&"|"&H$13&"|"&"FY"&RIGHT(H$12,2),Datastore!$G:$G)+SUMIF(Datastore!$A:$A,$AC69&$AE69&$AF69&"|"&H$13&"|"&"FY"&RIGHT(H$12,2),Datastore!$G:$G))*$AL69/1000 -> 0 | I69: =(SUMIF(Datastore!$A:$A,$AC69&$AD69&$AF69&"|"&I$13&"|"&"FY"&RIGHT(I$12,2),Datastore!$G:$G)+SUMIF(Datastore!$A:$A,$AC69&$AE69&$AF69&"|"&I$13&"|"&"FY"&RIGHT(I$12,2),Datastore!$G:$G))*$AL69/1000 -> 0 | J69: =(SUMIF(Datastore!$A:$A,$AC69&$AD69&$AF69&"|"&J$13&"|"&"FY"&RIGHT(J$12,2),Datastore!$G:$G)+SUMIF(Datastore!$A:$A,$AC69&$AE69&$AF69&"|"&J$13&"|"&"FY"&RIGHT(J$12,2),Datastore!$G:$G))*$AL69/1000 -> 0 | AC69: 85 | AD69: 1 | AE69: 2 | AF69: |RFIN | AL69: -1
C70: =C34 -> Net profit from Sale of Assets | E70: $'000 | F70: =(SUMIF(Datastore!$A:$A,$AC70&$AD70&$AF70&"|"&F$13&"|"&"FY"&RIGHT(F$12,2),Datastore!$G:$G)+SUMIF(Datastore!$A:$A,$AC70&$AE70&$AF70&"|"&F$13&"|"&"FY"&RIGHT(F$12,2),Datastore!$G:$G))*$AL70/1000 -> 236.641 | G70: =(SUMIF(Datastore!$A:$A,$AC70&$AD70&$AF70&"|"&G$13&"|"&"FY"&RIGHT(G$12,2),Datastore!$G:$G)+SUMIF(Datastore!$A:$A,$AC70&$AE70&$AF70&"|"&G$13&"|"&"FY"&RIGHT(G$12,2),Datastore!$G:$G))*$AL70/1000 -> 0 | AA70: Not forecast for regulatory purposes | AC70: 85 | AD70: 1 | AE70: 2 | AF70: |ELOD | AL70: -1
C71: =C35 -> Contributions | E71: $'000 | F71: =(SUMIF(Datastore!$A:$A,$AC71&$AD71&$AF71&"|"&F$13&"|"&"FY"&RIGHT(F$12,2),Datastore!$G:$G)+SUMIF(Datastore!$A:$A,$AC71&$AE71&$AF71&"|"&F$13&"|"&"FY"&RIGHT(F$12,2),Datastore!$G:$G))*$AL71/1000 -> 21466.452 | G71: =(SUMIF(Datastore!$A:$A,$AC71&$AD71&$AF71&"|"&G$13&"|"&"FY"&RIGHT(G$12,2),Datastore!$G:$G)+SUMIF(Datastore!$A:$A,$AC71&$AE71&$AF71&"|"&G$13&"|"&"FY"&RIGHT(G$12,2),Datastore!$G:$G))*$AL71/1000 -> 30883.047 | H71: =(SUMIF(Datastore!$A:$A,$AC71&$AD71&$AF71&"|"&H$13&"|"&"FY"&RIGHT(H$12,2),Datastore!$G:$G)+SUMIF(Datastore!$A:$A,$AC71&$AE71&$AF71&"|"&H$13&"|"&"FY"&RIGHT(H$12,2),Datastore!$G:$G))*$AL71/1000 -> 23218.57613 | I71: =(SUMIF(Datastore!$A:$A,$AC71&$AD71&$AF71&"|"&I$13&"|"&"FY"&RIGHT(I$12,2),Datastore!$G:$G)+SUMIF(Datastore!$A:$A,$AC71&$AE71&$AF71&"|"&I$13&"|"&"FY"&RIGHT(I$12,2),Datastore!$G:$G))*$AL71/1000 -> 21190.37528 | J71: =(SUMIF(Datastore!$A:$A,$AC71&$AD71&$AF71&"|"&J$13&"|"&"FY"&RIGHT(J$12,2),Datastore!$G:$G)+SUMIF(Datastore!$A:$A,$AC71&$AE71&$AF71&"|"&J$13&"|"&"FY"&RIGHT(J$12,2),Datastore!$G:$G))*$AL71/1000 -> 21837.27339 | AC71: 85 | AD71: 1 | AE71: 2 | AF71: |RC?? | AL71: -1
C73: =C37 -> Other Revenue Not Offset Against Revenue Requirements:
C74: =C38 -> Non-recurrent Income | E74: $'000 | F74: =(SUMIF(Datastore!$A:$A,$AC74&$AD74&$AF74&"|"&F$13&"|"&"FY"&RIGHT(F$12,2),Datastore!$G:$G)+SUMIF(Datastore!$A:$A,$AC74&$AE74&$AF74&"|"&F$13&"|"&"FY"&RIGHT(F$12,2),Datastore!$G:$G))*$AL74/1000 -> 0 | G74: =(SUMIF(Datastore!$A:$A,$AC74&$AD74&$AF74&"|"&G$13&"|"&"FY"&RIGHT(G$12,2),Datastore!$G:$G)+SUMIF(Datastore!$A:$A,$AC74&$AE74&$AF74&"|"&G$13&"|"&"FY"&RIGHT(G$12,2),Datastore!$G:$G))*$AL74/1000 -> 0 | H74: =(SUMIF(Datastore!$A:$A,$AC74&$AD74&$AF74&"|"&H$13&"|"&"FY"&RIGHT(H$12,2),Datastore!$G:$G)+SUMIF(Datastore!$A:$A,$AC74&$AE74&$AF74&"|"&H$13&"|"&"FY"&RIGHT(H$12,2),Datastore!$G:$G))*$AL74/1000 -> 0 | I74: =(SUMIF(Datastore!$A:$A,$AC74&$AD74&$AF74&"|"&I$13&"|"&"FY"&RIGHT(I$12,2),Datastore!$G:$G)+SUMIF(Datastore!$A:$A,$AC74&$AE74&$AF74&"|"&I$13&"|"&"FY"&RIGHT(I$12,2),Datastore!$G:$G))*$AL74/1000 -> 0 | J74: =(SUMIF(Datastore!$A:$A,$AC74&$AD74&$AF74&"|"&J$13&"|"&"FY"&RIGHT(J$12,2),Datastore!$G:$G)+SUMIF(Datastore!$A:$A,$AC74&$AE74&$AF74&"|"&J$13&"|"&"FY"&RIGHT(J$12,2),Datastore!$G:$G))*$AL74/1000 -> 0 | AC74: 85 | AD74: 1 | AE74: 2 | AF74: |RNOT | AG74: |x | AH74: |x | AI74: |x | AJ74: |x | AK74: |x | AL74: -1 | AM74: 1
C75: =C39 -> Net profit from Sale of Assets | E75: $'000 | H75: =-'5.5.2'!H504 -> -13187.244 | AA75: Non-recurrent - flood loss on disposal
C76: =C40 -> Contributions | E76: $'000
C78: =C42 -> Subtotal Other Revenue | E78: $'000 | F78: =SUM(F69:F71)+SUM(F74:F76) -> 21703.093 | G78: 30883.047 | H78: 10031.33213 | I78: 21190.37528 | J78: 21837.27339 | K78: =SUM(K69:K71)+SUM(K74:K76) -> 0 | L78: 0 | M78: 0 | N78: 0 | O78: 0 | P78: 0 | Q78: 0 | R78: 0 | S78: 0 | T78: 0 | U78: 0 | V78: 0 | W78: 0 | X78: 0 | Y78: 0
B80: =B44 -> TOTAL REVENUE | E80: $'000 | F80: =F78+F65 -> 101974.413 | G80: =G78+G65 -> 123969.047 | H80: 112141.3513 | I80: 129042.0701 | J80: 138651.3631 | K80: =K78+K65 -> 0 | L80: 0 | M80: 0 | N80: 0 | O80: 0 | P80: 0 | Q80: 0 | R80: 0 | S80: 0 | T80: 0 | U80: 0 | V80: 0 | W80: 0 | X80: 0 | Y80: 0
F83: =F47 -> For Year Ending 30 June: | AA83: =AA47 -> For Year Ending 30 June 2013
F84: =F48 -> 2009 | G84: =G48 -> 2010 | H84: =H48 -> 2011 | I84: =I48 -> 2012 | J84: =J48 -> 2013 | K84: =K48 -> 2014 | L84: 2015 | M84: 2016 | N84: 2017 | O84: 2018 | P84: 2019 | Q84: 2020 | R84: 2021 | S84: 2022 | T84: 2023 | U84: 2024 | V84: 2025 | W84: 2026 | X84: 2027 | Y84: 2028 | AA84: =AA48 -> Supporting Documents | AT84: =AS84 -> 
B86: ="Geographical Area 3 - "&'Business Details'!$D$14 -> Geographical Area 3 - Lockyer Valley
B88: =B52 -> REVENUE FROM SERVICES
C89: =C53 -> Revenue from water services:
C90: =C54 -> Drinking water | E90: $'000 | F90: =(SUMIF(Datastore!$A:$A,$AC90&$AD90&$AF90&"|"&F$13&"|"&"FY"&RIGHT(F$12,2),Datastore!$G:$G)*$AL90+SUMIF(Datastore!$A:$A,$AC90&$AD90&$AG90&"|"&F$13&"|"&"FY"&RIGHT(F$12,2),Datastore!$G:$G)*$AL90+SUMIF(Datastore!$A:$A,$AC90&$AD90&$AH90&"|"&F$13&"|"&"FY"&RIGHT(F$12,2),Datastore!$G:$G)*$AL90+SUMIF(Datastore!$A:$A,$AC90&$AD90&$AI90&"|"&F$13&"|"&"FY"&RIGHT(F$12,2),Datastore!$G:$G)*$AL90+SUMIF(Datastore!$A:$A,$AC90&$AD90&$AJ90&"|"&F$13&"|"&"FY"&RIGHT(F$12,2),Datastore!$G:$G)*$AM90+SUMIF(Datastore!$A:$A,$AC90&$AD90&$AK90&"|"&F$13&"|"&"FY"&RIGHT(F$12,2),Datastore!$G:$G)*$AM90)/1000 -> 6403.4065 | G90: =(SUMIF(Datastore!$A:$A,$AC90&$AD90&$AF90&"|"&G$13&"|"&"FY"&RIGHT(G$12,2),Datastore!$G:$G)*$AL90+SUMIF(Datastore!$A:$A,$AC90&$AD90&$AG90&"|"&G$13&"|"&"FY"&RIGHT(G$12,2),Datastore!$G:$G)*$AL90+SUMIF(Datastore!$A:$A,$AC90&$AD90&$AH90&"|"&G$13&"|"&"FY"&RIGHT(G$12,2),Datastore!$G:$G)*$AL90+SUMIF(Datastore!$A:$A,$AC90&$AD90&$AI90&"|"&G$13&"|"&"FY"&RIGHT(G$12,2),Datastore!$G:$G)*$AL90+SUMIF(Datastore!$A:$A,$AC90&$AD90&$AJ90&"|"&G$13&"|"&"FY"&RIGHT(G$12,2),Datastore!$G:$G)*$AM90+SUMIF(Datastore!$A:$A,$AC90&$AD90&$AK90&"|"&G$13&"|"&"FY"&RIGHT(G$12,2),Datastore!$G:$G)*$AM90)/1000 -> 7389.23334 | H90: =(SUMIF(Datastore!$A:$A,$AC90&$AD90&$AF90&"|"&H$13&"|"&"FY"&RIGHT(H$12,2),Datastore!$G:$G)*$AL90+SUMIF(Datastore!$A:$A,$AC90&$AD90&$AG90&"|"&H$13&"|"&"FY"&RIGHT(H$12,2),Datastore!$G:$G)*$AL90+SUMIF(Datastore!$A:$A,$AC90&$AD90&$AH90&"|"&H$13&"|"&"FY"&RIGHT(H$12,2),Datastore!$G:$G)*$AL90+SUMIF(Datastore!$A:$A,$AC90&$AD90&$AI90&"|"&H$13&"|"&"FY"&RIGHT(H$12,2),Datastore!$G:$G)*$AL90+SUMIF(Datastore!$A:$A,$AC90&$AD90&$AJ90&"|"&H$13&"|"&"FY"&RIGHT(H$12,2),Datastore!$G:$G)*$AM90+SUMIF(Datastore!$A:$A,$AC90&$AD90&$AK90&"|"&H$13&"|"&"FY"&RIGHT(H$12,2),Datastore!$G:$G)*$AM90)/1000 -> 6466.39289 | I90: =(SUMIF(Datastore!$A:$A,$AC90&$AD90&$AF90&"|"&I$13&"|"&"FY"&RIGHT(I$12,2),Datastore!$G:$G)*$AL90+SUMIF(Datastore!$A:$A,$AC90&$AD90&$AG90&"|"&I$13&"|"&"FY"&RIGHT(I$12,2),Datastore!$G:$G)*$AL90+SUMIF(Datastore!$A:$A,$AC90&$AD90&$AH90&"|"&I$13&"|"&"FY"&RIGHT(I$12,2),Datastore!$G:$G)*$AL90+SUMIF(Datastore!$A:$A,$AC90&$AD90&$AI90&"|"&I$13&"|"&"FY"&RIGHT(I$12,2),Datastore!$G:$G)*$AL90+SUMIF(Datastore!$A:$A,$AC90&$AD90&$AJ90&"|"&I$13&"|"&"FY"&RIGHT(I$12,2),Datastore!$G:$G)*$AM90+SUMIF(Datastore!$A:$A,$AC90&$AD90&$AK90&"|"&I$13&"|"&"FY"&RIGHT(I$12,2),Datastore!$G:$G)*$AM90)/1000 -> 8781.866534 | J90: =(SUMIF(Datastore!$A:$A,$AC90&$AD90&$AF90&"|"&J$13&"|"&"FY"&RIGHT(J$12,2),Datastore!$G:$G)*$AL90+SUMIF(Datastore!$A:$A,$AC90&$AD90&$AG90&"|"&J$13&"|"&"FY"&RIGHT(J$12,2),Datastore!$G:$G)*$AL90+SUMIF(Datastore!$A:$A,$AC90&$AD90&$AH90&"|"&J$13&"|"&"FY"&RIGHT(J$12,2),Datastore!$G:$G)*$AL90+SUMIF(Datastore!$A:$A,$AC90&$AD90&$AI90&"|"&J$13&"|"&"FY"&RIGHT(J$12,2),Datastore!$G:$G)*$AL90+SUMIF(Datastore!$A:$A,$AC90&$AD90&$AJ90&"|"&J$13&"|"&"FY"&RIGHT(J$12,2),Datastore!$G:$G)*$AM90+SUMIF(Datastore!$A:$A,$AC90&$AD90&$AK90&"|"&J$13&"|"&"FY"&RIGHT(J$12,2),Datastore!$G:$G)*$AM90)/1000 -> 8341.525836 | AC90: 86 | AD90: 1 | AF90: |RU?? | AG90: |RR?? | AH90: |ROOI | AI90: |x | AJ90: |x | AK90: |x | AL90: -1 | AM90: 1
C91: =C55 -> Other core water services | E91: $'000
C93: =C57 -> Revenue from wastewater services:
C94: =C58 -> Wastewater via sewer | E94: $'000 | F94: =(SUMIF(Datastore!$A:$A,$AC94&$AD94&$AF94&"|"&F$13&"|"&"FY"&RIGHT(F$12,2),Datastore!$G:$G)*$AL94+SUMIF(Datastore!$A:$A,$AC94&$AD94&$AG94&"|"&F$13&"|"&"FY"&RIGHT(F$12,2),Datastore!$G:$G)*$AL94+SUMIF(Datastore!$A:$A,$AC94&$AD94&$AH94&"|"&F$13&"|"&"FY"&RIGHT(F$12,2),Datastore!$G:$G)*$AL94+SUMIF(Datastore!$A:$A,$AC94&$AD94&$AI94&"|"&F$13&"|"&"FY"&RIGHT(F$12,2),Datastore!$G:$G)*$AL94+SUMIF(Datastore!$A:$A,$AC94&$AD94&$AJ94&"|"&F$13&"|"&"FY"&RIGHT(F$12,2),Datastore!$G:$G)*$AM94+SUMIF(Datastore!$A:$A,$AC94&$AD94&$AK94&"|"&F$13&"|"&"FY"&RIGHT(F$12,2),Datastore!$G:$G)*$AM94)/1000 -> 1963.95775 | G94: =(SUMIF(Datastore!$A:$A,$AC94&$AD94&$AF94&"|"&G$13&"|"&"FY"&RIGHT(G$12,2),Datastore!$G:$G)*$AL94+SUMIF(Datastore!$A:$A,$AC94&$AD94&$AG94&"|"&G$13&"|"&"FY"&RIGHT(G$12,2),Datastore!$G:$G)*$AL94+SUMIF(Datastore!$A:$A,$AC94&$AD94&$AH94&"|"&G$13&"|"&"FY"&RIGHT(G$12,2),Datastore!$G:$G)*$AL94+SUMIF(Datastore!$A:$A,$AC94&$AD94&$AI94&"|"&G$13&"|"&"FY"&RIGHT(G$12,2),Datastore!$G:$G)*$AL94+SUMIF(Datastore!$A:$A,$AC94&$AD94&$AJ94&"|"&G$13&"|"&"FY"&RIGHT(G$12,2),Datastore!$G:$G)*$AM94+SUMIF(Datastore!$A:$A,$AC94&$AD94&$AK94&"|"&G$13&"|"&"FY"&RIGHT(G$12,2),Datastore!$G:$G)*$AM94)/1000 -> 2169.72493 | H94: =(SUMIF(Datastore!$A:$A,$AC94&$AD94&$AF94&"|"&H$13&"|"&"FY"&RIGHT(H$12,2),Datastore!$G:$G)*$AL94+SUMIF(Datastore!$A:$A,$AC94&$AD94&$AG94&"|"&H$13&"|"&"FY"&RIGHT(H$12,2),Datastore!$G:$G)*$AL94+SUMIF(Datastore!$A:$A,$AC94&$AD94&$AH94&"|"&H$13&"|"&"FY"&RIGHT(H$12,2),Datastore!$G:$G)*$AL94+SUMIF(Datastore!$A:$A,$AC94&$AD94&$AI94&"|"&H$13&"|"&"FY"&RIGHT(H$12,2),Datastore!$G:$G)*$AL94+SUMIF(Datastore!$A:$A,$AC94&$AD94&$AJ94&"|"&H$13&"|"&"FY"&RIGHT(H$12,2),Datastore!$G:$G)*$AM94+SUMIF(Datastore!$A:$A,$AC94&$AD94&$AK94&"|"&H$13&"|"&"FY"&RIGHT(H$12,2),Datastore!$G:$G)*$AM94)/1000 -> 2412.99266 | I94: =(SUMIF(Datastore!$A:$A,$AC94&$AD94&$AF94&"|"&I$13&"|"&"FY"&RIGHT(I$12,2),Datastore!$G:$G)*$AL94+SUMIF(Datastore!$A:$A,$AC94&$AD94&$AG94&"|"&I$13&"|"&"FY"&RIGHT(I$12,2),Datastore!$G:$G)*$AL94+SUMIF(Datastore!$A:$A,$AC94&$AD94&$AH94&"|"&I$13&"|"&"FY"&RIGHT(I$12,2),Datastore!$G:$G)*$AL94+SUMIF(Datastore!$A:$A,$AC94&$AD94&$AI94&"|"&I$13&"|"&"FY"&RIGHT(I$12,2),Datastore!$G:$G)*$AL94+SUMIF(Datastore!$A:$A,$AC94&$AD94&$AJ94&"|"&I$13&"|"&"FY"&RIGHT(I$12,2),Datastore!$G:$G)*$AM94+SUMIF(Datastore!$A:$A,$AC94&$AD94&$AK94&"|"&I$13&"|"&"FY"&RIGHT(I$12,2),Datastore!$G:$G)*$AM94)/1000 -> 2386.653127 | J94: =(SUMIF(Datastore!$A:$A,$AC94&$AD94&$AF94&"|"&J$13&"|"&"FY"&RIGHT(J$12,2),Datastore!$G:$G)*$AL94+SUMIF(Datastore!$A:$A,$AC94&$AD94&$AG94&"|"&J$13&"|"&"FY"&RIGHT(J$12,2),Datastore!$G:$G)*$AL94+SUMIF(Datastore!$A:$A,$AC94&$AD94&$AH94&"|"&J$13&"|"&"FY"&RIGHT(J$12,2),Datastore!$G:$G)*$AL94+SUMIF(Datastore!$A:$A,$AC94&$AD94&$AI94&"|"&J$13&"|"&"FY"&RIGHT(J$12,2),Datastore!$G:$G)*$AL94+SUMIF(Datastore!$A:$A,$AC94&$AD94&$AJ94&"|"&J$13&"|"&"FY"&RIGHT(J$12,2),Datastore!$G:$G)*$AM94+SUMIF(Datastore!$A:$A,$AC94&$AD94&$AK94&"|"&J$13&"|"&"FY"&RIGHT(J$12,2),Datastore!$G:$G)*$AM94)/1000 -> 2669.609401 | AC94: 86 | AD94: 2 | AF94: |RU?? | AG94: |RR?? | AH94: |ROOI | AI94: |x | AJ94: |RUTW | AK94: |RURW | AL94: -1 | AM94: 1
C95: =C59 -> Trade waste | E95: $'000 | F95: =(SUMIF(Datastore!$A:$A,$AC95&$AD95&$AF95&"|"&F$13&"|"&"FY"&RIGHT(F$12,2),Datastore!$G:$G)*$AL95+SUMIF(Datastore!$A:$A,$AC95&$AD95&$AG95&"|"&F$13&"|"&"FY"&RIGHT(F$12,2),Datastore!$G:$G)*$AL95+SUMIF(Datastore!$A:$A,$AC95&$AD95&$AH95&"|"&F$13&"|"&"FY"&RIGHT(F$12,2),Datastore!$G:$G)*$AL95+SUMIF(Datastore!$A:$A,$AC95&$AD95&$AI95&"|"&F$13&"|"&"FY"&RIGHT(F$12,2),Datastore!$G:$G)*$AL95+SUMIF(Datastore!$A:$A,$AC95&$AD95&$AJ95&"|"&F$13&"|"&"FY"&RIGHT(F$12,2),Datastore!$G:$G)*$AM95+SUMIF(Datastore!$A:$A,$AC95&$AD95&$AK95&"|"&F$13&"|"&"FY"&RIGHT(F$12,2),Datastore!$G:$G)*$AM95)/1000 -> 0 | G95: =(SUMIF(Datastore!$A:$A,$AC95&$AD95&$AF95&"|"&G$13&"|"&"FY"&RIGHT(G$12,2),Datastore!$G:$G)*$AL95+SUMIF(Datastore!$A:$A,$AC95&$AD95&$AG95&"|"&G$13&"|"&"FY"&RIGHT(G$12,2),Datastore!$G:$G)*$AL95+SUMIF(Datastore!$A:$A,$AC95&$AD95&$AH95&"|"&G$13&"|"&"FY"&RIGHT(G$12,2),Datastore!$G:$G)*$AL95+SUMIF(Datastore!$A:$A,$AC95&$AD95&$AI95&"|"&G$13&"|"&"FY"&RIGHT(G$12,2),Datastore!$G:$G)*$AL95+SUMIF(Datastore!$A:$A,$AC95&$AD95&$AJ95&"|"&G$13&"|"&"FY"&RIGHT(G$12,2),Datastore!$G:$G)*$AM95+SUMIF(Datastore!$A:$A,$AC95&$AD95&$AK95&"|"&G$13&"|"&"FY"&RIGHT(G$12,2),Datastore!$G:$G)*$AM95)/1000 -> 0 | H95: =(SUMIF(Datastore!$A:$A,$AC95&$AD95&$AF95&"|"&H$13&"|"&"FY"&RIGHT(H$12,2),Datastore!$G:$G)*$AL95+SUMIF(Datastore!$A:$A,$AC95&$AD95&$AG95&"|"&H$13&"|"&"FY"&RIGHT(H$12,2),Datastore!$G:$G)*$AL95+SUMIF(Datastore!$A:$A,$AC95&$AD95&$AH95&"|"&H$13&"|"&"FY"&RIGHT(H$12,2),Datastore!$G:$G)*$AL95+SUMIF(Datastore!$A:$A,$AC95&$AD95&$AI95&"|"&H$13&"|"&"FY"&RIGHT(H$12,2),Datastore!$G:$G)*$AL95+SUMIF(Datastore!$A:$A,$AC95&$AD95&$AJ95&"|"&H$13&"|"&"FY"&RIGHT(H$12,2),Datastore!$G:$G)*$AM95+SUMIF(Datastore!$A:$A,$AC95&$AD95&$AK95&"|"&H$13&"|"&"FY"&RIGHT(H$12,2),Datastore!$G:$G)*$AM95)/1000 -> 0 | I95: =(SUMIF(Datastore!$A:$A,$AC95&$AD95&$AF95&"|"&I$13&"|"&"FY"&RIGHT(I$12,2),Datastore!$G:$G)*$AL95+SUMIF(Datastore!$A:$A,$AC95&$AD95&$AG95&"|"&I$13&"|"&"FY"&RIGHT(I$12,2),Datastore!$G:$G)*$AL95+SUMIF(Datastore!$A:$A,$AC95&$AD95&$AH95&"|"&I$13&"|"&"FY"&RIGHT(I$12,2),Datastore!$G:$G)*$AL95+SUMIF(Datastore!$A:$A,$AC95&$AD95&$AI95&"|"&I$13&"|"&"FY"&RIGHT(I$12,2),Datastore!$G:$G)*$AL95+SUMIF(Datastore!$A:$A,$AC95&$AD95&$AJ95&"|"&I$13&"|"&"FY"&RIGHT(I$12,2),Datastore!$G:$G)*$AM95+SUMIF(Datastore!$A:$A,$AC95&$AD95&$AK95&"|"&I$13&"|"&"FY"&RIGHT(I$12,2),Datastore!$G:$G)*$AM95)/1000 -> 0 | J95: =(SUMIF(Datastore!$A:$A,$AC95&$AD95&$AF95&"|"&J$13&"|"&"FY"&RIGHT(J$12,2),Datastore!$G:$G)*$AL95+SUMIF(Datastore!$A:$A,$AC95&$AD95&$AG95&"|"&J$13&"|"&"FY"&RIGHT(J$12,2),Datastore!$G:$G)*$AL95+SUMIF(Datastore!$A:$A,$AC95&$AD95&$AH95&"|"&J$13&"|"&"FY"&RIGHT(J$12,2),Datastore!$G:$G)*$AL95+SUMIF(Datastore!$A:$A,$AC95&$AD95&$AI95&"|"&J$13&"|"&"FY"&RIGHT(J$12,2),Datastore!$G:$G)*$AL95+SUMIF(Datastore!$A:$A,$AC95&$AD95&$AJ95&"|"&J$13&"|"&"FY"&RIGHT(J$12,2),Datastore!$G:$G)*$AM95+SUMIF(Datastore!$A:$A,$AC95&$AD95&$AK95&"|"&J$13&"|"&"FY"&RIGHT(J$12,2),Datastore!$G:$G)*$AM95)/1000 -> 0 | AC95: 86 | AD95: 2 | AF95: |RUTW | AG95: |x | AH95: |x | AI95: |x | AJ95: |x | AK95: |x | AL95: -1 | AM95: 1
C96: =C60 -> Other core wastewater services | E96: $'000 | F96: =(SUMIF(Datastore!$A:$A,$AC96&$AD96&$AF96&"|"&F$13&"|"&"FY"&RIGHT(F$12,2),Datastore!$G:$G)*$AL96+SUMIF(Datastore!$A:$A,$AC96&$AD96&$AG96&"|"&F$13&"|"&"FY"&RIGHT(F$12,2),Datastore!$G:$G)*$AL96+SUMIF(Datastore!$A:$A,$AC96&$AD96&$AH96&"|"&F$13&"|"&"FY"&RIGHT(F$12,2),Datastore!$G:$G)*$AL96+SUMIF(Datastore!$A:$A,$AC96&$AD96&$AI96&"|"&F$13&"|"&"FY"&RIGHT(F$12,2),Datastore!$G:$G)*$AL96+SUMIF(Datastore!$A:$A,$AC96&$AD96&$AJ96&"|"&F$13&"|"&"FY"&RIGHT(F$12,2),Datastore!$G:$G)*$AM96+SUMIF(Datastore!$A:$A,$AC96&$AD96&$AK96&"|"&F$13&"|"&"FY"&RIGHT(F$12,2),Datastore!$G:$G)*$AM96)/1000 -> 0 | G96: =(SUMIF(Datastore!$A:$A,$AC96&$AD96&$AF96&"|"&G$13&"|"&"FY"&RIGHT(G$12,2),Datastore!$G:$G)*$AL96+SUMIF(Datastore!$A:$A,$AC96&$AD96&$AG96&"|"&G$13&"|"&"FY"&RIGHT(G$12,2),Datastore!$G:$G)*$AL96+SUMIF(Datastore!$A:$A,$AC96&$AD96&$AH96&"|"&G$13&"|"&"FY"&RIGHT(G$12,2),Datastore!$G:$G)*$AL96+SUMIF(Datastore!$A:$A,$AC96&$AD96&$AI96&"|"&G$13&"|"&"FY"&RIGHT(G$12,2),Datastore!$G:$G)*$AL96+SUMIF(Datastore!$A:$A,$AC96&$AD96&$AJ96&"|"&G$13&"|"&"FY"&RIGHT(G$12,2),Datastore!$G:$G)*$AM96+SUMIF(Datastore!$A:$A,$AC96&$AD96&$AK96&"|"&G$13&"|"&"FY"&RIGHT(G$12,2),Datastore!$G:$G)*$AM96)/1000 -> 0 | H96: =(SUMIF(Datastore!$A:$A,$AC96&$AD96&$AF96&"|"&H$13&"|"&"FY"&RIGHT(H$12,2),Datastore!$G:$G)*$AL96+SUMIF(Datastore!$A:$A,$AC96&$AD96&$AG96&"|"&H$13&"|"&"FY"&RIGHT(H$12,2),Datastore!$G:$G)*$AL96+SUMIF(Datastore!$A:$A,$AC96&$AD96&$AH96&"|"&H$13&"|"&"FY"&RIGHT(H$12,2),Datastore!$G:$G)*$AL96+SUMIF(Datastore!$A:$A,$AC96&$AD96&$AI96&"|"&H$13&"|"&"FY"&RIGHT(H$12,2),Datastore!$G:$G)*$AL96+SUMIF(Datastore!$A:$A,$AC96&$AD96&$AJ96&"|"&H$13&"|"&"FY"&RIGHT(H$12,2),Datastore!$G:$G)*$AM96+SUMIF(Datastore!$A:$A,$AC96&$AD96&$AK96&"|"&H$13&"|"&"FY"&RIGHT(H$12,2),Datastore!$G:$G)*$AM96)/1000 -> 0 | I96: =(SUMIF(Datastore!$A:$A,$AC96&$AD96&$AF96&"|"&I$13&"|"&"FY"&RIGHT(I$12,2),Datastore!$G:$G)*$AL96+SUMIF(Datastore!$A:$A,$AC96&$AD96&$AG96&"|"&I$13&"|"&"FY"&RIGHT(I$12,2),Datastore!$G:$G)*$AL96+SUMIF(Datastore!$A:$A,$AC96&$AD96&$AH96&"|"&I$13&"|"&"FY"&RIGHT(I$12,2),Datastore!$G:$G)*$AL96+SUMIF(Datastore!$A:$A,$AC96&$AD96&$AI96&"|"&I$13&"|"&"FY"&RIGHT(I$12,2),Datastore!$G:$G)*$AL96+SUMIF(Datastore!$A:$A,$AC96&$AD96&$AJ96&"|"&I$13&"|"&"FY"&RIGHT(I$12,2),Datastore!$G:$G)*$AM96+SUMIF(Datastore!$A:$A,$AC96&$AD96&$AK96&"|"&I$13&"|"&"FY"&RIGHT(I$12,2),Datastore!$G:$G)*$AM96)/1000 -> 0 | J96: =(SUMIF(Datastore!$A:$A,$AC96&$AD96&$AF96&"|"&J$13&"|"&"FY"&RIGHT(J$12,2),Datastore!$G:$G)*$AL96+SUMIF(Datastore!$A:$A,$AC96&$AD96&$AG96&"|"&J$13&"|"&"FY"&RIGHT(J$12,2),Datastore!$G:$G)*$AL96+SUMIF(Datastore!$A:$A,$AC96&$AD96&$AH96&"|"&J$13&"|"&"FY"&RIGHT(J$12,2),Datastore!$G:$G)*$AL96+SUMIF(Datastore!$A:$A,$AC96&$AD96&$AI96&"|"&J$13&"|"&"FY"&RIGHT(J$12,2),Datastore!$G:$G)*$AL96+SUMIF(Datastore!$A:$A,$AC96&$AD96&$AJ96&"|"&J$13&"|"&"FY"&RIGHT(J$12,2),Datastore!$G:$G)*$AM96+SUMIF(Datastore!$A:$A,$AC96&$AD96&$AK96&"|"&J$13&"|"&"FY"&RIGHT(J$12,2),Datastore!$G:$G)*$AM96)/1000 -> 0 | AC96: 86 | AD96: 2 | AF96: |RURW | AG96: |x | AH96: |x | AI96: |x | AJ96: |x | AK96: |x | AL96: -1 | AM96: 1
C98: =C62 -> Non-regulated:
C99: =C63 -> Aggregate non-regulated services | E99: $'000 | F99: =(SUMIF(Datastore!$A:$A,$AC99&$AD99&$AF99&"|"&F$13&"|"&"FY"&RIGHT(F$12,2),Datastore!$G:$G)*$AL99+SUMIF(Datastore!$A:$A,$AC99&$AD99&$AG99&"|"&F$13&"|"&"FY"&RIGHT(F$12,2),Datastore!$G:$G)*$AL99+SUMIF(Datastore!$A:$A,$AC99&$AD99&$AH99&"|"&F$13&"|"&"FY"&RIGHT(F$12,2),Datastore!$G:$G)*$AL99+SUMIF(Datastore!$A:$A,$AC99&$AD99&$AI99&"|"&F$13&"|"&"FY"&RIGHT(F$12,2),Datastore!$G:$G)*$AL99+SUMIF(Datastore!$A:$A,$AC99&$AD99&$AJ99&"|"&F$13&"|"&"FY"&RIGHT(F$12,2),Datastore!$G:$G)*$AM99+SUMIF(Datastore!$A:$A,$AC99&$AD99&$AK99&"|"&F$13&"|"&"FY"&RIGHT(F$12,2),Datastore!$G:$G)*$AM99)/1000 -> 0 | G99: =(SUMIF(Datastore!$A:$A,$AC99&$AD99&$AF99&"|"&G$13&"|"&"FY"&RIGHT(G$12,2),Datastore!$G:$G)*$AL99+SUMIF(Datastore!$A:$A,$AC99&$AD99&$AG99&"|"&G$13&"|"&"FY"&RIGHT(G$12,2),Datastore!$G:$G)*$AL99+SUMIF(Datastore!$A:$A,$AC99&$AD99&$AH99&"|"&G$13&"|"&"FY"&RIGHT(G$12,2),Datastore!$G:$G)*$AL99+SUMIF(Datastore!$A:$A,$AC99&$AD99&$AI99&"|"&G$13&"|"&"FY"&RIGHT(G$12,2),Datastore!$G:$G)*$AL99+SUMIF(Datastore!$A:$A,$AC99&$AD99&$AJ99&"|"&G$13&"|"&"FY"&RIGHT(G$12,2),Datastore!$G:$G)*$AM99+SUMIF(Datastore!$A:$A,$AC99&$AD99&$AK99&"|"&G$13&"|"&"FY"&RIGHT(G$12,2),Datastore!$G:$G)*$AM99)/1000 -> 0 | H99: =(SUMIF(Datastore!$A:$A,$AC99&$AD99&$AF99&"|"&H$13&"|"&"FY"&RIGHT(H$12,2),Datastore!$G:$G)*$AL99+SUMIF(Datastore!$A:$A,$AC99&$AD99&$AG99&"|"&H$13&"|"&"FY"&RIGHT(H$12,2),Datastore!$G:$G)*$AL99+SUMIF(Datastore!$A:$A,$AC99&$AD99&$AH99&"|"&H$13&"|"&"FY"&RIGHT(H$12,2),Datastore!$G:$G)*$AL99+SUMIF(Datastore!$A:$A,$AC99&$AD99&$AI99&"|"&H$13&"|"&"FY"&RIGHT(H$12,2),Datastore!$G:$G)*$AL99+SUMIF(Datastore!$A:$A,$AC99&$AD99&$AJ99&"|"&H$13&"|"&"FY"&RIGHT(H$12,2),Datastore!$G:$G)*$AM99+SUMIF(Datastore!$A:$A,$AC99&$AD99&$AK99&"|"&H$13&"|"&"FY"&RIGHT(H$12,2),Datastore!$G:$G)*$AM99)/1000 -> 277.95918 | I99: =(SUMIF(Datastore!$A:$A,$AC99&$AD99&$AF99&"|"&I$13&"|"&"FY"&RIGHT(I$12,2),Datastore!$G:$G)*$AL99+SUMIF(Datastore!$A:$A,$AC99&$AD99&$AG99&"|"&I$13&"|"&"FY"&RIGHT(I$12,2),Datastore!$G:$G)*$AL99+SUMIF(Datastore!$A:$A,$AC99&$AD99&$AH99&"|"&I$13&"|"&"FY"&RIGHT(I$12,2),Datastore!$G:$G)*$AL99+SUMIF(Datastore!$A:$A,$AC99&$AD99&$AI99&"|"&I$13&"|"&"FY"&RIGHT(I$12,2),Datastore!$G:$G)*$AL99+SUMIF(Datastore!$A:$A,$AC99&$AD99&$AJ99&"|"&I$13&"|"&"FY"&RIGHT(I$12,2),Datastore!$G:$G)*$AM99+SUMIF(Datastore!$A:$A,$AC99&$AD99&$AK99&"|"&I$13&"|"&"FY"&RIGHT(I$12,2),Datastore!$G:$G)*$AM99)/1000 -> 0 | J99: =(SUMIF(Datastore!$A:$A,$AC99&$AD99&$AF99&"|"&J$13&"|"&"FY"&RIGHT(J$12,2),Datastore!$G:$G)*$AL99+SUMIF(Datastore!$A:$A,$AC99&$AD99&$AG99&"|"&J$13&"|"&"FY"&RIGHT(J$12,2),Datastore!$G:$G)*$AL99+SUMIF(Datastore!$A:$A,$AC99&$AD99&$AH99&"|"&J$13&"|"&"FY"&RIGHT(J$12,2),Datastore!$G:$G)*$AL99+SUMIF(Datastore!$A:$A,$AC99&$AD99&$AI99&"|"&J$13&"|"&"FY"&RIGHT(J$12,2),Datastore!$G:$G)*$AL99+SUMIF(Datastore!$A:$A,$AC99&$AD99&$AJ99&"|"&J$13&"|"&"FY"&RIGHT(J$12,2),Datastore!$G:$G)*$AM99+SUMIF(Datastore!$A:$A,$AC99&$AD99&$AK99&"|"&J$13&"|"&"FY"&RIGHT(J$12,2),Datastore!$G:$G)*$AM99)/1000 -> 0 | AC99: 86 | AD99: 4 | AF99: |R??? | AG99: |x | AH99: |x | AI99: |x | AJ99: |x | AK99: |x | AL99: -1 | AM99: 1
C101: =C65 -> Subtotal Revenue from Services | E101: $'000 | F101: =SUM(F90:F91)+SUM(F94:F96)+F99 -> 8367.36425 | G101: =SUM(G90:G91)+SUM(G94:G96)+G99 -> 9558.95827 | H101: 9157.34473 | I101: 11168.51966 | J101: 11011.13524 | K101: =SUM(K90:K91)+SUM(K94:K96)+K99 -> 0 | L101: 0 | M101: 0 | N101: 0 | O101: 0 | P101: 0 | Q101: 0 | R101: 0 | S101: 0 | T101: 0 | U101: 0 | V101: 0 | W101: 0 | X101: 0 | Y101: 0
B103: =B67 -> OTHER REVENUE
C104: =C68 -> Other Revenue Offset Against Revenue Requirements:
C105: =C69 -> Investment Income | E105: $'000 | F105: =(SUMIF(Datastore!$A:$A,$AC105&$AD105&$AF105&"|"&F$13&"|"&"FY"&RIGHT(F$12,2),Datastore!$G:$G)+SUMIF(Datastore!$A:$A,$AC105&$AE105&$AF105&"|"&F$13&"|"&"FY"&RIGHT(F$12,2),Datastore!$G:$G))*$AL105/1000 -> 0 | G105: =(SUMIF(Datastore!$A:$A,$AC105&$AD105&$AF105&"|"&G$13&"|"&"FY"&RIGHT(G$12,2),Datastore!$G:$G)+SUMIF(Datastore!$A:$A,$AC105&$AE105&$AF105&"|"&G$13&"|"&"FY"&RIGHT(G$12,2),Datastore!$G:$G))*$AL105/1000 -> 0 | H105: =(SUMIF(Datastore!$A:$A,$AC105&$AD105&$AF105&"|"&H$13&"|"&"FY"&RIGHT(H$12,2),Datastore!$G:$G)+SUMIF(Datastore!$A:$A,$AC105&$AE105&$AF105&"|"&H$13&"|"&"FY"&RIGHT(H$12,2),Datastore!$G:$G))*$AL105/1000 -> 0 | I105: =(SUMIF(Datastore!$A:$A,$AC105&$AD105&$AF105&"|"&I$13&"|"&"FY"&RIGHT(I$12,2),Datastore!$G:$G)+SUMIF(Datastore!$A:$A,$AC105&$AE105&$AF105&"|"&I$13&"|"&"FY"&RIGHT(I$12,2),Datastore!$G:$G))*$AL105/1000 -> 0 | J105: =(SUMIF(Datastore!$A:$A,$AC105&$AD105&$AF105&"|"&J$13&"|"&"FY"&RIGHT(J$12,2),Datastore!$G:$G)+SUMIF(Datastore!$A:$A,$AC105&$AE105&$AF105&"|"&J$13&"|"&"FY"&RIGHT(J$12,2),Datastore!$G:$G))*$AL105/1000 -> 0 | AC105: 86 | AD105: 1 | AE105: 2 | AF105: |RFIN | AL105: -1
C106: =C70 -> Net profit from Sale of Assets | E106: $'000 | F106: =(SUMIF(Datastore!$A:$A,$AC106&$AD106&$AF106&"|"&F$13&"|"&"FY"&RIGHT(F$12,2),Datastore!$G:$G)+SUMIF(Datastore!$A:$A,$AC106&$AE106&$AF106&"|"&F$13&"|"&"FY"&RIGHT(F$12,2),Datastore!$G:$G))*$AL106/1000 -> 0 | G106: =(SUMIF(Datastore!$A:$A,$AC106&$AD106&$AF106&"|"&G$13&"|"&"FY"&RIGHT(G$12,2),Datastore!$G:$G)+SUMIF(Datastore!$A:$A,$AC106&$AE106&$AF106&"|"&G$13&"|"&"FY"&RIGHT(G$12,2),Datastore!$G:$G))*$AL106/1000 -> 0 | AA106: Not forecast for regulatory purposes | AC106: 86 | AD106: 1 | AE106: 2 | AF106: |ELOD | AL106: -1
C107: =C71 -> Contributions | E107: $'000 | F107: =(SUMIF(Datastore!$A:$A,$AC107&$AD107&$AF107&"|"&F$13&"|"&"FY"&RIGHT(F$12,2),Datastore!$G:$G)+SUMIF(Datastore!$A:$A,$AC107&$AE107&$AF107&"|"&F$13&"|"&"FY"&RIGHT(F$12,2),Datastore!$G:$G))*$AL107/1000 -> 3828.10058 | G107: =(SUMIF(Datastore!$A:$A,$AC107&$AD107&$AF107&"|"&G$13&"|"&"FY"&RIGHT(G$12,2),Datastore!$G:$G)+SUMIF(Datastore!$A:$A,$AC107&$AE107&$AF107&"|"&G$13&"|"&"FY"&RIGHT(G$12,2),Datastore!$G:$G))*$AL107/1000 -> 3247.74947 | H107: =(SUMIF(Datastore!$A:$A,$AC107&$AD107&$AF107&"|"&H$13&"|"&"FY"&RIGHT(H$12,2),Datastore!$G:$G)+SUMIF(Datastore!$A:$A,$AC107&$AE107&$AF107&"|"&H$13&"|"&"FY"&RIGHT(H$12,2),Datastore!$G:$G))*$AL107/1000 -> 1106.89166 | I107: =(SUMIF(Datastore!$A:$A,$AC107&$AD107&$AF107&"|"&I$13&"|"&"FY"&RIGHT(I$12,2),Datastore!$G:$G)+SUMIF(Datastore!$A:$A,$AC107&$AE107&$AF107&"|"&I$13&"|"&"FY"&RIGHT(I$12,2),Datastore!$G:$G))*$AL107/1000 -> 3245.632666 | J107: =(SUMIF(Datastore!$A:$A,$AC107&$AD107&$AF107&"|"&J$13&"|"&"FY"&RIGHT(J$12,2),Datastore!$G:$G)+SUMIF(Datastore!$A:$A,$AC107&$AE107&$AF107&"|"&J$13&"|"&"FY"&RIGHT(J$12,2),Datastore!$G:$G))*$AL107/1000 -> 4217.638349 | AC107: 86 | AD107: 1 | AE107: 2 | AF107: |RC?? | AL107: -1
C109: =C73 -> Other Revenue Not Offset Against Revenue Requirements:
C110: =C74 -> Non-recurrent Income | E110: $'000 | F110: =(SUMIF(Datastore!$A:$A,$AC110&$AD110&$AF110&"|"&F$13&"|"&"FY"&RIGHT(F$12,2),Datastore!$G:$G)+SUMIF(Datastore!$A:$A,$AC110&$AE110&$AF110&"|"&F$13&"|"&"FY"&RIGHT(F$12,2),Datastore!$G:$G))*$AL110/1000 -> 0 | G110: =(SUMIF(Datastore!$A:$A,$AC110&$AD110&$AF110&"|"&G$13&"|"&"FY"&RIGHT(G$12,2),Datastore!$G:$G)+SUMIF(Datastore!$A:$A,$AC110&$AE110&$AF110&"|"&G$13&"|"&"FY"&RIGHT(G$12,2),Datastore!$G:$G))*$AL110/1000 -> 0 | H110: =(SUMIF(Datastore!$A:$A,$AC110&$AD110&$AF110&"|"&H$13&"|"&"FY"&RIGHT(H$12,2),Datastore!$G:$G)+SUMIF(Datastore!$A:$A,$AC110&$AE110&$AF110&"|"&H$13&"|"&"FY"&RIGHT(H$12,2),Datastore!$G:$G))*$AL110/1000 -> 162.8068 | I110: =(SUMIF(Datastore!$A:$A,$AC110&$AD110&$AF110&"|"&I$13&"|"&"FY"&RIGHT(I$12,2),Datastore!$G:$G)+SUMIF(Datastore!$A:$A,$AC110&$AE110&$AF110&"|"&I$13&"|"&"FY"&RIGHT(I$12,2),Datastore!$G:$G))*$AL110/1000 -> 0 | J110: =(SUMIF(Datastore!$A:$A,$AC110&$AD110&$AF110&"|"&J$13&"|"&"FY"&RIGHT(J$12,2),Datastore!$G:$G)+SUMIF(Datastore!$A:$A,$AC110&$AE110&$AF110&"|"&J$13&"|"&"FY"&RIGHT(J$12,2),Datastore!$G:$G))*$AL110/1000 -> 0 | AC110: 86 | AD110: 1 | AE110: 2 | AF110: |RNOT | AG110: |x | AH110: |x | AI110: |x | AJ110: |x | AK110: |x | AL110: -1 | AM110: 1
C111: =C75 -> Net profit from Sale of Assets | E111: $'000 | H111: =-'5.5.2'!H988 -> -56.98 | AA111: Non-recurrent - flood loss on disposal
C112: =C76 -> Contributions | E112: $'000
C114: =C78 -> Subtotal Other Revenue | E114: $'000 | F114: =SUM(F105:F107)+SUM(F110:F112) -> 3828.10058 | G114: 3247.74947 | H114: 1212.71846 | I114: 3245.632666 | J114: 4217.638349 | K114: =SUM(K105:K107)+SUM(K110:K112) -> 0 | L114: 0 | M114: 0 | N114: 0 | O114: 0 | P114: 0 | Q114: 0 | R114: 0 | S114: 0 | T114: 0 | U114: 0 | V114: 0 | W114: 0 | X114: 0 | Y114: 0
B116: =B80 -> TOTAL REVENUE | E116: $'000 | F116: =F114+F101 -> 12195.46483 | G116: =G114+G101 -> 12806.70774 | H116: 10370.06319 | I116: 14414.15233 | J116: 15228.77359 | K116: =K114+K101 -> 0 | L116: 0 | M116: 0 | N116: 0 | O116: 0 | P116: 0 | Q116: 0 | R116: 0 | S116: 0 | T116: 0 | U116: 0 | V116: 0 | W116: 0 | X116: 0 | Y116: 0
F119: =F83 -> For Year Ending 30 June: | AA119: =AA83 -> For Year Ending 30 June 2013
F120: =F84 -> 2009 | G120: =G84 -> 2010 | H120: =H84 -> 2011 | I120: =I84 -> 2012 | J120: =J84 -> 2013 | K120: =K84 -> 2014 | L120: 2015 | M120: 2016 | N120: 2017 | O120: 2018 | P120: 2019 | Q120: 2020 | R120: 2021 | S120: 2022 | T120: 2023 | U120: 2024 | V120: 2025 | W120: 2026 | X120: 2027 | Y120: 2028 | AA120: =AA84 -> Supporting Documents | AT120: =AS120 -> 
B122: ="Geographical Area 4 - "&'Business Details'!$D$15 -> Geographical Area 4 - Scenic Rim
B124: =B88 -> REVENUE FROM SERVICES
C125: =C89 -> Revenue from water services:
C126: =C90 -> Drinking water | E126: $'000 | F126: =(SUMIF(Datastore!$A:$A,$AC126&$AD126&$AF126&"|"&F$13&"|"&"FY"&RIGHT(F$12,2),Datastore!$G:$G)*$AL126+SUMIF(Datastore!$A:$A,$AC126&$AD126&$AG126&"|"&F$13&"|"&"FY"&RIGHT(F$12,2),Datastore!$G:$G)*$AL126+SUMIF(Datastore!$A:$A,$AC126&$AD126&$AH126&"|"&F$13&"|"&"FY"&RIGHT(F$12,2),Datastore!$G:$G)*$AL126+SUMIF(Datastore!$A:$A,$AC126&$AD126&$AI126&"|"&F$13&"|"&"FY"&RIGHT(F$12,2),Datastore!$G:$G)*$AL126+SUMIF(Datastore!$A:$A,$AC126&$AD126&$AJ126&"|"&F$13&"|"&"FY"&RIGHT(F$12,2),Datastore!$G:$G)*$AM126+SUMIF(Datastore!$A:$A,$AC126&$AD126&$AK126&"|"&F$13&"|"&"FY"&RIGHT(F$12,2),Datastore!$G:$G)*$AM126)/1000 -> 5334.451329 | G126: =(SUMIF(Datastore!$A:$A,$AC126&$AD126&$AF126&"|"&G$13&"|"&"FY"&RIGHT(G$12,2),Datastore!$G:$G)*$AL126+SUMIF(Datastore!$A:$A,$AC126&$AD126&$AG126&"|"&G$13&"|"&"FY"&RIGHT(G$12,2),Datastore!$G:$G)*$AL126+SUMIF(Datastore!$A:$A,$AC126&$AD126&$AH126&"|"&G$13&"|"&"FY"&RIGHT(G$12,2),Datastore!$G:$G)*$AL126+SUMIF(Datastore!$A:$A,$AC126&$AD126&$AI126&"|"&G$13&"|"&"FY"&RIGHT(G$12,2),Datastore!$G:$G)*$AL126+SUMIF(Datastore!$A:$A,$AC126&$AD126&$AJ126&"|"&G$13&"|"&"FY"&RIGHT(G$12,2),Datastore!$G:$G)*$AM126+SUMIF(Datastore!$A:$A,$AC126&$AD126&$AK126&"|"&G$13&"|"&"FY"&RIGHT(G$12,2),Datastore!$G:$G)*$AM126)/1000 -> 6685.535854 | H126: =(SUMIF(Datastore!$A:$A,$AC126&$AD126&$AF126&"|"&H$13&"|"&"FY"&RIGHT(H$12,2),Datastore!$G:$G)*$AL126+SUMIF(Datastore!$A:$A,$AC126&$AD126&$AG126&"|"&H$13&"|"&"FY"&RIGHT(H$12,2),Datastore!$G:$G)*$AL126+SUMIF(Datastore!$A:$A,$AC126&$AD126&$AH126&"|"&H$13&"|"&"FY"&RIGHT(H$12,2),Datastore!$G:$G)*$AL126+SUMIF(Datastore!$A:$A,$AC126&$AD126&$AI126&"|"&H$13&"|"&"FY"&RIGHT(H$12,2),Datastore!$G:$G)*$AL126+SUMIF(Datastore!$A:$A,$AC126&$AD126&$AJ126&"|"&H$13&"|"&"FY"&RIGHT(H$12,2),Datastore!$G:$G)*$AM126+SUMIF(Datastore!$A:$A,$AC126&$AD126&$AK126&"|"&H$13&"|"&"FY"&RIGHT(H$12,2),Datastore!$G:$G)*$AM126)/1000 -> 5779.28817 | I126: =(SUMIF(Datastore!$A:$A,$AC126&$AD126&$AF126&"|"&I$13&"|"&"FY"&RIGHT(I$12,2),Datastore!$G:$G)*$AL126+SUMIF(Datastore!$A:$A,$AC126&$AD126&$AG126&"|"&I$13&"|"&"FY"&RIGHT(I$12,2),Datastore!$G:$G)*$AL126+SUMIF(Datastore!$A:$A,$AC126&$AD126&$AH126&"|"&I$13&"|"&"FY"&RIGHT(I$12,2),Datastore!$G:$G)*$AL126+SUMIF(Datastore!$A:$A,$AC126&$AD126&$AI126&"|"&I$13&"|"&"FY"&RIGHT(I$12,2),Datastore!$G:$G)*$AL126+SUMIF(Datastore!$A:$A,$AC126&$AD126&$AJ126&"|"&I$13&"|"&"FY"&RIGHT(I$12,2),Datastore!$G:$G)*$AM126+SUMIF(Datastore!$A:$A,$AC126&$AD126&$AK126&"|"&I$13&"|"&"FY"&RIGHT(I$12,2),Datastore!$G:$G)*$AM126)/1000 -> 6185.372169 | J126: =(SUMIF(Datastore!$A:$A,$AC126&$AD126&$AF126&"|"&J$13&"|"&"FY"&RIGHT(J$12,2),Datastore!$G:$G)*$AL126+SUMIF(Datastore!$A:$A,$AC126&$AD126&$AG126&"|"&J$13&"|"&"FY"&RIGHT(J$12,2),Datastore!$G:$G)*$AL126+SUMIF(Datastore!$A:$A,$AC126&$AD126&$AH126&"|"&J$13&"|"&"FY"&RIGHT(J$12,2),Datastore!$G:$G)*$AL126+SUMIF(Datastore!$A:$A,$AC126&$AD126&$AI126&"|"&J$13&"|"&"FY"&RIGHT(J$12,2),Datastore!$G:$G)*$AL126+SUMIF(Datastore!$A:$A,$AC126&$AD126&$AJ126&"|"&J$13&"|"&"FY"&RIGHT(J$12,2),Datastore!$G:$G)*$AM126+SUMIF(Datastore!$A:$A,$AC126&$AD126&$AK126&"|"&J$13&"|"&"FY"&RIGHT(J$12,2),Datastore!$G:$G)*$AM126)/1000 -> 6515.495589 | AC126: 87 | AD126: 1 | AF126: |RU?? | AG126: |RR?? | AH126: |ROOI | AI126: |x | AJ126: |x | AK126: |x | AL126: -1 | AM126: 1
C127: =C91 -> Other core water services | E127: $'000
C129: =C93 -> Revenue from wastewater services:
C130: =C94 -> Wastewater via sewer | E130: $'000 | F130: =(SUMIF(Datastore!$A:$A,$AC130&$AD130&$AF130&"|"&F$13&"|"&"FY"&RIGHT(F$12,2),Datastore!$G:$G)*$AL130+SUMIF(Datastore!$A:$A,$AC130&$AD130&$AG130&"|"&F$13&"|"&"FY"&RIGHT(F$12,2),Datastore!$G:$G)*$AL130+SUMIF(Datastore!$A:$A,$AC130&$AD130&$AH130&"|"&F$13&"|"&"FY"&RIGHT(F$12,2),Datastore!$G:$G)*$AL130+SUMIF(Datastore!$A:$A,$AC130&$AD130&$AI130&"|"&F$13&"|"&"FY"&RIGHT(F$12,2),Datastore!$G:$G)*$AL130+SUMIF(Datastore!$A:$A,$AC130&$AD130&$AJ130&"|"&F$13&"|"&"FY"&RIGHT(F$12,2),Datastore!$G:$G)*$AM130+SUMIF(Datastore!$A:$A,$AC130&$AD130&$AK130&"|"&F$13&"|"&"FY"&RIGHT(F$12,2),Datastore!$G:$G)*$AM130)/1000 -> 2584.696841 | G130: =(SUMIF(Datastore!$A:$A,$AC130&$AD130&$AF130&"|"&G$13&"|"&"FY"&RIGHT(G$12,2),Datastore!$G:$G)*$AL130+SUMIF(Datastore!$A:$A,$AC130&$AD130&$AG130&"|"&G$13&"|"&"FY"&RIGHT(G$12,2),Datastore!$G:$G)*$AL130+SUMIF(Datastore!$A:$A,$AC130&$AD130&$AH130&"|"&G$13&"|"&"FY"&RIGHT(G$12,2),Datastore!$G:$G)*$AL130+SUMIF(Datastore!$A:$A,$AC130&$AD130&$AI130&"|"&G$13&"|"&"FY"&RIGHT(G$12,2),Datastore!$G:$G)*$AL130+SUMIF(Datastore!$A:$A,$AC130&$AD130&$AJ130&"|"&G$13&"|"&"FY"&RIGHT(G$12,2),Datastore!$G:$G)*$AM130+SUMIF(Datastore!$A:$A,$AC130&$AD130&$AK130&"|"&G$13&"|"&"FY"&RIGHT(G$12,2),Datastore!$G:$G)*$AM130)/1000 -> 3040.411976 | H130: =(SUMIF(Datastore!$A:$A,$AC130&$AD130&$AF130&"|"&H$13&"|"&"FY"&RIGHT(H$12,2),Datastore!$G:$G)*$AL130+SUMIF(Datastore!$A:$A,$AC130&$AD130&$AG130&"|"&H$13&"|"&"FY"&RIGHT(H$12,2),Datastore!$G:$G)*$AL130+SUMIF(Datastore!$A:$A,$AC130&$AD130&$AH130&"|"&H$13&"|"&"FY"&RIGHT(H$12,2),Datastore!$G:$G)*$AL130+SUMIF(Datastore!$A:$A,$AC130&$AD130&$AI130&"|"&H$13&"|"&"FY"&RIGHT(H$12,2),Datastore!$G:$G)*$AL130+SUMIF(Datastore!$A:$A,$AC130&$AD130&$AJ130&"|"&H$13&"|"&"FY"&RIGHT(H$12,2),Datastore!$G:$G)*$AM130+SUMIF(Datastore!$A:$A,$AC130&$AD130&$AK130&"|"&H$13&"|"&"FY"&RIGHT(H$12,2),Datastore!$G:$G)*$AM130)/1000 -> 3047.68419 | I130: =(SUMIF(Datastore!$A:$A,$AC130&$AD130&$AF130&"|"&I$13&"|"&"FY"&RIGHT(I$12,2),Datastore!$G:$G)*$AL130+SUMIF(Datastore!$A:$A,$AC130&$AD130&$AG130&"|"&I$13&"|"&"FY"&RIGHT(I$12,2),Datastore!$G:$G)*$AL130+SUMIF(Datastore!$A:$A,$AC130&$AD130&$AH130&"|"&I$13&"|"&"FY"&RIGHT(I$12,2),Datastore!$G:$G)*$AL130+SUMIF(Datastore!$A:$A,$AC130&$AD130&$AI130&"|"&I$13&"|"&"FY"&RIGHT(I$12,2),Datastore!$G:$G)*$AL130+SUMIF(Datastore!$A:$A,$AC130&$AD130&$AJ130&"|"&I$13&"|"&"FY"&RIGHT(I$12,2),Datastore!$G:$G)*$AM130+SUMIF(Datastore!$A:$A,$AC130&$AD130&$AK130&"|"&I$13&"|"&"FY"&RIGHT(I$12,2),Datastore!$G:$G)*$AM130)/1000 -> 3290.912079 | J130: =(SUMIF(Datastore!$A:$A,$AC130&$AD130&$AF130&"|"&J$13&"|"&"FY"&RIGHT(J$12,2),Datastore!$G:$G)*$AL130+SUMIF(Datastore!$A:$A,$AC130&$AD130&$AG130&"|"&J$13&"|"&"FY"&RIGHT(J$12,2),Datastore!$G:$G)*$AL130+SUMIF(Datastore!$A:$A,$AC130&$AD130&$AH130&"|"&J$13&"|"&"FY"&RIGHT(J$12,2),Datastore!$G:$G)*$AL130+SUMIF(Datastore!$A:$A,$AC130&$AD130&$AI130&"|"&J$13&"|"&"FY"&RIGHT(J$12,2),Datastore!$G:$G)*$AL130+SUMIF(Datastore!$A:$A,$AC130&$AD130&$AJ130&"|"&J$13&"|"&"FY"&RIGHT(J$12,2),Datastore!$G:$G)*$AM130+SUMIF(Datastore!$A:$A,$AC130&$AD130&$AK130&"|"&J$13&"|"&"FY"&RIGHT(J$12,2),Datastore!$G:$G)*$AM130)/1000 -> 3311.019023 | AC130: 87 | AD130: 2 | AF130: |RU?? | AG130: |RR?? | AH130: |ROOI | AI130: |x | AJ130: |RUTW | AK130: |RURW | AL130: -1 | AM130: 1
C131: =C95 -> Trade waste | E131: $'000 | F131: =(SUMIF(Datastore!$A:$A,$AC131&$AD131&$AF131&"|"&F$13&"|"&"FY"&RIGHT(F$12,2),Datastore!$G:$G)*$AL131+SUMIF(Datastore!$A:$A,$AC131&$AD131&$AG131&"|"&F$13&"|"&"FY"&RIGHT(F$12,2),Datastore!$G:$G)*$AL131+SUMIF(Datastore!$A:$A,$AC131&$AD131&$AH131&"|"&F$13&"|"&"FY"&RIGHT(F$12,2),Datastore!$G:$G)*$AL131+SUMIF(Datastore!$A:$A,$AC131&$AD131&$AI131&"|"&F$13&"|"&"FY"&RIGHT(F$12,2),Datastore!$G:$G)*$AL131+SUMIF(Datastore!$A:$A,$AC131&$AD131&$AJ131&"|"&F$13&"|"&"FY"&RIGHT(F$12,2),Datastore!$G:$G)*$AM131+SUMIF(Datastore!$A:$A,$AC131&$AD131&$AK131&"|"&F$13&"|"&"FY"&RIGHT(F$12,2),Datastore!$G:$G)*$AM131)/1000 -> 0 | G131: =(SUMIF(Datastore!$A:$A,$AC131&$AD131&$AF131&"|"&G$13&"|"&"FY"&RIGHT(G$12,2),Datastore!$G:$G)*$AL131+SUMIF(Datastore!$A:$A,$AC131&$AD131&$AG131&"|"&G$13&"|"&"FY"&RIGHT(G$12,2),Datastore!$G:$G)*$AL131+SUMIF(Datastore!$A:$A,$AC131&$AD131&$AH131&"|"&G$13&"|"&"FY"&RIGHT(G$12,2),Datastore!$G:$G)*$AL131+SUMIF(Datastore!$A:$A,$AC131&$AD131&$AI131&"|"&G$13&"|"&"FY"&RIGHT(G$12,2),Datastore!$G:$G)*$AL131+SUMIF(Datastore!$A:$A,$AC131&$AD131&$AJ131&"|"&G$13&"|"&"FY"&RIGHT(G$12,2),Datastore!$G:$G)*$AM131+SUMIF(Datastore!$A:$A,$AC131&$AD131&$AK131&"|"&G$13&"|"&"FY"&RIGHT(G$12,2),Datastore!$G:$G)*$AM131)/1000 -> 0 | H131: =(SUMIF(Datastore!$A:$A,$AC131&$AD131&$AF131&"|"&H$13&"|"&"FY"&RIGHT(H$12,2),Datastore!$G:$G)*$AL131+SUMIF(Datastore!$A:$A,$AC131&$AD131&$AG131&"|"&H$13&"|"&"FY"&RIGHT(H$12,2),Datastore!$G:$G)*$AL131+SUMIF(Datastore!$A:$A,$AC131&$AD131&$AH131&"|"&H$13&"|"&"FY"&RIGHT(H$12,2),Datastore!$G:$G)*$AL131+SUMIF(Datastore!$A:$A,$AC131&$AD131&$AI131&"|"&H$13&"|"&"FY"&RIGHT(H$12,2),Datastore!$G:$G)*$AL131+SUMIF(Datastore!$A:$A,$AC131&$AD131&$AJ131&"|"&H$13&"|"&"FY"&RIGHT(H$12,2),Datastore!$G:$G)*$AM131+SUMIF(Datastore!$A:$A,$AC131&$AD131&$AK131&"|"&H$13&"|"&"FY"&RIGHT(H$12,2),Datastore!$G:$G)*$AM131)/1000 -> 0 | I131: =(SUMIF(Datastore!$A:$A,$AC131&$AD131&$AF131&"|"&I$13&"|"&"FY"&RIGHT(I$12,2),Datastore!$G:$G)*$AL131+SUMIF(Datastore!$A:$A,$AC131&$AD131&$AG131&"|"&I$13&"|"&"FY"&RIGHT(I$12,2),Datastore!$G:$G)*$AL131+SUMIF(Datastore!$A:$A,$AC131&$AD131&$AH131&"|"&I$13&"|"&"FY"&RIGHT(I$12,2),Datastore!$G:$G)*$AL131+SUMIF(Datastore!$A:$A,$AC131&$AD131&$AI131&"|"&I$13&"|"&"FY"&RIGHT(I$12,2),Datastore!$G:$G)*$AL131+SUMIF(Datastore!$A:$A,$AC131&$AD131&$AJ131&"|"&I$13&"|"&"FY"&RIGHT(I$12,2),Datastore!$G:$G)*$AM131+SUMIF(Datastore!$A:$A,$AC131&$AD131&$AK131&"|"&I$13&"|"&"FY"&RIGHT(I$12,2),Datastore!$G:$G)*$AM131)/1000 -> 0 | J131: =(SUMIF(Datastore!$A:$A,$AC131&$AD131&$AF131&"|"&J$13&"|"&"FY"&RIGHT(J$12,2),Datastore!$G:$G)*$AL131+SUMIF(Datastore!$A:$A,$AC131&$AD131&$AG131&"|"&J$13&"|"&"FY"&RIGHT(J$12,2),Datastore!$G:$G)*$AL131+SUMIF(Datastore!$A:$A,$AC131&$AD131&$AH131&"|"&J$13&"|"&"FY"&RIGHT(J$12,2),Datastore!$G:$G)*$AL131+SUMIF(Datastore!$A:$A,$AC131&$AD131&$AI131&"|"&J$13&"|"&"FY"&RIGHT(J$12,2),Datastore!$G:$G)*$AL131+SUMIF(Datastore!$A:$A,$AC131&$AD131&$AJ131&"|"&J$13&"|"&"FY"&RIGHT(J$12,2),Datastore!$G:$G)*$AM131+SUMIF(Datastore!$A:$A,$AC131&$AD131&$AK131&"|"&J$13&"|"&"FY"&RIGHT(J$12,2),Datastore!$G:$G)*$AM131)/1000 -> 0 | AC131: 87 | AD131: 2 | AF131: |RUTW | AG131: |x | AH131: |x | AI131: |x | AJ131: |x | AK131: |x | AL131: -1 | AM131: 1
C132: =C96 -> Other core wastewater services | E132: $'000 | F132: =(SUMIF(Datastore!$A:$A,$AC132&$AD132&$AF132&"|"&F$13&"|"&"FY"&RIGHT(F$12,2),Datastore!$G:$G)*$AL132+SUMIF(Datastore!$A:$A,$AC132&$AD132&$AG132&"|"&F$13&"|"&"FY"&RIGHT(F$12,2),Datastore!$G:$G)*$AL132+SUMIF(Datastore!$A:$A,$AC132&$AD132&$AH132&"|"&F$13&"|"&"FY"&RIGHT(F$12,2),Datastore!$G:$G)*$AL132+SUMIF(Datastore!$A:$A,$AC132&$AD132&$AI132&"|"&F$13&"|"&"FY"&RIGHT(F$12,2),Datastore!$G:$G)*$AL132+SUMIF(Datastore!$A:$A,$AC132&$AD132&$AJ132&"|"&F$13&"|"&"FY"&RIGHT(F$12,2),Datastore!$G:$G)*$AM132+SUMIF(Datastore!$A:$A,$AC132&$AD132&$AK132&"|"&F$13&"|"&"FY"&RIGHT(F$12,2),Datastore!$G:$G)*$AM132)/1000 -> 0 | G132: =(SUMIF(Datastore!$A:$A,$AC132&$AD132&$AF132&"|"&G$13&"|"&"FY"&RIGHT(G$12,2),Datastore!$G:$G)*$AL132+SUMIF(Datastore!$A:$A,$AC132&$AD132&$AG132&"|"&G$13&"|"&"FY"&RIGHT(G$12,2),Datastore!$G:$G)*$AL132+SUMIF(Datastore!$A:$A,$AC132&$AD132&$AH132&"|"&G$13&"|"&"FY"&RIGHT(G$12,2),Datastore!$G:$G)*$AL132+SUMIF(Datastore!$A:$A,$AC132&$AD132&$AI132&"|"&G$13&"|"&"FY"&RIGHT(G$12,2),Datastore!$G:$G)*$AL132+SUMIF(Datastore!$A:$A,$AC132&$AD132&$AJ132&"|"&G$13&"|"&"FY"&RIGHT(G$12,2),Datastore!$G:$G)*$AM132+SUMIF(Datastore!$A:$A,$AC132&$AD132&$AK132&"|"&G$13&"|"&"FY"&RIGHT(G$12,2),Datastore!$G:$G)*$AM132)/1000 -> 0 | H132: =(SUMIF(Datastore!$A:$A,$AC132&$AD132&$AF132&"|"&H$13&"|"&"FY"&RIGHT(H$12,2),Datastore!$G:$G)*$AL132+SUMIF(Datastore!$A:$A,$AC132&$AD132&$AG132&"|"&H$13&"|"&"FY"&RIGHT(H$12,2),Datastore!$G:$G)*$AL132+SUMIF(Datastore!$A:$A,$AC132&$AD132&$AH132&"|"&H$13&"|"&"FY"&RIGHT(H$12,2),Datastore!$G:$G)*$AL132+SUMIF(Datastore!$A:$A,$AC132&$AD132&$AI132&"|"&H$13&"|"&"FY"&RIGHT(H$12,2),Datastore!$G:$G)*$AL132+SUMIF(Datastore!$A:$A,$AC132&$AD132&$AJ132&"|"&H$13&"|"&"FY"&RIGHT(H$12,2),Datastore!$G:$G)*$AM132+SUMIF(Datastore!$A:$A,$AC132&$AD132&$AK132&"|"&H$13&"|"&"FY"&RIGHT(H$12,2),Datastore!$G:$G)*$AM132)/1000 -> 0 | I132: =(SUMIF(Datastore!$A:$A,$AC132&$AD132&$AF132&"|"&I$13&"|"&"FY"&RIGHT(I$12,2),Datastore!$G:$G)*$AL132+SUMIF(Datastore!$A:$A,$AC132&$AD132&$AG132&"|"&I$13&"|"&"FY"&RIGHT(I$12,2),Datastore!$G:$G)*$AL132+SUMIF(Datastore!$A:$A,$AC132&$AD132&$AH132&"|"&I$13&"|"&"FY"&RIGHT(I$12,2),Datastore!$G:$G)*$AL132+SUMIF(Datastore!$A:$A,$AC132&$AD132&$AI132&"|"&I$13&"|"&"FY"&RIGHT(I$12,2),Datastore!$G:$G)*$AL132+SUMIF(Datastore!$A:$A,$AC132&$AD132&$AJ132&"|"&I$13&"|"&"FY"&RIGHT(I$12,2),Datastore!$G:$G)*$AM132+SUMIF(Datastore!$A:$A,$AC132&$AD132&$AK132&"|"&I$13&"|"&"FY"&RIGHT(I$12,2),Datastore!$G:$G)*$AM132)/1000 -> 0 | J132: =(SUMIF(Datastore!$A:$A,$AC132&$AD132&$AF132&"|"&J$13&"|"&"FY"&RIGHT(J$12,2),Datastore!$G:$G)*$AL132+SUMIF(Datastore!$A:$A,$AC132&$AD132&$AG132&"|"&J$13&"|"&"FY"&RIGHT(J$12,2),Datastore!$G:$G)*$AL132+SUMIF(Datastore!$A:$A,$AC132&$AD132&$AH132&"|"&J$13&"|"&"FY"&RIGHT(J$12,2),Datastore!$G:$G)*$AL132+SUMIF(Datastore!$A:$A,$AC132&$AD132&$AI132&"|"&J$13&"|"&"FY"&RIGHT(J$12,2),Datastore!$G:$G)*$AL132+SUMIF(Datastore!$A:$A,$AC132&$AD132&$AJ132&"|"&J$13&"|"&"FY"&RIGHT(J$12,2),Datastore!$G:$G)*$AM132+SUMIF(Datastore!$A:$A,$AC132&$AD132&$AK132&"|"&J$13&"|"&"FY"&RIGHT(J$12,2),Datastore!$G:$G)*$AM132)/1000 -> 0 | AC132: 87 | AD132: 2 | AF132: |RURW | AG132: |x | AH132: |x | AI132: |x | AJ132: |x | AK132: |x | AL132: -1 | AM132: 1
C134: =C98 -> Non-regulated:
C135: =C99 -> Aggregate non-regulated services | E135: $'000 | F135: =(SUMIF(Datastore!$A:$A,$AC135&$AD135&$AF135&"|"&F$13&"|"&"FY"&RIGHT(F$12,2),Datastore!$G:$G)*$AL135+SUMIF(Datastore!$A:$A,$AC135&$AD135&$AG135&"|"&F$13&"|"&"FY"&RIGHT(F$12,2),Datastore!$G:$G)*$AL135+SUMIF(Datastore!$A:$A,$AC135&$AD135&$AH135&"|"&F$13&"|"&"FY"&RIGHT(F$12,2),Datastore!$G:$G)*$AL135+SUMIF(Datastore!$A:$A,$AC135&$AD135&$AI135&"|"&F$13&"|"&"FY"&RIGHT(F$12,2),Datastore!$G:$G)*$AL135+SUMIF(Datastore!$A:$A,$AC135&$AD135&$AJ135&"|"&F$13&"|"&"FY"&RIGHT(F$12,2),Datastore!$G:$G)*$AM135+SUMIF(Datastore!$A:$A,$AC135&$AD135&$AK135&"|"&F$13&"|"&"FY"&RIGHT(F$12,2),Datastore!$G:$G)*$AM135)/1000 -> 0 | G135: =(SUMIF(Datastore!$A:$A,$AC135&$AD135&$AF135&"|"&G$13&"|"&"FY"&RIGHT(G$12,2),Datastore!$G:$G)*$AL135+SUMIF(Datastore!$A:$A,$AC135&$AD135&$AG135&"|"&G$13&"|"&"FY"&RIGHT(G$12,2),Datastore!$G:$G)*$AL135+SUMIF(Datastore!$A:$A,$AC135&$AD135&$AH135&"|"&G$13&"|"&"FY"&RIGHT(G$12,2),Datastore!$G:$G)*$AL135+SUMIF(Datastore!$A:$A,$AC135&$AD135&$AI135&"|"&G$13&"|"&"FY"&RIGHT(G$12,2),Datastore!$G:$G)*$AL135+SUMIF(Datastore!$A:$A,$AC135&$AD135&$AJ135&"|"&G$13&"|"&"FY"&RIGHT(G$12,2),Datastore!$G:$G)*$AM135+SUMIF(Datastore!$A:$A,$AC135&$AD135&$AK135&"|"&G$13&"|"&"FY"&RIGHT(G$12,2),Datastore!$G:$G)*$AM135)/1000 -> 0 | H135: =(SUMIF(Datastore!$A:$A,$AC135&$AD135&$AF135&"|"&H$13&"|"&"FY"&RIGHT(H$12,2),Datastore!$G:$G)*$AL135+SUMIF(Datastore!$A:$A,$AC135&$AD135&$AG135&"|"&H$13&"|"&"FY"&RIGHT(H$12,2),Datastore!$G:$G)*$AL135+SUMIF(Datastore!$A:$A,$AC135&$AD135&$AH135&"|"&H$13&"|"&"FY"&RIGHT(H$12,2),Datastore!$G:$G)*$AL135+SUMIF(Datastore!$A:$A,$AC135&$AD135&$AI135&"|"&H$13&"|"&"FY"&RIGHT(H$12,2),Datastore!$G:$G)*$AL135+SUMIF(Datastore!$A:$A,$AC135&$AD135&$AJ135&"|"&H$13&"|"&"FY"&RIGHT(H$12,2),Datastore!$G:$G)*$AM135+SUMIF(Datastore!$A:$A,$AC135&$AD135&$AK135&"|"&H$13&"|"&"FY"&RIGHT(H$12,2),Datastore!$G:$G)*$AM135)/1000 -> 209.45406 | I135: =(SUMIF(Datastore!$A:$A,$AC135&$AD135&$AF135&"|"&I$13&"|"&"FY"&RIGHT(I$12,2),Datastore!$G:$G)*$AL135+SUMIF(Datastore!$A:$A,$AC135&$AD135&$AG135&"|"&I$13&"|"&"FY"&RIGHT(I$12,2),Datastore!$G:$G)*$AL135+SUMIF(Datastore!$A:$A,$AC135&$AD135&$AH135&"|"&I$13&"|"&"FY"&RIGHT(I$12,2),Datastore!$G:$G)*$AL135+SUMIF(Datastore!$A:$A,$AC135&$AD135&$AI135&"|"&I$13&"|"&"FY"&RIGHT(I$12,2),Datastore!$G:$G)*$AL135+SUMIF(Datastore!$A:$A,$AC135&$AD135&$AJ135&"|"&I$13&"|"&"FY"&RIGHT(I$12,2),Datastore!$G:$G)*$AM135+SUMIF(Datastore!$A:$A,$AC135&$AD135&$AK135&"|"&I$13&"|"&"FY"&RIGHT(I$12,2),Datastore!$G:$G)*$AM135)/1000 -> 0 | J135: =(SUMIF(Datastore!$A:$A,$AC135&$AD135&$AF135&"|"&J$13&"|"&"FY"&RIGHT(J$12,2),Datastore!$G:$G)*$AL135+SUMIF(Datastore!$A:$A,$AC135&$AD135&$AG135&"|"&J$13&"|"&"FY"&RIGHT(J$12,2),Datastore!$G:$G)*$AL135+SUMIF(Datastore!$A:$A,$AC135&$AD135&$AH135&"|"&J$13&"|"&"FY"&RIGHT(J$12,2),Datastore!$G:$G)*$AL135+SUMIF(Datastore!$A:$A,$AC135&$AD135&$AI135&"|"&J$13&"|"&"FY"&RIGHT(J$12,2),Datastore!$G:$G)*$AL135+SUMIF(Datastore!$A:$A,$AC135&$AD135&$AJ135&"|"&J$13&"|"&"FY"&RIGHT(J$12,2),Datastore!$G:$G)*$AM135+SUMIF(Datastore!$A:$A,$AC135&$AD135&$AK135&"|"&J$13&"|"&"FY"&RIGHT(J$12,2),Datastore!$G:$G)*$AM135)/1000 -> 0 | AC135: 87 | AD135: 4 | AF135: |R??? | AG135: |x | AH135: |x | AI135: |x | AJ135: |x | AK135: |x | AL135: -1 | AM135: 1
C137: =C101 -> Subtotal Revenue from Services | E137: $'000 | F137: =SUM(F126:F127)+SUM(F130:F132)+F135 -> 7919.14817 | G137: =SUM(G126:G127)+SUM(G130:G132)+G135 -> 9725.94783 | H137: 9036.42642 | I137: 9476.284248 | J137: 9826.514612 | K137: =SUM(K126:K127)+SUM(K130:K132)+K135 -> 0 | L137: 0 | M137: 0 | N137: 0 | O137: 0 | P137: 0 | Q137: 0 | R137: 0 | S137: 0 | T137: 0 | U137: 0 | V137: 0 | W137: 0 | X137: 0 | Y137: 0
B139: =B103 -> OTHER REVENUE
C140: =C104 -> Other Revenue Offset Against Revenue Requirements:
C141: =C105 -> Investment Income | E141: $'000 | F141: =(SUMIF(Datastore!$A:$A,$AC141&$AD141&$AF141&"|"&F$13&"|"&"FY"&RIGHT(F$12,2),Datastore!$G:$G)+SUMIF(Datastore!$A:$A,$AC141&$AE141&$AF141&"|"&F$13&"|"&"FY"&RIGHT(F$12,2),Datastore!$G:$G))*$AL141/1000 -> 0 | G141: =(SUMIF(Datastore!$A:$A,$AC141&$AD141&$AF141&"|"&G$13&"|"&"FY"&RIGHT(G$12,2),Datastore!$G:$G)+SUMIF(Datastore!$A:$A,$AC141&$AE141&$AF141&"|"&G$13&"|"&"FY"&RIGHT(G$12,2),Datastore!$G:$G))*$AL141/1000 -> 0 | H141: =(SUMIF(Datastore!$A:$A,$AC141&$AD141&$AF141&"|"&H$13&"|"&"FY"&RIGHT(H$12,2),Datastore!$G:$G)+SUMIF(Datastore!$A:$A,$AC141&$AE141&$AF141&"|"&H$13&"|"&"FY"&RIGHT(H$12,2),Datastore!$G:$G))*$AL141/1000 -> 0 | I141: =(SUMIF(Datastore!$A:$A,$AC141&$AD141&$AF141&"|"&I$13&"|"&"FY"&RIGHT(I$12,2),Datastore!$G:$G)+SUMIF(Datastore!$A:$A,$AC141&$AE141&$AF141&"|"&I$13&"|"&"FY"&RIGHT(I$12,2),Datastore!$G:$G))*$AL141/1000 -> 0 | J141: =(SUMIF(Datastore!$A:$A,$AC141&$AD141&$AF141&"|"&J$13&"|"&"FY"&RIGHT(J$12,2),Datastore!$G:$G)+SUMIF(Datastore!$A:$A,$AC141&$AE141&$AF141&"|"&J$13&"|"&"FY"&RIGHT(J$12,2),Datastore!$G:$G))*$AL141/1000 -> 0 | AC141: 87 | AD141: 1 | AE141: 2 | AF141: |RFIN | AL141: -1
C142: =C106 -> Net profit from Sale of Assets | E142: $'000 | F142: =(SUMIF(Datastore!$A:$A,$AC142&$AD142&$AF142&"|"&F$13&"|"&"FY"&RIGHT(F$12,2),Datastore!$G:$G)+SUMIF(Datastore!$A:$A,$AC142&$AE142&$AF142&"|"&F$13&"|"&"FY"&RIGHT(F$12,2),Datastore!$G:$G))*$AL142/1000 -> 0 | G142: =(SUMIF(Datastore!$A:$A,$AC142&$AD142&$AF142&"|"&G$13&"|"&"FY"&RIGHT(G$12,2),Datastore!$G:$G)+SUMIF(Datastore!$A:$A,$AC142&$AE142&$AF142&"|"&G$13&"|"&"FY"&RIGHT(G$12,2),Datastore!$G:$G))*$AL142/1000 -> -102.47079 | AA142: Not forecast for regulatory purposes | AC142: 87 | AD142: 1 | AE142: 2 | AF142: |ELOD | AL142: -1
C143: =C107 -> Contributions | E143: $'000 | F143: =(SUMIF(Datastore!$A:$A,$AC143&$AD143&$AF143&"|"&F$13&"|"&"FY"&RIGHT(F$12,2),Datastore!$G:$G)+SUMIF(Datastore!$A:$A,$AC143&$AE143&$AF143&"|"&F$13&"|"&"FY"&RIGHT(F$12,2),Datastore!$G:$G))*$AL143/1000 -> 4391.213 | G143: =(SUMIF(Datastore!$A:$A,$AC143&$AD143&$AF143&"|"&G$13&"|"&"FY"&RIGHT(G$12,2),Datastore!$G:$G)+SUMIF(Datastore!$A:$A,$AC143&$AE143&$AF143&"|"&G$13&"|"&"FY"&RIGHT(G$12,2),Datastore!$G:$G))*$AL143/1000 -> 2316.5625 | H143: =(SUMIF(Datastore!$A:$A,$AC143&$AD143&$AF143&"|"&H$13&"|"&"FY"&RIGHT(H$12,2),Datastore!$G:$G)+SUMIF(Datastore!$A:$A,$AC143&$AE143&$AF143&"|"&H$13&"|"&"FY"&RIGHT(H$12,2),Datastore!$G:$G))*$AL143/1000 -> 114.52654 | I143: =(SUMIF(Datastore!$A:$A,$AC143&$AD143&$AF143&"|"&I$13&"|"&"FY"&RIGHT(I$12,2),Datastore!$G:$G)+SUMIF(Datastore!$A:$A,$AC143&$AE143&$AF143&"|"&I$13&"|"&"FY"&RIGHT(I$12,2),Datastore!$G:$G))*$AL143/1000 -> 3126.941201 | J143: =(SUMIF(Datastore!$A:$A,$AC143&$AD143&$AF143&"|"&J$13&"|"&"FY"&RIGHT(J$12,2),Datastore!$G:$G)+SUMIF(Datastore!$A:$A,$AC143&$AE143&$AF143&"|"&J$13&"|"&"FY"&RIGHT(J$12,2),Datastore!$G:$G))*$AL143/1000 -> 3165.410853 | AC143: 87 | AD143: 1 | AE143: 2 | AF143: |RC?? | AL143: -1
C145: =C109 -> Other Revenue Not Offset Against Revenue Requirements:
C146: =C110 -> Non-recurrent Income | E146: $'000 | F146: =(SUMIF(Datastore!$A:$A,$AC146&$AD146&$AF146&"|"&F$13&"|"&"FY"&RIGHT(F$12,2),Datastore!$G:$G)+SUMIF(Datastore!$A:$A,$AC146&$AE146&$AF146&"|"&F$13&"|"&"FY"&RIGHT(F$12,2),Datastore!$G:$G))*$AL146/1000 -> 0 | G146: =(SUMIF(Datastore!$A:$A,$AC146&$AD146&$AF146&"|"&G$13&"|"&"FY"&RIGHT(G$12,2),Datastore!$G:$G)+SUMIF(Datastore!$A:$A,$AC146&$AE146&$AF146&"|"&G$13&"|"&"FY"&RIGHT(G$12,2),Datastore!$G:$G))*$AL146/1000 -> 0 | H146: =(SUMIF(Datastore!$A:$A,$AC146&$AD146&$AF146&"|"&H$13&"|"&"FY"&RIGHT(H$12,2),Datastore!$G:$G)+SUMIF(Datastore!$A:$A,$AC146&$AE146&$AF146&"|"&H$13&"|"&"FY"&RIGHT(H$12,2),Datastore!$G:$G))*$AL146/1000 -> 0 | I146: =(SUMIF(Datastore!$A:$A,$AC146&$AD146&$AF146&"|"&I$13&"|"&"FY"&RIGHT(I$12,2),Datastore!$G:$G)+SUMIF(Datastore!$A:$A,$AC146&$AE146&$AF146&"|"&I$13&"|"&"FY"&RIGHT(I$12,2),Datastore!$G:$G))*$AL146/1000 -> 0 | J146: =(SUMIF(Datastore!$A:$A,$AC146&$AD146&$AF146&"|"&J$13&"|"&"FY"&RIGHT(J$12,2),Datastore!$G:$G)+SUMIF(Datastore!$A:$A,$AC146&$AE146&$AF146&"|"&J$13&"|"&"FY"&RIGHT(J$12,2),Datastore!$G:$G))*$AL146/1000 -> 0 | AC146: 87 | AD146: 1 | AE146: 2 | AF146: |RNOT | AG146: |x | AH146: |x | AI146: |x | AJ146: |x | AK146: |x | AL146: -1 | AM146: 1
C147: =C111 -> Net profit from Sale of Assets | E147: $'000 | H147: =-'5.5.2'!H1473 -> -10.36 | AA147: Non-recurrent - flood loss on disposal
C148: =C112 -> Contributions | E148: $'000
C150: =C114 -> Subtotal Other Revenue | E150: $'000 | F150: =SUM(F141:F143)+SUM(F146:F148) -> 4391.213 | G150: 2214.09171 | H150: 104.16654 | I150: 3126.941201 | J150: 3165.410853 | K150: =SUM(K141:K143)+SUM(K146:K148) -> 0 | L150: 0 | M150: 0 | N150: 0 | O150: 0 | P150: 0 | Q150: 0 | R150: 0 | S150: 0 | T150: 0 | U150: 0 | V150: 0 | W150: 0 | X150: 0 | Y150: 0
B152: =B116 -> TOTAL REVENUE | E152: $'000 | F152: =F150+F137 -> 12310.36117 | G152: =G150+G137 -> 11940.03954 | H152: 9140.59296 | I152: 12603.22545 | J152: 12991.92546 | K152: =K150+K137 -> 0 | L152: 0 | M152: 0 | N152: 0 | O152: 0 | P152: 0 | Q152: 0 | R152: 0 | S152: 0 | T152: 0 | U152: 0 | V152: 0 | W152: 0 | X152: 0 | Y152: 0
F155: =F119 -> For Year Ending 30 June: | AA155: =AA119 -> For Year Ending 30 June 2013
F156: =F120 -> 2009 | G156: =G120 -> 2010 | H156: =H120 -> 2011 | I156: =I120 -> 2012 | J156: =J120 -> 2013 | K156: =K120 -> 2014 | L156: 2015 | M156: 2016 | N156: 2017 | O156: 2018 | P156: 2019 | Q156: 2020 | R156: 2021 | S156: 2022 | T156: 2023 | U156: 2024 | V156: 2025 | W156: 2026 | X156: 2027 | Y156: 2028 | AA156: =AA120 -> Supporting Documents | AT156: =AS156 -> 
B158: ="Geographical Area 5 - "&'Business Details'!$D$16 -> Geographical Area 5 - Somerset
B160: =B124 -> REVENUE FROM SERVICES | AG160: =Allocation!$K$157 -> 1
C161: =C125 -> Revenue from water services: | AG161: =Allocation!$K$157 -> 1
C162: =C126 -> Drinking water | E162: $'000 | F162: =(SUMIF(Datastore!$A:$A,$AC162&$AD162&$AF162&"|"&F$13&"|"&"FY"&RIGHT(F$12,2),Datastore!$G:$G)*$AL162+SUMIF(Datastore!$A:$A,$AC162&$AD162&$AG162&"|"&F$13&"|"&"FY"&RIGHT(F$12,2),Datastore!$G:$G)*$AL162+SUMIF(Datastore!$A:$A,$AC162&$AD162&$AH162&"|"&F$13&"|"&"FY"&RIGHT(F$12,2),Datastore!$G:$G)*$AL162+SUMIF(Datastore!$A:$A,$AC162&$AD162&$AI162&"|"&F$13&"|"&"FY"&RIGHT(F$12,2),Datastore!$G:$G)*$AL162+SUMIF(Datastore!$A:$A,$AC162&$AD162&$AJ162&"|"&F$13&"|"&"FY"&RIGHT(F$12,2),Datastore!$G:$G)*$AM162+SUMIF(Datastore!$A:$A,$AC162&$AD162&$AK162&"|"&F$13&"|"&"FY"&RIGHT(F$12,2),Datastore!$G:$G)*$AM162)/1000 -> 3781.11213 | G162: =(SUMIF(Datastore!$A:$A,$AC162&$AD162&$AF162&"|"&G$13&"|"&"FY"&RIGHT(G$12,2),Datastore!$G:$G)*$AL162+SUMIF(Datastore!$A:$A,$AC162&$AD162&$AG162&"|"&G$13&"|"&"FY"&RIGHT(G$12,2),Datastore!$G:$G)*$AL162+SUMIF(Datastore!$A:$A,$AC162&$AD162&$AH162&"|"&G$13&"|"&"FY"&RIGHT(G$12,2),Datastore!$G:$G)*$AL162+SUMIF(Datastore!$A:$A,$AC162&$AD162&$AI162&"|"&G$13&"|"&"FY"&RIGHT(G$12,2),Datastore!$G:$G)*$AL162+SUMIF(Datastore!$A:$A,$AC162&$AD162&$AJ162&"|"&G$13&"|"&"FY"&RIGHT(G$12,2),Datastore!$G:$G)*$AM162+SUMIF(Datastore!$A:$A,$AC162&$AD162&$AK162&"|"&G$13&"|"&"FY"&RIGHT(G$12,2),Datastore!$G:$G)*$AM162)/1000 -> 5046.16017 | H162: =(SUMIF(Datastore!$A:$A,$AC162&$AD162&$AF162&"|"&H$13&"|"&"FY"&RIGHT(H$12,2),Datastore!$G:$G)*$AL162+SUMIF(Datastore!$A:$A,$AC162&$AD162&$AG162&"|"&H$13&"|"&"FY"&RIGHT(H$12,2),Datastore!$G:$G)*$AL162+SUMIF(Datastore!$A:$A,$AC162&$AD162&$AH162&"|"&H$13&"|"&"FY"&RIGHT(H$12,2),Datastore!$G:$G)*$AL162+SUMIF(Datastore!$A:$A,$AC162&$AD162&$AI162&"|"&H$13&"|"&"FY"&RIGHT(H$12,2),Datastore!$G:$G)*$AL162+SUMIF(Datastore!$A:$A,$AC162&$AD162&$AJ162&"|"&H$13&"|"&"FY"&RIGHT(H$12,2),Datastore!$G:$G)*$AM162+SUMIF(Datastore!$A:$A,$AC162&$AD162&$AK162&"|"&H$13&"|"&"FY"&RIGHT(H$12,2),Datastore!$G:$G)*$AM162)/1000 -> 4242.36572 | I162: =(SUMIF(Datastore!$A:$A,$AC162&$AD162&$AF162&"|"&I$13&"|"&"FY"&RIGHT(I$12,2),Datastore!$G:$G)*$AL162+SUMIF(Datastore!$A:$A,$AC162&$AD162&$AG162&"|"&I$13&"|"&"FY"&RIGHT(I$12,2),Datastore!$G:$G)*$AL162+SUMIF(Datastore!$A:$A,$AC162&$AD162&$AH162&"|"&I$13&"|"&"FY"&RIGHT(I$12,2),Datastore!$G:$G)*$AL162+SUMIF(Datastore!$A:$A,$AC162&$AD162&$AI162&"|"&I$13&"|"&"FY"&RIGHT(I$12,2),Datastore!$G:$G)*$AL162+SUMIF(Datastore!$A:$A,$AC162&$AD162&$AJ162&"|"&I$13&"|"&"FY"&RIGHT(I$12,2),Datastore!$G:$G)*$AM162+SUMIF(Datastore!$A:$A,$AC162&$AD162&$AK162&"|"&I$13&"|"&"FY"&RIGHT(I$12,2),Datastore!$G:$G)*$AM162)/1000 -> 5000.215575 | J162: =(SUMIF(Datastore!$A:$A,$AC162&$AD162&$AF162&"|"&J$13&"|"&"FY"&RIGHT(J$12,2),Datastore!$G:$G)*$AL162+SUMIF(Datastore!$A:$A,$AC162&$AD162&$AG162&"|"&J$13&"|"&"FY"&RIGHT(J$12,2),Datastore!$G:$G)*$AL162+SUMIF(Datastore!$A:$A,$AC162&$AD162&$AH162&"|"&J$13&"|"&"FY"&RIGHT(J$12,2),Datastore!$G:$G)*$AL162+SUMIF(Datastore!$A:$A,$AC162&$AD162&$AI162&"|"&J$13&"|"&"FY"&RIGHT(J$12,2),Datastore!$G:$G)*$AL162+SUMIF(Datastore!$A:$A,$AC162&$AD162&$AJ162&"|"&J$13&"|"&"FY"&RIGHT(J$12,2),Datastore!$G:$G)*$AM162+SUMIF(Datastore!$A:$A,$AC162&$AD162&$AK162&"|"&J$13&"|"&"FY"&RIGHT(J$12,2),Datastore!$G:$G)*$AM162)/1000 -> 5763.543729 | AC162: 88 | AD162: 1 | AF162: |RU?? | AG162: =Allocation!$K$157 -> 1 | AH162: |ROOI | AI162: |x | AJ162: |x | AK162: |x | AL162: -1 | AM162: 1
C163: =C127 -> Other core water services | E163: $'000
C165: =C129 -> Revenue from wastewater services:
C166: =C130 -> Wastewater via sewer | E166: $'000 | F166: =(SUMIF(Datastore!$A:$A,$AC166&$AD166&$AF166&"|"&F$13&"|"&"FY"&RIGHT(F$12,2),Datastore!$G:$G)*$AL166+SUMIF(Datastore!$A:$A,$AC166&$AD166&$AG166&"|"&F$13&"|"&"FY"&RIGHT(F$12,2),Datastore!$G:$G)*$AL166+SUMIF(Datastore!$A:$A,$AC166&$AD166&$AH166&"|"&F$13&"|"&"FY"&RIGHT(F$12,2),Datastore!$G:$G)*$AL166+SUMIF(Datastore!$A:$A,$AC166&$AD166&$AI166&"|"&F$13&"|"&"FY"&RIGHT(F$12,2),Datastore!$G:$G)*$AL166+SUMIF(Datastore!$A:$A,$AC166&$AD166&$AJ166&"|"&F$13&"|"&"FY"&RIGHT(F$12,2),Datastore!$G:$G)*$AM166+SUMIF(Datastore!$A:$A,$AC166&$AD166&$AK166&"|"&F$13&"|"&"FY"&RIGHT(F$12,2),Datastore!$G:$G)*$AM166)/1000 -> 1579.59678 | G166: =(SUMIF(Datastore!$A:$A,$AC166&$AD166&$AF166&"|"&G$13&"|"&"FY"&RIGHT(G$12,2),Datastore!$G:$G)*$AL166+SUMIF(Datastore!$A:$A,$AC166&$AD166&$AG166&"|"&G$13&"|"&"FY"&RIGHT(G$12,2),Datastore!$G:$G)*$AL166+SUMIF(Datastore!$A:$A,$AC166&$AD166&$AH166&"|"&G$13&"|"&"FY"&RIGHT(G$12,2),Datastore!$G:$G)*$AL166+SUMIF(Datastore!$A:$A,$AC166&$AD166&$AI166&"|"&G$13&"|"&"FY"&RIGHT(G$12,2),Datastore!$G:$G)*$AL166+SUMIF(Datastore!$A:$A,$AC166&$AD166&$AJ166&"|"&G$13&"|"&"FY"&RIGHT(G$12,2),Datastore!$G:$G)*$AM166+SUMIF(Datastore!$A:$A,$AC166&$AD166&$AK166&"|"&G$13&"|"&"FY"&RIGHT(G$12,2),Datastore!$G:$G)*$AM166)/1000 -> 1825.79298 | H166: =(SUMIF(Datastore!$A:$A,$AC166&$AD166&$AF166&"|"&H$13&"|"&"FY"&RIGHT(H$12,2),Datastore!$G:$G)*$AL166+SUMIF(Datastore!$A:$A,$AC166&$AD166&$AG166&"|"&H$13&"|"&"FY"&RIGHT(H$12,2),Datastore!$G:$G)*$AL166+SUMIF(Datastore!$A:$A,$AC166&$AD166&$AH166&"|"&H$13&"|"&"FY"&RIGHT(H$12,2),Datastore!$G:$G)*$AL166+SUMIF(Datastore!$A:$A,$AC166&$AD166&$AI166&"|"&H$13&"|"&"FY"&RIGHT(H$12,2),Datastore!$G:$G)*$AL166+SUMIF(Datastore!$A:$A,$AC166&$AD166&$AJ166&"|"&H$13&"|"&"FY"&RIGHT(H$12,2),Datastore!$G:$G)*$AM166+SUMIF(Datastore!$A:$A,$AC166&$AD166&$AK166&"|"&H$13&"|"&"FY"&RIGHT(H$12,2),Datastore!$G:$G)*$AM166)/1000 -> 1945.10636 | I166: =(SUMIF(Datastore!$A:$A,$AC166&$AD166&$AF166&"|"&I$13&"|"&"FY"&RIGHT(I$12,2),Datastore!$G:$G)*$AL166+SUMIF(Datastore!$A:$A,$AC166&$AD166&$AG166&"|"&I$13&"|"&"FY"&RIGHT(I$12,2),Datastore!$G:$G)*$AL166+SUMIF(Datastore!$A:$A,$AC166&$AD166&$AH166&"|"&I$13&"|"&"FY"&RIGHT(I$12,2),Datastore!$G:$G)*$AL166+SUMIF(Datastore!$A:$A,$AC166&$AD166&$AI166&"|"&I$13&"|"&"FY"&RIGHT(I$12,2),Datastore!$G:$G)*$AL166+SUMIF(Datastore!$A:$A,$AC166&$AD166&$AJ166&"|"&I$13&"|"&"FY"&RIGHT(I$12,2),Datastore!$G:$G)*$AM166+SUMIF(Datastore!$A:$A,$AC166&$AD166&$AK166&"|"&I$13&"|"&"FY"&RIGHT(I$12,2),Datastore!$G:$G)*$AM166)/1000 -> 1922.396077 | J166: =(SUMIF(Datastore!$A:$A,$AC166&$AD166&$AF166&"|"&J$13&"|"&"FY"&RIGHT(J$12,2),Datastore!$G:$G)*$AL166+SUMIF(Datastore!$A:$A,$AC166&$AD166&$AG166&"|"&J$13&"|"&"FY"&RIGHT(J$12,2),Datastore!$G:$G)*$AL166+SUMIF(Datastore!$A:$A,$AC166&$AD166&$AH166&"|"&J$13&"|"&"FY"&RIGHT(J$12,2),Datastore!$G:$G)*$AL166+SUMIF(Datastore!$A:$A,$AC166&$AD166&$AI166&"|"&J$13&"|"&"FY"&RIGHT(J$12,2),Datastore!$G:$G)*$AL166+SUMIF(Datastore!$A:$A,$AC166&$AD166&$AJ166&"|"&J$13&"|"&"FY"&RIGHT(J$12,2),Datastore!$G:$G)*$AM166+SUMIF(Datastore!$A:$A,$AC166&$AD166&$AK166&"|"&J$13&"|"&"FY"&RIGHT(J$12,2),Datastore!$G:$G)*$AM166)/1000 -> 2120.410748 | AC166: 88 | AD166: 2 | AF166: |RU?? | AG166: |RR?? | AH166: |ROOI | AI166: |x | AJ166: |RUTW | AK166: |RURW | AL166: -1 | AM166: 1
C167: =C131 -> Trade waste | E167: $'000 | F167: =(SUMIF(Datastore!$A:$A,$AC167&$AD167&$AF167&"|"&F$13&"|"&"FY"&RIGHT(F$12,2),Datastore!$G:$G)*$AL167+SUMIF(Datastore!$A:$A,$AC167&$AD167&$AG167&"|"&F$13&"|"&"FY"&RIGHT(F$12,2),Datastore!$G:$G)*$AL167+SUMIF(Datastore!$A:$A,$AC167&$AD167&$AH167&"|"&F$13&"|"&"FY"&RIGHT(F$12,2),Datastore!$G:$G)*$AL167+SUMIF(Datastore!$A:$A,$AC167&$AD167&$AI167&"|"&F$13&"|"&"FY"&RIGHT(F$12,2),Datastore!$G:$G)*$AL167+SUMIF(Datastore!$A:$A,$AC167&$AD167&$AJ167&"|"&F$13&"|"&"FY"&RIGHT(F$12,2),Datastore!$G:$G)*$AM167+SUMIF(Datastore!$A:$A,$AC167&$AD167&$AK167&"|"&F$13&"|"&"FY"&RIGHT(F$12,2),Datastore!$G:$G)*$AM167)/1000 -> 0 | G167: =(SUMIF(Datastore!$A:$A,$AC167&$AD167&$AF167&"|"&G$13&"|"&"FY"&RIGHT(G$12,2),Datastore!$G:$G)*$AL167+SUMIF(Datastore!$A:$A,$AC167&$AD167&$AG167&"|"&G$13&"|"&"FY"&RIGHT(G$12,2),Datastore!$G:$G)*$AL167+SUMIF(Datastore!$A:$A,$AC167&$AD167&$AH167&"|"&G$13&"|"&"FY"&RIGHT(G$12,2),Datastore!$G:$G)*$AL167+SUMIF(Datastore!$A:$A,$AC167&$AD167&$AI167&"|"&G$13&"|"&"FY"&RIGHT(G$12,2),Datastore!$G:$G)*$AL167+SUMIF(Datastore!$A:$A,$AC167&$AD167&$AJ167&"|"&G$13&"|"&"FY"&RIGHT(G$12,2),Datastore!$G:$G)*$AM167+SUMIF(Datastore!$A:$A,$AC167&$AD167&$AK167&"|"&G$13&"|"&"FY"&RIGHT(G$12,2),Datastore!$G:$G)*$AM167)/1000 -> 0 | H167: =(SUMIF(Datastore!$A:$A,$AC167&$AD167&$AF167&"|"&H$13&"|"&"FY"&RIGHT(H$12,2),Datastore!$G:$G)*$AL167+SUMIF(Datastore!$A:$A,$AC167&$AD167&$AG167&"|"&H$13&"|"&"FY"&RIGHT(H$12,2),Datastore!$G:$G)*$AL167+SUMIF(Datastore!$A:$A,$AC167&$AD167&$AH167&"|"&H$13&"|"&"FY"&RIGHT(H$12,2),Datastore!$G:$G)*$AL167+SUMIF(Datastore!$A:$A,$AC167&$AD167&$AI167&"|"&H$13&"|"&"FY"&RIGHT(H$12,2),Datastore!$G:$G)*$AL167+SUMIF(Datastore!$A:$A,$AC167&$AD167&$AJ167&"|"&H$13&"|"&"FY"&RIGHT(H$12,2),Datastore!$G:$G)*$AM167+SUMIF(Datastore!$A:$A,$AC167&$AD167&$AK167&"|"&H$13&"|"&"FY"&RIGHT(H$12,2),Datastore!$G:$G)*$AM167)/1000 -> 0 | I167: =(SUMIF(Datastore!$A:$A,$AC167&$AD167&$AF167&"|"&I$13&"|"&"FY"&RIGHT(I$12,2),Datastore!$G:$G)*$AL167+SUMIF(Datastore!$A:$A,$AC167&$AD167&$AG167&"|"&I$13&"|"&"FY"&RIGHT(I$12,2),Datastore!$G:$G)*$AL167+SUMIF(Datastore!$A:$A,$AC167&$AD167&$AH167&"|"&I$13&"|"&"FY"&RIGHT(I$12,2),Datastore!$G:$G)*$AL167+SUMIF(Datastore!$A:$A,$AC167&$AD167&$AI167&"|"&I$13&"|"&"FY"&RIGHT(I$12,2),Datastore!$G:$G)*$AL167+SUMIF(Datastore!$A:$A,$AC167&$AD167&$AJ167&"|"&I$13&"|"&"FY"&RIGHT(I$12,2),Datastore!$G:$G)*$AM167+SUMIF(Datastore!$A:$A,$AC167&$AD167&$AK167&"|"&I$13&"|"&"FY"&RIGHT(I$12,2),Datastore!$G:$G)*$AM167)/1000 -> 0 | J167: =(SUMIF(Datastore!$A:$A,$AC167&$AD167&$AF167&"|"&J$13&"|"&"FY"&RIGHT(J$12,2),Datastore!$G:$G)*$AL167+SUMIF(Datastore!$A:$A,$AC167&$AD167&$AG167&"|"&J$13&"|"&"FY"&RIGHT(J$12,2),Datastore!$G:$G)*$AL167+SUMIF(Datastore!$A:$A,$AC167&$AD167&$AH167&"|"&J$13&"|"&"FY"&RIGHT(J$12,2),Datastore!$G:$G)*$AL167+SUMIF(Datastore!$A:$A,$AC167&$AD167&$AI167&"|"&J$13&"|"&"FY"&RIGHT(J$12,2),Datastore!$G:$G)*$AL167+SUMIF(Datastore!$A:$A,$AC167&$AD167&$AJ167&"|"&J$13&"|"&"FY"&RIGHT(J$12,2),Datastore!$G:$G)*$AM167+SUMIF(Datastore!$A:$A,$AC167&$AD167&$AK167&"|"&J$13&"|"&"FY"&RIGHT(J$12,2),Datastore!$G:$G)*$AM167)/1000 -> 0 | AC167: 88 | AD167: 2 | AF167: |RUTW | AG167: |x | AH167: |x | AI167: |x | AJ167: |x | AK167: |x | AL167: -1 | AM167: 1
C168: =C132 -> Other core wastewater services | E168: $'000 | F168: =(SUMIF(Datastore!$A:$A,$AC168&$AD168&$AF168&"|"&F$13&"|"&"FY"&RIGHT(F$12,2),Datastore!$G:$G)*$AL168+SUMIF(Datastore!$A:$A,$AC168&$AD168&$AG168&"|"&F$13&"|"&"FY"&RIGHT(F$12,2),Datastore!$G:$G)*$AL168+SUMIF(Datastore!$A:$A,$AC168&$AD168&$AH168&"|"&F$13&"|"&"FY"&RIGHT(F$12,2),Datastore!$G:$G)*$AL168+SUMIF(Datastore!$A:$A,$AC168&$AD168&$AI168&"|"&F$13&"|"&"FY"&RIGHT(F$12,2),Datastore!$G:$G)*$AL168+SUMIF(Datastore!$A:$A,$AC168&$AD168&$AJ168&"|"&F$13&"|"&"FY"&RIGHT(F$12,2),Datastore!$G:$G)*$AM168+SUMIF(Datastore!$A:$A,$AC168&$AD168&$AK168&"|"&F$13&"|"&"FY"&RIGHT(F$12,2),Datastore!$G:$G)*$AM168)/1000 -> 0 | G168: =(SUMIF(Datastore!$A:$A,$AC168&$AD168&$AF168&"|"&G$13&"|"&"FY"&RIGHT(G$12,2),Datastore!$G:$G)*$AL168+SUMIF(Datastore!$A:$A,$AC168&$AD168&$AG168&"|"&G$13&"|"&"FY"&RIGHT(G$12,2),Datastore!$G:$G)*$AL168+SUMIF(Datastore!$A:$A,$AC168&$AD168&$AH168&"|"&G$13&"|"&"FY"&RIGHT(G$12,2),Datastore!$G:$G)*$AL168+SUMIF(Datastore!$A:$A,$AC168&$AD168&$AI168&"|"&G$13&"|"&"FY"&RIGHT(G$12,2),Datastore!$G:$G)*$AL168+SUMIF(Datastore!$A:$A,$AC168&$AD168&$AJ168&"|"&G$13&"|"&"FY"&RIGHT(G$12,2),Datastore!$G:$G)*$AM168+SUMIF(Datastore!$A:$A,$AC168&$AD168&$AK168&"|"&G$13&"|"&"FY"&RIGHT(G$12,2),Datastore!$G:$G)*$AM168)/1000 -> 0 | H168: =(SUMIF(Datastore!$A:$A,$AC168&$AD168&$AF168&"|"&H$13&"|"&"FY"&RIGHT(H$12,2),Datastore!$G:$G)*$AL168+SUMIF(Datastore!$A:$A,$AC168&$AD168&$AG168&"|"&H$13&"|"&"FY"&RIGHT(H$12,2),Datastore!$G:$G)*$AL168+SUMIF(Datastore!$A:$A,$AC168&$AD168&$AH168&"|"&H$13&"|"&"FY"&RIGHT(H$12,2),Datastore!$G:$G)*$AL168+SUMIF(Datastore!$A:$A,$AC168&$AD168&$AI168&"|"&H$13&"|"&"FY"&RIGHT(H$12,2),Datastore!$G:$G)*$AL168+SUMIF(Datastore!$A:$A,$AC168&$AD168&$AJ168&"|"&H$13&"|"&"FY"&RIGHT(H$12,2),Datastore!$G:$G)*$AM168+SUMIF(Datastore!$A:$A,$AC168&$AD168&$AK168&"|"&H$13&"|"&"FY"&RIGHT(H$12,2),Datastore!$G:$G)*$AM168)/1000 -> 0 | I168: =(SUMIF(Datastore!$A:$A,$AC168&$AD168&$AF168&"|"&I$13&"|"&"FY"&RIGHT(I$12,2),Datastore!$G:$G)*$AL168+SUMIF(Datastore!$A:$A,$AC168&$AD168&$AG168&"|"&I$13&"|"&"FY"&RIGHT(I$12,2),Datastore!$G:$G)*$AL168+SUMIF(Datastore!$A:$A,$AC168&$AD168&$AH168&"|"&I$13&"|"&"FY"&RIGHT(I$12,2),Datastore!$G:$G)*$AL168+SUMIF(Datastore!$A:$A,$AC168&$AD168&$AI168&"|"&I$13&"|"&"FY"&RIGHT(I$12,2),Datastore!$G:$G)*$AL168+SUMIF(Datastore!$A:$A,$AC168&$AD168&$AJ168&"|"&I$13&"|"&"FY"&RIGHT(I$12,2),Datastore!$G:$G)*$AM168+SUMIF(Datastore!$A:$A,$AC168&$AD168&$AK168&"|"&I$13&"|"&"FY"&RIGHT(I$12,2),Datastore!$G:$G)*$AM168)/1000 -> 0 | J168: =(SUMIF(Datastore!$A:$A,$AC168&$AD168&$AF168&"|"&J$13&"|"&"FY"&RIGHT(J$12,2),Datastore!$G:$G)*$AL168+SUMIF(Datastore!$A:$A,$AC168&$AD168&$AG168&"|"&J$13&"|"&"FY"&RIGHT(J$12,2),Datastore!$G:$G)*$AL168+SUMIF(Datastore!$A:$A,$AC168&$AD168&$AH168&"|"&J$13&"|"&"FY"&RIGHT(J$12,2),Datastore!$G:$G)*$AL168+SUMIF(Datastore!$A:$A,$AC168&$AD168&$AI168&"|"&J$13&"|"&"FY"&RIGHT(J$12,2),Datastore!$G:$G)*$AL168+SUMIF(Datastore!$A:$A,$AC168&$AD168&$AJ168&"|"&J$13&"|"&"FY"&RIGHT(J$12,2),Datastore!$G:$G)*$AM168+SUMIF(Datastore!$A:$A,$AC168&$AD168&$AK168&"|"&J$13&"|"&"FY"&RIGHT(J$12,2),Datastore!$G:$G)*$AM168)/1000 -> 0 | AC168: 88 | AD168: 2 | AF168: |RURW | AG168: |x | AH168: |x | AI168: |x | AJ168: |x | AK168: |x | AL168: -1 | AM168: 1
C170: =C134 -> Non-regulated:
C171: =C135 -> Aggregate non-regulated services | E171: $'000 | F171: =(SUMIF(Datastore!$A:$A,$AC171&$AD171&$AF171&"|"&F$13&"|"&"FY"&RIGHT(F$12,2),Datastore!$G:$G)*$AL171+SUMIF(Datastore!$A:$A,$AC171&$AD171&$AG171&"|"&F$13&"|"&"FY"&RIGHT(F$12,2),Datastore!$G:$G)*$AL171+SUMIF(Datastore!$A:$A,$AC171&$AD171&$AH171&"|"&F$13&"|"&"FY"&RIGHT(F$12,2),Datastore!$G:$G)*$AL171+SUMIF(Datastore!$A:$A,$AC171&$AD171&$AI171&"|"&F$13&"|"&"FY"&RIGHT(F$12,2),Datastore!$G:$G)*$AL171+SUMIF(Datastore!$A:$A,$AC171&$AD171&$AJ171&"|"&F$13&"|"&"FY"&RIGHT(F$12,2),Datastore!$G:$G)*$AM171+SUMIF(Datastore!$A:$A,$AC171&$AD171&$AK171&"|"&F$13&"|"&"FY"&RIGHT(F$12,2),Datastore!$G:$G)*$AM171)/1000 -> 0 | G171: =(SUMIF(Datastore!$A:$A,$AC171&$AD171&$AF171&"|"&G$13&"|"&"FY"&RIGHT(G$12,2),Datastore!$G:$G)*$AL171+SUMIF(Datastore!$A:$A,$AC171&$AD171&$AG171&"|"&G$13&"|"&"FY"&RIGHT(G$12,2),Datastore!$G:$G)*$AL171+SUMIF(Datastore!$A:$A,$AC171&$AD171&$AH171&"|"&G$13&"|"&"FY"&RIGHT(G$12,2),Datastore!$G:$G)*$AL171+SUMIF(Datastore!$A:$A,$AC171&$AD171&$AI171&"|"&G$13&"|"&"FY"&RIGHT(G$12,2),Datastore!$G:$G)*$AL171+SUMIF(Datastore!$A:$A,$AC171&$AD171&$AJ171&"|"&G$13&"|"&"FY"&RIGHT(G$12,2),Datastore!$G:$G)*$AM171+SUMIF(Datastore!$A:$A,$AC171&$AD171&$AK171&"|"&G$13&"|"&"FY"&RIGHT(G$12,2),Datastore!$G:$G)*$AM171)/1000 -> 0 | H171: =(SUMIF(Datastore!$A:$A,$AC171&$AD171&$AF171&"|"&H$13&"|"&"FY"&RIGHT(H$12,2),Datastore!$G:$G)*$AL171+SUMIF(Datastore!$A:$A,$AC171&$AD171&$AG171&"|"&H$13&"|"&"FY"&RIGHT(H$12,2),Datastore!$G:$G)*$AL171+SUMIF(Datastore!$A:$A,$AC171&$AD171&$AH171&"|"&H$13&"|"&"FY"&RIGHT(H$12,2),Datastore!$G:$G)*$AL171+SUMIF(Datastore!$A:$A,$AC171&$AD171&$AI171&"|"&H$13&"|"&"FY"&RIGHT(H$12,2),Datastore!$G:$G)*$AL171+SUMIF(Datastore!$A:$A,$AC171&$AD171&$AJ171&"|"&H$13&"|"&"FY"&RIGHT(H$12,2),Datastore!$G:$G)*$AM171+SUMIF(Datastore!$A:$A,$AC171&$AD171&$AK171&"|"&H$13&"|"&"FY"&RIGHT(H$12,2),Datastore!$G:$G)*$AM171)/1000 -> 184.84122 | I171: =(SUMIF(Datastore!$A:$A,$AC171&$AD171&$AF171&"|"&I$13&"|"&"FY"&RIGHT(I$12,2),Datastore!$G:$G)*$AL171+SUMIF(Datastore!$A:$A,$AC171&$AD171&$AG171&"|"&I$13&"|"&"FY"&RIGHT(I$12,2),Datastore!$G:$G)*$AL171+SUMIF(Datastore!$A:$A,$AC171&$AD171&$AH171&"|"&I$13&"|"&"FY"&RIGHT(I$12,2),Datastore!$G:$G)*$AL171+SUMIF(Datastore!$A:$A,$AC171&$AD171&$AI171&"|"&I$13&"|"&"FY"&RIGHT(I$12,2),Datastore!$G:$G)*$AL171+SUMIF(Datastore!$A:$A,$AC171&$AD171&$AJ171&"|"&I$13&"|"&"FY"&RIGHT(I$12,2),Datastore!$G:$G)*$AM171+SUMIF(Datastore!$A:$A,$AC171&$AD171&$AK171&"|"&I$13&"|"&"FY"&RIGHT(I$12,2),Datastore!$G:$G)*$AM171)/1000 -> 0 | J171: =(SUMIF(Datastore!$A:$A,$AC171&$AD171&$AF171&"|"&J$13&"|"&"FY"&RIGHT(J$12,2),Datastore!$G:$G)*$AL171+SUMIF(Datastore!$A:$A,$AC171&$AD171&$AG171&"|"&J$13&"|"&"FY"&RIGHT(J$12,2),Datastore!$G:$G)*$AL171+SUMIF(Datastore!$A:$A,$AC171&$AD171&$AH171&"|"&J$13&"|"&"FY"&RIGHT(J$12,2),Datastore!$G:$G)*$AL171+SUMIF(Datastore!$A:$A,$AC171&$AD171&$AI171&"|"&J$13&"|"&"FY"&RIGHT(J$12,2),Datastore!$G:$G)*$AL171+SUMIF(Datastore!$A:$A,$AC171&$AD171&$AJ171&"|"&J$13&"|"&"FY"&RIGHT(J$12,2),Datastore!$G:$G)*$AM171+SUMIF(Datastore!$A:$A,$AC171&$AD171&$AK171&"|"&J$13&"|"&"FY"&RIGHT(J$12,2),Datastore!$G:$G)*$AM171)/1000 -> 0 | AC171: 88 | AD171: 4 | AF171: |R??? | AG171: |x | AH171: |x | AI171: |x | AJ171: |x | AK171: |x | AL171: -1 | AM171: 1
C173: =C137 -> Subtotal Revenue from Services | E173: $'000 | F173: =SUM(F162:F163)+SUM(F166:F168)+F171 -> 5360.70891 | G173: =SUM(G162:G163)+SUM(G166:G168)+G171 -> 6871.95315 | H173: 6372.3133 | I173: 6922.611652 | J173: =SUM(J162:J163)+SUM(J166:J168)+J171 -> 7883.954477 | K173: =SUM(K162:K163)+SUM(K166:K168)+K171 -> 0 | L173: 0 | M173: 0 | N173: 0 | O173: 0 | P173: 0 | Q173: 0 | R173: 0 | S173: 0 | T173: 0 | U173: 0 | V173: 0 | W173: 0 | X173: 0 | Y173: 0
B175: =B139 -> OTHER REVENUE
C176: =C140 -> Other Revenue Offset Against Revenue Requirements:
C177: =C141 -> Investment Income | E177: $'000 | F177: =(SUMIF(Datastore!$A:$A,$AC177&$AD177&$AF177&"|"&F$13&"|"&"FY"&RIGHT(F$12,2),Datastore!$G:$G)+SUMIF(Datastore!$A:$A,$AC177&$AE177&$AF177&"|"&F$13&"|"&"FY"&RIGHT(F$12,2),Datastore!$G:$G))*$AL177/1000 -> 0 | G177: =(SUMIF(Datastore!$A:$A,$AC177&$AD177&$AF177&"|"&G$13&"|"&"FY"&RIGHT(G$12,2),Datastore!$G:$G)+SUMIF(Datastore!$A:$A,$AC177&$AE177&$AF177&"|"&G$13&"|"&"FY"&RIGHT(G$12,2),Datastore!$G:$G))*$AL177/1000 -> 0 | H177: =(SUMIF(Datastore!$A:$A,$AC177&$AD177&$AF177&"|"&H$13&"|"&"FY"&RIGHT(H$12,2),Datastore!$G:$G)+SUMIF(Datastore!$A:$A,$AC177&$AE177&$AF177&"|"&H$13&"|"&"FY"&RIGHT(H$12,2),Datastore!$G:$G))*$AL177/1000 -> 0 | I177: =(SUMIF(Datastore!$A:$A,$AC177&$AD177&$AF177&"|"&I$13&"|"&"FY"&RIGHT(I$12,2),Datastore!$G:$G)+SUMIF(Datastore!$A:$A,$AC177&$AE177&$AF177&"|"&I$13&"|"&"FY"&RIGHT(I$12,2),Datastore!$G:$G))*$AL177/1000 -> 0 | J177: =(SUMIF(Datastore!$A:$A,$AC177&$AD177&$AF177&"|"&J$13&"|"&"FY"&RIGHT(J$12,2),Datastore!$G:$G)+SUMIF(Datastore!$A:$A,$AC177&$AE177&$AF177&"|"&J$13&"|"&"FY"&RIGHT(J$12,2),Datastore!$G:$G))*$AL177/1000 -> 0 | AC177: 88 | AD177: 1 | AE177: 2 | AF177: |RFIN | AL177: -1
C178: =C142 -> Net profit from Sale of Assets | E178: $'000 | F178: =(SUMIF(Datastore!$A:$A,$AC178&$AD178&$AF178&"|"&F$13&"|"&"FY"&RIGHT(F$12,2),Datastore!$G:$G)+SUMIF(Datastore!$A:$A,$AC178&$AE178&$AF178&"|"&F$13&"|"&"FY"&RIGHT(F$12,2),Datastore!$G:$G))*$AL178/1000 -> 0 | G178: =(SUMIF(Datastore!$A:$A,$AC178&$AD178&$AF178&"|"&G$13&"|"&"FY"&RIGHT(G$12,2),Datastore!$G:$G)+SUMIF(Datastore!$A:$A,$AC178&$AE178&$AF178&"|"&G$13&"|"&"FY"&RIGHT(G$12,2),Datastore!$G:$G))*$AL178/1000 -> 0 | AA178: Not forecast for regulatory purposes | AC178: 88 | AD178: 1 | AE178: 2 | AF178: |ELOD | AL178: -1
C179: =C143 -> Contributions | E179: $'000 | F179: =(SUMIF(Datastore!$A:$A,$AC179&$AD179&$AF179&"|"&F$13&"|"&"FY"&RIGHT(F$12,2),Datastore!$G:$G)+SUMIF(Datastore!$A:$A,$AC179&$AE179&$AF179&"|"&F$13&"|"&"FY"&RIGHT(F$12,2),Datastore!$G:$G))*$AL179/1000 -> 19550.64367 | G179: =(SUMIF(Datastore!$A:$A,$AC179&$AD179&$AF179&"|"&G$13&"|"&"FY"&RIGHT(G$12,2),Datastore!$G:$G)+SUMIF(Datastore!$A:$A,$AC179&$AE179&$AF179&"|"&G$13&"|"&"FY"&RIGHT(G$12,2),Datastore!$G:$G))*$AL179/1000 -> 1466.05915 | H179: =(SUMIF(Datastore!$A:$A,$AC179&$AD179&$AF179&"|"&H$13&"|"&"FY"&RIGHT(H$12,2),Datastore!$G:$G)+SUMIF(Datastore!$A:$A,$AC179&$AE179&$AF179&"|"&H$13&"|"&"FY"&RIGHT(H$12,2),Datastore!$G:$G))*$AL179/1000 -> 2776.30904 | I179: =(SUMIF(Datastore!$A:$A,$AC179&$AD179&$AF179&"|"&I$13&"|"&"FY"&RIGHT(I$12,2),Datastore!$G:$G)+SUMIF(Datastore!$A:$A,$AC179&$AE179&$AF179&"|"&I$13&"|"&"FY"&RIGHT(I$12,2),Datastore!$G:$G))*$AL179/1000 -> 4371.738109 | J179: =(SUMIF(Datastore!$A:$A,$AC179&$AD179&$AF179&"|"&J$13&"|"&"FY"&RIGHT(J$12,2),Datastore!$G:$G)+SUMIF(Datastore!$A:$A,$AC179&$AE179&$AF179&"|"&J$13&"|"&"FY"&RIGHT(J$12,2),Datastore!$G:$G))*$AL179/1000 -> 3197.275302 | AC179: 88 | AD179: 1 | AE179: 2 | AF179: |RC?? | AL179: -1
C181: =C145 -> Other Revenue Not Offset Against Revenue Requirements:
C182: =C146 -> Non-recurrent Income | E182: $'000 | F182: =(SUMIF(Datastore!$A:$A,$AC182&$AD182&$AF182&"|"&F$13&"|"&"FY"&RIGHT(F$12,2),Datastore!$G:$G)+SUMIF(Datastore!$A:$A,$AC182&$AE182&$AF182&"|"&F$13&"|"&"FY"&RIGHT(F$12,2),Datastore!$G:$G))*$AL182/1000 -> 0 | G182: =(SUMIF(Datastore!$A:$A,$AC182&$AD182&$AF182&"|"&G$13&"|"&"FY"&RIGHT(G$12,2),Datastore!$G:$G)+SUMIF(Datastore!$A:$A,$AC182&$AE182&$AF182&"|"&G$13&"|"&"FY"&RIGHT(G$12,2),Datastore!$G:$G))*$AL182/1000 -> 0 | H182: =(SUMIF(Datastore!$A:$A,$AC182&$AD182&$AF182&"|"&H$13&"|"&"FY"&RIGHT(H$12,2),Datastore!$G:$G)+SUMIF(Datastore!$A:$A,$AC182&$AE182&$AF182&"|"&H$13&"|"&"FY"&RIGHT(H$12,2),Datastore!$G:$G))*$AL182/1000 -> 90.3677 | I182: =(SUMIF(Datastore!$A:$A,$AC182&$AD182&$AF182&"|"&I$13&"|"&"FY"&RIGHT(I$12,2),Datastore!$G:$G)+SUMIF(Datastore!$A:$A,$AC182&$AE182&$AF182&"|"&I$13&"|"&"FY"&RIGHT(I$12,2),Datastore!$G:$G))*$AL182/1000 -> 0 | J182: =(SUMIF(Datastore!$A:$A,$AC182&$AD182&$AF182&"|"&J$13&"|"&"FY"&RIGHT(J$12,2),Datastore!$G:$G)+SUMIF(Datastore!$A:$A,$AC182&$AE182&$AF182&"|"&J$13&"|"&"FY"&RIGHT(J$12,2),Datastore!$G:$G))*$AL182/1000 -> 0 | AC182: 88 | AD182: 1 | AE182: 2 | AF182: |RNOT | AG182: =Allocation!K$151 -> 0.8554872922 | AH182: |x | AI182: |x | AJ182: |x | AK182: |x | AL182: -1 | AM182: 1
C183: =C147 -> Net profit from Sale of Assets | E183: $'000 | H183: =-'5.5.2'!H1958 -> -877.492 | AA183: Non-recurrent - flood loss on disposal
C184: =C148 -> Contributions | E184: $'000
C186: =C150 -> Subtotal Other Revenue | E186: $'000 | F186: =SUM(F177:F179)+SUM(F182:F184) -> 19550.64367 | G186: 1466.05915 | H186: 1989.18474 | I186: 4371.738109 | J186: =SUM(J177:J179)+SUM(J182:J184) -> 3197.275302 | K186: =SUM(K177:K179)+SUM(K182:K184) -> 0 | L186: 0 | M186: 0 | N186: 0 | O186: 0 | P186: 0 | Q186: 0 | R186: 0 | S186: 0 | T186: 0 | U186: 0 | V186: 0 | W186: 0 | X186: 0 | Y186: 0
B188: =B152 -> TOTAL REVENUE | E188: $'000 | F188: =F186+F173 -> 24911.35258 | G188: =G186+G173 -> 8338.0123 | H188: 8361.49804 | I188: 11294.34976 | J188: =J186+J173 -> 11081.22978 | K188: =K186+K173 -> 0 | L188: 0 | M188: 0 | N188: 0 | O188: 0 | P188: 0 | Q188: 0 | R188: 0 | S188: 0 | T188: 0 | U188: 0 | V188: 0 | W188: 0 | X188: 0 | Y188: 0
F191: =F155 -> For Year Ending 30 June: | AA191: =AA155 -> For Year Ending 30 June 2013
F192: =F156 -> 2009 | G192: =G156 -> 2010 | H192: =H156 -> 2011 | I192: =I156 -> 2012 | J192: =J156 -> 2013 | K192: =K156 -> 2014 | L192: 2015 | M192: 2016 | N192: 2017 | O192: 2018 | P192: 2019 | Q192: 2020 | R192: 2021 | S192: 2022 | T192: 2023 | U192: 2024 | V192: 2025 | W192: 2026 | X192: 2027 | Y192: 2028 | AA192: =AA156 -> Supporting Documents
B194: Unallocated Revenue
C196: REVENUE FROM SERVICES
C197: Revenue from water services:
C198: Drinking water | E198: $'000
C199: Other core water services | E199: $'000
C201: =C165 -> Revenue from wastewater services:
C202: =C166 -> Wastewater via sewer | E202: $'000
C203: =C167 -> Trade waste | E203: $'000
C204: =C168 -> Other core wastewater services | E204: $'000
C206: =C170 -> Non-regulated:
C207: =C171 -> Aggregate non-regulated services | E207: $'000
C209: =C173 -> Subtotal Revenue from Services | E209: $'000 | F209: =SUM(F198:F199)+SUM(F202:F204)+F207 -> 0 | G209: 0 | H209: 0 | I209: 0 | J209: 0 | K209: 0 | L209: 0 | M209: 0 | N209: 0 | O209: 0 | P209: 0 | Q209: 0 | R209: 0 | S209: 0 | T209: 0 | U209: 0 | V209: 0 | W209: 0 | X209: 0 | Y209: 0
B211: =B175 -> OTHER REVENUE
C212: =C176 -> Other Revenue Offset Against Revenue Requirements:
C213: =C177 -> Investment Income | E213: $'000
C214: =C178 -> Net profit from Sale of Assets | E214: $'000
C215: =C179 -> Contributions | E215: $'000
C217: =C181 -> Other Revenue Not Offset Against Revenue Requirements:
C218: =C182 -> Non-recurrent Income | E218: $'000
C219: =C183 -> Net profit from Sale of Assets | E219: $'000
C220: =C184 -> Contributions | E220: $'000
C222: =C186 -> Subtotal Other Revenue | E222: $'000 | F222: =SUM(F213:F215)+SUM(F218:F220) -> 0 | G222: =SUM(G213:G215)+SUM(G218:G220) -> 0 | H222: =SUM(H213:H215)+SUM(H218:H220) -> 0 | I222: =SUM(I213:I215)+SUM(I218:I220) -> 0 | J222: =SUM(J213:J215)+SUM(J218:J220) -> 0 | K222: =SUM(K213:K215)+SUM(K218:K220) -> 0 | L222: 0 | M222: 0 | N222: 0 | O222: 0 | P222: 0 | Q222: 0 | R222: 0 | S222: 0 | T222: 0 | U222: 0 | V222: 0 | W222: 0 | X222: 0 | Y222: 0
B224: TOTAL UNALLOCATED REVENUE | E224: $'000 | F224: =F222+F209 -> 0 | G224: =G222+G209 -> 0 | H224: =H222+H209 -> 0 | I224: =I222+I209 -> 0 | J224: =J222+J209 -> 0 | K224: =K222+K209 -> 0 | L224: 0 | M224: 0 | N224: 0 | O224: 0 | P224: 0 | Q224: 0 | R224: 0 | S224: 0 | T224: 0 | U224: 0 | V224: 0 | W224: 0 | X224: 0 | Y224: 0
F227: =F155 -> For Year Ending 30 June: | AA227: =AA155 -> For Year Ending 30 June 2013
F228: =F156 -> 2009 | G228: =G156 -> 2010 | H228: =H156 -> 2011 | I228: =I156 -> 2012 | J228: =J156 -> 2013 | K228: =K156 -> 2014 | L228: 2015 | M228: 2016 | N228: 2017 | O228: 2018 | P228: 2019 | Q228: 2020 | R228: 2021 | S228: 2022 | T228: 2023 | U228: 2024 | V228: 2025 | W228: 2026 | X228: 2027 | Y228: 2028 | AA228: =AA156 -> Supporting Documents
B230: Total
B232: =B160 -> REVENUE FROM SERVICES
C233: =C161 -> Revenue from water services:
C234: =C162 -> Drinking water | E234: $'000 | F234: =F18+F54+F90+F126+F162+F198 -> 279696.5507 | G234: 330608.0941 | H234: 352706.895 | I234: 411457.4347 | J234: 455631.9061 | K234: 0 | L234: 0 | M234: 0 | N234: 0 | O234: 0 | P234: 0 | Q234: 0 | R234: 0 | S234: 0 | T234: 0 | U234: 0 | V234: 0 | W234: 0 | X234: 0 | Y234: 0
C235: =C163 -> Other core water services | E235: $'000 | F235: =F19+F55+F91+F127+F163+F199 -> 0 | G235: =G19+G55+G91+G127+G163+G199 -> 0 | H235: =H19+H55+H91+H127+H163+H199 -> 0 | I235: =I19+I55+I91+I127+I163+I199 -> 0 | J235: 0 | K235: 0 | L235: 0 | M235: 0 | N235: 0 | O235: 0 | P235: 0 | Q235: 0 | R235: 0 | S235: 0 | T235: 0 | U235: 0 | V235: 0 | W235: 0 | X235: 0 | Y235: 0
C237: =C165 -> Revenue from wastewater services:
C238: =C166 -> Wastewater via sewer | E238: $'000 | F238: =F22+F58+F94+F130+F166+F202 -> 267347.4281 | G238: 292703.7162 | H238: =H22+H58+H94+H130+H166+H202 -> 321372.1634 | I238: 337416.7984 | J238: 346231.2029 | K238: 0 | L238: 0 | M238: 0 | N238: 0 | O238: 0 | P238: 0 | Q238: 0 | R238: 0 | S238: 0 | T238: 0 | U238: 0 | V238: 0 | W238: 0 | X238: 0 | Y238: 0
C239: =C167 -> Trade waste | E239: $'000 | F239: =F23+F59+F95+F131+F167+F203 -> 19267.48482 | G239: 20539.70381 | H239: 20670.57885 | I239: 22388.43085 | J239: 23187.71866 | K239: 0 | L239: 0 | M239: 0 | N239: 0 | O239: 0 | P239: 0 | Q239: 0 | R239: 0 | S239: 0 | T239: 0 | U239: 0 | V239: 0 | W239: 0 | X239: 0 | Y239: 0
C240: =C168 -> Other core wastewater services | E240: $'000 | F240: =F24+F60+F96+F132+F168+F204 -> 359.15549 | G240: 0 | H240: 8506.11437 | I240: 8787.34768 | J240: 9619.884433 | K240: 0 | L240: 0 | M240: 0 | N240: 0 | O240: 0 | P240: 0 | Q240: 0 | R240: 0 | S240: 0 | T240: 0 | U240: 0 | V240: 0 | W240: 0 | X240: 0 | Y240: 0
C242: =C170 -> Non-regulated:
C243: =C171 -> Aggregate non-regulated services | E243: $'000 | F243: =F27+F63+F99+F135+F171+F207 -> 16576.78383 | G243: 15815.07126 | H243: =H27+H63+H99+H135+H171+H207 -> 15022.11371 | I243: =I27+I63+I99+I135+I171+I207 -> 1327.441 | J243: 1269.05 | K243: 0 | L243: 0 | M243: 0 | N243: 0 | O243: 0 | P243: 0 | Q243: 0 | R243: 0 | S243: 0 | T243: 0 | U243: 0 | V243: 0 | W243: 0 | X243: 0 | Y243: 0
C245: =C173 -> Subtotal Revenue from Services | E245: $'000 | F245: =SUM(F234:F235)+SUM(F238:F240)+F243 -> 583247.4029 | G245: 659666.5853 | H245: 718277.8654 | I245: 781377.4526 | J245: 835939.7621 | K245: 0 | L245: 0 | M245: 0 | N245: 0 | O245: 0 | P245: 0 | Q245: 0 | R245: 0 | S245: 0 | T245: 0 | U245: 0 | V245: 0 | W245: 0 | X245: 0 | Y245: 0
B247: =B175 -> OTHER REVENUE
C248: =C176 -> Other Revenue Offset Against Revenue Requirements:
C249: =C177 -> Investment Income | E249: $'000 | F249: =F33+F69+F105+F141+F177+F213 -> 600 | G249: 499.88915 | H249: 321.07604 | I249: 600 | J249: 350 | K249: 0 | L249: 0 | M249: 0 | N249: 0 | O249: 0 | P249: 0 | Q249: 0 | R249: 0 | S249: 0 | T249: 0 | U249: 0 | V249: 0 | W249: 0 | X249: 0 | Y249: 0
C250: =C178 -> Net profit from Sale of Assets | E250: $'000 | F250: =F34+F70+F106+F142+F178+F214 -> -10355.176 | G250: -16706.4425 | H250: 0 | I250: 0 | J250: 0 | K250: 0 | L250: 0 | M250: 0 | N250: 0 | O250: 0 | P250: 0 | Q250: 0 | R250: 0 | S250: 0 | T250: 0 | U250: 0 | V250: 0 | W250: 0 | X250: 0 | Y250: 0
C251: =C179 -> Contributions | E251: $'000 | F251: =F35+F71+F107+F143+F179+F215 -> 156359.9257 | G251: 187134.2084 | H251: 142531.2591 | I251: 115910.3665 | J251: 137689.0609 | K251: 0 | L251: 0 | M251: 0 | N251: 0 | O251: 0 | P251: 0 | Q251: 0 | R251: 0 | S251: 0 | T251: 0 | U251: 0 | V251: 0 | W251: 0 | X251: 0 | Y251: 0
C253: =C181 -> Other Revenue Not Offset Against Revenue Requirements:
C254: =C182 -> Non-recurrent Income | E254: $'000 | F254: =F38+F74+F110+F146+F182+F218 -> 0 | G254: 0 | H254: 11695.50724 | I254: 20 | J254: 5500 | K254: 0 | L254: 0 | M254: 0 | N254: 0 | O254: 0 | P254: 0 | Q254: 0 | R254: 0 | S254: 0 | T254: 0 | U254: 0 | V254: 0 | W254: 0 | X254: 0 | Y254: 0
C255: =C183 -> Net profit from Sale of Assets | E255: $'000 | F255: =F39+F75+F111+F147+F183+F219 -> 0 | G255: 0 | H255: -25557.084 | I255: 0 | J255: 0 | K255: 0 | L255: 0 | M255: 0 | N255: 0 | O255: 0 | P255: 0 | Q255: 0 | R255: 0 | S255: 0 | T255: 0 | U255: 0 | V255: 0 | W255: 0 | X255: 0 | Y255: 0
C256: =C184 -> Contributions | E256: $'000 | F256: =F40+F76+F112+F148+F184+F220 -> 0 | G256: 0 | H256: 0 | I256: 0 | J256: 0 | K256: 0 | L256: 0 | M256: 0 | N256: 0 | O256: 0 | P256: 0 | Q256: 0 | R256: 0 | S256: 0 | T256: 0 | U256: 0 | V256: 0 | W256: 0 | X256: 0 | Y256: 0
C258: =C186 -> Subtotal Other Revenue | E258: $'000 | F258: =SUM(F249:F251)+SUM(F254:F256) -> 146604.7497 | G258: =SUM(G249:G251)+SUM(G254:G256) -> 170927.655 | H258: =SUM(H249:H251)+SUM(H254:H256) -> 128990.7583 | I258: =SUM(I249:I251)+SUM(I254:I256) -> 116530.3665 | J258: =SUM(J249:J251)+SUM(J254:J256) -> 143539.0609 | K258: =SUM(K249:K251)+SUM(K254:K256) -> 0 | L258: 0 | M258: 0 | N258: 0 | O258: 0 | P258: 0 | Q258: 0 | R258: 0 | S258: 0 | T258: 0 | U258: 0 | V258: 0 | W258: 0 | X258: 0 | Y258: 0
B260: =B188 -> TOTAL REVENUE | E260: $'000 | F260: =F258+F245 -> 729852.1526 | G260: =G258+G245 -> 830594.2403 | H260: =H258+H245 -> 847268.6237 | I260: =I258+I245 -> 897907.819 | J260: =J258+J245 -> 979478.823 | K260: =K258+K245 -> 0 | L260: 0 | M260: 0 | N260: 0 | O260: 0 | P260: 0 | Q260: 0 | R260: 0 | S260: 0 | T260: 0 | U260: 0 | V260: 0 | W260: 0 | X260: 0 | Y260: 0
C265: All revenue | F265: =(SUMIF(Datastore!$A:$A,$AC265&$AD265&$AG265&"|"&F$13&"|"&"FY"&RIGHT(F$12,2),Datastore!$G:$G)+SUMIF(Datastore!$A:$A,$AC265&$AE265&$AG265&"|"&F$13&"|"&"FY"&RIGHT(F$12,2),Datastore!$G:$G)+SUMIF(Datastore!$A:$A,$AC265&$AF265&$AG265&"|"&F$13&"|"&"FY"&RIGHT(F$12,2),Datastore!$G:$G))*$AL265/1000 -> 740207.3286 | G265: =(SUMIF(Datastore!$A:$A,$AC265&$AD265&$AG265&"|"&G$13&"|"&"FY"&RIGHT(G$12,2),Datastore!$G:$G)+SUMIF(Datastore!$A:$A,$AC265&$AE265&$AG265&"|"&G$13&"|"&"FY"&RIGHT(G$12,2),Datastore!$G:$G)+SUMIF(Datastore!$A:$A,$AC265&$AF265&$AG265&"|"&G$13&"|"&"FY"&RIGHT(G$12,2),Datastore!$G:$G))*$AL265/1000 -> 847300.6828 | H265: =(SUMIF(Datastore!$A:$A,$AC265&$AD265&$AG265&"|"&H$13&"|"&"FY"&RIGHT(H$12,2),Datastore!$G:$G)+SUMIF(Datastore!$A:$A,$AC265&$AE265&$AG265&"|"&H$13&"|"&"FY"&RIGHT(H$12,2),Datastore!$G:$G)+SUMIF(Datastore!$A:$A,$AC265&$AF265&$AG265&"|"&H$13&"|"&"FY"&RIGHT(H$12,2),Datastore!$G:$G))*$AL265/1000 -> 872825.7077 | I265: =(SUMIF(Datastore!$A:$A,$AC265&$AD265&$AG265&"|"&I$13&"|"&"FY"&RIGHT(I$12,2),Datastore!$G:$G)+SUMIF(Datastore!$A:$A,$AC265&$AE265&$AG265&"|"&I$13&"|"&"FY"&RIGHT(I$12,2),Datastore!$G:$G)+SUMIF(Datastore!$A:$A,$AC265&$AF265&$AG265&"|"&I$13&"|"&"FY"&RIGHT(I$12,2),Datastore!$G:$G))*$AL265/1000 -> 897907.819 | J265: =(SUMIF(Datastore!$A:$A,$AC265&$AD265&$AG265&"|"&J$13&"|"&"FY"&RIGHT(J$12,2),Datastore!$G:$G)+SUMIF(Datastore!$A:$A,$AC265&$AE265&$AG265&"|"&J$13&"|"&"FY"&RIGHT(J$12,2),Datastore!$G:$G)+SUMIF(Datastore!$A:$A,$AC265&$AF265&$AG265&"|"&J$13&"|"&"FY"&RIGHT(J$12,2),Datastore!$G:$G))*$AL265/1000 -> 979478.823 | K265: =(SUMIF(Datastore!$A:$A,$AC265&$AD265&$AG265&"|"&K$13&"|"&"FY"&RIGHT(K$12,2),Datastore!$G:$G)+SUMIF(Datastore!$A:$A,$AC265&$AE265&$AG265&"|"&K$13&"|"&"FY"&RIGHT(K$12,2),Datastore!$G:$G)+SUMIF(Datastore!$A:$A,$AC265&$AF265&$AG265&"|"&K$13&"|"&"FY"&RIGHT(K$12,2),Datastore!$G:$G))*$AL265/1000 -> 0 | L265: =(SUMIF(Datastore!$A:$A,$AC265&$AD265&$AG265&"|"&L$13&"|"&"FY"&RIGHT(L$12,2),Datastore!$G:$G)+SUMIF(Datastore!$A:$A,$AC265&$AE265&$AG265&"|"&L$13&"|"&"FY"&RIGHT(L$12,2),Datastore!$G:$G)+SUMIF(Datastore!$A:$A,$AC265&$AF265&$AG265&"|"&L$13&"|"&"FY"&RIGHT(L$12,2),Datastore!$G:$G))*$AL265/1000 -> 0 | M265: =(SUMIF(Datastore!$A:$A,$AC265&$AD265&$AG265&"|"&M$13&"|"&"FY"&RIGHT(M$12,2),Datastore!$G:$G)+SUMIF(Datastore!$A:$A,$AC265&$AE265&$AG265&"|"&M$13&"|"&"FY"&RIGHT(M$12,2),Datastore!$G:$G)+SUMIF(Datastore!$A:$A,$AC265&$AF265&$AG265&"|"&M$13&"|"&"FY"&RIGHT(M$12,2),Datastore!$G:$G))*$AL265/1000 -> 0 | N265: =(SUMIF(Datastore!$A:$A,$AC265&$AD265&$AG265&"|"&N$13&"|"&"FY"&RIGHT(N$12,2),Datastore!$G:$G)+SUMIF(Datastore!$A:$A,$AC265&$AE265&$AG265&"|"&N$13&"|"&"FY"&RIGHT(N$12,2),Datastore!$G:$G)+SUMIF(Datastore!$A:$A,$AC265&$AF265&$AG265&"|"&N$13&"|"&"FY"&RIGHT(N$12,2),Datastore!$G:$G))*$AL265/1000 -> 0 | O265: =(SUMIF(Datastore!$A:$A,$AC265&$AD265&$AG265&"|"&O$13&"|"&"FY"&RIGHT(O$12,2),Datastore!$G:$G)+SUMIF(Datastore!$A:$A,$AC265&$AE265&$AG265&"|"&O$13&"|"&"FY"&RIGHT(O$12,2),Datastore!$G:$G)+SUMIF(Datastore!$A:$A,$AC265&$AF265&$AG265&"|"&O$13&"|"&"FY"&RIGHT(O$12,2),Datastore!$G:$G))*$AL265/1000 -> 0 | P265: =(SUMIF(Datastore!$A:$A,$AC265&$AD265&$AG265&"|"&P$13&"|"&"FY"&RIGHT(P$12,2),Datastore!$G:$G)+SUMIF(Datastore!$A:$A,$AC265&$AE265&$AG265&"|"&P$13&"|"&"FY"&RIGHT(P$12,2),Datastore!$G:$G)+SUMIF(Datastore!$A:$A,$AC265&$AF265&$AG265&"|"&P$13&"|"&"FY"&RIGHT(P$12,2),Datastore!$G:$G))*$AL265/1000 -> 0 | Q265: =(SUMIF(Datastore!$A:$A,$AC265&$AD265&$AG265&"|"&Q$13&"|"&"FY"&RIGHT(Q$12,2),Datastore!$G:$G)+SUMIF(Datastore!$A:$A,$AC265&$AE265&$AG265&"|"&Q$13&"|"&"FY"&RIGHT(Q$12,2),Datastore!$G:$G)+SUMIF(Datastore!$A:$A,$AC265&$AF265&$AG265&"|"&Q$13&"|"&"FY"&RIGHT(Q$12,2),Datastore!$G:$G))*$AL265/1000 -> 0 | R265: =(SUMIF(Datastore!$A:$A,$AC265&$AD265&$AG265&"|"&R$13&"|"&"FY"&RIGHT(R$12,2),Datastore!$G:$G)+SUMIF(Datastore!$A:$A,$AC265&$AE265&$AG265&"|"&R$13&"|"&"FY"&RIGHT(R$12,2),Datastore!$G:$G)+SUMIF(Datastore!$A:$A,$AC265&$AF265&$AG265&"|"&R$13&"|"&"FY"&RIGHT(R$12,2),Datastore!$G:$G))*$AL265/1000 -> 0 | S265: =(SUMIF(Datastore!$A:$A,$AC265&$AD265&$AG265&"|"&S$13&"|"&"FY"&RIGHT(S$12,2),Datastore!$G:$G)+SUMIF(Datastore!$A:$A,$AC265&$AE265&$AG265&"|"&S$13&"|"&"FY"&RIGHT(S$12,2),Datastore!$G:$G)+SUMIF(Datastore!$A:$A,$AC265&$AF265&$AG265&"|"&S$13&"|"&"FY"&RIGHT(S$12,2),Datastore!$G:$G))*$AL265/1000 -> 0 | T265: =(SUMIF(Datastore!$A:$A,$AC265&$AD265&$AG265&"|"&T$13&"|"&"FY"&RIGHT(T$12,2),Datastore!$G:$G)+SUMIF(Datastore!$A:$A,$AC265&$AE265&$AG265&"|"&T$13&"|"&"FY"&RIGHT(T$12,2),Datastore!$G:$G)+SUMIF(Datastore!$A:$A,$AC265&$AF265&$AG265&"|"&T$13&"|"&"FY"&RIGHT(T$12,2),Datastore!$G:$G))*$AL265/1000 -> 0 | U265: =(SUMIF(Datastore!$A:$A,$AC265&$AD265&$AG265&"|"&U$13&"|"&"FY"&RIGHT(U$12,2),Datastore!$G:$G)+SUMIF(Datastore!$A:$A,$AC265&$AE265&$AG265&"|"&U$13&"|"&"FY"&RIGHT(U$12,2),Datastore!$G:$G)+SUMIF(Datastore!$A:$A,$AC265&$AF265&$AG265&"|"&U$13&"|"&"FY"&RIGHT(U$12,2),Datastore!$G:$G))*$AL265/1000 -> 0 | V265: =(SUMIF(Datastore!$A:$A,$AC265&$AD265&$AG265&"|"&V$13&"|"&"FY"&RIGHT(V$12,2),Datastore!$G:$G)+SUMIF(Datastore!$A:$A,$AC265&$AE265&$AG265&"|"&V$13&"|"&"FY"&RIGHT(V$12,2),Datastore!$G:$G)+SUMIF(Datastore!$A:$A,$AC265&$AF265&$AG265&"|"&V$13&"|"&"FY"&RIGHT(V$12,2),Datastore!$G:$G))*$AL265/1000 -> 0 | W265: =(SUMIF(Datastore!$A:$A,$AC265&$AD265&$AG265&"|"&W$13&"|"&"FY"&RIGHT(W$12,2),Datastore!$G:$G)+SUMIF(Datastore!$A:$A,$AC265&$AE265&$AG265&"|"&W$13&"|"&"FY"&RIGHT(W$12,2),Datastore!$G:$G)+SUMIF(Datastore!$A:$A,$AC265&$AF265&$AG265&"|"&W$13&"|"&"FY"&RIGHT(W$12,2),Datastore!$G:$G))*$AL265/1000 -> 0 | X265: =(SUMIF(Datastore!$A:$A,$AC265&$AD265&$AG265&"|"&X$13&"|"&"FY"&RIGHT(X$12,2),Datastore!$G:$G)+SUMIF(Datastore!$A:$A,$AC265&$AE265&$AG265&"|"&X$13&"|"&"FY"&RIGHT(X$12,2),Datastore!$G:$G)+SUMIF(Datastore!$A:$A,$AC265&$AF265&$AG265&"|"&X$13&"|"&"FY"&RIGHT(X$12,2),Datastore!$G:$G))*$AL265/1000 -> 0 | Y265: =(SUMIF(Datastore!$A:$A,$AC265&$AD265&$AG265&"|"&Y$13&"|"&"FY"&RIGHT(Y$12,2),Datastore!$G:$G)+SUMIF(Datastore!$A:$A,$AC265&$AE265&$AG265&"|"&Y$13&"|"&"FY"&RIGHT(Y$12,2),Datastore!$G:$G)+SUMIF(Datastore!$A:$A,$AC265&$AF265&$AG265&"|"&Y$13&"|"&"FY"&RIGHT(Y$12,2),Datastore!$G:$G))*$AL265/1000 -> 0 | AC265: ?? | AD265: 1 | AE265: 2 | AF265: 4 | AG265: |R??? | AL265: -1
C266: Add loss on disposals | F266: =(SUMIF(Datastore!$A:$A,$AC266&$AD266&$AF266&"|"&F$13&"|"&"FY"&RIGHT(F$12,2),Datastore!$G:$G)+SUMIF(Datastore!$A:$A,$AC266&$AE266&$AF266&"|"&F$13&"|"&"FY"&RIGHT(F$12,2),Datastore!$G:$G))*$AL266/1000 -> -10355.176 | G266: =(SUMIF(Datastore!$A:$A,$AC266&$AD266&$AF266&"|"&G$13&"|"&"FY"&RIGHT(G$12,2),Datastore!$G:$G)+SUMIF(Datastore!$A:$A,$AC266&$AE266&$AF266&"|"&G$13&"|"&"FY"&RIGHT(G$12,2),Datastore!$G:$G))*$AL266/1000 -> -16706.4425 | H266: =H255 -> -25557.084 | AC266: ?? | AD266: 1 | AE266: 2 | AF266: |ELOD | AL266: -1
F267: =SUM(F265:F266) -> 729852.1526 | G267: 830594.2403 | H267: 847268.6237 | I267: 897907.819 | J267: 979478.823 | K267: 0 | L267: 0
C268: Deduct non-regulated revenue | F268: =-F243 -> -16576.78383 | G268: -15815.07126 | H268: -15022.11371 | I268: -1327.441 | J268: -1269.05 | K268: 0 | L268: 0
F269: =SUM(F267:F268) -> 713275.3688 | G269: 814779.1691 | H269: =SUM(H267:H268) -> 832246.51 | I269: 896580.378 | J269: 978209.773 | K269: 0 | L269: 0
C270: 5.1.7 | F270: =IF(ABS(F269-'5.1.7'!F22)<1,"OK","CHECK") -> OK | G270: =IF(ABS(G269-'5.1.7'!G22)<1,"OK","CHECK") -> OK | H270: =IF(ABS(H269-'5.1.7'!H22)<1,"OK","CHECK") -> CHECK | I270: =IF(ABS(I269-'5.1.7'!I22)<1,"OK","CHECK") -> OK | J270: =IF(ABS(J269-'5.1.7'!J22)<1,"OK","CHECK") -> OK
M666: ='5.1.7'!M29 -> 0 | N666: ='5.1.7'!S29 -> 0 | O666: ='5.1.7'!T29 -> 0 | P666: ='5.1.7'!U29 -> 0 | Q666: ='5.1.7'!V29 -> 0 | R666: ='5.1.7'!W29 -> 0 | S666: ='5.1.7'!X29 -> 0 | T666: ='5.1.7'!Y29 -> 0 | U666: ='5.1.7'!Z29 -> 0 | V666: ='5.1.7'!AA29 -> 0 | W666: ='5.1.7'!AB29 -> 0 | X666: ='5.1.7'!#REF! -> 
AG667: =Allocation!K$154 -> 0.9086594767
AG1151: =Allocation!K$157 -> 1
AG1636: =Allocation!K$160 -> 1
AG2121: =Allocation!K$163 -> 1

Sheet 5.2.2
B4: ='Business Details'!$B$4 -> SEQ INTERIM REVENUE MONITORING - INFORMATION REQUIREMENT TEMPLATE
B7: =CONCATENATE("Revenue Details for ",'Business Details'!$D$9," - Customer Groups for Year Ending 30 June ",AnalysisYear) -> Revenue Details for Queensland Urban Utilities - Customer Groups for Year Ending 30 June 2013
B8: =CONCATENATE("Reporting year = ",AnalysisYear) -> Reporting year = 2013
G10: 0 | H10: 0 | I10: 3 | J10: 4
F11: CUSTOMER GROUPS: | L11: =CONCATENATE("For Year Ending 30 June ",AnalysisYear) -> For Year Ending 30 June 2013
F12: Residential | G12: Non-residential | H12: Commercially Negotiated Agreements | I12: Other | J12: Total | L12: Supporting Documents
M13: V5 | N13: FY13
B14: ="Geographical Area 1 - "&'Business Details'!$D$12 -> Geographical Area 1 - Brisbane
O15: Residential | T15: Non-res
B16: REVENUE FROM SERVICES | M16: Dist | N16: Prod | O16: Item1 | P16: Item2 | Q16: Item3 | R16: Item4 | S16: Item5 | T16: Item1 | U16: Item2 | V16: Item3 | W16: Item4 | X16: Item5 | Y16: Sign1 | Z16: Sign2
C17: Water:
C18: Drinking water | E18: $'000 | F18: =(SUMIF(Datastore!$A:$A,$M18&$N18&$O18&"|"&$M$13&"|"&$N$13,Datastore!$G:$G)*$Y18+SUMIF(Datastore!$A:$A,$M18&$N18&$P18&"|"&$M$13&"|"&$N$13,Datastore!$G:$G)*$Y18+SUMIF(Datastore!$A:$A,$M18&$N18&$Q18&"|"&$M$13&"|"&$N$13,Datastore!$G:$G)*$Y18+SUMIF(Datastore!$A:$A,$M18&$N18&$R18&"|"&$M$13&"|"&$N$13,Datastore!$G:$G)*$Y18+SUMIF(Datastore!$A:$A,$M18&$N18&$S18&"|"&$M$13&"|"&$N$13,Datastore!$G:$G)*$Z18)/1000 -> 245741.2139 | G18: =(SUMIF(Datastore!$A:$A,$M18&$N18&$T18&"|"&$M$13&"|"&$N$13,Datastore!$G:$G)*$Y18+SUMIF(Datastore!$A:$A,$M18&$N18&$U18&"|"&$M$13&"|"&$N$13,Datastore!$G:$G)*$Y18+SUMIF(Datastore!$A:$A,$M18&$N18&$V18&"|"&$M$13&"|"&$N$13,Datastore!$G:$G)*$Y18+SUMIF(Datastore!$A:$A,$M18&$N18&$W18&"|"&$M$13&"|"&$N$13,Datastore!$G:$G)*$Y18+SUMIF(Datastore!$A:$A,$M18&$N18&$X18&"|"&$M$13&"|"&$N$13,Datastore!$G:$G)*$Z18)/1000 -> 119254.3992 | J18: =SUM(F18:I18) -> 364995.6131 | K18: =IF($J18='5.2.1'!J18,"OK","check") -> OK | L18: Non-core not separable put in res | M18: 40 | N18: 1 | O18: |RUR? | P18: |RRCS | Q18: |ROOI | R18: |x | S18: |x | T18: |RUN? | U18: |x | V18: |x | W18: |x | X18: |x | Y18: -1 | Z18: 1
C19: Other core water services | E19: $'000 | J19: =SUM(F19:I19) -> 0 | K19: =IF($J19='5.2.1'!J19,"OK","check") -> OK
C21: Wastewater:
C22: Wastewater via sewer | E22: $'000 | F22: =(SUMIF(Datastore!$A:$A,$M22&$N22&$O22&"|"&$M$13&"|"&$N$13,Datastore!$G:$G)*$Y22+SUMIF(Datastore!$A:$A,$M22&$N22&$P22&"|"&$M$13&"|"&$N$13,Datastore!$G:$G)*$Y22+SUMIF(Datastore!$A:$A,$M22&$N22&$Q22&"|"&$M$13&"|"&$N$13,Datastore!$G:$G)*$Y22+SUMIF(Datastore!$A:$A,$M22&$N22&$R22&"|"&$M$13&"|"&$N$13,Datastore!$G:$G)*$Y22+SUMIF(Datastore!$A:$A,$M22&$N22&$S22&"|"&$M$13&"|"&$N$13,Datastore!$G:$G)*$Z22)/1000 -> 196039.308 | G22: =(SUMIF(Datastore!$A:$A,$M22&$N22&$T22&"|"&$M$13&"|"&$N$13,Datastore!$G:$G)*$Y22+SUMIF(Datastore!$A:$A,$M22&$N22&$U22&"|"&$M$13&"|"&$N$13,Datastore!$G:$G)*$Y22+SUMIF(Datastore!$A:$A,$M22&$N22&$V22&"|"&$M$13&"|"&$N$13,Datastore!$G:$G)*$Y22+SUMIF(Datastore!$A:$A,$M22&$N22&$W22&"|"&$M$13&"|"&$N$13,Datastore!$G:$G)*$Y22+SUMIF(Datastore!$A:$A,$M22&$N22&$X22&"|"&$M$13&"|"&$N$13,Datastore!$G:$G)*$Z22)/1000 -> 98508.06665 | J22: =SUM(F22:I22) -> 294547.3746 | K22: =IF($J22='5.2.1'!J22,"OK","check") -> OK | L22: Non-core not separable put in res | M22: 40 | N22: 2 | O22: |RUR? | P22: |RRCS | Q22: |ROOI | R22: |x | S22: |RURW | T22: |RUN? | U22: |x | V22: |x | W22: |x | X22: |x | Y22: -1 | Z22: 1
C23: Trade waste | E23: $'000 | F23: =(SUMIF(Datastore!$A:$A,$M23&$N23&$O23&"|"&$M$13&"|"&$N$13,Datastore!$G:$G)*$Y23+SUMIF(Datastore!$A:$A,$M23&$N23&$P23&"|"&$M$13&"|"&$N$13,Datastore!$G:$G)*$Y23+SUMIF(Datastore!$A:$A,$M23&$N23&$Q23&"|"&$M$13&"|"&$N$13,Datastore!$G:$G)*$Y23+SUMIF(Datastore!$A:$A,$M23&$N23&$R23&"|"&$M$13&"|"&$N$13,Datastore!$G:$G)*$Y23+SUMIF(Datastore!$A:$A,$M23&$N23&$S23&"|"&$M$13&"|"&$N$13,Datastore!$G:$G)*$Z23)/1000 -> 0 | G23: =(SUMIF(Datastore!$A:$A,$M23&$N23&$T23&"|"&$M$13&"|"&$N$13,Datastore!$G:$G)*$Y23+SUMIF(Datastore!$A:$A,$M23&$N23&$U23&"|"&$M$13&"|"&$N$13,Datastore!$G:$G)*$Y23+SUMIF(Datastore!$A:$A,$M23&$N23&$V23&"|"&$M$13&"|"&$N$13,Datastore!$G:$G)*$Y23+SUMIF(Datastore!$A:$A,$M23&$N23&$W23&"|"&$M$13&"|"&$N$13,Datastore!$G:$G)*$Y23+SUMIF(Datastore!$A:$A,$M23&$N23&$X23&"|"&$M$13&"|"&$N$13,Datastore!$G:$G)*$Z23)/1000 -> 20242.20165 | J23: =SUM(F23:I23) -> 20242.20165 | K23: =IF($J23='5.2.1'!J23,"OK","check") -> OK | M23: 40 | N23: 2 | O23: |x | P23: |x | Q23: |x | R23: |x | S23: |x | T23: |RUTW | U23: |x | V23: |x | W23: |x | X23: |x | Y23: -1 | Z23: 1
C24: Other core wastewater services | E24: $'000 | F24: =(SUMIF(Datastore!$A:$A,$M24&$N24&$O24&"|"&$M$13&"|"&$N$13,Datastore!$G:$G)*$Y24+SUMIF(Datastore!$A:$A,$M24&$N24&$P24&"|"&$M$13&"|"&$N$13,Datastore!$G:$G)*$Y24+SUMIF(Datastore!$A:$A,$M24&$N24&$Q24&"|"&$M$13&"|"&$N$13,Datastore!$G:$G)*$Y24+SUMIF(Datastore!$A:$A,$M24&$N24&$R24&"|"&$M$13&"|"&$N$13,Datastore!$G:$G)*$Y24+SUMIF(Datastore!$A:$A,$M24&$N24&$S24&"|"&$M$13&"|"&$N$13,Datastore!$G:$G)*$Z24)/1000 -> 0 | G24: =(SUMIF(Datastore!$A:$A,$M24&$N24&$T24&"|"&$M$13&"|"&$N$13,Datastore!$G:$G)*$Y24+SUMIF(Datastore!$A:$A,$M24&$N24&$U24&"|"&$M$13&"|"&$N$13,Datastore!$G:$G)*$Y24+SUMIF(Datastore!$A:$A,$M24&$N24&$V24&"|"&$M$13&"|"&$N$13,Datastore!$G:$G)*$Y24+SUMIF(Datastore!$A:$A,$M24&$N24&$W24&"|"&$M$13&"|"&$N$13,Datastore!$G:$G)*$Y24+SUMIF(Datastore!$A:$A,$M24&$N24&$X24&"|"&$M$13&"|"&$N$13,Datastore!$G:$G)*$Z24)/1000 -> 9499.828733 | J24: =SUM(F24:I24) -> 9499.828733 | K24: =IF($J24='5.2.1'!J24,"OK","check") -> OK | L24: Recycled water | M24: 40 | N24: 2 | O24: |x | P24: |x | Q24: |x | R24: |x | S24: |x | T24: |RURW | U24: |x | V24: |x | W24: |x | X24: |x | Y24: -1 | Z24: 1
C26: Non-regulated:
C27: Aggregate non-regulated services | E27: $'000 | F27: =(SUMIF(Datastore!$A:$A,$M27&$N27&$O27&"|"&$M$13&"|"&$N$13,Datastore!$G:$G)*$Y27+SUMIF(Datastore!$A:$A,$M27&$N27&$P27&"|"&$M$13&"|"&$N$13,Datastore!$G:$G)*$Y27+SUMIF(Datastore!$A:$A,$M27&$N27&$Q27&"|"&$M$13&"|"&$N$13,Datastore!$G:$G)*$Y27+SUMIF(Datastore!$A:$A,$M27&$N27&$R27&"|"&$M$13&"|"&$N$13,Datastore!$G:$G)*$Y27+SUMIF(Datastore!$A:$A,$M27&$N27&$S27&"|"&$M$13&"|"&$N$13,Datastore!$G:$G)*$Z27)/1000 -> 1119.05 | G27: =(SUMIF(Datastore!$A:$A,$M27&$N27&$T27&"|"&$M$13&"|"&$N$13,Datastore!$G:$G)*$Y27+SUMIF(Datastore!$A:$A,$M27&$N27&$U27&"|"&$M$13&"|"&$N$13,Datastore!$G:$G)*$Y27+SUMIF(Datastore!$A:$A,$M27&$N27&$V27&"|"&$M$13&"|"&$N$13,Datastore!$G:$G)*$Y27+SUMIF(Datastore!$A:$A,$M27&$N27&$W27&"|"&$M$13&"|"&$N$13,Datastore!$G:$G)*$Y27+SUMIF(Datastore!$A:$A,$M27&$N27&$X27&"|"&$M$13&"|"&$N$13,Datastore!$G:$G)*$Z27)/1000 -> 0 | J27: =SUM(F27:I27) -> 1119.05 | K27: =IF($J27='5.2.1'!J27,"OK","check") -> OK | L27: Not separable put in res | M27: 40 | N27: 4 | O27: |R??? | P27: |x | Q27: |x | R27: |x | S27: |x | T27: |x | U27: |x | V27: |x | W27: |x | X27: |x | Y27: -1 | Z27: 1
C29: Subtotal Revenue from Services | E29: $'000 | F29: =SUM(F18:F19)+SUM(F22:F24)+F27 -> 442899.5719 | G29: =SUM(G18:G19)+SUM(G22:G24)+G27 -> 247504.4962 | H29: =SUM(H18:H19)+SUM(H22:H24)+H27 -> 0 | I29: =SUM(I18:I19)+SUM(I22:I24)+I27 -> 0 | J29: =SUM(J18:J19)+SUM(J22:J24)+J27 -> 690404.0681 | K29: =IF($J29='5.2.1'!J29,"OK","check") -> OK
B31: OTHER REVENUES
C32: Revenue Offset Against Revenue:
C33: Investment income | E33: $'000 | F33: =(SUMIF(Datastore!$A:$A,$M33&$N33&$P33&"|"&M$13&"|"&"FY"&RIGHT(N$13,2),Datastore!$G:$G)+SUMIF(Datastore!$A:$A,$M33&$O33&$P33&"|"&M$13&"|"&"FY"&RIGHT(N$13,2),Datastore!$G:$G))*$Y33/1000 -> 350 | J33: =SUM(F33:I33) -> 350 | K33: =IF($J33='5.2.1'!J33,"OK","check") -> OK | L33: Not separable - put in res | M33: 40 | N33: 1 | O33: 2 | P33: |RFIN | Y33: -1
C34: Net profit from sale of assets | E34: $'000 | J34: =SUM(F34:I34) -> 0 | K34: =IF($J34='5.2.1'!J34,"OK","check") -> OK | Y34: -1
C35: Contributions | E35: $'000 | F35: =(SUMIF(Datastore!$A:$A,$M35&$N35&$P35&"|"&M$13&"|"&"FY"&RIGHT(N$13,2),Datastore!$G:$G)+SUMIF(Datastore!$A:$A,$M35&$O35&$P35&"|"&M$13&"|"&"FY"&RIGHT(N$13,2),Datastore!$G:$G))*$Y35/1000 -> 105271.463 | J35: =SUM(F35:I35) -> 105271.463 | K35: =IF($J35='5.2.1'!J35,"OK","check") -> OK | L35: Not separable - put in res | M35: 40 | N35: 1 | O35: 2 | P35: |RC?? | Y35: -1
C37: Revenue Not Offset Against Revenue:
C38: Non-recurrent Income | E38: $'000 | F38: =(SUMIF(Datastore!$A:$A,$M38&$N38&$P38&"|"&M$13&"|"&"FY"&RIGHT(N$13,2),Datastore!$G:$G)+SUMIF(Datastore!$A:$A,$M38&$O38&$P38&"|"&M$13&"|"&"FY"&RIGHT(N$13,2),Datastore!$G:$G))*$Y38/1000 -> 5500 | J38: =SUM(F38:I38) -> 5500 | K38: =IF($J38='5.2.1'!J38,"OK","check") -> OK | M38: 40 | N38: 1 | O38: 2 | P38: |RNOT | Y38: -1
C39: Net profit from sale of assets | E39: $'000 | J39: =SUM(F39:I39) -> 0 | K39: =IF($J39='5.2.1'!J39,"OK","check") -> OK
C40: Contributions | E40: $'000 | J40: =SUM(F40:I40) -> 0 | K40: =IF($J40='5.2.1'!J40,"OK","check") -> OK
C42: Subtotal Other Revenues | E42: $'000 | F42: =SUM(F33:F35)+SUM(F38:F40) -> 111121.463 | G42: =SUM(G33:G35)+SUM(G38:G40) -> 0 | H42: =SUM(H33:H35)+SUM(H38:H40) -> 0 | I42: =SUM(I33:I35)+SUM(I38:I40) -> 0 | J42: =SUM(J33:J35)+SUM(J38:J40) -> 111121.463 | K42: =IF($J42='5.2.1'!J42,"OK","check") -> OK
B44: TOTAL REVENUE | E44: $'000 | F44: =F42+F29 -> 554021.0349 | G44: =G42+G29 -> 247504.4962 | H44: =H42+H29 -> 0 | I44: =I42+I29 -> 0 | J44: =J42+J29 -> 801525.5311 | K44: =IF($J44='5.2.1'!J44,"OK","check") -> OK
F49: =F$11 -> CUSTOMER GROUPS: | L49: =L$11 -> For Year Ending 30 June 2013
F50: =F$12 -> Residential | G50: =G$12 -> Non-residential | H50: =H$12 -> Commercially Negotiated Agreements | I50: =I$12 -> Other | J50: =J$12 -> Total | L50: =L$12 -> Supporting Documents
B52: ="Geographical Area 2 - "&'Business Details'!$D$13 -> Geographical Area 2 - Ipswich
B54: REVENUE FROM SERVICES
C55: Water:
C56: Drinking water | E56: $'000 | F56: =(SUMIF(Datastore!$A:$A,$M56&$N56&$O56&"|"&$M$13&"|"&$N$13,Datastore!$G:$G)*$Y56+SUMIF(Datastore!$A:$A,$M56&$N56&$P56&"|"&$M$13&"|"&$N$13,Datastore!$G:$G)*$Y56+SUMIF(Datastore!$A:$A,$M56&$N56&$Q56&"|"&$M$13&"|"&$N$13,Datastore!$G:$G)*$Y56+SUMIF(Datastore!$A:$A,$M56&$N56&$R56&"|"&$M$13&"|"&$N$13,Datastore!$G:$G)*$Y56+SUMIF(Datastore!$A:$A,$M56&$N56&$S56&"|"&$M$13&"|"&$N$13,Datastore!$G:$G)*$Z56)/1000 -> 50488.50239 | G56: =(SUMIF(Datastore!$A:$A,$M56&$N56&$T56&"|"&$M$13&"|"&$N$13,Datastore!$G:$G)*$Y56+SUMIF(Datastore!$A:$A,$M56&$N56&$U56&"|"&$M$13&"|"&$N$13,Datastore!$G:$G)*$Y56+SUMIF(Datastore!$A:$A,$M56&$N56&$V56&"|"&$M$13&"|"&$N$13,Datastore!$G:$G)*$Y56+SUMIF(Datastore!$A:$A,$M56&$N56&$W56&"|"&$M$13&"|"&$N$13,Datastore!$G:$G)*$Y56+SUMIF(Datastore!$A:$A,$M56&$N56&$X56&"|"&$M$13&"|"&$N$13,Datastore!$G:$G)*$Z56)/1000 -> 19527.22547 | J56: =SUM(F56:I56) -> 70015.72786 | K56: =IF($J56='5.2.1'!J54,"OK","check") -> OK | L56: Non-core not separable put in res | M56: 85 | N56: 1 | O56: |RUR? | P56: |RRCS | Q56: |ROOI | R56: |x | S56: |x | T56: |RUN? | U56: |x | V56: |x | W56: |x | X56: |x | Y56: -1 | Z56: 1
C57: Other core water services | E57: $'000 | J57: =SUM(F57:I57) -> 0 | K57: =IF($J57='5.2.1'!J55,"OK","check") -> OK
C59: Wastewater:
C60: Wastewater via sewer | E60: $'000 | F60: =(SUMIF(Datastore!$A:$A,$M60&$N60&$O60&"|"&$M$13&"|"&$N$13,Datastore!$G:$G)*$Y60+SUMIF(Datastore!$A:$A,$M60&$N60&$P60&"|"&$M$13&"|"&$N$13,Datastore!$G:$G)*$Y60+SUMIF(Datastore!$A:$A,$M60&$N60&$Q60&"|"&$M$13&"|"&$N$13,Datastore!$G:$G)*$Y60+SUMIF(Datastore!$A:$A,$M60&$N60&$R60&"|"&$M$13&"|"&$N$13,Datastore!$G:$G)*$Y60+SUMIF(Datastore!$A:$A,$M60&$N60&$S60&"|"&$M$13&"|"&$N$13,Datastore!$G:$G)*$Z60)/1000 -> 34360.98817 | G60: =(SUMIF(Datastore!$A:$A,$M60&$N60&$T60&"|"&$M$13&"|"&$N$13,Datastore!$G:$G)*$Y60+SUMIF(Datastore!$A:$A,$M60&$N60&$U60&"|"&$M$13&"|"&$N$13,Datastore!$G:$G)*$Y60+SUMIF(Datastore!$A:$A,$M60&$N60&$V60&"|"&$M$13&"|"&$N$13,Datastore!$G:$G)*$Y60+SUMIF(Datastore!$A:$A,$M60&$N60&$W60&"|"&$M$13&"|"&$N$13,Datastore!$G:$G)*$Y60+SUMIF(Datastore!$A:$A,$M60&$N60&$X60&"|"&$M$13&"|"&$N$13,Datastore!$G:$G)*$Z60)/1000 -> 9221.800933 | J60: =SUM(F60:I60) -> 43582.7891 | K60: =IF($J60='5.2.1'!J58,"OK","check") -> OK | L60: Non-core not separable put in res | M60: 85 | N60: 2 | O60: |RUR? | P60: |RRCS | Q60: |ROOI | R60: |x | S60: |RURW | T60: |RUN? | U60: |x | V60: |x | W60: |x | X60: |x | Y60: -1 | Z60: 1
C61: Trade waste | E61: $'000 | F61: =(SUMIF(Datastore!$A:$A,$M61&$N61&$O61&"|"&$M$13&"|"&$N$13,Datastore!$G:$G)*$Y61+SUMIF(Datastore!$A:$A,$M61&$N61&$P61&"|"&$M$13&"|"&$N$13,Datastore!$G:$G)*$Y61+SUMIF(Datastore!$A:$A,$M61&$N61&$Q61&"|"&$M$13&"|"&$N$13,Datastore!$G:$G)*$Y61+SUMIF(Datastore!$A:$A,$M61&$N61&$R61&"|"&$M$13&"|"&$N$13,Datastore!$G:$G)*$Y61+SUMIF(Datastore!$A:$A,$M61&$N61&$S61&"|"&$M$13&"|"&$N$13,Datastore!$G:$G)*$Z61)/1000 -> 0 | G61: =(SUMIF(Datastore!$A:$A,$M61&$N61&$T61&"|"&$M$13&"|"&$N$13,Datastore!$G:$G)*$Y61+SUMIF(Datastore!$A:$A,$M61&$N61&$U61&"|"&$M$13&"|"&$N$13,Datastore!$G:$G)*$Y61+SUMIF(Datastore!$A:$A,$M61&$N61&$V61&"|"&$M$13&"|"&$N$13,Datastore!$G:$G)*$Y61+SUMIF(Datastore!$A:$A,$M61&$N61&$W61&"|"&$M$13&"|"&$N$13,Datastore!$G:$G)*$Y61+SUMIF(Datastore!$A:$A,$M61&$N61&$X61&"|"&$M$13&"|"&$N$13,Datastore!$G:$G)*$Z61)/1000 -> 2945.517004 | J61: =SUM(F61:I61) -> 2945.517004 | K61: =IF($J61='5.2.1'!J59,"OK","check") -> OK | M61: 85 | N61: 2 | O61: |x | P61: |x | Q61: |x | R61: |x | S61: |x | T61: |RUTW | U61: |x | V61: |x | W61: |x | X61: |x | Y61: -1 | Z61: 1
C62: Other core wastewater services | F62: =(SUMIF(Datastore!$A:$A,$M62&$N62&$O62&"|"&$M$13&"|"&$N$13,Datastore!$G:$G)*$Y62+SUMIF(Datastore!$A:$A,$M62&$N62&$P62&"|"&$M$13&"|"&$N$13,Datastore!$G:$G)*$Y62+SUMIF(Datastore!$A:$A,$M62&$N62&$Q62&"|"&$M$13&"|"&$N$13,Datastore!$G:$G)*$Y62+SUMIF(Datastore!$A:$A,$M62&$N62&$R62&"|"&$M$13&"|"&$N$13,Datastore!$G:$G)*$Y62+SUMIF(Datastore!$A:$A,$M62&$N62&$S62&"|"&$M$13&"|"&$N$13,Datastore!$G:$G)*$Z62)/1000 -> 0 | G62: =(SUMIF(Datastore!$A:$A,$M62&$N62&$T62&"|"&$M$13&"|"&$N$13,Datastore!$G:$G)*$Y62+SUMIF(Datastore!$A:$A,$M62&$N62&$U62&"|"&$M$13&"|"&$N$13,Datastore!$G:$G)*$Y62+SUMIF(Datastore!$A:$A,$M62&$N62&$V62&"|"&$M$13&"|"&$N$13,Datastore!$G:$G)*$Y62+SUMIF(Datastore!$A:$A,$M62&$N62&$W62&"|"&$M$13&"|"&$N$13,Datastore!$G:$G)*$Y62+SUMIF(Datastore!$A:$A,$M62&$N62&$X62&"|"&$M$13&"|"&$N$13,Datastore!$G:$G)*$Z62)/1000 -> 120.0557 | J62: =SUM(F62:I62) -> 120.0557 | K62: =IF($J62='5.2.1'!J60,"OK","check") -> OK | L62: Recycled water | M62: 85 | N62: 2 | O62: |x | P62: |x | Q62: |x | R62: |x | S62: |x | T62: |RURW | U62: |x | V62: |x | W62: |x | X62: |x | Y62: -1 | Z62: 1
C64: Non-regulated:
C65: Aggregate non-regulated services | E65: $'000 | F65: =(SUMIF(Datastore!$A:$A,$M65&$N65&$O65&"|"&$M$13&"|"&$N$13,Datastore!$G:$G)*$Y65+SUMIF(Datastore!$A:$A,$M65&$N65&$P65&"|"&$M$13&"|"&$N$13,Datastore!$G:$G)*$Y65+SUMIF(Datastore!$A:$A,$M65&$N65&$Q65&"|"&$M$13&"|"&$N$13,Datastore!$G:$G)*$Y65+SUMIF(Datastore!$A:$A,$M65&$N65&$R65&"|"&$M$13&"|"&$N$13,Datastore!$G:$G)*$Y65+SUMIF(Datastore!$A:$A,$M65&$N65&$S65&"|"&$M$13&"|"&$N$13,Datastore!$G:$G)*$Z65)/1000 -> 150 | G65: =(SUMIF(Datastore!$A:$A,$M65&$N65&$T65&"|"&$M$13&"|"&$N$13,Datastore!$G:$G)*$Y65+SUMIF(Datastore!$A:$A,$M65&$N65&$U65&"|"&$M$13&"|"&$N$13,Datastore!$G:$G)*$Y65+SUMIF(Datastore!$A:$A,$M65&$N65&$V65&"|"&$M$13&"|"&$N$13,Datastore!$G:$G)*$Y65+SUMIF(Datastore!$A:$A,$M65&$N65&$W65&"|"&$M$13&"|"&$N$13,Datastore!$G:$G)*$Y65+SUMIF(Datastore!$A:$A,$M65&$N65&$X65&"|"&$M$13&"|"&$N$13,Datastore!$G:$G)*$Z65)/1000 -> 0 | J65: =SUM(F65:I65) -> 150 | K65: =IF($J65='5.2.1'!J63,"OK","check") -> OK | L65: Not separable put in res | M65: 85 | N65: 4 | O65: |R??? | P65: |x | Q65: |x | R65: |x | S65: |x | T65: |x | U65: |x | V65: |x | W65: |x | X65: |x | Y65: -1 | Z65: 1
C67: Subtotal Revenue from Services | E67: $'000 | F67: =SUM(F56:F57)+SUM(F60:F62)+F65 -> 84999.49056 | G67: =SUM(G56:G57)+SUM(G60:G62)+G65 -> 31814.59911 | H67: =SUM(H56:H57)+SUM(H60:H62)+H65 -> 0 | I67: =SUM(I56:I57)+SUM(I60:I62)+I65 -> 0 | J67: =SUM(J56:J57)+SUM(J60:J62)+J65 -> 116814.0897 | K67: =IF($J67='5.2.1'!J65,"OK","check") -> OK
B69: OTHER REVENUES
C70: Revenue Offset Against Revenue:
C71: Investment income | E71: $'000 | F71: =(SUMIF(Datastore!$A:$A,$M71&$N71&$P71&"|"&M$13&"|"&"FY"&RIGHT(N$13,2),Datastore!$G:$G)+SUMIF(Datastore!$A:$A,$M71&$O71&$P71&"|"&M$13&"|"&"FY"&RIGHT(N$13,2),Datastore!$G:$G))*$Y71/1000 -> 0 | J71: =SUM(F71:I71) -> 0 | K71: =IF($J71='5.2.1'!J69,"OK","check") -> OK | L71: Not separable - put in res | M71: 85 | N71: 1 | O71: 2 | P71: |RFIN | Y71: -1
C72: Net profit from sale of assets | E72: $'000 | J72: =SUM(F72:I72) -> 0 | K72: =IF($J72='5.2.1'!J70,"OK","check") -> OK | Y72: -1
C73: Contributions | E73: $'000 | F73: =(SUMIF(Datastore!$A:$A,$M73&$N73&$P73&"|"&M$13&"|"&"FY"&RIGHT(N$13,2),Datastore!$G:$G)+SUMIF(Datastore!$A:$A,$M73&$O73&$P73&"|"&M$13&"|"&"FY"&RIGHT(N$13,2),Datastore!$G:$G))*$Y73/1000 -> 21837.27339 | J73: =SUM(F73:I73) -> 21837.27339 | K73: =IF($J73='5.2.1'!J71,"OK","check") -> OK | L73: Not separable - put in res | M73: 85 | N73: 1 | O73: 2 | P73: |RC?? | Y73: -1
C75: Revenue Not Offset Against Revenue:
C76: Non-recurrent Income | E76: $'000 | F76: =(SUMIF(Datastore!$A:$A,$M76&$N76&$P76&"|"&M$13&"|"&"FY"&RIGHT(N$13,2),Datastore!$G:$G)+SUMIF(Datastore!$A:$A,$M76&$O76&$P76&"|"&M$13&"|"&"FY"&RIGHT(N$13,2),Datastore!$G:$G))*$Y76/1000 -> 0 | J76: =SUM(F76:I76) -> 0 | K76: =IF($J76='5.2.1'!J76,"OK","check") -> OK | M76: 85 | N76: 1 | O76: 2 | P76: |RNOT | Y76: -1
C77: Net profit from sale of assets | E77: $'000 | J77: =SUM(F77:I77) -> 0 | K77: =IF($J77='5.2.1'!J75,"OK","check") -> OK
C78: Contributions | E78: $'000 | J78: =SUM(F78:I78) -> 0 | K78: =IF($J78='5.2.1'!J76,"OK","check") -> OK
C80: Subtotal Other Revenues | E80: $'000 | F80: =SUM(F71:F73)+SUM(F76:F78) -> 21837.27339 | G80: =SUM(G71:G73)+SUM(G76:G78) -> 0 | H80: =SUM(H71:H73)+SUM(H76:H78) -> 0 | I80: =SUM(I71:I73)+SUM(I76:I78) -> 0 | J80: =SUM(J71:J73)+SUM(J76:J78) -> 21837.27339 | K80: =IF($J80='5.2.1'!J78,"OK","check") -> OK
B82: TOTAL REVENUE | E82: $'000 | F82: =F80+F67 -> 106836.764 | G82: =G80+G67 -> 31814.59911 | H82: =H80+H67 -> 0 | I82: =I80+I67 -> 0 | J82: =J80+J67 -> 138651.3631 | K82: =IF($J82='5.2.1'!J80,"OK","check") -> OK
F87: =F$11 -> CUSTOMER GROUPS: | L87: =L$11 -> For Year Ending 30 June 2013
F88: =F$12 -> Residential | G88: =G$12 -> Non-residential | H88: =H$12 -> Commercially Negotiated Agreements | I88: =I$12 -> Other | J88: =J$12 -> Total | L88: =L$12 -> Supporting Documents
B90: ="Geographical Area 3 - "&'Business Details'!$D$14 -> Geographical Area 3 - Lockyer Valley
B92: REVENUE FROM SERVICES
C93: Water:
C94: Drinking water | E94: $'000 | F94: =(SUMIF(Datastore!$A:$A,$M94&$N94&$O94&"|"&$M$13&"|"&$N$13,Datastore!$G:$G)*$Y94+SUMIF(Datastore!$A:$A,$M94&$N94&$P94&"|"&$M$13&"|"&$N$13,Datastore!$G:$G)*$Y94+SUMIF(Datastore!$A:$A,$M94&$N94&$Q94&"|"&$M$13&"|"&$N$13,Datastore!$G:$G)*$Y94+SUMIF(Datastore!$A:$A,$M94&$N94&$R94&"|"&$M$13&"|"&$N$13,Datastore!$G:$G)*$Y94+SUMIF(Datastore!$A:$A,$M94&$N94&$S94&"|"&$M$13&"|"&$N$13,Datastore!$G:$G)*$Z94)/1000 -> 5717.158206 | G94: =(SUMIF(Datastore!$A:$A,$M94&$N94&$T94&"|"&$M$13&"|"&$N$13,Datastore!$G:$G)*$Y94+SUMIF(Datastore!$A:$A,$M94&$N94&$U94&"|"&$M$13&"|"&$N$13,Datastore!$G:$G)*$Y94+SUMIF(Datastore!$A:$A,$M94&$N94&$V94&"|"&$M$13&"|"&$N$13,Datastore!$G:$G)*$Y94+SUMIF(Datastore!$A:$A,$M94&$N94&$W94&"|"&$M$13&"|"&$N$13,Datastore!$G:$G)*$Y94+SUMIF(Datastore!$A:$A,$M94&$N94&$X94&"|"&$M$13&"|"&$N$13,Datastore!$G:$G)*$Z94)/1000 -> 2624.36763 | J94: =SUM(F94:I94) -> 8341.525836 | K94: =IF($J94='5.2.1'!J90,"OK","check") -> OK | L94: Non-core not separable put in res | M94: 86 | N94: 1 | O94: |RUR? | P94: |RRCS | Q94: |ROOI | R94: |x | S94: |x | T94: |RUN? | U94: |x | V94: |x | W94: |x | X94: |x | Y94: -1 | Z94: 1
C95: Other core water services | E95: $'000 | J95: =SUM(F95:I95) -> 0 | K95: =IF($J95='5.2.1'!J91,"OK","check") -> OK
C97: Wastewater:
C98: Wastewater via sewer | E98: $'000 | F98: =(SUMIF(Datastore!$A:$A,$M98&$N98&$O98&"|"&$M$13&"|"&$N$13,Datastore!$G:$G)*$Y98+SUMIF(Datastore!$A:$A,$M98&$N98&$P98&"|"&$M$13&"|"&$N$13,Datastore!$G:$G)*$Y98+SUMIF(Datastore!$A:$A,$M98&$N98&$Q98&"|"&$M$13&"|"&$N$13,Datastore!$G:$G)*$Y98+SUMIF(Datastore!$A:$A,$M98&$N98&$R98&"|"&$M$13&"|"&$N$13,Datastore!$G:$G)*$Y98+SUMIF(Datastore!$A:$A,$M98&$N98&$S98&"|"&$M$13&"|"&$N$13,Datastore!$G:$G)*$Z98)/1000 -> 2196.66688 | G98: =(SUMIF(Datastore!$A:$A,$M98&$N98&$T98&"|"&$M$13&"|"&$N$13,Datastore!$G:$G)*$Y98+SUMIF(Datastore!$A:$A,$M98&$N98&$U98&"|"&$M$13&"|"&$N$13,Datastore!$G:$G)*$Y98+SUMIF(Datastore!$A:$A,$M98&$N98&$V98&"|"&$M$13&"|"&$N$13,Datastore!$G:$G)*$Y98+SUMIF(Datastore!$A:$A,$M98&$N98&$W98&"|"&$M$13&"|"&$N$13,Datastore!$G:$G)*$Y98+SUMIF(Datastore!$A:$A,$M98&$N98&$X98&"|"&$M$13&"|"&$N$13,Datastore!$G:$G)*$Z98)/1000 -> 472.9425212 | J98: =SUM(F98:I98) -> 2669.609401 | K98: =IF($J98='5.2.1'!J94,"OK","check") -> OK | L98: Non-core not separable put in res | M98: 86 | N98: 2 | O98: |RUR? | P98: |RRCS | Q98: |ROOI | R98: |x | S98: |RURW | T98: |RUN? | U98: |x | V98: |x | W98: |x | X98: |x | Y98: -1 | Z98: 1
C99: Trade waste | E99: $'000 | F99: =(SUMIF(Datastore!$A:$A,$M99&$N99&$O99&"|"&$M$13&"|"&$N$13,Datastore!$G:$G)*$Y99+SUMIF(Datastore!$A:$A,$M99&$N99&$P99&"|"&$M$13&"|"&$N$13,Datastore!$G:$G)*$Y99+SUMIF(Datastore!$A:$A,$M99&$N99&$Q99&"|"&$M$13&"|"&$N$13,Datastore!$G:$G)*$Y99+SUMIF(Datastore!$A:$A,$M99&$N99&$R99&"|"&$M$13&"|"&$N$13,Datastore!$G:$G)*$Y99+SUMIF(Datastore!$A:$A,$M99&$N99&$S99&"|"&$M$13&"|"&$N$13,Datastore!$G:$G)*$Z99)/1000 -> 0 | G99: =(SUMIF(Datastore!$A:$A,$M99&$N99&$T99&"|"&$M$13&"|"&$N$13,Datastore!$G:$G)*$Y99+SUMIF(Datastore!$A:$A,$M99&$N99&$U99&"|"&$M$13&"|"&$N$13,Datastore!$G:$G)*$Y99+SUMIF(Datastore!$A:$A,$M99&$N99&$V99&"|"&$M$13&"|"&$N$13,Datastore!$G:$G)*$Y99+SUMIF(Datastore!$A:$A,$M99&$N99&$W99&"|"&$M$13&"|"&$N$13,Datastore!$G:$G)*$Y99+SUMIF(Datastore!$A:$A,$M99&$N99&$X99&"|"&$M$13&"|"&$N$13,Datastore!$G:$G)*$Z99)/1000 -> 0 | J99: =SUM(F99:I99) -> 0 | K99: =IF($J99='5.2.1'!J95,"OK","check") -> OK | M99: 86 | N99: 2 | O99: |x | P99: |x | Q99: |x | R99: |x | S99: |x | T99: |RUTW | U99: |x | V99: |x | W99: |x | X99: |x | Y99: -1 | Z99: 1
C100: Other core wastewater services | F100: =(SUMIF(Datastore!$A:$A,$M100&$N100&$O100&"|"&$M$13&"|"&$N$13,Datastore!$G:$G)*$Y100+SUMIF(Datastore!$A:$A,$M100&$N100&$P100&"|"&$M$13&"|"&$N$13,Datastore!$G:$G)*$Y100+SUMIF(Datastore!$A:$A,$M100&$N100&$Q100&"|"&$M$13&"|"&$N$13,Datastore!$G:$G)*$Y100+SUMIF(Datastore!$A:$A,$M100&$N100&$R100&"|"&$M$13&"|"&$N$13,Datastore!$G:$G)*$Y100+SUMIF(Datastore!$A:$A,$M100&$N100&$S100&"|"&$M$13&"|"&$N$13,Datastore!$G:$G)*$Z100)/1000 -> 0 | G100: =(SUMIF(Datastore!$A:$A,$M100&$N100&$T100&"|"&$M$13&"|"&$N$13,Datastore!$G:$G)*$Y100+SUMIF(Datastore!$A:$A,$M100&$N100&$U100&"|"&$M$13&"|"&$N$13,Datastore!$G:$G)*$Y100+SUMIF(Datastore!$A:$A,$M100&$N100&$V100&"|"&$M$13&"|"&$N$13,Datastore!$G:$G)*$Y100+SUMIF(Datastore!$A:$A,$M100&$N100&$W100&"|"&$M$13&"|"&$N$13,Datastore!$G:$G)*$Y100+SUMIF(Datastore!$A:$A,$M100&$N100&$X100&"|"&$M$13&"|"&$N$13,Datastore!$G:$G)*$Z100)/1000 -> 0 | J100: =SUM(F100:I100) -> 0 | K100: =IF($J100='5.2.1'!J96,"OK","check") -> OK | L100: Recycled water | M100: 86 | N100: 2 | O100: |x | P100: |x | Q100: |x | R100: |x | S100: |x | T100: |RURW | U100: |x | V100: |x | W100: |x | X100: |x | Y100: -1 | Z100: 1
C102: Non-regulated:
C103: Aggregate non-regulated services | E103: $'000 | F103: =(SUMIF(Datastore!$A:$A,$M103&$N103&$O103&"|"&$M$13&"|"&$N$13,Datastore!$G:$G)*$Y103+SUMIF(Datastore!$A:$A,$M103&$N103&$P103&"|"&$M$13&"|"&$N$13,Datastore!$G:$G)*$Y103+SUMIF(Datastore!$A:$A,$M103&$N103&$Q103&"|"&$M$13&"|"&$N$13,Datastore!$G:$G)*$Y103+SUMIF(Datastore!$A:$A,$M103&$N103&$R103&"|"&$M$13&"|"&$N$13,Datastore!$G:$G)*$Y103+SUMIF(Datastore!$A:$A,$M103&$N103&$S103&"|"&$M$13&"|"&$N$13,Datastore!$G:$G)*$Z103)/1000 -> 0 | G103: =(SUMIF(Datastore!$A:$A,$M103&$N103&$T103&"|"&$M$13&"|"&$N$13,Datastore!$G:$G)*$Y103+SUMIF(Datastore!$A:$A,$M103&$N103&$U103&"|"&$M$13&"|"&$N$13,Datastore!$G:$G)*$Y103+SUMIF(Datastore!$A:$A,$M103&$N103&$V103&"|"&$M$13&"|"&$N$13,Datastore!$G:$G)*$Y103+SUMIF(Datastore!$A:$A,$M103&$N103&$W103&"|"&$M$13&"|"&$N$13,Datastore!$G:$G)*$Y103+SUMIF(Datastore!$A:$A,$M103&$N103&$X103&"|"&$M$13&"|"&$N$13,Datastore!$G:$G)*$Z103)/1000 -> 0 | J103: =SUM(F103:I103) -> 0 | K103: =IF($J103='5.2.1'!J99,"OK","check") -> OK | L103: Not separable put in res | M103: 86 | N103: 4 | O103: |R??? | P103: |x | Q103: |x | R103: |x | S103: |x | T103: |x | U103: |x | V103: |x | W103: |x | X103: |x | Y103: -1 | Z103: 1
C105: Subtotal Revenue from Services | E105: $'000 | F105: =SUM(F94:F95)+SUM(F98:F100)+F103 -> 7913.825086 | G105: =SUM(G94:G95)+SUM(G98:G100)+G103 -> 3097.310151 | H105: =SUM(H94:H95)+SUM(H98:H100)+H103 -> 0 | I105: =SUM(I94:I95)+SUM(I98:I100)+I103 -> 0 | J105: =SUM(J94:J95)+SUM(J98:J100)+J103 -> 11011.13524 | K105: =IF($J105='5.2.1'!J101,"OK","check") -> OK
B107: OTHER REVENUES
C108: Revenue Offset Against Revenue:
C109: Investment income | E109: $'000 | F109: =(SUMIF(Datastore!$A:$A,$M109&$N109&$P109&"|"&M$13&"|"&"FY"&RIGHT(N$13,2),Datastore!$G:$G)+SUMIF(Datastore!$A:$A,$M109&$O109&$P109&"|"&M$13&"|"&"FY"&RIGHT(N$13,2),Datastore!$G:$G))*$Y109/1000 -> 0 | J109: =SUM(F109:I109) -> 0 | K109: =IF($J109='5.2.1'!J105,"OK","check") -> OK | L109: Not separable - put in res | M109: 86 | N109: 1 | O109: 2 | P109: |RFIN | Y109: -1
C110: Net profit from sale of assets | E110: $'000 | J110: =SUM(F110:I110) -> 0 | K110: =IF($J110='5.2.1'!J106,"OK","check") -> OK | Y110: -1
C111: Contributions | E111: $'000 | F111: =(SUMIF(Datastore!$A:$A,$M111&$N111&$P111&"|"&M$13&"|"&"FY"&RIGHT(N$13,2),Datastore!$G:$G)+SUMIF(Datastore!$A:$A,$M111&$O111&$P111&"|"&M$13&"|"&"FY"&RIGHT(N$13,2),Datastore!$G:$G))*$Y111/1000 -> 4217.638349 | J111: =SUM(F111:I111) -> 4217.638349 | K111: =IF($J111='5.2.1'!J107,"OK","check") -> OK | L111: Not separable - put in res | M111: 86 | N111: 1 | O111: 2 | P111: |RC?? | Y111: -1
C113: Revenue Not Offset Against Revenue:
C114: Non-recurrent Income | E114: $'000 | F114: =(SUMIF(Datastore!$A:$A,$M114&$N114&$P114&"|"&M$13&"|"&"FY"&RIGHT(N$13,2),Datastore!$G:$G)+SUMIF(Datastore!$A:$A,$M114&$O114&$P114&"|"&M$13&"|"&"FY"&RIGHT(N$13,2),Datastore!$G:$G))*$Y114/1000 -> 0 | J114: =SUM(F114:I114) -> 0 | K114: =IF($J114='5.2.1'!J110,"OK","check") -> OK | M114: 86 | N114: 1 | O114: 2 | P114: |RNOT | Y114: -1
C115: Net profit from sale of assets | E115: $'000 | J115: =SUM(F115:I115) -> 0 | K115: =IF($J115='5.2.1'!J111,"OK","check") -> OK
C116: Contributions | E116: $'000 | J116: =SUM(F116:I116) -> 0 | K116: =IF($J116='5.2.1'!J112,"OK","check") -> OK
C118: Subtotal Other Revenues | E118: $'000 | F118: =SUM(F109:F111)+SUM(F114:F116) -> 4217.638349 | G118: =SUM(G109:G111)+SUM(G114:G116) -> 0 | H118: =SUM(H109:H111)+SUM(H114:H116) -> 0 | I118: =SUM(I109:I111)+SUM(I114:I116) -> 0 | J118: =SUM(J109:J111)+SUM(J114:J116) -> 4217.638349 | K118: =IF($J118='5.2.1'!J114,"OK","check") -> OK
B120: TOTAL REVENUE | E120: $'000 | F120: =F118+F105 -> 12131.46344 | G120: =G118+G105 -> 3097.310151 | H120: =H118+H105 -> 0 | I120: =I118+I105 -> 0 | J120: =J118+J105 -> 15228.77359 | K120: =IF($J120='5.2.1'!J116,"OK","check") -> OK
F125: =F$11 -> CUSTOMER GROUPS: | L125: =L$11 -> For Year Ending 30 June 2013
F126: =F$12 -> Residential | G126: =G$12 -> Non-residential | H126: =H$12 -> Commercially Negotiated Agreements | I126: =I$12 -> Other | J126: =J$12 -> Total | L126: =L$12 -> Supporting Documents
B128: ="Geographical Area 4 - "&'Business Details'!$D$15 -> Geographical Area 4 - Scenic Rim
B130: REVENUE FROM SERVICES
C131: Water:
C132: Drinking water | E132: $'000 | F132: =(SUMIF(Datastore!$A:$A,$M132&$N132&$O132&"|"&$M$13&"|"&$N$13,Datastore!$G:$G)*$Y132+SUMIF(Datastore!$A:$A,$M132&$N132&$P132&"|"&$M$13&"|"&$N$13,Datastore!$G:$G)*$Y132+SUMIF(Datastore!$A:$A,$M132&$N132&$Q132&"|"&$M$13&"|"&$N$13,Datastore!$G:$G)*$Y132+SUMIF(Datastore!$A:$A,$M132&$N132&$R132&"|"&$M$13&"|"&$N$13,Datastore!$G:$G)*$Y132+SUMIF(Datastore!$A:$A,$M132&$N132&$S132&"|"&$M$13&"|"&$N$13,Datastore!$G:$G)*$Z132)/1000 -> 4693.911182 | G132: =(SUMIF(Datastore!$A:$A,$M132&$N132&$T132&"|"&$M$13&"|"&$N$13,Datastore!$G:$G)*$Y132+SUMIF(Datastore!$A:$A,$M132&$N132&$U132&"|"&$M$13&"|"&$N$13,Datastore!$G:$G)*$Y132+SUMIF(Datastore!$A:$A,$M132&$N132&$V132&"|"&$M$13&"|"&$N$13,Datastore!$G:$G)*$Y132+SUMIF(Datastore!$A:$A,$M132&$N132&$W132&"|"&$M$13&"|"&$N$13,Datastore!$G:$G)*$Y132+SUMIF(Datastore!$A:$A,$M132&$N132&$X132&"|"&$M$13&"|"&$N$13,Datastore!$G:$G)*$Z132)/1000 -> 1821.584407 | J132: =SUM(F132:I132) -> 6515.495589 | K132: =IF($J132='5.2.1'!J126,"OK","check") -> OK | L132: Non-core not separable put in res | M132: 87 | N132: 1 | O132: |RUR? | P132: |RRCS | Q132: |ROOI | R132: |x | S132: |x | T132: |RUN? | U132: |x | V132: |x | W132: |x | X132: |x | Y132: -1 | Z132: 1
C133: Other core water services | E133: $'000 | J133: =SUM(F133:I133) -> 0 | K133: =IF($J133='5.2.1'!J127,"OK","check") -> OK
C135: Wastewater:
C136: Wastewater via sewer | E136: $'000 | F136: =(SUMIF(Datastore!$A:$A,$M136&$N136&$O136&"|"&$M$13&"|"&$N$13,Datastore!$G:$G)*$Y136+SUMIF(Datastore!$A:$A,$M136&$N136&$P136&"|"&$M$13&"|"&$N$13,Datastore!$G:$G)*$Y136+SUMIF(Datastore!$A:$A,$M136&$N136&$Q136&"|"&$M$13&"|"&$N$13,Datastore!$G:$G)*$Y136+SUMIF(Datastore!$A:$A,$M136&$N136&$R136&"|"&$M$13&"|"&$N$13,Datastore!$G:$G)*$Y136+SUMIF(Datastore!$A:$A,$M136&$N136&$S136&"|"&$M$13&"|"&$N$13,Datastore!$G:$G)*$Z136)/1000 -> 2318.89594 | G136: =(SUMIF(Datastore!$A:$A,$M136&$N136&$T136&"|"&$M$13&"|"&$N$13,Datastore!$G:$G)*$Y136+SUMIF(Datastore!$A:$A,$M136&$N136&$U136&"|"&$M$13&"|"&$N$13,Datastore!$G:$G)*$Y136+SUMIF(Datastore!$A:$A,$M136&$N136&$V136&"|"&$M$13&"|"&$N$13,Datastore!$G:$G)*$Y136+SUMIF(Datastore!$A:$A,$M136&$N136&$W136&"|"&$M$13&"|"&$N$13,Datastore!$G:$G)*$Y136+SUMIF(Datastore!$A:$A,$M136&$N136&$X136&"|"&$M$13&"|"&$N$13,Datastore!$G:$G)*$Z136)/1000 -> 992.123083 | J136: =SUM(F136:I136) -> 3311.019023 | K136: =IF($J136='5.2.1'!J130,"OK","check") -> OK | L136: Non-core not separable put in res | M136: 87 | N136: 2 | O136: |RUR? | P136: |RRCS | Q136: |ROOI | R136: |x | S136: |RURW | T136: |RUN? | U136: |x | V136: |x | W136: |x | X136: |x | Y136: -1 | Z136: 1
C137: Trade waste | E137: $'000 | F137: =(SUMIF(Datastore!$A:$A,$M137&$N137&$O137&"|"&$M$13&"|"&$N$13,Datastore!$G:$G)*$Y137+SUMIF(Datastore!$A:$A,$M137&$N137&$P137&"|"&$M$13&"|"&$N$13,Datastore!$G:$G)*$Y137+SUMIF(Datastore!$A:$A,$M137&$N137&$Q137&"|"&$M$13&"|"&$N$13,Datastore!$G:$G)*$Y137+SUMIF(Datastore!$A:$A,$M137&$N137&$R137&"|"&$M$13&"|"&$N$13,Datastore!$G:$G)*$Y137+SUMIF(Datastore!$A:$A,$M137&$N137&$S137&"|"&$M$13&"|"&$N$13,Datastore!$G:$G)*$Z137)/1000 -> 0 | G137: =(SUMIF(Datastore!$A:$A,$M137&$N137&$T137&"|"&$M$13&"|"&$N$13,Datastore!$G:$G)*$Y137+SUMIF(Datastore!$A:$A,$M137&$N137&$U137&"|"&$M$13&"|"&$N$13,Datastore!$G:$G)*$Y137+SUMIF(Datastore!$A:$A,$M137&$N137&$V137&"|"&$M$13&"|"&$N$13,Datastore!$G:$G)*$Y137+SUMIF(Datastore!$A:$A,$M137&$N137&$W137&"|"&$M$13&"|"&$N$13,Datastore!$G:$G)*$Y137+SUMIF(Datastore!$A:$A,$M137&$N137&$X137&"|"&$M$13&"|"&$N$13,Datastore!$G:$G)*$Z137)/1000 -> 0 | J137: =SUM(F137:I137) -> 0 | K137: =IF($J137='5.2.1'!J131,"OK","check") -> OK | M137: 87 | N137: 2 | O137: |x | P137: |x | Q137: |x | R137: |x | S137: |x | T137: |RUTW | U137: |x | V137: |x | W137: |x | X137: |x | Y137: -1 | Z137: 1
C138: Other core wastewater services | F138: =(SUMIF(Datastore!$A:$A,$M138&$N138&$O138&"|"&$M$13&"|"&$N$13,Datastore!$G:$G)*$Y138+SUMIF(Datastore!$A:$A,$M138&$N138&$P138&"|"&$M$13&"|"&$N$13,Datastore!$G:$G)*$Y138+SUMIF(Datastore!$A:$A,$M138&$N138&$Q138&"|"&$M$13&"|"&$N$13,Datastore!$G:$G)*$Y138+SUMIF(Datastore!$A:$A,$M138&$N138&$R138&"|"&$M$13&"|"&$N$13,Datastore!$G:$G)*$Y138+SUMIF(Datastore!$A:$A,$M138&$N138&$S138&"|"&$M$13&"|"&$N$13,Datastore!$G:$G)*$Z138)/1000 -> 0 | G138: =(SUMIF(Datastore!$A:$A,$M138&$N138&$T138&"|"&$M$13&"|"&$N$13,Datastore!$G:$G)*$Y138+SUMIF(Datastore!$A:$A,$M138&$N138&$U138&"|"&$M$13&"|"&$N$13,Datastore!$G:$G)*$Y138+SUMIF(Datastore!$A:$A,$M138&$N138&$V138&"|"&$M$13&"|"&$N$13,Datastore!$G:$G)*$Y138+SUMIF(Datastore!$A:$A,$M138&$N138&$W138&"|"&$M$13&"|"&$N$13,Datastore!$G:$G)*$Y138+SUMIF(Datastore!$A:$A,$M138&$N138&$X138&"|"&$M$13&"|"&$N$13,Datastore!$G:$G)*$Z138)/1000 -> 0 | J138: =SUM(F138:I138) -> 0 | K138: =IF($J138='5.2.1'!J132,"OK","check") -> OK | L138: Recycled water | M138: 87 | N138: 2 | O138: |x | P138: |x | Q138: |x | R138: |x | S138: |x | T138: |RURW | U138: |x | V138: |x | W138: |x | X138: |x | Y138: -1 | Z138: 1
C140: Non-regulated:
C141: Aggregate non-regulated services | E141: $'000 | F141: =(SUMIF(Datastore!$A:$A,$M141&$N141&$O141&"|"&$M$13&"|"&$N$13,Datastore!$G:$G)*$Y141+SUMIF(Datastore!$A:$A,$M141&$N141&$P141&"|"&$M$13&"|"&$N$13,Datastore!$G:$G)*$Y141+SUMIF(Datastore!$A:$A,$M141&$N141&$Q141&"|"&$M$13&"|"&$N$13,Datastore!$G:$G)*$Y141+SUMIF(Datastore!$A:$A,$M141&$N141&$R141&"|"&$M$13&"|"&$N$13,Datastore!$G:$G)*$Y141+SUMIF(Datastore!$A:$A,$M141&$N141&$S141&"|"&$M$13&"|"&$N$13,Datastore!$G:$G)*$Z141)/1000 -> 0 | G141: =(SUMIF(Datastore!$A:$A,$M141&$N141&$T141&"|"&$M$13&"|"&$N$13,Datastore!$G:$G)*$Y141+SUMIF(Datastore!$A:$A,$M141&$N141&$U141&"|"&$M$13&"|"&$N$13,Datastore!$G:$G)*$Y141+SUMIF(Datastore!$A:$A,$M141&$N141&$V141&"|"&$M$13&"|"&$N$13,Datastore!$G:$G)*$Y141+SUMIF(Datastore!$A:$A,$M141&$N141&$W141&"|"&$M$13&"|"&$N$13,Datastore!$G:$G)*$Y141+SUMIF(Datastore!$A:$A,$M141&$N141&$X141&"|"&$M$13&"|"&$N$13,Datastore!$G:$G)*$Z141)/1000 -> 0 | J141: =SUM(F141:I141) -> 0 | K141: =IF($J141='5.2.1'!J135,"OK","check") -> OK | L141: Not separable put in res | M141: 87 | N141: 4 | O141: |R??? | P141: |x | Q141: |x | R141: |x | S141: |x | T141: |x | U141: |x | V141: |x | W141: |x | X141: |x | Y141: -1 | Z141: 1
C143: Subtotal Revenue from Services | E143: $'000 | F143: =SUM(F132:F133)+SUM(F136:F138)+F141 -> 7012.807122 | G143: =SUM(G132:G133)+SUM(G136:G138)+G141 -> 2813.70749 | H143: =SUM(H132:H133)+SUM(H136:H138)+H141 -> 0 | I143: =SUM(I132:I133)+SUM(I136:I138)+I141 -> 0 | J143: =SUM(J132:J133)+SUM(J136:J138)+J141 -> 9826.514612 | K143: =IF($J143='5.2.1'!J137,"OK","check") -> OK
B145: OTHER REVENUES
C146: Revenue Offset Against Revenue:
C147: Investment income | E147: $'000 | F147: =(SUMIF(Datastore!$A:$A,$M147&$N147&$P147&"|"&M$13&"|"&"FY"&RIGHT(N$13,2),Datastore!$G:$G)+SUMIF(Datastore!$A:$A,$M147&$O147&$P147&"|"&M$13&"|"&"FY"&RIGHT(N$13,2),Datastore!$G:$G))*$Y147/1000 -> 0 | J147: =SUM(F147:I147) -> 0 | K147: =IF($J147='5.2.1'!J141,"OK","check") -> OK | L147: Not separable - put in res | M147: 87 | N147: 1 | O147: 2 | P147: |RFIN | Y147: -1
C148: Net profit from sale of assets | E148: $'000 | J148: =SUM(F148:I148) -> 0 | K148: =IF($J148='5.2.1'!J142,"OK","check") -> OK | Y148: -1
C149: Contributions | E149: $'000 | F149: =(SUMIF(Datastore!$A:$A,$M149&$N149&$P149&"|"&M$13&"|"&"FY"&RIGHT(N$13,2),Datastore!$G:$G)+SUMIF(Datastore!$A:$A,$M149&$O149&$P149&"|"&M$13&"|"&"FY"&RIGHT(N$13,2),Datastore!$G:$G))*$Y149/1000 -> 3165.410853 | J149: =SUM(F149:I149) -> 3165.410853 | K149: =IF($J149='5.2.1'!J143,"OK","check") -> OK | L149: Not separable - put in res | M149: 87 | N149: 1 | O149: 2 | P149: |RC?? | Y149: -1
C151: Revenue Not Offset Against Revenue:
C152: Non-recurrent Income | E152: $'000 | F152: =(SUMIF(Datastore!$A:$A,$M152&$N152&$P152&"|"&M$13&"|"&"FY"&RIGHT(N$13,2),Datastore!$G:$G)+SUMIF(Datastore!$A:$A,$M152&$O152&$P152&"|"&M$13&"|"&"FY"&RIGHT(N$13,2),Datastore!$G:$G))*$Y152/1000 -> 0 | J152: =SUM(F152:I152) -> 0 | K152: =IF($J152='5.2.1'!J146,"OK","check") -> OK | M152: 87 | N152: 1 | O152: 2 | P152: |RNOT | Y152: -1
C153: Net profit from sale of assets | E153: $'000 | J153: =SUM(F153:I153) -> 0 | K153: =IF($J153='5.2.1'!J147,"OK","check") -> OK
C154: Contributions | E154: $'000 | J154: =SUM(F154:I154) -> 0 | K154: =IF($J154='5.2.1'!J148,"OK","check") -> OK
C156: Subtotal Other Revenues | E156: $'000 | F156: =SUM(F147:F149)+SUM(F152:F154) -> 3165.410853 | G156: =SUM(G147:G149)+SUM(G152:G154) -> 0 | H156: =SUM(H147:H149)+SUM(H152:H154) -> 0 | I156: =SUM(I147:I149)+SUM(I152:I154) -> 0 | J156: =SUM(J147:J149)+SUM(J152:J154) -> 3165.410853 | K156: =IF($J156='5.2.1'!J150,"OK","check") -> OK
B158: TOTAL REVENUE | E158: $'000 | F158: =F156+F143 -> 10178.21797 | G158: =G156+G143 -> 2813.70749 | H158: =H156+H143 -> 0 | I158: =I156+I143 -> 0 | J158: =J156+J143 -> 12991.92546 | K158: =IF($J158='5.2.1'!J152,"OK","check") -> OK
F163: =F$11 -> CUSTOMER GROUPS: | L163: =L$11 -> For Year Ending 30 June 2013
F164: =F$12 -> Residential | G164: =G$12 -> Non-residential | H164: =H$12 -> Commercially Negotiated Agreements | I164: =I$12 -> Other | J164: =J$12 -> Total | L164: =L$12 -> Supporting Documents
B166: ="Geographical Area 5 - "&'Business Details'!$D$16 -> Geographical Area 5 - Somerset
B168: REVENUE FROM SERVICES
C169: Water:
C170: Drinking water | E170: $'000 | F170: =(SUMIF(Datastore!$A:$A,$M170&$N170&$O170&"|"&$M$13&"|"&$N$13,Datastore!$G:$G)*$Y170+SUMIF(Datastore!$A:$A,$M170&$N170&$P170&"|"&$M$13&"|"&$N$13,Datastore!$G:$G)*$Y170+SUMIF(Datastore!$A:$A,$M170&$N170&$Q170&"|"&$M$13&"|"&$N$13,Datastore!$G:$G)*$Y170+SUMIF(Datastore!$A:$A,$M170&$N170&$R170&"|"&$M$13&"|"&$N$13,Datastore!$G:$G)*$Y170+SUMIF(Datastore!$A:$A,$M170&$N170&$S170&"|"&$M$13&"|"&$N$13,Datastore!$G:$G)*$Z170)/1000 -> 3459.878027 | G170: =(SUMIF(Datastore!$A:$A,$M170&$N170&$T170&"|"&$M$13&"|"&$N$13,Datastore!$G:$G)*$Y170+SUMIF(Datastore!$A:$A,$M170&$N170&$U170&"|"&$M$13&"|"&$N$13,Datastore!$G:$G)*$Y170+SUMIF(Datastore!$A:$A,$M170&$N170&$V170&"|"&$M$13&"|"&$N$13,Datastore!$G:$G)*$Y170+SUMIF(Datastore!$A:$A,$M170&$N170&$W170&"|"&$M$13&"|"&$N$13,Datastore!$G:$G)*$Y170+SUMIF(Datastore!$A:$A,$M170&$N170&$X170&"|"&$M$13&"|"&$N$13,Datastore!$G:$G)*$Z170)/1000 -> 2303.665702 | J170: =SUM(F170:I170) -> 5763.543729 | K170: =IF($J170='5.2.1'!J162,"OK","check") -> OK | L170: Non-core not separable put in res | M170: 88 | N170: 1 | O170: |RUR? | P170: |RRCS | Q170: |ROOI | R170: |x | S170: |x | T170: |RUN? | U170: |x | V170: |x | W170: |x | X170: |x | Y170: -1 | Z170: 1
C171: Other core water services | E171: $'000 | J171: =SUM(F171:I171) -> 0 | K171: =IF($J171='5.2.1'!J163,"OK","check") -> OK
C173: Wastewater:
C174: Wastewater via sewer | E174: $'000 | F174: =(SUMIF(Datastore!$A:$A,$M174&$N174&$O174&"|"&$M$13&"|"&$N$13,Datastore!$G:$G)*$Y174+SUMIF(Datastore!$A:$A,$M174&$N174&$P174&"|"&$M$13&"|"&$N$13,Datastore!$G:$G)*$Y174+SUMIF(Datastore!$A:$A,$M174&$N174&$Q174&"|"&$M$13&"|"&$N$13,Datastore!$G:$G)*$Y174+SUMIF(Datastore!$A:$A,$M174&$N174&$R174&"|"&$M$13&"|"&$N$13,Datastore!$G:$G)*$Y174+SUMIF(Datastore!$A:$A,$M174&$N174&$S174&"|"&$M$13&"|"&$N$13,Datastore!$G:$G)*$Z174)/1000 -> 1588.808 | G174: =(SUMIF(Datastore!$A:$A,$M174&$N174&$T174&"|"&$M$13&"|"&$N$13,Datastore!$G:$G)*$Y174+SUMIF(Datastore!$A:$A,$M174&$N174&$U174&"|"&$M$13&"|"&$N$13,Datastore!$G:$G)*$Y174+SUMIF(Datastore!$A:$A,$M174&$N174&$V174&"|"&$M$13&"|"&$N$13,Datastore!$G:$G)*$Y174+SUMIF(Datastore!$A:$A,$M174&$N174&$W174&"|"&$M$13&"|"&$N$13,Datastore!$G:$G)*$Y174+SUMIF(Datastore!$A:$A,$M174&$N174&$X174&"|"&$M$13&"|"&$N$13,Datastore!$G:$G)*$Z174)/1000 -> 531.6027478 | J174: =SUM(F174:I174) -> 2120.410748 | K174: =IF($J174='5.2.1'!J166,"OK","check") -> OK | L174: Non-core not separable put in res | M174: 88 | N174: 2 | O174: |RUR? | P174: |RRCS | Q174: |ROOI | R174: |x | S174: |RURW | T174: |RUN? | U174: |x | V174: |x | W174: |x | X174: |x | Y174: -1 | Z174: 1
C175: Trade waste | E175: $'000 | F175: =(SUMIF(Datastore!$A:$A,$M175&$N175&$O175&"|"&$M$13&"|"&$N$13,Datastore!$G:$G)*$Y175+SUMIF(Datastore!$A:$A,$M175&$N175&$P175&"|"&$M$13&"|"&$N$13,Datastore!$G:$G)*$Y175+SUMIF(Datastore!$A:$A,$M175&$N175&$Q175&"|"&$M$13&"|"&$N$13,Datastore!$G:$G)*$Y175+SUMIF(Datastore!$A:$A,$M175&$N175&$R175&"|"&$M$13&"|"&$N$13,Datastore!$G:$G)*$Y175+SUMIF(Datastore!$A:$A,$M175&$N175&$S175&"|"&$M$13&"|"&$N$13,Datastore!$G:$G)*$Z175)/1000 -> 0 | G175: =(SUMIF(Datastore!$A:$A,$M175&$N175&$T175&"|"&$M$13&"|"&$N$13,Datastore!$G:$G)*$Y175+SUMIF(Datastore!$A:$A,$M175&$N175&$U175&"|"&$M$13&"|"&$N$13,Datastore!$G:$G)*$Y175+SUMIF(Datastore!$A:$A,$M175&$N175&$V175&"|"&$M$13&"|"&$N$13,Datastore!$G:$G)*$Y175+SUMIF(Datastore!$A:$A,$M175&$N175&$W175&"|"&$M$13&"|"&$N$13,Datastore!$G:$G)*$Y175+SUMIF(Datastore!$A:$A,$M175&$N175&$X175&"|"&$M$13&"|"&$N$13,Datastore!$G:$G)*$Z175)/1000 -> 0 | J175: =SUM(F175:I175) -> 0 | K175: =IF($J175='5.2.1'!J167,"OK","check") -> OK | M175: 88 | N175: 2 | O175: |x | P175: |x | Q175: |x | R175: |x | S175: |x | T175: |RUTW | U175: |x | V175: |x | W175: |x | X175: |x | Y175: -1 | Z175: 1
C176: Other core wastewater services | F176: =(SUMIF(Datastore!$A:$A,$M176&$N176&$O176&"|"&$M$13&"|"&$N$13,Datastore!$G:$G)*$Y176+SUMIF(Datastore!$A:$A,$M176&$N176&$P176&"|"&$M$13&"|"&$N$13,Datastore!$G:$G)*$Y176+SUMIF(Datastore!$A:$A,$M176&$N176&$Q176&"|"&$M$13&"|"&$N$13,Datastore!$G:$G)*$Y176+SUMIF(Datastore!$A:$A,$M176&$N176&$R176&"|"&$M$13&"|"&$N$13,Datastore!$G:$G)*$Y176+SUMIF(Datastore!$A:$A,$M176&$N176&$S176&"|"&$M$13&"|"&$N$13,Datastore!$G:$G)*$Z176)/1000 -> 0 | G176: =(SUMIF(Datastore!$A:$A,$M176&$N176&$T176&"|"&$M$13&"|"&$N$13,Datastore!$G:$G)*$Y176+SUMIF(Datastore!$A:$A,$M176&$N176&$U176&"|"&$M$13&"|"&$N$13,Datastore!$G:$G)*$Y176+SUMIF(Datastore!$A:$A,$M176&$N176&$V176&"|"&$M$13&"|"&$N$13,Datastore!$G:$G)*$Y176+SUMIF(Datastore!$A:$A,$M176&$N176&$W176&"|"&$M$13&"|"&$N$13,Datastore!$G:$G)*$Y176+SUMIF(Datastore!$A:$A,$M176&$N176&$X176&"|"&$M$13&"|"&$N$13,Datastore!$G:$G)*$Z176)/1000 -> 0 | J176: =SUM(F176:I176) -> 0 | K176: =IF($J176='5.2.1'!J168,"OK","check") -> OK | L176: Recycled water | M176: 88 | N176: 2 | O176: |x | P176: |x | Q176: |x | R176: |x | S176: |x | T176: |RURW | U176: |x | V176: |x | W176: |x | X176: |x | Y176: -1 | Z176: 1
C178: Non-regulated:
C179: Aggregate non-regulated services | E179: $'000 | F179: =(SUMIF(Datastore!$A:$A,$M179&$N179&$O179&"|"&$M$13&"|"&$N$13,Datastore!$G:$G)*$Y179+SUMIF(Datastore!$A:$A,$M179&$N179&$P179&"|"&$M$13&"|"&$N$13,Datastore!$G:$G)*$Y179+SUMIF(Datastore!$A:$A,$M179&$N179&$Q179&"|"&$M$13&"|"&$N$13,Datastore!$G:$G)*$Y179+SUMIF(Datastore!$A:$A,$M179&$N179&$R179&"|"&$M$13&"|"&$N$13,Datastore!$G:$G)*$Y179+SUMIF(Datastore!$A:$A,$M179&$N179&$S179&"|"&$M$13&"|"&$N$13,Datastore!$G:$G)*$Z179)/1000 -> 0 | G179: =(SUMIF(Datastore!$A:$A,$M179&$N179&$T179&"|"&$M$13&"|"&$N$13,Datastore!$G:$G)*$Y179+SUMIF(Datastore!$A:$A,$M179&$N179&$U179&"|"&$M$13&"|"&$N$13,Datastore!$G:$G)*$Y179+SUMIF(Datastore!$A:$A,$M179&$N179&$V179&"|"&$M$13&"|"&$N$13,Datastore!$G:$G)*$Y179+SUMIF(Datastore!$A:$A,$M179&$N179&$W179&"|"&$M$13&"|"&$N$13,Datastore!$G:$G)*$Y179+SUMIF(Datastore!$A:$A,$M179&$N179&$X179&"|"&$M$13&"|"&$N$13,Datastore!$G:$G)*$Z179)/1000 -> 0 | J179: =SUM(F179:I179) -> 0 | K179: =IF($J179='5.2.1'!J171,"OK","check") -> OK | L179: Not separable put in res | M179: 88 | N179: 4 | O179: |R??? | P179: |x | Q179: |x | R179: |x | S179: |x | T179: |x | U179: |x | V179: |x | W179: |x | X179: |x | Y179: -1 | Z179: 1
C181: Subtotal Revenue from Services | E181: $'000 | F181: =SUM(F170:F171)+SUM(F174:F176)+F179 -> 5048.686027 | G181: =SUM(G170:G171)+SUM(G174:G176)+G179 -> 2835.26845 | H181: =SUM(H170:H171)+SUM(H174:H176)+H179 -> 0 | I181: =SUM(I170:I171)+SUM(I174:I176)+I179 -> 0 | J181: =SUM(J170:J171)+SUM(J174:J176)+J179 -> 7883.954477 | K181: =IF($J181='5.2.1'!J173,"OK","check") -> OK
B183: OTHER REVENUES
C184: Revenue Offset Against Revenue:
C185: Investment income | E185: $'000 | F185: =(SUMIF(Datastore!$A:$A,$M185&$N185&$P185&"|"&M$13&"|"&"FY"&RIGHT(N$13,2),Datastore!$G:$G)+SUMIF(Datastore!$A:$A,$M185&$O185&$P185&"|"&M$13&"|"&"FY"&RIGHT(N$13,2),Datastore!$G:$G))*$Y185/1000 -> 0 | J185: =SUM(F185:I185) -> 0 | K185: =IF($J185='5.2.1'!J177,"OK","check") -> OK | L185: Not separable - put in res | M185: 88 | N185: 1 | O185: 2 | P185: |RFIN | Y185: -1
C186: Net profit from sale of assets | E186: $'000 | J186: =SUM(F186:I186) -> 0 | K186: =IF($J186='5.2.1'!J178,"OK","check") -> OK | Y186: -1
C187: Contributions | E187: $'000 | F187: =(SUMIF(Datastore!$A:$A,$M187&$N187&$P187&"|"&M$13&"|"&"FY"&RIGHT(N$13,2),Datastore!$G:$G)+SUMIF(Datastore!$A:$A,$M187&$O187&$P187&"|"&M$13&"|"&"FY"&RIGHT(N$13,2),Datastore!$G:$G))*$Y187/1000 -> 3197.275302 | J187: =SUM(F187:I187) -> 3197.275302 | K187: =IF($J187='5.2.1'!J179,"OK","check") -> OK | L187: Not separable - put in res | M187: 88 | N187: 1 | O187: 2 | P187: |RC?? | Y187: -1
C189: Revenue Not Offset Against Revenue:
C190: Non-recurrent Income | E190: $'000 | F190: =(SUMIF(Datastore!$A:$A,$M190&$N190&$P190&"|"&M$13&"|"&"FY"&RIGHT(N$13,2),Datastore!$G:$G)+SUMIF(Datastore!$A:$A,$M190&$O190&$P190&"|"&M$13&"|"&"FY"&RIGHT(N$13,2),Datastore!$G:$G))*$Y190/1000 -> 0 | J190: =SUM(F190:I190) -> 0 | K190: =IF($J190='5.2.1'!J190,"OK","check") -> OK | M190: 88 | N190: 1 | O190: 2 | P190: |RNOT | Y190: -1
C191: Net profit from sale of assets | E191: $'000 | J191: =SUM(F191:I191) -> 0 | K191: =IF($J191='5.2.1'!J183,"OK","check") -> OK
C192: Contributions | E192: $'000 | J192: =SUM(F192:I192) -> 0 | K192: =IF($J192='5.2.1'!J184,"OK","check") -> OK
C194: Subtotal Other Revenues | E194: $'000 | F194: =SUM(F185:F187)+SUM(F190:F192) -> 3197.275302 | G194: =SUM(G185:G187)+SUM(G190:G192) -> 0 | H194: =SUM(H185:H187)+SUM(H190:H192) -> 0 | I194: =SUM(I185:I187)+SUM(I190:I192) -> 0 | J194: =SUM(J185:J187)+SUM(J190:J192) -> 3197.275302 | K194: =IF($J194='5.2.1'!J186,"OK","check") -> OK
B196: TOTAL REVENUE | E196: $'000 | F196: =F194+F181 -> 8245.961329 | G196: =G194+G181 -> 2835.26845 | H196: =H194+H181 -> 0 | I196: =I194+I181 -> 0 | J196: =J194+J181 -> 11081.22978 | K196: =IF($J196='5.2.1'!J188,"OK","check") -> OK
F201: =F$11 -> CUSTOMER GROUPS: | L201: =L$11 -> For Year Ending 30 June 2013
F202: =F$12 -> Residential | G202: =G$12 -> Non-residential | H202: =H$12 -> Commercially Negotiated Agreements | I202: =I$12 -> Other | J202: =J$12 -> Total | L202: =L$12 -> Supporting Documents
B204: Unallocated Revenue
B206: REVENUE FROM SERVICES
C207: Water:
C208: Drinking water | E208: $'000 | J208: =SUM(F208:I208) -> 0 | K208: =IF($J208='5.2.1'!J198,"OK","check") -> OK
C209: Other core water services | E209: $'000 | J209: =SUM(F209:I209) -> 0 | K209: =IF($J209='5.2.1'!J199,"OK","check") -> OK
C211: Wastewater:
C212: Wastewater via sewer | E212: $'000 | J212: =SUM(F212:I212) -> 0 | K212: =IF($J212='5.2.1'!J202,"OK","check") -> OK
C213: Trade waste | E213: $'000 | J213: =SUM(F213:I213) -> 0 | K213: =IF($J213='5.2.1'!J203,"OK","check") -> OK
C214: Other core wastewater services | J214: =SUM(F214:I214) -> 0 | K214: =IF($J214='5.2.1'!J204,"OK","check") -> OK
C216: Non-regulated:
C217: Aggregate non-regulated services | E217: $'000 | J217: =SUM(F217:I217) -> 0 | K217: =IF($J217='5.2.1'!J207,"OK","check") -> OK
C219: Subtotal Revenue from Services | E219: $'000 | F219: =SUM(F208:F209)+SUM(F212:F214)+F217 -> 0 | G219: =SUM(G208:G209)+SUM(G212:G214)+G217 -> 0 | H219: =SUM(H208:H209)+SUM(H212:H214)+H217 -> 0 | I219: =SUM(I208:I209)+SUM(I212:I214)+I217 -> 0 | J219: =SUM(J208:J209)+SUM(J212:J214)+J217 -> 0 | K219: =IF($J219='5.2.1'!J209,"OK","check") -> OK
B221: OTHER REVENUES
C222: Revenue Offset Against Revenue:
C223: Investment income | E223: $'000 | J223: =SUM(F223:I223) -> 0 | K223: =IF($J223='5.2.1'!J213,"OK","check") -> OK
C224: Net profit from sale of assets | E224: $'000 | J224: =SUM(F224:I224) -> 0 | K224: =IF($J224='5.2.1'!J214,"OK","check") -> OK
C225: Contributions | E225: $'000 | J225: =SUM(F225:I225) -> 0 | K225: =IF($J225='5.2.1'!J215,"OK","check") -> OK
C227: Revenue Not Offset Against Revenue:
C228: Non-recurrent Income | E228: $'000 | J228: =SUM(F228:I228) -> 0 | K228: =IF($J228='5.2.1'!J218,"OK","check") -> OK
C229: Net profit from sale of assets | E229: $'000 | J229: =SUM(F229:I229) -> 0 | K229: =IF($J229='5.2.1'!J219,"OK","check") -> OK
C230: Contributions | E230: $'000 | J230: =SUM(F230:I230) -> 0 | K230: =IF($J230='5.2.1'!J220,"OK","check") -> OK
C232: Subtotal Other Revenues | E232: $'000 | F232: =SUM(F223:F225)+SUM(F228:F230) -> 0 | G232: =SUM(G223:G225)+SUM(G228:G230) -> 0 | H232: =SUM(H223:H225)+SUM(H228:H230) -> 0 | I232: =SUM(I223:I225)+SUM(I228:I230) -> 0 | J232: =SUM(J223:J225)+SUM(J228:J230) -> 0 | K232: =IF($J232='5.2.1'!J222,"OK","check") -> OK
B234: TOTAL REVENUE | E234: $'000 | F234: =F232+F219 -> 0 | G234: =G232+G219 -> 0 | H234: =H232+H219 -> 0 | I234: =I232+I219 -> 0 | J234: =J232+J219 -> 0 | K234: =IF($J234='5.2.1'!J224,"OK","check") -> OK
F239: =F$11 -> CUSTOMER GROUPS: | L239: =L$11 -> For Year Ending 30 June 2013
F240: =F$12 -> Residential | G240: =G$12 -> Non-residential | H240: =H$12 -> Commercially Negotiated Agreements | I240: =I$12 -> Other | J240: =J$12 -> Total | L240: =L$12 -> Supporting Documents
B242: Total
B244: REVENUE FROM SERVICES
C245: Water:
C246: Drinking water | E246: $'000 | F246: =F208+F170+F132+F94+F56+F18 -> 310100.6637 | G246: =G208+G170+G132+G94+G56+G18 -> 145531.2424 | H246: 0 | I246: 0 | J246: 455631.9061 | K246: =IF($J246='5.2.1'!J234,"OK","check") -> OK
C247: Other core water services | E247: $'000 | F247: =F209+F171+F133+F95+F57+F19 -> 0 | G247: 0 | H247: 0 | I247: 0 | J247: 0 | K247: =IF($J247='5.2.1'!J235,"OK","check") -> OK
C249: Wastewater:
C250: Wastewater via sewer | E250: $'000 | F250: =F212+F174+F136+F98+F60+F22 -> 236504.667 | G250: =G212+G174+G136+G98+G60+G22 -> 109726.5359 | H250: 0 | I250: 0 | J250: 346231.2029 | K250: =IF($J250='5.2.1'!J238,"OK","check") -> OK
C251: Trade waste | E251: $'000 | F251: =F213+F175+F137+F99+F61+F23 -> 0 | G251: 23187.71866 | H251: 0 | I251: 0 | J251: 23187.71866 | K251: =IF($J251='5.2.1'!J239,"OK","check") -> OK
C252: Other core wastewater services | E252: $'000 | F252: =F214+F176+F138+F100+F62+F24 -> 0 | G252: 9619.884433 | H252: 0 | I252: 0 | J252: 9619.884433 | K252: =IF($J252='5.2.1'!J240,"OK","check") -> OK
C254: Non-regulated:
C255: Aggregate non-regulated services | E255: $'000 | F255: =F217+F179+F141+F103+F65+F27 -> 1269.05 | G255: =G217+G179+G141+G103+G65+G27 -> 0 | H255: =H217+H179+H141+H103+H65+H27 -> 0 | I255: =I217+I179+I141+I103+I65+I27 -> 0 | J255: =J217+J179+J141+J103+J65+J27 -> 1269.05 | K255: =IF($J255='5.2.1'!J243,"OK","check") -> OK
C257: Subtotal Revenue from Services | E257: $'000 | F257: =SUM(F246:F247)+SUM(F250:F252)+F255 -> 547874.3807 | G257: =SUM(G246:G247)+SUM(G250:G252)+G255 -> 288065.3814 | H257: =SUM(H246:H247)+SUM(H250:H252)+H255 -> 0 | I257: =SUM(I246:I247)+SUM(I250:I252)+I255 -> 0 | J257: =SUM(J246:J247)+SUM(J250:J252)+J255 -> 835939.7621 | K257: =IF($J257='5.2.1'!J245,"OK","check") -> OK
B259: OTHER REVENUES
C260: Revenue Offset Against Revenue:
C261: Investment income | E261: $'000 | F261: =F223+F185+F147+F109+F71+F33 -> 350 | G261: =G223+G185+G147+G109+G71+G33 -> 0 | H261: 0 | I261: 0 | J261: 350 | K261: =IF($J261='5.2.1'!J249,"OK","check") -> OK
C262: Net profit from sale of assets | E262: $'000 | F262: =F224+F186+F148+F110+F72+F34 -> 0 | G262: 0 | H262: 0 | I262: 0 | J262: 0 | K262: =IF($J262='5.2.1'!J250,"OK","check") -> OK
C263: Contributions | E263: $'000 | F263: =F225+F187+F149+F111+F73+F35 -> 137689.0609 | G263: 0 | H263: 0 | I263: 0 | J263: 137689.0609 | K263: =IF($J263='5.2.1'!J251,"OK","check") -> OK
C265: Revenue Not Offset Against Revenue:
C266: Non-recurrent Income | E266: $'000 | F266: =F228+F190+F152+F114+F76+F38 -> 5500 | G266: =G228+G190+G152+G114+G76+G38 -> 0 | H266: 0 | I266: 0 | J266: 5500 | K266: =IF($J266='5.2.1'!J254,"OK","check") -> OK
C267: Net profit from sale of assets | E267: $'000 | F267: =F229+F191+F153+F115+F77+F39 -> 0 | G267: 0 | H267: 0 | I267: 0 | J267: 0 | K267: =IF($J267='5.2.1'!J255,"OK","check") -> OK
C268: Contributions | E268: $'000 | F268: =F230+F192+F154+F116+F78+F40 -> 0 | G268: 0 | H268: 0 | I268: 0 | J268: 0 | K268: =IF($J268='5.2.1'!J256,"OK","check") -> OK
C270: Subtotal Other Revenues | E270: $'000 | F270: =SUM(F261:F263)+SUM(F266:F268) -> 143539.0609 | G270: =SUM(G261:G263)+SUM(G266:G268) -> 0 | H270: =SUM(H261:H263)+SUM(H266:H268) -> 0 | I270: =SUM(I261:I263)+SUM(I266:I268) -> 0 | J270: =SUM(J261:J263)+SUM(J266:J268) -> 143539.0609 | K270: =IF($J270='5.2.1'!J258,"OK","check") -> OK
B272: TOTAL REVENUE | E272: $'000 | F272: =F270+F257 -> 691413.4416 | G272: =G270+G257 -> 288065.3814 | H272: =H270+H257 -> 0 | I272: =I270+I257 -> 0 | J272: =J270+J257 -> 979478.823 | K272: =IF($J272='5.2.1'!J260,"OK","check") -> OK
M666: ='5.1.7'!M29 -> 0 | N666: ='5.1.7'!S29 -> 0 | O666: ='5.1.7'!T29 -> 0 | P666: ='5.1.7'!U29 -> 0 | Q666: ='5.1.7'!V29 -> 0 | R666: ='5.1.7'!W29 -> 0 | S666: ='5.1.7'!X29 -> 0 | T666: ='5.1.7'!Y29 -> 0 | U666: ='5.1.7'!Z29 -> 0 | V666: ='5.1.7'!AA29 -> 0 | W666: ='5.1.7'!AB29 -> 0 | X666: ='5.1.7'!#REF! -> 

Sheet 5.2.3
B4: ='Business Details'!$B$4 -> SEQ INTERIM REVENUE MONITORING - INFORMATION REQUIREMENT TEMPLATE
